Workbook

Sheet ODK
B1: ОПРОСНО-ДИАГНОСТИЧЕСКАЯ КАРТА № ______ | D1: ОПРОСНО-ДИАГНОСТИЧЕСКАЯ КАРТА № ______
A2: ФИО | B2: Иванов Иван Иванович | D2: Ешану Григория Григорьевича
B3: по изучению предпосылок формирования двигательной культуры населения Республики Беларусь | D3: по изучению предпосылок формирования двигательной культуры населения Республики Беларусь
B4: Уважаемые друзья! | D4: Уважаемые друзья!
B5: Желаем Вам доброго здоровья и просим уделить себе некоторое время, приняв участие в опросе и самостоятельном обследовании. Полученные ответы и данные помогут Вам оценить себя, своих друзей и близких. На основе полученных данных эта программа поможет Вам разработать для себя индивидуальный двигательный режим, который поможет Вам повысить собственный уровень двигательной культуры, физического здоровья и продлить активное долголетие. | D5: Желаем Вам доброго здоровья и просим уделить себе некоторое время, приняв участие в опросе и самостоятельном обследовании. Полученные ответы и данные помогут Вам оценить себя, своих друзей и близких. На основе полученных данных эта программа поможет Вам разработать для себя индивидуальный двигательный режим, который поможет Вам повысить собственный уровень двигательной культуры, физического здоровья и продлить активное долголетие.
B7: СОЦИАЛЬНЫЙ БЛОК | D7: СОЦИАЛЬНЫЙ БЛОК
B8: 1. Ваш пол: | D8: Ваш пол:
B9: мужской | D9: мужской
B10: 2. Ваш возраст (годы) | D10: женский
B11: 17 | D11: 3. Ваш возраст (годы)
B12: 3. Место жительства: | D12: Место жительства:
B13: деревня | D13: город свыше 50 тыс. чел.
D14: город до 50 тыс. чел.
D15: городской поселок
D16: агрогородок
D17: деревня
B18: 4. Место проживания: | D18: Место проживания:
B19: частный дом в агрогородке | D19: частный дом в деревне
D20: частный дом в агрогородке
D21: квартира
D22: квартира в городе + дача
D23: квартира в городе
B24: 5. Наличие у Вашей семьи приусадебного участка: | D24: Наличие у Вашей семьи приусадебного участка:
B25: менее 6 ар | D25: более 18 ар
D26: 12-17 ар
D27: 7-11 ар
D28: менее 6 ар
D29: нет
B30: 6. Наличие у Вашей семьи приусадебного хозяйства: | D30: Наличие у Вашей семьи приусадебного хозяйства:
B31: нет | D31: птица, мелкий рогатый скот, свиньи, крупный рогатый скот
D32: птица, мелкий рогатый скот, свиньи
D33: птица, мелкий рогатый скот
D34: птица
D35: нет
B36: 7. Ваша работа или учеба: | D36: Ваша работа или учеба:
B37: учитесь | D37: работаете
D38: учитесь
D39: на пенсии
D40: не работаете
D41: БЛОК ИЗУЧЕНИЯ ВАШЕГО ОБРАЗА ЖИЗНИ И ДВИГАТЕЛЬНОЙ СРЕДЫ
B42: 8. В сутки вы спите, продолжительность сна, часы; | D42: 19. В сутки вы спите, продолжительность сна, часы;
B43: 6 | D43: менее 5 часов
D44: 5
D45: 6
D46: 7
D47: 8
D48: 9
D49: 10
D50: 11
D51: 12 и более
B52: 9. В сутки вы питаетесь, количество приемов пищи в день, разы; | D52: 20. В сутки вы питаетесь, количество приемов пищи в день, разы;
B53: 3-4 | D53: 1-2
D54: 3-4
D55: 5-6
D56: 7-8
D57: 9 и более
B58: 10. Количество пищи за один прием, литры (0,25; 0,5; 1,0; 1,25; 1,5 и т.д.); | D58: 21. Количество пищи за один прием, литры (0,25; 0,5; 1,0; 1,25; 1,5 и т.д.);
B59: 0,4-0,5 литра | D59: менее 0,4 литра
D60: 0,4-0,5 литра
D61: 0,6-0,7 литра
D62: 0,8-0,9 литра
D63: 1 литр и более
B64: 11. Качество ежедневно употребляемой пищи (наличие в рационе овощей и фруктов), дней в неделю. | D64: 21а. Качество ежедневно употребляемой пищи (наличие в рационе овощей и фруктов), дней в неделю.
B65: 3 | D65: менее 2-х
D66: 2
D67: 3
D68: 4
D69: 5 и более
B71: 12. Количество ежедневно пройденных километров, км; | D71: 22. Количество ежедневно пройденных километров, км;
B72: 7-9 км | D72: менее 4 км
D73: 4-6 км
D74: 7-9 км
D75: 10-12 км
D76: 13 и более
B77: 13. Количество часов в день, проводимых вами сидя, часы; | D77: 23. Количество часов в день, проводимых вами сидя, часы;
B78: 1-3 часа | D78: менее одного часа
D79: 1-3 часа
D80: 4-5 часов
D81: 6-7 часов
D82: 8 часов и более
B84: 14. Как часто, в течение дня, вы контролируете правильность сохранения осанки и корректируете ее, разы | D84: 24. Как часто, в течение дня, вы контролируете правильность сохранения осанки и корректируете ее, разы
B85: 8 и более | D85: никогда
D86: 1 раз
D87: 2-3 раза
D88: 4-7 раз
D89: 8 и более
B90: 15. Количество занятий физическими упражнениями в неделю (продолжительность одного занятия не менее 30 минут), разы; | D90: 25. Количество занятий физическими упражнениями в неделю (продолжительность одного занятия не менее 30 минут), разы;
B91: 3 | D91: менее 2-х
D92: 2
D93: 3
D94: 4
D95: 5 и более
B97: 16. Суммарная продолжительность занятий физическими упражнениями в неделю, часы; | D97: 26. Суммарная продолжительность занятий физическими упражнениями в неделю, часы;
B98: 5 и более | D98: менее 2-х
D99: 2
D100: 3
D101: 4
D102: 5 и более
B104: 17. Внешние признаки физической нагрузки во время повседневной двигательной активности: | D104: Внешние признаки физической нагрузки во время повседневной двигательной активности:
B105: легкое потоотделение | D105: отсутствие внешних признаков
D106: легкая испарина
D107: легкое потоотделение
D108: среднее потоотделение
D109: обильное потоотделение
B110: 18. Характеристика повседневной двигательной активности: | D110: Характеристика повседневной двигательной активности:
B111: сочетание низкого, среднего и высокого темпа ходьбы + бытовые и трудовые двигательные действия с наклонами, поднятиями и перемещениями предметов до 3 кг | D111: низкий темп ходьбы + бытовые двигательные действия без наклонов, поднятия и перемещения предметов
D112: сочетание низкого и среднего темпа ходьбы + бытовые и трудовые двигательные действия с наклонами, без поднятия и перемещения предметов
D113: сочетание низкого, среднего и высокого темпа ходьбы + бытовые и трудовые двигательные действия с наклонами, поднятиями и перемещениями предметов до 3 кг
D114: сочетание среднего и высокого темпа ходьбы + бытовые и трудовые двигательные действия с наклонами, поднятиями и перемещениями предметов до 5 кг
D115: сочетание среднего и высокого темпа ходьбы + бег + бытовые и трудовые двигательные действия с наклонами, поднятиями и перемещениями предметов свыше 5 кг
B116: 19. Суммарная продолжительность сохранения рабочей позы во время повседневной двигательной активности, часы | D116: Суммарная продолжительность сохранения рабочей позы во время повседневной двигательной активности, часы
B117: 4-5 часов | D117: менее 2-х часов
D118: 2-3 часа
D119: 4-5 часов
D120: 6-7 часов
D121: 8 и более часов
B122: 20. Чувство физической усталости после учебного или рабочего дня: | D122: Чувство физической усталости после учебного или рабочего дня:
B123: нет | D123: нет
D124: слабое
D125: среднее
D126: сильное
D127: чрезмерное
B128: 21. Чувство физической усталости в конце дня: | D128: Чувство физической усталости в конце дня:
B129: чрезмерное | D129: Нет
D130: слабое
D131: среднее
D132: сильное
D133: чрезмерное
B134: 22. Наличие хронических заболеваний, штук | D134: Наличие хронических заболеваний, штук
B135: 2 | D135: 4 и более
D136: 3
D137: 2
D138: 1
D139: нет
B140: АНТРОПОМЕТРИЧЕСКИЙ И ФУНКЦИОНАЛЬНЫЙ БЛОК | D140: АНТРОПОМЕТРИЧЕСКИЙ И ФУНКЦИОНАЛЬНЫЙ БЛОК
B141: Антропометрические данные | D141: Антропометрические данные школьника
B142: 23. – рост, см;
B143: 184 | D143: 48. – рост, см;
B144: 24. – вес, кг;
B145: 93 | D145: 49. – вес, кг;
B146: 25. – окружность грудной клетки, см;
B147: 112 | D147: 50. – окружность грудной клетки, см;
B148: 26. – окружность талии, см;
B149: 104 | D149: 51. – окружность талии, см;
B150: 27. – окружность бедер, см;
B151: 108 | D151: 52. – окружность бедер, см;
B152: 28. – окружность бедра, см;
B153: 64 | D153: 53. – окружность бедра, см;
B154: 29. – окружность плеча, см;
B155: 32 | D155: 54. – окружность плеча, см;
B156: 30. – окружность запястья, см;
B157: 21 | D157: 55. – окружность запястья, см;
B158: 31. – толщина кожно-жировой складки в месте сдавливания большим и указательным пальцем у нижнего края (акромиона) лопатки, мм;
B159: 12 | D159: 56. – толщина кожно-жировой складки в месте сдавливания большим и указательным пальцем у нижнего края (акромиона) лопатки, мм;
B160: Функциональные данные | D160: Функциональные данные школьника
B161: 32. – систолическое артериальное давление (верхнее), мм Hg;
B162: 145 | D162: 57. – систолическое артериальное давление (верхнее), мм Hg;
B163: 33. – диастолическое артериальное давление (нижнее), мм Hg;
B164: 90 | D164: 58. – диастолическое артериальное давление (нижнее), мм Hg;
B165: 34. – жизненная ёмкость легких (спирометрия), мм3;
B166: 3800 | D166: 59. – жизненная ёмкость легких (спирометрия), мм3;
B167: 35. – частота дыхания в минуту в покое, разы;
B168: 12 | D168: 60. – частота дыхания в минуту в покое, разы;
B169: Проба Руфье — Диксона. Порядок проведения обследования. У испытуемого после пятиминутного отдыха в положении сидя, определяют число пульсаций за 15 секунд (P1); затем в течение 45 секунд испытуемый выполняет 30 приседаний. После окончания нагрузки испытуемый садится, и у него вновь подсчитывается число пульсаций за первые 15 секунд (Р2), а потом — за последние 15 секунд (Р3) первой минуты периода восстановления (через 45 секунд после выполнения физической нагрузки). Оценку работоспособности сердца производят по формуле: Индекс Руфье = (4 х (Р1 + Р2 + Р3) — 200) / 10. | D169: Проба Руфье — Диксона. Порядок проведения обследования. У испытуемого после пятиминутного отдыха в положении сидя, определяют число пульсаций за 15 секунд (P1); затем в течение 45 секунд испытуемый выполняет 30 приседаний. После окончания нагрузки испытуемый садится, и у него вновь подсчитывается число пульсаций за первые 15 секунд (Р2), а потом — за последние 15 секунд (Р3) первой минуты периода восстановления (через 45 секунд после выполнения физической нагрузки). Оценку работоспособности сердца производят по формуле: Индекс Руфье = (4 х (Р1 + Р2 + Р3) — 200) / 10.
B170: 36. – (Р1) пульс в состоянии покоя за 15 с., удары;
B171: 14 | D171: 61. – (Р1) пульс в состоянии покоя за 15 с., удары;
B172: 37. – (Р2) пульс за 15 с. после физической нагрузки, удары;
B173: 22 | D173: 62. – (Р2) пульс за 15 с. после физической нагрузки, удары;
B174: 38. – (Р3) пульс за 15 с. через 45 секунд после физич. нагрузки, удары;
B175: 16 | D175: 63. – (Р3) пульс за 15 с. через 45 секунд после физич. нагрузки, удары;
B176: 39. – индекс Руфье, балл;
B177: =(4*(B171+B173+B175)-200)/10 -> 0.8 | D177: 64. – индекс Руфье, балл;
B178: Проба Штанге – Генча. Проба с задержкой дыхания на вдохе (проба Штанге). Порядок проведения обследования. До проведения пробы у обследуемого подсчитывается пульс за 30 сек в положении стоя. Затем дыхание задерживается на полном вдохе, который обследуемый делает после трех произвольных вдохов и выдохов. Обследуемый зажимает нос пальцами (либо прищепкой) и плотно закрывает рот. Время задержки регистрируется по секундомеру. Тотчас после возобновления дыхания фиксируется результат и производится подсчет пульса за 30 секунд. Результат заносится в карту. | D178: Проба Штанге – Генча. Проба с задержкой дыхания на вдохе (проба Штанге). Порядок проведения обследования. До проведения пробы у обследуемого подсчитывается пульс за 30 сек в положении стоя. Затем дыхание задерживается на полном вдохе, который обследуемый делает после трех произвольных вдохов и выдохов. Обследуемый зажимает нос пальцами (либо прищепкой) и плотно закрывает рот. Время задержки регистрируется по секундомеру. Тотчас после возобновления дыхания фиксируется результат и производится подсчет пульса за 30 секунд. Результат заносится в карту.
B179: 40. – пульс за 30 с. до задержки дыхания (стоя), удары;
B180: 62 | D180: 65. – пульс за 30 с. до задержки дыхания (стоя), удары;
B181: 41. – длительность задержки дыхания на вдохе, секунды;
B182: 48 | D182: 66. – длительность задержки дыхания на вдохе, секунды;
B183: 42. – пульс за 30 с. после задержки дыхания (стоя), удары;
B184: 72 | D184: 67. – пульс за 30 с. после задержки дыхания (стоя), удары;
B185: Проба с задержкой дыхания на выдохе (проба Генча). Порядок проведения обследования. До проведения пробы у обследуемого подсчитывается пульс за 30 секунд в положении стоя. Дыхание задерживается на полном выдохе, который обследуемый делает после трех глубоких вдохов и выдохов. Обследуемый зажимает нос пальцами (либо прищепкой) и плотно закрывает рот. Время задержки регистрируется по секундомеру. Тотчас после возобновления дыхания производится подсчет пульса за 30 секунд. Результат заносится в карту. | D185: Проба с задержкой дыхания на выдохе (проба Генча). Порядок проведения обследования. До проведения пробы у обследуемого подсчитывается пульс за 30 секунд в положении стоя. Дыхание задерживается на полном выдохе, который обследуемый делает после трех глубоких вдохов и выдохов. Обследуемый зажимает нос пальцами (либо прищепкой) и плотно закрывает рот. Время задержки регистрируется по секундомеру. Тотчас после возобновления дыхания производится подсчет пульса за 30 секунд. Результат заносится в карту.
B186: 43. – пульс за 30 с. до задержки дыхания (стоя), удары;
B187: 62 | D187: 68. – пульс за 30 с. до задержки дыхания (стоя), удары;
B188: 44. – длительность задержки дыхания на выдохе, секунды;
B189: 28 | D189: 69. – длительность задержки дыхания на выдохе, секунды;
B190: 45. – пульс за 30 с. после задержки дыхания (стоя), удары;
B191: 70 | D191: 70. – пульс за 30 с. после задержки дыхания (стоя), удары;
B192: Динамометрия. | D192: Динамометрия.
B193: 46. – левой руки (кг / см);
B194: 52 | D194: 71. – левой руки (кг / см);
B195: 47. – правой руки (кг / см);
B196: 58 | D196: 72. – правой руки (кг / см);
B197: Длительность стойки на одной ноге с закрытыми глазами, секунды: | D197: Длительность стойки на одной ноге с закрытыми глазами, секунды:
B198: 48. – правой;
B199: 3 | D199: 73. – правой;
B200: 49. – левой
B201: 3 | D201: 74. – левой
B202: КОНТРОЛЬНО-ПЕДАГОГИЧЕСКИЙ БЛОК | D202: КОНТРОЛЬНО-ПЕДАГОГИЧЕСКИЙ БЛОК
B203: В этом разделе мы просим выполнить посильные для Вас педагогические тесты (контрольные физические упражнения). Если вы планируете выполнить тесты в течение одного занятия, то приступать следует в той последовательности, которая указана в карте (быстрота, ловкость, сила, гибкость, выносливость). Выполнению упражнений должна предшествовать разминка, содержащая аналогичные контрольным физические упражнения. По желанию испытуемого контрольное упражнение может выполняться в несколько попыток. Приступать к выполнению следующего физического упражнения следует после паузы отдыха при восстановлении показателей пульса до 115 % от первоначального. В карту заносится лучший результат из нескольких попыток (количество повторений, секунды, сантиметры). | D203: В этом разделе мы просим выполнить посильные для Вас педагогические тесты (контрольные физические упражнения). Если вы планируете выполнить тесты в течение одного занятия, то приступать следует в той последовательности, которая указана в карте (быстрота, ловкость, сила, гибкость, выносливость). Выполнению упражнений должна предшествовать разминка, содержащая аналогичные контрольным физические упражнения. По желанию испытуемого контрольное упражнение может выполняться в несколько попыток. Приступать к выполнению следующего физического упражнения следует после паузы отдыха при восстановлении показателей пульса до 115 % от первоначального. В карту заносится лучший результат из нескольких попыток (количество повторений, секунды, сантиметры).
B204: Быстрота. Физические упражнения выполняются в максимальном темпе. В карту заносится время выполнения завершенных повторений. | D204: Быстрота. Физические упражнения выполняются в максимальном темпе за 5 секунд. В карту заносится максимальное количество завершенных повторений.
B205: 50. Приседания, 6 раз;
... 55 more rows

Sheet IDK
A1: ИНДИВИДУАЛЬНАЯ ДИАГНОСТИЧЕСКАЯ КАРТА
A2: =ODK!B2 -> Иванов Иван Иванович
A3: (ФИО диагностируемого)
A4: для определения уровня двигательной культуры и
A5: разработки индивидуального двигательного режима
A7: I. ОЦЕНКА СОЦИАЛЬНЫХ ДАННЫХ
A9: Пол | B9: =ODK!B9 -> мужской | C9: Оценка | D9: =IF(B9="мужской",1,IF(B9="женский",2,"")) -> 1
A10: Возраст | B10: =ODK!B11 -> 17 | C10: Оценка | D10: =IF(B10<1,"нет возраста",IF(D9=1,HLOOKUP(B10,ВозрастМ,2,1),IF(D9=2,HLOOKUP(B10,ВозрастЖ,2,1),"не указан пол"))) -> 1
A11: Место жительства | B11: =IF(ODK!B13=ODK!D13,1,IF(ODK!B13=ODK!D14,2,IF(ODK!B13=ODK!D15,3,IF(ODK!B13=ODK!D16,4,IF(ODK!B13=ODK!D17,5,""))))) -> 5 | C11: Оценка | D11: =INDEX('Table-IDK'!B11:F11,MATCH(IDK!B11,'Table-IDK'!B12:F12,0)) -> 1
A12: Место проживания | B12: =IF(ODK!B19=ODK!D19,5,IF(ODK!B19=ODK!D20,4,IF(ODK!B19=ODK!D21,3,IF(ODK!B19=ODK!D22,2,IF(ODK!B19=ODK!D23,1,""))))) -> 4 | C12: Оценка | D12: =INDEX('Table-IDK'!B13:F13,MATCH(IDK!B12,'Table-IDK'!B14:F14,0)) -> 4
A13: Приусадебный участок, ар | B13: =IF(ODK!B25=ODK!D25,5,IF(ODK!B25=ODK!D26,4,IF(ODK!B25=ODK!D27,3,IF(ODK!B25=ODK!D28,2,IF(ODK!B25=ODK!D29,1,""))))) -> 2 | C13: Оценка | D13: =INDEX('Table-IDK'!B15:F15,MATCH(IDK!B13,'Table-IDK'!B16:F16,0)) -> 2
A14: Приусадебное хозяйство | B14: =IF(ODK!B31=ODK!D31,5,IF(ODK!B31=ODK!D32,4,IF(ODK!B31=ODK!D33,3,IF(ODK!B31=ODK!D34,2,IF(ODK!B31=ODK!D35,1,""))))) -> 1 | C14: Оценка | D14: =INDEX('Table-IDK'!B17:F17,MATCH(IDK!B14,'Table-IDK'!B18:F18,0)) -> 1
A15: I. ОЦЕНКА ПО СОЦИАЛЬНОМУ БЛОКУ | B15: =SUM($D$14,$D$13,$D$12,$D$11,$D$10,$D$9) -> 10 | C15: Оценка | D15: =LOOKUP(B15,'Table-IDK'!B21:F21,'Table-IDK'!B20:F20) -> 2
A17: II. ОЦЕНКА ОБРАЗА ЖИЗНИ И ДВИГАТЕЛЬНОЙ СРЕДЫ
A19: Продолжительность сна, часы | B19: =IF(ODK!B43=ODK!D43,1,IF(ODK!B43=ODK!D44,5,IF(ODK!B43=ODK!D45,6,IF(ODK!B43=ODK!D46,7,IF(ODK!B43=ODK!D47,8,IF(ODK!B43=ODK!D48,9,IF(ODK!B43=ODK!D49,10,IF(ODK!B43=ODK!D50,11,IF(ODK!B43=ODK!D51,12,""))))))))) -> 6 | C19: Оценка | D19: =IF(B10<8,LOOKUP(B19,'Table-IDK'!B26:F26,'Table-IDK'!B25:F25),IF(B10>21,LOOKUP(B19,'Table-IDK'!B30:F30,'Table-IDK'!B29:F29),LOOKUP(B19,'Table-IDK'!B28:F28,'Table-IDK'!B27:F27))) -> 4
A20: Количество приемов пищи в день, разы | B20: =IF(ODK!B53=ODK!D53,1,IF(ODK!B53=ODK!D54,3,IF(ODK!B53=ODK!D55,5,IF(ODK!B53=ODK!D56,7,IF(ODK!B53=ODK!D57,9,""))))) -> 3 | C20: Оценка | D20: =LOOKUP(B20,'Table-IDK'!B32:F32,'Table-IDK'!B31:F31) -> 4
A21: Количество пищи, употребляемой за один раз, литры | B21: =IF(ODK!B59=ODK!D59,0.2,IF(ODK!B59=ODK!D60,0.4,IF(ODK!B59=ODK!D61,0.6,IF(ODK!B59=ODK!D62,0.8,IF(ODK!B59=ODK!D63,1,""))))) -> 0.4 | C21: Оценка | D21: =LOOKUP(B21,'Table-IDK'!B34:F34,'Table-IDK'!B33:F33) -> 4
A22: Качество ежедневно употребляемой пищи (наличие в рационе овощей и фруктов), дней в неделю | B22: =IF(ODK!B59=ODK!D59,0.2,IF(ODK!B59=ODK!D60,0.4,IF(ODK!B59=ODK!D61,0.6,IF(ODK!B59=ODK!D62,0.8,IF(ODK!B59=ODK!D63,1,""))))) -> 0.4 | C22: Оценка | D22: =LOOKUP(B22,'Table-IDK'!B36:F36,'Table-IDK'!B35:F35) -> 1
A23: Количество ежедневно пройденных километров | B23: =IF(ODK!B72=ODK!D72,0,IF(ODK!B72=ODK!D73,4,IF(ODK!B72=ODK!D74,7,IF(ODK!B72=ODK!D75,10,IF(ODK!B72=ODK!D76,13,""))))) -> 7 | C23: Оценка | D23: =LOOKUP(B23,'Table-IDK'!B38:F38,'Table-IDK'!B37:F37) -> 3
A24: Количество часов в день проводимых вами сидя | B24: =IF(ODK!B78=ODK!D78,0,IF(ODK!B78=ODK!D79,1,IF(ODK!B78=ODK!D80,4,IF(ODK!B78=ODK!D81,6,IF(ODK!B78=ODK!D82,8,""))))) -> 1 | C24: Оценка | D24: =LOOKUP(B24,'Table-IDK'!B40:F40,'Table-IDK'!B39:F39) -> 5
A25: Как часто, в течение дня, вы контролируете правильность осанки и корректируете ее, разы | B25: =IF(ODK!B85=ODK!D85,0,IF(ODK!B85=ODK!D86,1,IF(ODK!B85=ODK!D87,2,IF(ODK!B85=ODK!D88,4,IF(ODK!B85=ODK!D89,8,""))))) -> 8 | C25: Оценка | D25: =LOOKUP(B25,'Table-IDK'!B42:F42,'Table-IDK'!B41:F41) -> 5
A26: Количество занятий физическими упражнениями в неделю (продолжительность одного занятия не менее 30 минут), разы | B26: =IF(ODK!B91=ODK!D91,0,IF(ODK!B91=ODK!D92,2,IF(ODK!B91=ODK!D93,3,IF(ODK!B91=ODK!D94,4,IF(ODK!B91=ODK!D95,5,""))))) -> 3 | C26: Оценка | D26: =LOOKUP(B26,'Table-IDK'!B44:F44,'Table-IDK'!B43:F43) -> 3
A27: Суммарная продолжительность занятий физическими упражнениями в неделю, часы | B27: =IF(ODK!B98=ODK!D98,0,IF(ODK!B98=ODK!D99,2,IF(ODK!B98=ODK!D100,3,IF(ODK!B98=ODK!D101,4,IF(ODK!B98=ODK!D102,5,""))))) -> 5 | C27: Оценка | D27: =LOOKUP(B27,'Table-IDK'!B46:F46,'Table-IDK'!B45:F45) -> 5
A28: Внешние признаки физической нагрузки во время повседневной двигательной активности | B28: =IF(ODK!B105=ODK!D105,1,IF(ODK!B105=ODK!D106,2,IF(ODK!B105=ODK!D107,3,IF(ODK!B105=ODK!D108,4,IF(ODK!B105=ODK!D109,5,""))))) -> 3 | C28: Оценка | D28: =INDEX('Table-IDK'!B47:F47,MATCH(IDK!B28,'Table-IDK'!B48:F48,0)) -> 3
A29: Характеристика повседневной двигательной активности | B29: =IF(ODK!B111=ODK!D111,1,IF(ODK!B111=ODK!D112,2,IF(ODK!B111=ODK!D113,3,IF(ODK!B111=ODK!D114,4,IF(ODK!B111=ODK!D115,5,""))))) -> 3 | C29: Оценка | D29: =INDEX('Table-IDK'!B49:F49,MATCH(IDK!B29,'Table-IDK'!B50:F50,0)) -> 3
A30: Суммарная продолжительность сохранения рабочей позы во время повседневной двигательной активности, часы | B30: =IF(ODK!B117=ODK!D117,0,IF(ODK!B117=ODK!D118,2,IF(ODK!B117=ODK!D119,4,IF(ODK!B117=ODK!D120,6,IF(ODK!B117=ODK!D121,8,""))))) -> 4 | C30: Оценка | D30: =LOOKUP(B30,'Table-IDK'!B52:F52,'Table-IDK'!B51:F51) -> 4
A31: Чувство физической усталости после рабочего дня | B31: =IF(ODK!B123=ODK!D123,1,IF(ODK!B123=ODK!D124,2,IF(ODK!B123=ODK!D125,3,IF(ODK!B123=ODK!D126,4,IF(ODK!B123=ODK!D127,5,""))))) -> 1 | C31: Оценка | D31: =INDEX('Table-IDK'!B53:F53,MATCH(IDK!B31,'Table-IDK'!B54:F54,0)) -> 5
A32: Наличие хронических заболеваний, штук | B32: =IF(ODK!B135=ODK!D135,1,IF(ODK!B135=ODK!D136,2,IF(ODK!B135=ODK!D137,3,IF(ODK!B135=ODK!D138,4,IF(ODK!B135=ODK!D139,5,""))))) -> 3 | C32: Оценка | D32: =INDEX('Table-IDK'!B55:F55,MATCH(IDK!B32,'Table-IDK'!B56:F56,0)) -> 3
A33: II. ОЦЕНКА ПО БЛОКУ ОБРАЗА ЖИЗНИ И ДВИГАТЕЛЬНОЙ СРЕДЫ ____________ | B33: =SUM(D32,D31,D30,D29,D28,D27,D26,D25,D24,D23,D22,D21,D20,D19) -> 52 | C33: Оценка | D33: =LOOKUP(B33,'Table-IDK'!B59:F59,'Table-IDK'!B58:F58) -> 4
A35: III. ОЦЕНКА АНТРОПОМЕТРИЧЕСКИХ ДАННЫХ
A37: Антропометрические данные
A38: 3.1. – рост (см) ; | B38: =ODK!B143 -> 184
A39: 3.2. – вес (кг) ; | B39: =ODK!B145 -> 93
A40: 3.3. – окружность грудной клетки (см); | B40: =ODK!B147 -> 112
A41: 3.4. – окружность талии (см) ; | B41: =ODK!B149 -> 104
A42: 3.5. – окружность бедер; | B42: =ODK!B151 -> 108
A43: 3.6. – окружность бедра (см) ; | B43: =ODK!B153 -> 64
A44: 3.7. – окружность плеча (см) ; | B44: =ODK!B155 -> 32
A45: 3.8. – окружность запястья; | B45: =ODK!B157 -> 21
A46: 3.9. – толщина кожно-жировой складки в месте сдавливания большим и указательным пальцем у нижнего края (акромиона) лопатки (мм); | B46: =ODK!B159 -> 12
A47: Оценка соотношения длины и массы тела | B47: 103 | C47: Оценка | D47: =INDEX('Table-IDK'!B65:K79,MATCH(IDK!B39,'Table-IDK'!A65:A79,1),MATCH(IDK!B38,'Table-IDK'!B64:K64,1)) -> 3
A48: Оценка соотношения длины тела и окружности талии (ж) | B48: =IF($D$9=2,$B$41,0) -> 0 | C48: Оценка | D48: =IF(B48=0,"",INDEX('Table-IDK'!B83:K97,MATCH(B48,'Table-IDK'!A83:A97,1),MATCH($B$38,'Table-IDK'!B82:K82,1))) -> 
A49: Оценка соотношения длины тела и окружности талии (м) | B49: =IF($D$9=1,$B$41,0) -> 104 | C49: Оценка | D49: =IF(B49=0,"",INDEX('Table-IDK'!B101:K115,MATCH(B49,'Table-IDK'!A101:A115,1),MATCH($B$38,'Table-IDK'!B100:K100,1))) -> -1
A50: Оценка соотношения длины тела и окружности грудной клетки (ж) | B50: =IF($D$9=2,$B$40,0) -> 0 | C50: Оценка | D50: =IF(B50=0,"",INDEX('Table-IDK'!B119:K133,MATCH(B50,'Table-IDK'!A119:A133,1),MATCH($B$38,'Table-IDK'!B118:K118,1))) -> 
A51: Оценка соотношения длины тела и окружности грудной клетки (м) | B51: =IF($D$9=1,$B$40,0) -> 112 | C51: Оценка | D51: =IF(B51=0,"",INDEX('Table-IDK'!B137:K151,MATCH(B51,'Table-IDK'!A137:A151,1),MATCH($B$38,'Table-IDK'!B136:K136,1))) -> 3
A52: Оценка жировой ткани тела (мм) | B52: =ODK!B159 -> 12 | C52: Оценка | D52: =LOOKUP(B52,'Table-IDK'!B154:F154,'Table-IDK'!B153:F153) -> 5
A53: III. ОЦЕНКА ПО БЛОКУ АНТРОПОМЕТРИЧЕСКИХ ДАННЫХ __________________ | B53: =SUM(D52,D51,D50,D49,D48,D47) -> 10 | C53: Оценка | D53: =LOOKUP(B53,'Table-IDK'!B157:F157,'Table-IDK'!B156:F156) -> 3
A55: IV. ОЦЕНКА ФУНКЦИОНАЛЬНЫХ ДАННЫХ
A57: Артериальное систолическое (верхнее) давление (мм). | B57: =ODK!B162 -> 145 | C57: Оценка | D57: =LOOKUP(B57,'Table-IDK'!B163:F163,'Table-IDK'!B162:F162) -> 2
A58: Артериальное диастолическое (нижнее) давление (мм). | B58: =ODK!B164 -> 90 | C58: Оценка | D58: =LOOKUP(B58,'Table-IDK'!B166:F166,'Table-IDK'!B165:F165) -> 4
A59: Индекс Руфье – Диксона | B59: =ODK!B177 -> 0.8 | C59: Оценка | D59: =LOOKUP(B59,'Table-IDK'!B169:F169,'Table-IDK'!B168:F168) -> 5
A60: Оценка пробы Штанге (ж) | B60: =IF($D$9=2,ODK!$B$182,"") ->  | C60: Оценка | D60: =IF(B60="","",LOOKUP(B60,'Table-IDK'!B172:F172,'Table-IDK'!B171:F171)) -> 
A61: Оценка пробы Штанге (м) | B61: =IF($D$9=1,ODK!$B$182,"") -> 48 | C61: Оценка | D61: =IF(B61="","",LOOKUP(B61,'Table-IDK'!B175:F175,'Table-IDK'!B174:F174)) -> 2
A62: Оценка пробы Генчи (ж) | B62: =IF($D$9=2,ODK!$B$189,"") ->  | C62: Оценка | D62: =IF(B62="","",LOOKUP(B62,'Table-IDK'!B178:F178,'Table-IDK'!B177:F177)) -> 
A63: Оценка пробы Генчи (м) | B63: =IF($D$9=1,ODK!$B$189,"") -> 28 | C63: Оценка | D63: =IF(B63="","",LOOKUP(B63,'Table-IDK'!B181:F181,'Table-IDK'!B180:F180)) -> 1
A64: Оценка динамометрии (ж) | B64: =IF($D$9=2,(ODK!$B$194+ODK!$B$196)/2,"") ->  | C64: Оценка | D64: =IF(B64="","",LOOKUP(B64,'Table-IDK'!B184:F184,'Table-IDK'!B183:F183)) -> 
A65: Оценка динамометрии (м) | B65: =IF($D$9=1,(ODK!$B$194+ODK!$B$196)/2,"") -> 55 | C65: Оценка | D65: =IF(B65="","",LOOKUP(B65,'Table-IDK'!B187:F187,'Table-IDK'!B186:F186)) -> 5
A66: Длительность стойки на одной ноге с закрытыми глазами | B66: =(ODK!B199+ODK!B201)/2 -> 3 | C66: Оценка | D66: =LOOKUP(B66,'Table-IDK'!B190:F190,'Table-IDK'!B189:F189) -> 1
A67: IV. ОЦЕНКА ПО БЛОКУ ФУНКЦИОНАЛЬНЫХ ДАННЫХ __________________ | B67: =SUM(D66,D65,D64,D63,D62,D61,D60,D59,D58,D57) -> 20 | C67: Оценка | D67: =LOOKUP(B67,'Table-IDK'!B193:F193,'Table-IDK'!B192:F192) -> 3
A69: V. ОЦЕНКА ДАННЫХ ФИЗИЧЕСКОЙ И ФУНКЦИОНАЛЬНОЙ ПОДГОТОВЛЕННОСТИ
A71: Оценка быстроты (приседания) | B71: =ODK!B206 -> 6.4 | C71: Оценка | D71: =LOOKUP(B71,'Table-IDK'!B199:F199,'Table-IDK'!B198:F198) -> 2
A72: Оценка быстроты (сгибание и разгибание рук) | B72: =ODK!B208 -> 6.8 | C72: Оценка | D72: =LOOKUP(B72,'Table-IDK'!B202:F202,'Table-IDK'!B201:F201) -> 2
A73: Оценка ловкости (Поворот прыжком вокруг своей оси) | B73: =ODK!B211 -> 245 | C73: Оценка | D73: =LOOKUP(B73,'Table-IDK'!B205:F205,'Table-IDK'!B204:F204) -> 2
A74: Оценка ловкости (Передача карандаша за спиной) | B74: =ODK!B213 -> 26 | C74: Оценка | D74: =LOOKUP(B74,'Table-IDK'!B208:F208,'Table-IDK'!B207:F207) -> 3
A75: Оценка силы (сгибание и разгибание рук, руки вместе) | B75: =IF(IDK!B9="мужской",ODK!B216,IF(IDK!B9="женский",ODK!B218,"")) -> 1 | C75: Оценка | D75: =LOOKUP(B75,'Table-IDK'!B211:F211,'Table-IDK'!B210:F210) -> 1
A76: Оценка силы (приседание на одной ноге, сумма) | B76: =ODK!B221+ODK!B223 -> 27 | C76: Оценка | D76: =LOOKUP(B76,'Table-IDK'!B215:F215,'Table-IDK'!B214:F214) -> 5
A77: Оценка гибкости (ж) (наклон вперед) | B77: =IF($D$9=2,ODK!$B$226,"") ->  | C77: Оценка | D77: =IF(B77="","",LOOKUP(B77,'Table-IDK'!B218:F218,'Table-IDK'!B217:F217)) -> 
A78: Оценка гибкости (м) (наклон вперед) | B78: =IF($D$9=1,ODK!$B$226,"") -> 4 | C78: Оценка | D78: =IF(B78="","",LOOKUP(B78,'Table-IDK'!B221:F221,'Table-IDK'!B220:F220)) -> 3
A79: Оценка гибкости (ж) (прогиб назад) | B79: =IF($D$9=2,ODK!$B$228,"") ->  | C79: Оценка | D79: =IF(B79="","",LOOKUP(B79,'Table-IDK'!B224:F224,'Table-IDK'!B223:F223)) -> 
A80: Оценка гибкости (м) (прогиб назад) | B80: =IF($D$9=1,ODK!$B$228,"") -> 38 | C80: Оценка | D80: =IF(B80="","",LOOKUP(B80,'Table-IDK'!B227:F227,'Table-IDK'!B226:F226)) -> 5
A81: Оценка выносливости (Комплексное упражнение), сумма повторений | B81: =ODK!B231 -> 98 | C81: Оценка | D81: =LOOKUP(B81,'Table-IDK'!B230:F230,'Table-IDK'!B229:F229) -> 4
A82: Функциональная сила мышц предплечья (ж) (вис на каждой руке поочередно) | B82: =IF($D$9=2,ODK!$B$237+ODK!$B$239,"") ->  | C82: Оценка | D82: =IF(B82="","",LOOKUP(B82,'Table-IDK'!B233:F233,'Table-IDK'!B232:F232)) -> 
A83: ФСМ предплечья (м) (вис на каждой руке поочередно) | B83: =IF($D$9=1,ODK!$B$237+ODK!$B$239,"") -> 4 | C83: Оценка | D83: =IF(B83="","",LOOKUP(B83,'Table-IDK'!B236:F236,'Table-IDK'!B235:F235)) -> 1
A84: ФСМ плеча (ж) (вис на согнутых руках) | B84: =IF($D$9=2,ODK!$B$242,"") ->  | C84: Оценка | D84: =IF(B84="","",LOOKUP(B84,'Table-IDK'!B239:F239,'Table-IDK'!B238:F238)) -> 
A85: ФСМ плеча (м) (вис на согнутых руках) | B85: =IF($D$9=1,ODK!$B$242,"") -> 26 | C85: Оценка | D85: =IF(B85="","",LOOKUP(B85,'Table-IDK'!B242:F242,'Table-IDK'!B241:F241)) -> 3
A86: ФСМ голеностопа (ж), с | B86: =IF($D$9=2,ODK!$B$245+ODK!$B$247,"") ->  | C86: Оценка | D86: =IF(B86="","",LOOKUP(B86,'Table-IDK'!B245:F245,'Table-IDK'!B244:F244)) -> 
A87: ФСМ голеностопа (м), с | B87: =IF($D$9=1,ODK!$B$245+ODK!$B$247,"") -> 77 | C87: Оценка | D87: =IF(B87="","",LOOKUP(B87,'Table-IDK'!B248:F248,'Table-IDK'!B247:F247)) -> 3
A88: ФСМ живота, с | B88: =ODK!B250 -> 26 | C88: Оценка | D88: =LOOKUP(B88,'Table-IDK'!B251:F251,'Table-IDK'!B250:F250) -> 2
A89: ФСМ спины, с | B89: =ODK!$B$253 -> 38 | C89: Оценка | D89: =LOOKUP(B89,'Table-IDK'!B254:F254,'Table-IDK'!B253:F253) -> 4
A91: V. ОЦЕНКА ПО БЛОКУ ДАННЫХ ФИЗИЧЕСКОЙ ПОДГОТОВЛЕННОСТИ _____________ | B91: =SUM(D89,D88,D87,D86,D85,D84,D83,D82,D81,D80,D79,D78,D77,D76,D75,D74,D73,D72,D71) -> 40 | C91: Оценка | D91: =LOOKUP(B91,'Table-IDK'!B258:F258,'Table-IDK'!B257:F257) -> 4
A93: ОЦЕНКА УРОВНЯ ДВИГАТЕЛЬНОЙ КУЛЬТУРЫ ЧЕЛОВЕКА: (показатель 2).
A94: суммируем все полученные баллы по блокам и полученное количество умножаем на оценку возраста
A95: блок | B95: I | C95: II | D95: III | E95: IV | F95: V | G95: Сумма балов
A96: Сумма оценок по блокам | B96: =D15 -> 2 | C96: =D33 -> 4 | D96: =D53 -> 3 | E96: =D67 -> 3 | F96: =D91 -> 4 | G96: =SUM(B96:F96) -> 16
A97: Сумма баллов по блокам | B97: =B15 -> 10 | C97: =B33 -> 52 | D97: =B53 -> 10 | E97: =B67 -> 20 | F97: =B91 -> 40 | G97: =SUM(B97:F97) -> 132
A99: УРОВЕНЬ ДВИГАТЕЛЬНОЙ КУЛЬТУРЫ | B99: =G96*D10 -> 16 | D99: =LOOKUP(B99,'Table-IDK'!B261:F261,'Table-IDK'!B260:F260) -> 3

Sheet КИДР
B1: КАРТА ИНДИВИДУАЛЬНОГО ДВИГАТЕЛЬНОГО РЕЖИМА
B2: =ODK!B2 -> Иванов Иван Иванович
B3: (ФИО обладателя)
B4: Комплексная оценка двигательной культуры человека по блокам
B5: социальный | E5: образа жизни и двигательной среды | I5: антропометрический | K5: функциональный | M5: физической подготовленности | P5: уровень двигательной культуры
B6: =IDK!D15 -> 2 | E6: =IDK!D33 -> 4 | I6: =IDK!D53 -> 3 | K6: =IDK!D67 -> 3 | M6: =IDK!D91 -> 4 | P6: =IDK!D99 -> 3
B7: Индекс Руфье (IR) | E7: ≤ | G7: =$K$8-20*$K$8/100 -> 0.64 | I7: =$K$8-10*$K$8/100 -> 0.72 | J7: – 0,9 | K7: Исходный IR: | M7: =$K$8+10*$K$8/100 -> 0.88 | N7: +0,9 | P7: ≥ | Q7: =$K$8+20*$K$8/100 -> 0.96
K8: =IDK!B59 -> 0.8 | L8: ± 0,9
B9: средний период восстановления | E9: =K9-20*K9/100 -> 41.97333333 | G9: сек | I9: =K9-10*K9/100 -> 47.22 | J9: сек | K9: =(45+ODK!B171*4/60*(ODK!B175*4-ODK!B171*4)) -> 52.46666667 | L9: сек | M9: =K9+10*K9/100 -> 57.71333333 | N9: сек | P9: =K9+20*K9/100 -> 62.96 | Q9: сек
B10: Подготовительная часть занятия
L11: Текущий индекс Руфье | P11: ='ИР-тек'!B11 -> 5.2
B12: Проба Руфье, корректировка ИДР | P12: 7 мин
B13: Низко динамичный комплекс восстановительной гимнастики | P13: 2 мин
B14: Умеренный бег (разновидности бега) | P14: 3 мин
B15: Основная часть занятия
B16: Станционный метод, станции | D16: ФК и ДН* | G16: ТО ФК и ДН* | H16: № упр | J16: Физическое упражнение и уровень его сложности | P16: p* | Q16: n* | R16: k (t восст)
C17: 1-ая | D17: Сила1 | F17: =D17 -> Сила1 | G17: =IF(КИДР!D17="Сила1",'Table-IDK'!$B$271,IF(КИДР!D17="Сила2",'Table-IDK'!$B$271,IF(КИДР!D17="Быстрота",'Table-IDK'!$B$272,IF(КИДР!D17="Ловкость",'Table-IDK'!$B$273,IF(КИДР!D17="Гибкость",'Table-IDK'!$B$274,""))))) -> 2.714285714 | H17: 1 упр | J17: =IF($F17="Сила1",INDEX(Сила1!$D$7:$U$9,MATCH(H17,Сила1!$C$7:$C$9,1),MATCH('ИР-тек'!$B$63,Сила1!$D$3:$R$3,1)),IF($F17="Сила2",INDEX(Сила2!$D$7:$U$9,MATCH(H17,Сила2!$C$7:$C$9,1),MATCH('ИР-тек'!$B$63,Сила2!$D$3:$R$3,1)),IF($F17="Быстрота1",INDEX(Быстрота1!$D$7:$U$9,MATCH(H17,Быстрота1!$C$7:$C$9,1),MATCH('ИР-тек'!$B$63,Быстрота1!$D$3:$R$3,1)),IF($F17="Быстрота2",INDEX(Быстрота2!$D$7:$U$9,MATCH(H17,Быстрота2!$C$7:$C$9,1),MATCH('ИР-тек'!$B$63,Быстрота2!$D$3:$R$3,1)),IF($F17="Ловкость1",INDEX(Ловкость1!$D$7:$U$9,MATCH(H17,Ловкость1!$C$7:$C$9,1),MATCH('ИР-тек'!$B$63,Ловкость1!$D$3:$R$3,1)),IF($F17="Ловкость2",INDEX(Ловкость2!$D$7:$U$9,MATCH(H17,Ловкость2!$C$7:$C$9,1),MATCH('ИР-тек'!$B$63,Ловкость2!$D$3:$R$3,1)),IF($F17="Гибкость1",INDEX(Гибкость1!$D$7:$U$9,MATCH(H17,Гибкость1!$C$7:$C$9,1),MATCH('ИР-тек'!$B$63,Гибкость1!$D$3:$R$3,1)),IF($F17="Гибкость2",INDEX(Гибкость2!$D$7:$U$9,MATCH(H17,Гибкость2!$C$7:$C$9,1),MATCH('ИР-тек'!$B$63,Гибкость2!$D$3:$R$3,1)),IF($F17="Волейбол1",INDEX(Волейбол1!$D$7:$U$9,MATCH(H17,Волейбол1!$C$7:$C$9,1),MATCH('ИР-тек'!$B$63,Волейбол1!$D$3:$R$3,1)),IF($F17="Волейбол2",INDEX(Волейбол2!$D$7:$U$9,MATCH(H17,Волейбол2!$C$7:$C$9,1),MATCH('ИР-тек'!$B$63,Волейбол2!$D$3:$R$3,1)),IF($F17="Баскетбол1",INDEX(Баскетбол1!$D$7:$U$9,MATCH(H17,Баскетбол1!$C$7:$C$9,1),MATCH('ИР-тек'!$B$63,Баскетбол1!$D$3:$R$3,1)),IF($F17="Баскетбол2",INDEX(Баскетбол2!$D$7:$U$9,MATCH(H17,Баскетбол2!$C$7:$C$9,1),MATCH('ИР-тек'!$B$63,Баскетбол2!$D$3:$R$3,1)),IF($F17="Футбол1",INDEX(Футбол1!$D$7:$U$9,MATCH(H17,Футбол1!$C$7:$C$9,1),MATCH('ИР-тек'!$B$63,Футбол1!$D$3:$R$3,1)),IF($F17="Футбол2",INDEX(Футбол2!$D$7:$U$9,MATCH(H17,Футбол2!$C$7:$C$9,1),MATCH('ИР-тек'!$B$63,Футбол2!$D$3:$R$3,1)))))))))))))))) -> Подтягивания в висе лежа нормальным хватом снизу ноги на ширине плеч | P17: =IF($F17="Сила1",INDEX(Сила1!$D$7:$U$9,MATCH(H17,Сила1!$C$7:$C$9,1),MATCH('ИР-тек'!$B$63,Сила1!$D$2:$U$2,1)),IF($F17="Сила2",INDEX(Сила2!$D$7:$U$9,MATCH(H17,Сила2!$C$7:$C$9,1),MATCH('ИР-тек'!$B$63,Сила2!$D$2:$U$2,1)),IF($F17="Быстрота1",INDEX(Быстрота1!$D$7:$U$9,MATCH(H17,Быстрота1!$C$7:$C$9,1),MATCH('ИР-тек'!$B$63,Быстрота1!$D$2:$U$2,1)),IF($F17="Быстрота2",INDEX(Быстрота2!$D$7:$U$9,MATCH(H17,Быстрота2!$C$7:$C$9,1),MATCH('ИР-тек'!$B$63,Быстрота2!$D$2:$U$2,1)),IF($F17="Ловкость1",INDEX(Ловкость1!$D$7:$U$9,MATCH(H17,Ловкость1!$C$7:$C$9,1),MATCH('ИР-тек'!$B$63,Ловкость1!$D$2:$U$2,1)),IF($F17="Ловкость2",INDEX(Ловкость2!$D$7:$U$9,MATCH(H17,Ловкость2!$C$7:$C$9,1),MATCH('ИР-тек'!$B$63,Ловкость2!$D$2:$U$2,1)),IF($F17="Гибкость1",INDEX(Гибкость1!$D$7:$U$9,MATCH(H17,Гибкость1!$C$7:$C$9,1),MATCH('ИР-тек'!$B$63,Гибкость1!$D$2:$U$2,1)),IF($F17="Гибкость2",INDEX(Гибкость2!$D$7:$U$9,MATCH(H17,Гибкость2!$C$7:$C$9,1),MATCH('ИР-тек'!$B$63,Гибкость2!$D$2:$U$2,1)),IF($F17="Волейбол1",INDEX(Волейбол1!$D$7:$U$9,MATCH(H17,Волейбол1!$C$7:$C$9,1),MATCH('ИР-тек'!$B$63,Волейбол1!$D$2:$U$2,1)),IF($F17="Волейбол2",INDEX(Волейбол2!$D$7:$U$9,MATCH(H17,Волейбол2!$C$7:$C$9,1),MATCH('ИР-тек'!$B$63,Волейбол2!$D$2:$U$2,1)),IF($F17="Баскетбол1",INDEX(Баскетбол1!$D$7:$U$9,MATCH(H17,Баскетбол1!$C$7:$C$9,1),MATCH('ИР-тек'!$B$63,Баскетбол1!$D$2:$U$2,1)),IF($F17="Баскетбол2",INDEX(Баскетбол2!$D$7:$U$9,MATCH(H17,Баскетбол2!$C$7:$C$9,1),MATCH('ИР-тек'!$B$63,Баскетбол2!$D$2:$U$2,1)),IF($F17="Футбол1",INDEX(Футбол1!$D$7:$U$9,MATCH(H17,Футбол1!$C$7:$C$9,1),MATCH('ИР-тек'!$B$63,Футбол1!$D$2:$U$2,1)),IF($F17="Футбол2",INDEX(Футбол2!$D$7:$U$9,MATCH(H17,Футбол2!$C$7:$C$9,1),MATCH('ИР-тек'!$B$63,Футбол2!$D$2:$U$2,1)))))))))))))))) -> 1 | Q17: =IF($F17="Сила1",INDEX(Сила1!$D$7:$U$9,MATCH(H17,Сила1!$C$7:$C$9,1),MATCH('ИР-тек'!$B$63,Сила1!$D$1:$U$1,1)),IF($F17="Сила2",INDEX(Сила2!$D$7:$U$9,MATCH(H17,Сила2!$C$7:$C$9,1),MATCH('ИР-тек'!$B$63,Сила2!$D$1:$U$1,1)),IF($F17="Быстрота1",INDEX(Быстрота1!$D$7:$U$9,MATCH(H17,Быстрота1!$C$7:$C$9,1),MATCH('ИР-тек'!$B$63,Быстрота1!$D$1:$U$1,1)),IF($F17="Быстрота2",INDEX(Быстрота2!$D$7:$U$9,MATCH(H17,Быстрота2!$C$7:$C$9,1),MATCH('ИР-тек'!$B$63,Быстрота2!$D$1:$U$1,1)),IF($F17="Ловкость1",INDEX(Ловкость1!$D$7:$U$9,MATCH(H17,Ловкость1!$C$7:$C$9,1),MATCH('ИР-тек'!$B$63,Ловкость1!$D$1:$U$1,1)),IF($F17="Ловкость2",INDEX(Ловкость2!$D$7:$U$9,MATCH(H17,Ловкость2!$C$7:$C$9,1),MATCH('ИР-тек'!$B$63,Ловкость2!$D$1:$U$1,1)),IF($F17="Гибкость1",INDEX(Гибкость1!$D$7:$U$9,MATCH(H17,Гибкость1!$C$7:$C$9,1),MATCH('ИР-тек'!$B$63,Гибкость1!$D$1:$U$1,1)),IF($F17="Гибкость2",INDEX(Гибкость2!$D$7:$U$9,MATCH(H17,Гибкость2!$C$7:$C$9,1),MATCH('ИР-тек'!$B$63,Гибкость2!$D$1:$U$1,1)),IF($F17="Волейбол1",INDEX(Волейбол1!$D$7:$U$9,MATCH(H17,Волейбол1!$C$7:$C$9,1),MATCH('ИР-тек'!$B$63,Волейбол1!$D$1:$U$1,1)),IF($F17="Волейбол2",INDEX(Волейбол2!$D$7:$U$9,MATCH(H17,Волейбол2!$C$7:$C$9,1),MATCH('ИР-тек'!$B$63,Волейбол2!$D$1:$U$1,1)),IF($F17="Баскетбол1",INDEX(Баскетбол1!$D$7:$U$9,MATCH(H17,Баскетбол1!$C$7:$C$9,1),MATCH('ИР-тек'!$B$63,Баскетбол1!$D$1:$U$1,1)),IF($F17="Баскетбол2",INDEX(Баскетбол2!$D$7:$U$9,MATCH(H17,Баскетбол2!$C$7:$C$9,1),MATCH('ИР-тек'!$B$63,Баскетбол2!$D$1:$U$1,1)),IF($F17="Футбол1",INDEX(Футбол1!$D$7:$U$9,MATCH(H17,Футбол1!$C$7:$C$9,1),MATCH('ИР-тек'!$B$63,Футбол1!$D$1:$U$1,1)),IF($F17="Футбол2",INDEX(Футбол2!$D$7:$U$9,MATCH(H17,Футбол2!$C$7:$C$9,1),MATCH('ИР-тек'!$B$63,Футбол2!$D$1:$U$1,1)))))))))))))))) -> ≥ 25 | R17: =IF($D$17="Сила1",INDEX('Упр-ст'!$G$6:$AO$8,MATCH(H17,'Упр-ст'!$F$6:$F$8,1),MATCH('Упр-ст'!$B$28,'Упр-ст'!$G$4:$AO$4,1)),IF($D$17="Сила2",INDEX('Упр-ст'!$G$9:$AO$11,MATCH(H17,'Упр-ст'!$F$9:$F$11,1),MATCH('Упр-ст'!$B$28,'Упр-ст'!$G$4:$AO$4,1)),IF($D$17="Быстрота",INDEX('Упр-ст'!$G$15:$AO$17,MATCH(H17,'Упр-ст'!$F$15:$F$17,1),MATCH('Упр-ст'!$B$28,'Упр-ст'!$G$4:$AO$4,1)),IF($D$17="Ловкость",INDEX('Упр-ст'!$G$12:$AO$14,MATCH(H17,'Упр-ст'!$F$12:$F$14,1),MATCH('Упр-ст'!$B$28,'Упр-ст'!$G$4:$AO$4,1)),IF($D$17="Гибкость",INDEX('Упр-ст'!$G$18:$AO$20,MATCH(H17,'Упр-ст'!$F$18:$F$20,1),MATCH('Упр-ст'!$B$28,'Упр-ст'!$G$4:$AO$4,1))))))) -> 1.1
F18: =D17 -> Сила1 | H18: 2 упр | J18: =IF($F18="Сила1",INDEX(Сила1!$D$7:$U$9,MATCH(H18,Сила1!$C$7:$C$9,1),MATCH('ИР-тек'!$B$63,Сила1!$D$3:$R$3,1)),IF($F18="Сила2",INDEX(Сила2!$D$7:$U$9,MATCH(H18,Сила2!$C$7:$C$9,1),MATCH('ИР-тек'!$B$63,Сила2!$D$3:$R$3,1)),IF($F18="Быстрота1",INDEX(Быстрота1!$D$7:$U$9,MATCH(H18,Быстрота1!$C$7:$C$9,1),MATCH('ИР-тек'!$B$63,Быстрота1!$D$3:$R$3,1)),IF($F18="Быстрота2",INDEX(Быстрота2!$D$7:$U$9,MATCH(H18,Быстрота2!$C$7:$C$9,1),MATCH('ИР-тек'!$B$63,Быстрота2!$D$3:$R$3,1)),IF($F18="Ловкость1",INDEX(Ловкость1!$D$7:$U$9,MATCH(H18,Ловкость1!$C$7:$C$9,1),MATCH('ИР-тек'!$B$63,Ловкость1!$D$3:$R$3,1)),IF($F18="Ловкость2",INDEX(Ловкость2!$D$7:$U$9,MATCH(H18,Ловкость2!$C$7:$C$9,1),MATCH('ИР-тек'!$B$63,Ловкость2!$D$3:$R$3,1)),IF($F18="Гибкость1",INDEX(Гибкость1!$D$7:$U$9,MATCH(H18,Гибкость1!$C$7:$C$9,1),MATCH('ИР-тек'!$B$63,Гибкость1!$D$3:$R$3,1)),IF($F18="Гибкость2",INDEX(Гибкость2!$D$7:$U$9,MATCH(H18,Гибкость2!$C$7:$C$9,1),MATCH('ИР-тек'!$B$63,Гибкость2!$D$3:$R$3,1)),IF($F18="Волейбол1",INDEX(Волейбол1!$D$7:$U$9,MATCH(H18,Волейбол1!$C$7:$C$9,1),MATCH('ИР-тек'!$B$63,Волейбол1!$D$3:$R$3,1)),IF($F18="Волейбол2",INDEX(Волейбол2!$D$7:$U$9,MATCH(H18,Волейбол2!$C$7:$C$9,1),MATCH('ИР-тек'!$B$63,Волейбол2!$D$3:$R$3,1)),IF($F18="Баскетбол1",INDEX(Баскетбол1!$D$7:$U$9,MATCH(H18,Баскетбол1!$C$7:$C$9,1),MATCH('ИР-тек'!$B$63,Баскетбол1!$D$3:$R$3,1)),IF($F18="Баскетбол2",INDEX(Баскетбол2!$D$7:$U$9,MATCH(H18,Баскетбол2!$C$7:$C$9,1),MATCH('ИР-тек'!$B$63,Баскетбол2!$D$3:$R$3,1)),IF($F18="Футбол1",INDEX(Футбол1!$D$7:$U$9,MATCH(H18,Футбол1!$C$7:$C$9,1),MATCH('ИР-тек'!$B$63,Футбол1!$D$3:$R$3,1)),IF($F18="Футбол2",INDEX(Футбол2!$D$7:$U$9,MATCH(H18,Футбол2!$C$7:$C$9,1),MATCH('ИР-тек'!$B$63,Футбол2!$D$3:$R$3,1)))))))))))))))) -> Сгибание и разгибание рук в упоре лежа от стула (0,45 - 0,55 м) ноги на ширине плеч | P18: =IF($F18="Сила1",INDEX(Сила1!$D$7:$U$9,MATCH(H18,Сила1!$C$7:$C$9,1),MATCH('ИР-тек'!$B$63,Сила1!$D$2:$U$2,1)),IF($F18="Сила2",INDEX(Сила2!$D$7:$U$9,MATCH(H18,Сила2!$C$7:$C$9,1),MATCH('ИР-тек'!$B$63,Сила2!$D$2:$U$2,1)),IF($F18="Быстрота1",INDEX(Быстрота1!$D$7:$U$9,MATCH(H18,Быстрота1!$C$7:$C$9,1),MATCH('ИР-тек'!$B$63,Быстрота1!$D$2:$U$2,1)),IF($F18="Быстрота2",INDEX(Быстрота2!$D$7:$U$9,MATCH(H18,Быстрота2!$C$7:$C$9,1),MATCH('ИР-тек'!$B$63,Быстрота2!$D$2:$U$2,1)),IF($F18="Ловкость1",INDEX(Ловкость1!$D$7:$U$9,MATCH(H18,Ловкость1!$C$7:$C$9,1),MATCH('ИР-тек'!$B$63,Ловкость1!$D$2:$U$2,1)),IF($F18="Ловкость2",INDEX(Ловкость2!$D$7:$U$9,MATCH(H18,Ловкость2!$C$7:$C$9,1),MATCH('ИР-тек'!$B$63,Ловкость2!$D$2:$U$2,1)),IF($F18="Гибкость1",INDEX(Гибкость1!$D$7:$U$9,MATCH(H18,Гибкость1!$C$7:$C$9,1),MATCH('ИР-тек'!$B$63,Гибкость1!$D$2:$U$2,1)),IF($F18="Гибкость2",INDEX(Гибкость2!$D$7:$U$9,MATCH(H18,Гибкость2!$C$7:$C$9,1),MATCH('ИР-тек'!$B$63,Гибкость2!$D$2:$U$2,1)),IF($F18="Волейбол1",INDEX(Волейбол1!$D$7:$U$9,MATCH(H18,Волейбол1!$C$7:$C$9,1),MATCH('ИР-тек'!$B$63,Волейбол1!$D$2:$U$2,1)),IF($F18="Волейбол2",INDEX(Волейбол2!$D$7:$U$9,MATCH(H18,Волейбол2!$C$7:$C$9,1),MATCH('ИР-тек'!$B$63,Волейбол2!$D$2:$U$2,1)),IF($F18="Баскетбол1",INDEX(Баскетбол1!$D$7:$U$9,MATCH(H18,Баскетбол1!$C$7:$C$9,1),MATCH('ИР-тек'!$B$63,Баскетбол1!$D$2:$U$2,1)),IF($F18="Баскетбол2",INDEX(Баскетбол2!$D$7:$U$9,MATCH(H18,Баскетбол2!$C$7:$C$9,1),MATCH('ИР-тек'!$B$63,Баскетбол2!$D$2:$U$2,1)),IF($F18="Футбол1",INDEX(Футбол1!$D$7:$U$9,MATCH(H18,Футбол1!$C$7:$C$9,1),MATCH('ИР-тек'!$B$63,Футбол1!$D$2:$U$2,1)),IF($F18="Футбол2",INDEX(Футбол2!$D$7:$U$9,MATCH(H18,Футбол2!$C$7:$C$9,1),MATCH('ИР-тек'!$B$63,Футбол2!$D$2:$U$2,1)))))))))))))))) -> 1 | Q18: =IF($F18="Сила1",INDEX(Сила1!$D$7:$U$9,MATCH(H18,Сила1!$C$7:$C$9,1),MATCH('ИР-тек'!$B$63,Сила1!$D$1:$U$1,1)),IF($F18="Сила2",INDEX(Сила2!$D$7:$U$9,MATCH(H18,Сила2!$C$7:$C$9,1),MATCH('ИР-тек'!$B$63,Сила2!$D$1:$U$1,1)),IF($F18="Быстрота1",INDEX(Быстрота1!$D$7:$U$9,MATCH(H18,Быстрота1!$C$7:$C$9,1),MATCH('ИР-тек'!$B$63,Быстрота1!$D$1:$U$1,1)),IF($F18="Быстрота2",INDEX(Быстрота2!$D$7:$U$9,MATCH(H18,Быстрота2!$C$7:$C$9,1),MATCH('ИР-тек'!$B$63,Быстрота2!$D$1:$U$1,1)),IF($F18="Ловкость1",INDEX(Ловкость1!$D$7:$U$9,MATCH(H18,Ловкость1!$C$7:$C$9,1),MATCH('ИР-тек'!$B$63,Ловкость1!$D$1:$U$1,1)),IF($F18="Ловкость2",INDEX(Ловкость2!$D$7:$U$9,MATCH(H18,Ловкость2!$C$7:$C$9,1),MATCH('ИР-тек'!$B$63,Ловкость2!$D$1:$U$1,1)),IF($F18="Гибкость1",INDEX(Гибкость1!$D$7:$U$9,MATCH(H18,Гибкость1!$C$7:$C$9,1),MATCH('ИР-тек'!$B$63,Гибкость1!$D$1:$U$1,1)),IF($F18="Гибкость2",INDEX(Гибкость2!$D$7:$U$9,MATCH(H18,Гибкость2!$C$7:$C$9,1),MATCH('ИР-тек'!$B$63,Гибкость2!$D$1:$U$1,1)),IF($F18="Волейбол1",INDEX(Волейбол1!$D$7:$U$9,MATCH(H18,Волейбол1!$C$7:$C$9,1),MATCH('ИР-тек'!$B$63,Волейбол1!$D$1:$U$1,1)),IF($F18="Волейбол2",INDEX(Волейбол2!$D$7:$U$9,MATCH(H18,Волейбол2!$C$7:$C$9,1),MATCH('ИР-тек'!$B$63,Волейбол2!$D$1:$U$1,1)),IF($F18="Баскетбол1",INDEX(Баскетбол1!$D$7:$U$9,MATCH(H18,Баскетбол1!$C$7:$C$9,1),MATCH('ИР-тек'!$B$63,Баскетбол1!$D$1:$U$1,1)),IF($F18="Баскетбол2",INDEX(Баскетбол2!$D$7:$U$9,MATCH(H18,Баскетбол2!$C$7:$C$9,1),MATCH('ИР-тек'!$B$63,Баскетбол2!$D$1:$U$1,1)),IF($F18="Футбол1",INDEX(Футбол1!$D$7:$U$9,MATCH(H18,Футбол1!$C$7:$C$9,1),MATCH('ИР-тек'!$B$63,Футбол1!$D$1:$U$1,1)),IF($F18="Футбол2",INDEX(Футбол2!$D$7:$U$9,MATCH(H18,Футбол2!$C$7:$C$9,1),MATCH('ИР-тек'!$B$63,Футбол2!$D$1:$U$1,1)))))))))))))))) -> ≥ 25 | R18: =IF($D$17="Сила1",INDEX('Упр-ст'!$G$6:$AO$8,MATCH(H18,'Упр-ст'!$F$6:$F$8,1),MATCH('Упр-ст'!$B$28,'Упр-ст'!$G$4:$AO$4,1)),IF($D$17="Сила2",INDEX('Упр-ст'!$G$9:$AO$11,MATCH(H18,'Упр-ст'!$F$9:$F$11,1),MATCH('Упр-ст'!$B$28,'Упр-ст'!$G$4:$AO$4,1)),IF($D$17="Быстрота",INDEX('Упр-ст'!$G$15:$AO$17,MATCH(H18,'Упр-ст'!$F$15:$F$17,1),MATCH('Упр-ст'!$B$28,'Упр-ст'!$G$4:$AO$4,1)),IF($D$17="Ловкость",INDEX('Упр-ст'!$G$12:$AO$14,MATCH(H18,'Упр-ст'!$F$12:$F$14,1),MATCH('Упр-ст'!$B$28,'Упр-ст'!$G$4:$AO$4,1)),IF($D$17="Гибкость",INDEX('Упр-ст'!$G$18:$AO$20,MATCH(H18,'Упр-ст'!$F$18:$F$20,1),MATCH('Упр-ст'!$B$28,'Упр-ст'!$G$4:$AO$4,1))))))) -> 1.1
F19: =D17 -> Сила1 | H19: 3 упр | J19: =IF($F19="Сила1",INDEX(Сила1!$D$7:$U$9,MATCH(H19,Сила1!$C$7:$C$9,1),MATCH('ИР-тек'!$B$63,Сила1!$D$3:$R$3,1)),IF($F19="Сила2",INDEX(Сила2!$D$7:$U$9,MATCH(H19,Сила2!$C$7:$C$9,1),MATCH('ИР-тек'!$B$63,Сила2!$D$3:$R$3,1)),IF($F19="Быстрота1",INDEX(Быстрота1!$D$7:$U$9,MATCH(H19,Быстрота1!$C$7:$C$9,1),MATCH('ИР-тек'!$B$63,Быстрота1!$D$3:$R$3,1)),IF($F19="Быстрота2",INDEX(Быстрота2!$D$7:$U$9,MATCH(H19,Быстрота2!$C$7:$C$9,1),MATCH('ИР-тек'!$B$63,Быстрота2!$D$3:$R$3,1)),IF($F19="Ловкость1",INDEX(Ловкость1!$D$7:$U$9,MATCH(H19,Ловкость1!$C$7:$C$9,1),MATCH('ИР-тек'!$B$63,Ловкость1!$D$3:$R$3,1)),IF($F19="Ловкость2",INDEX(Ловкость2!$D$7:$U$9,MATCH(H19,Ловкость2!$C$7:$C$9,1),MATCH('ИР-тек'!$B$63,Ловкость2!$D$3:$R$3,1)),IF($F19="Гибкость1",INDEX(Гибкость1!$D$7:$U$9,MATCH(H19,Гибкость1!$C$7:$C$9,1),MATCH('ИР-тек'!$B$63,Гибкость1!$D$3:$R$3,1)),IF($F19="Гибкость2",INDEX(Гибкость2!$D$7:$U$9,MATCH(H19,Гибкость2!$C$7:$C$9,1),MATCH('ИР-тек'!$B$63,Гибкость2!$D$3:$R$3,1)),IF($F19="Волейбол1",INDEX(Волейбол1!$D$7:$U$9,MATCH(H19,Волейбол1!$C$7:$C$9,1),MATCH('ИР-тек'!$B$63,Волейбол1!$D$3:$R$3,1)),IF($F19="Волейбол2",INDEX(Волейбол2!$D$7:$U$9,MATCH(H19,Волейбол2!$C$7:$C$9,1),MATCH('ИР-тек'!$B$63,Волейбол2!$D$3:$R$3,1)),IF($F19="Баскетбол1",INDEX(Баскетбол1!$D$7:$U$9,MATCH(H19,Баскетбол1!$C$7:$C$9,1),MATCH('ИР-тек'!$B$63,Баскетбол1!$D$3:$R$3,1)),IF($F19="Баскетбол2",INDEX(Баскетбол2!$D$7:$U$9,MATCH(H19,Баскетбол2!$C$7:$C$9,1),MATCH('ИР-тек'!$B$63,Баскетбол2!$D$3:$R$3,1)),IF($F19="Футбол1",INDEX(Футбол1!$D$7:$U$9,MATCH(H19,Футбол1!$C$7:$C$9,1),MATCH('ИР-тек'!$B$63,Футбол1!$D$3:$R$3,1)),IF($F19="Футбол2",INDEX(Футбол2!$D$7:$U$9,MATCH(H19,Футбол2!$C$7:$C$9,1),MATCH('ИР-тек'!$B$63,Футбол2!$D$3:$R$3,1)))))))))))))))) -> Подъем переворотом в упор на перекладину из виса стоя толчком обеих ног | P19: =IF($F19="Сила1",INDEX(Сила1!$D$7:$U$9,MATCH(H19,Сила1!$C$7:$C$9,1),MATCH('ИР-тек'!$B$63,Сила1!$D$2:$U$2,1)),IF($F19="Сила2",INDEX(Сила2!$D$7:$U$9,MATCH(H19,Сила2!$C$7:$C$9,1),MATCH('ИР-тек'!$B$63,Сила2!$D$2:$U$2,1)),IF($F19="Быстрота1",INDEX(Быстрота1!$D$7:$U$9,MATCH(H19,Быстрота1!$C$7:$C$9,1),MATCH('ИР-тек'!$B$63,Быстрота1!$D$2:$U$2,1)),IF($F19="Быстрота2",INDEX(Быстрота2!$D$7:$U$9,MATCH(H19,Быстрота2!$C$7:$C$9,1),MATCH('ИР-тек'!$B$63,Быстрота2!$D$2:$U$2,1)),IF($F19="Ловкость1",INDEX(Ловкость1!$D$7:$U$9,MATCH(H19,Ловкость1!$C$7:$C$9,1),MATCH('ИР-тек'!$B$63,Ловкость1!$D$2:$U$2,1)),IF($F19="Ловкость2",INDEX(Ловкость2!$D$7:$U$9,MATCH(H19,Ловкость2!$C$7:$C$9,1),MATCH('ИР-тек'!$B$63,Ловкость2!$D$2:$U$2,1)),IF($F19="Гибкость1",INDEX(Гибкость1!$D$7:$U$9,MATCH(H19,Гибкость1!$C$7:$C$9,1),MATCH('ИР-тек'!$B$63,Гибкость1!$D$2:$U$2,1)),IF($F19="Гибкость2",INDEX(Гибкость2!$D$7:$U$9,MATCH(H19,Гибкость2!$C$7:$C$9,1),MATCH('ИР-тек'!$B$63,Гибкость2!$D$2:$U$2,1)),IF($F19="Волейбол1",INDEX(Волейбол1!$D$7:$U$9,MATCH(H19,Волейбол1!$C$7:$C$9,1),MATCH('ИР-тек'!$B$63,Волейбол1!$D$2:$U$2,1)),IF($F19="Волейбол2",INDEX(Волейбол2!$D$7:$U$9,MATCH(H19,Волейбол2!$C$7:$C$9,1),MATCH('ИР-тек'!$B$63,Волейбол2!$D$2:$U$2,1)),IF($F19="Баскетбол1",INDEX(Баскетбол1!$D$7:$U$9,MATCH(H19,Баскетбол1!$C$7:$C$9,1),MATCH('ИР-тек'!$B$63,Баскетбол1!$D$2:$U$2,1)),IF($F19="Баскетбол2",INDEX(Баскетбол2!$D$7:$U$9,MATCH(H19,Баскетбол2!$C$7:$C$9,1),MATCH('ИР-тек'!$B$63,Баскетбол2!$D$2:$U$2,1)),IF($F19="Футбол1",INDEX(Футбол1!$D$7:$U$9,MATCH(H19,Футбол1!$C$7:$C$9,1),MATCH('ИР-тек'!$B$63,Футбол1!$D$2:$U$2,1)),IF($F19="Футбол2",INDEX(Футбол2!$D$7:$U$9,MATCH(H19,Футбол2!$C$7:$C$9,1),MATCH('ИР-тек'!$B$63,Футбол2!$D$2:$U$2,1)))))))))))))))) -> 1 | Q19: =IF($F19="Сила1",INDEX(Сила1!$D$7:$U$9,MATCH(H19,Сила1!$C$7:$C$9,1),MATCH('ИР-тек'!$B$63,Сила1!$D$1:$U$1,1)),IF($F19="Сила2",INDEX(Сила2!$D$7:$U$9,MATCH(H19,Сила2!$C$7:$C$9,1),MATCH('ИР-тек'!$B$63,Сила2!$D$1:$U$1,1)),IF($F19="Быстрота1",INDEX(Быстрота1!$D$7:$U$9,MATCH(H19,Быстрота1!$C$7:$C$9,1),MATCH('ИР-тек'!$B$63,Быстрота1!$D$1:$U$1,1)),IF($F19="Быстрота2",INDEX(Быстрота2!$D$7:$U$9,MATCH(H19,Быстрота2!$C$7:$C$9,1),MATCH('ИР-тек'!$B$63,Быстрота2!$D$1:$U$1,1)),IF($F19="Ловкость1",INDEX(Ловкость1!$D$7:$U$9,MATCH(H19,Ловкость1!$C$7:$C$9,1),MATCH('ИР-тек'!$B$63,Ловкость1!$D$1:$U$1,1)),IF($F19="Ловкость2",INDEX(Ловкость2!$D$7:$U$9,MATCH(H19,Ловкость2!$C$7:$C$9,1),MATCH('ИР-тек'!$B$63,Ловкость2!$D$1:$U$1,1)),IF($F19="Гибкость1",INDEX(Гибкость1!$D$7:$U$9,MATCH(H19,Гибкость1!$C$7:$C$9,1),MATCH('ИР-тек'!$B$63,Гибкость1!$D$1:$U$1,1)),IF($F19="Гибкость2",INDEX(Гибкость2!$D$7:$U$9,MATCH(H19,Гибкость2!$C$7:$C$9,1),MATCH('ИР-тек'!$B$63,Гибкость2!$D$1:$U$1,1)),IF($F19="Волейбол1",INDEX(Волейбол1!$D$7:$U$9,MATCH(H19,Волейбол1!$C$7:$C$9,1),MATCH('ИР-тек'!$B$63,Волейбол1!$D$1:$U$1,1)),IF($F19="Волейбол2",INDEX(Волейбол2!$D$7:$U$9,MATCH(H19,Волейбол2!$C$7:$C$9,1),MATCH('ИР-тек'!$B$63,Волейбол2!$D$1:$U$1,1)),IF($F19="Баскетбол1",INDEX(Баскетбол1!$D$7:$U$9,MATCH(H19,Баскетбол1!$C$7:$C$9,1),MATCH('ИР-тек'!$B$63,Баскетбол1!$D$1:$U$1,1)),IF($F19="Баскетбол2",INDEX(Баскетбол2!$D$7:$U$9,MATCH(H19,Баскетбол2!$C$7:$C$9,1),MATCH('ИР-тек'!$B$63,Баскетбол2!$D$1:$U$1,1)),IF($F19="Футбол1",INDEX(Футбол1!$D$7:$U$9,MATCH(H19,Футбол1!$C$7:$C$9,1),MATCH('ИР-тек'!$B$63,Футбол1!$D$1:$U$1,1)),IF($F19="Футбол2",INDEX(Футбол2!$D$7:$U$9,MATCH(H19,Футбол2!$C$7:$C$9,1),MATCH('ИР-тек'!$B$63,Футбол2!$D$1:$U$1,1)))))))))))))))) -> ≥ 25 | R19: =IF($D$17="Сила1",INDEX('Упр-ст'!$G$6:$AO$8,MATCH(H19,'Упр-ст'!$F$6:$F$8,1),MATCH('Упр-ст'!$B$28,'Упр-ст'!$G$4:$AO$4,1)),IF($D$17="Сила2",INDEX('Упр-ст'!$G$9:$AO$11,MATCH(H19,'Упр-ст'!$F$9:$F$11,1),MATCH('Упр-ст'!$B$28,'Упр-ст'!$G$4:$AO$4,1)),IF($D$17="Быстрота",INDEX('Упр-ст'!$G$15:$AO$17,MATCH(H19,'Упр-ст'!$F$15:$F$17,1),MATCH('Упр-ст'!$B$28,'Упр-ст'!$G$4:$AO$4,1)),IF($D$17="Ловкость",INDEX('Упр-ст'!$G$12:$AO$14,MATCH(H19,'Упр-ст'!$F$12:$F$14,1),MATCH('Упр-ст'!$B$28,'Упр-ст'!$G$4:$AO$4,1)),IF($D$17="Гибкость",INDEX('Упр-ст'!$G$18:$AO$20,MATCH(H19,'Упр-ст'!$F$18:$F$20,1),MATCH('Упр-ст'!$B$28,'Упр-ст'!$G$4:$AO$4,1))))))) -> 1.1
C20: 2-ая | D20: Ловкость2 | F20: =D20 -> Ловкость2 | H20: 1 упр | J20: =IF($F20="Сила1",INDEX(Сила1!$D$7:$U$9,MATCH(H20,Сила1!$C$7:$C$9,1),MATCH('ИР-тек'!$B$63,Сила1!$D$3:$R$3,1)),IF($F20="Сила2",INDEX(Сила2!$D$7:$U$9,MATCH(H20,Сила2!$C$7:$C$9,1),MATCH('ИР-тек'!$B$63,Сила2!$D$3:$R$3,1)),IF($F20="Быстрота1",INDEX(Быстрота1!$D$7:$U$9,MATCH(H20,Быстрота1!$C$7:$C$9,1),MATCH('ИР-тек'!$B$63,Быстрота1!$D$3:$R$3,1)),IF($F20="Быстрота2",INDEX(Быстрота2!$D$7:$U$9,MATCH(H20,Быстрота2!$C$7:$C$9,1),MATCH('ИР-тек'!$B$63,Быстрота2!$D$3:$R$3,1)),IF($F20="Ловкость1",INDEX(Ловкость1!$D$7:$U$9,MATCH(H20,Ловкость1!$C$7:$C$9,1),MATCH('ИР-тек'!$B$63,Ловкость1!$D$3:$R$3,1)),IF($F20="Ловкость2",INDEX(Ловкость2!$D$7:$U$9,MATCH(H20,Ловкость2!$C$7:$C$9,1),MATCH('ИР-тек'!$B$63,Ловкость2!$D$3:$R$3,1)),IF($F20="Гибкость1",INDEX(Гибкость1!$D$7:$U$9,MATCH(H20,Гибкость1!$C$7:$C$9,1),MATCH('ИР-тек'!$B$63,Гибкость1!$D$3:$R$3,1)),IF($F20="Гибкость2",INDEX(Гибкость2!$D$7:$U$9,MATCH(H20,Гибкость2!$C$7:$C$9,1),MATCH('ИР-тек'!$B$63,Гибкость2!$D$3:$R$3,1)),IF($F20="Волейбол1",INDEX(Волейбол1!$D$7:$U$9,MATCH(H20,Волейбол1!$C$7:$C$9,1),MATCH('ИР-тек'!$B$63,Волейбол1!$D$3:$R$3,1)),IF($F20="Волейбол2",INDEX(Волейбол2!$D$7:$U$9,MATCH(H20,Волейбол2!$C$7:$C$9,1),MATCH('ИР-тек'!$B$63,Волейбол2!$D$3:$R$3,1)),IF($F20="Баскетбол1",INDEX(Баскетбол1!$D$7:$U$9,MATCH(H20,Баскетбол1!$C$7:$C$9,1),MATCH('ИР-тек'!$B$63,Баскетбол1!$D$3:$R$3,1)),IF($F20="Баскетбол2",INDEX(Баскетбол2!$D$7:$U$9,MATCH(H20,Баскетбол2!$C$7:$C$9,1),MATCH('ИР-тек'!$B$63,Баскетбол2!$D$3:$R$3,1)),IF($F20="Футбол1",INDEX(Футбол1!$D$7:$U$9,MATCH(H20,Футбол1!$C$7:$C$9,1),MATCH('ИР-тек'!$B$63,Футбол1!$D$3:$R$3,1)),IF($F20="Футбол2",INDEX(Футбол2!$D$7:$U$9,MATCH(H20,Футбол2!$C$7:$C$9,1),MATCH('ИР-тек'!$B$63,Футбол2!$D$3:$R$3,1)))))))))))))))) -> Подтягивания в висе хватом сверху руки на ширине плеч (при необходимости с помощью партнера) | P20: =IF($F20="Сила1",INDEX(Сила1!$D$7:$U$9,MATCH(H20,Сила1!$C$7:$C$9,1),MATCH('ИР-тек'!$B$63,Сила1!$D$2:$U$2,1)),IF($F20="Сила2",INDEX(Сила2!$D$7:$U$9,MATCH(H20,Сила2!$C$7:$C$9,1),MATCH('ИР-тек'!$B$63,Сила2!$D$2:$U$2,1)),IF($F20="Быстрота1",INDEX(Быстрота1!$D$7:$U$9,MATCH(H20,Быстрота1!$C$7:$C$9,1),MATCH('ИР-тек'!$B$63,Быстрота1!$D$2:$U$2,1)),IF($F20="Быстрота2",INDEX(Быстрота2!$D$7:$U$9,MATCH(H20,Быстрота2!$C$7:$C$9,1),MATCH('ИР-тек'!$B$63,Быстрота2!$D$2:$U$2,1)),IF($F20="Ловкость1",INDEX(Ловкость1!$D$7:$U$9,MATCH(H20,Ловкость1!$C$7:$C$9,1),MATCH('ИР-тек'!$B$63,Ловкость1!$D$2:$U$2,1)),IF($F20="Ловкость2",INDEX(Ловкость2!$D$7:$U$9,MATCH(H20,Ловкость2!$C$7:$C$9,1),MATCH('ИР-тек'!$B$63,Ловкость2!$D$2:$U$2,1)),IF($F20="Гибкость1",INDEX(Гибкость1!$D$7:$U$9,MATCH(H20,Гибкость1!$C$7:$C$9,1),MATCH('ИР-тек'!$B$63,Гибкость1!$D$2:$U$2,1)),IF($F20="Гибкость2",INDEX(Гибкость2!$D$7:$U$9,MATCH(H20,Гибкость2!$C$7:$C$9,1),MATCH('ИР-тек'!$B$63,Гибкость2!$D$2:$U$2,1)),IF($F20="Волейбол1",INDEX(Волейбол1!$D$7:$U$9,MATCH(H20,Волейбол1!$C$7:$C$9,1),MATCH('ИР-тек'!$B$63,Волейбол1!$D$2:$U$2,1)),IF($F20="Волейбол2",INDEX(Волейбол2!$D$7:$U$9,MATCH(H20,Волейбол2!$C$7:$C$9,1),MATCH('ИР-тек'!$B$63,Волейбол2!$D$2:$U$2,1)),IF($F20="Баскетбол1",INDEX(Баскетбол1!$D$7:$U$9,MATCH(H20,Баскетбол1!$C$7:$C$9,1),MATCH('ИР-тек'!$B$63,Баскетбол1!$D$2:$U$2,1)),IF($F20="Баскетбол2",INDEX(Баскетбол2!$D$7:$U$9,MATCH(H20,Баскетбол2!$C$7:$C$9,1),MATCH('ИР-тек'!$B$63,Баскетбол2!$D$2:$U$2,1)),IF($F20="Футбол1",INDEX(Футбол1!$D$7:$U$9,MATCH(H20,Футбол1!$C$7:$C$9,1),MATCH('ИР-тек'!$B$63,Футбол1!$D$2:$U$2,1)),IF($F20="Футбол2",INDEX(Футбол2!$D$7:$U$9,MATCH(H20,Футбол2!$C$7:$C$9,1),MATCH('ИР-тек'!$B$63,Футбол2!$D$2:$U$2,1)))))))))))))))) -> 1 | Q20: =IF($F20="Сила1",INDEX(Сила1!$D$7:$U$9,MATCH(H20,Сила1!$C$7:$C$9,1),MATCH('ИР-тек'!$B$63,Сила1!$D$1:$U$1,1)),IF($F20="Сила2",INDEX(Сила2!$D$7:$U$9,MATCH(H20,Сила2!$C$7:$C$9,1),MATCH('ИР-тек'!$B$63,Сила2!$D$1:$U$1,1)),IF($F20="Быстрота1",INDEX(Быстрота1!$D$7:$U$9,MATCH(H20,Быстрота1!$C$7:$C$9,1),MATCH('ИР-тек'!$B$63,Быстрота1!$D$1:$U$1,1)),IF($F20="Быстрота2",INDEX(Быстрота2!$D$7:$U$9,MATCH(H20,Быстрота2!$C$7:$C$9,1),MATCH('ИР-тек'!$B$63,Быстрота2!$D$1:$U$1,1)),IF($F20="Ловкость1",INDEX(Ловкость1!$D$7:$U$9,MATCH(H20,Ловкость1!$C$7:$C$9,1),MATCH('ИР-тек'!$B$63,Ловкость1!$D$1:$U$1,1)),IF($F20="Ловкость2",INDEX(Ловкость2!$D$7:$U$9,MATCH(H20,Ловкость2!$C$7:$C$9,1),MATCH('ИР-тек'!$B$63,Ловкость2!$D$1:$U$1,1)),IF($F20="Гибкость1",INDEX(Гибкость1!$D$7:$U$9,MATCH(H20,Гибкость1!$C$7:$C$9,1),MATCH('ИР-тек'!$B$63,Гибкость1!$D$1:$U$1,1)),IF($F20="Гибкость2",INDEX(Гибкость2!$D$7:$U$9,MATCH(H20,Гибкость2!$C$7:$C$9,1),MATCH('ИР-тек'!$B$63,Гибкость2!$D$1:$U$1,1)),IF($F20="Волейбол1",INDEX(Волейбол1!$D$7:$U$9,MATCH(H20,Волейбол1!$C$7:$C$9,1),MATCH('ИР-тек'!$B$63,Волейбол1!$D$1:$U$1,1)),IF($F20="Волейбол2",INDEX(Волейбол2!$D$7:$U$9,MATCH(H20,Волейбол2!$C$7:$C$9,1),MATCH('ИР-тек'!$B$63,Волейбол2!$D$1:$U$1,1)),IF($F20="Баскетбол1",INDEX(Баскетбол1!$D$7:$U$9,MATCH(H20,Баскетбол1!$C$7:$C$9,1),MATCH('ИР-тек'!$B$63,Баскетбол1!$D$1:$U$1,1)),IF($F20="Баскетбол2",INDEX(Баскетбол2!$D$7:$U$9,MATCH(H20,Баскетбол2!$C$7:$C$9,1),MATCH('ИР-тек'!$B$63,Баскетбол2!$D$1:$U$1,1)),IF($F20="Футбол1",INDEX(Футбол1!$D$7:$U$9,MATCH(H20,Футбол1!$C$7:$C$9,1),MATCH('ИР-тек'!$B$63,Футбол1!$D$1:$U$1,1)),IF($F20="Футбол2",INDEX(Футбол2!$D$7:$U$9,MATCH(H20,Футбол2!$C$7:$C$9,1),MATCH('ИР-тек'!$B$63,Футбол2!$D$1:$U$1,1)))))))))))))))) -> ≤ 8
F21: =D20 -> Ловкость2 | H21: 2 упр | J21: =IF($F21="Сила1",INDEX(Сила1!$D$7:$U$9,MATCH(H21,Сила1!$C$7:$C$9,1),MATCH('ИР-тек'!$B$63,Сила1!$D$3:$R$3,1)),IF($F21="Сила2",INDEX(Сила2!$D$7:$U$9,MATCH(H21,Сила2!$C$7:$C$9,1),MATCH('ИР-тек'!$B$63,Сила2!$D$3:$R$3,1)),IF($F21="Быстрота1",INDEX(Быстрота1!$D$7:$U$9,MATCH(H21,Быстрота1!$C$7:$C$9,1),MATCH('ИР-тек'!$B$63,Быстрота1!$D$3:$R$3,1)),IF($F21="Быстрота2",INDEX(Быстрота2!$D$7:$U$9,MATCH(H21,Быстрота2!$C$7:$C$9,1),MATCH('ИР-тек'!$B$63,Быстрота2!$D$3:$R$3,1)),IF($F21="Ловкость1",INDEX(Ловкость1!$D$7:$U$9,MATCH(H21,Ловкость1!$C$7:$C$9,1),MATCH('ИР-тек'!$B$63,Ловкость1!$D$3:$R$3,1)),IF($F21="Ловкость2",INDEX(Ловкость2!$D$7:$U$9,MATCH(H21,Ловкость2!$C$7:$C$9,1),MATCH('ИР-тек'!$B$63,Ловкость2!$D$3:$R$3,1)),IF($F21="Гибкость1",INDEX(Гибкость1!$D$7:$U$9,MATCH(H21,Гибкость1!$C$7:$C$9,1),MATCH('ИР-тек'!$B$63,Гибкость1!$D$3:$R$3,1)),IF($F21="Гибкость2",INDEX(Гибкость2!$D$7:$U$9,MATCH(H21,Гибкость2!$C$7:$C$9,1),MATCH('ИР-тек'!$B$63,Гибкость2!$D$3:$R$3,1)),IF($F21="Волейбол1",INDEX(Волейбол1!$D$7:$U$9,MATCH(H21,Волейбол1!$C$7:$C$9,1),MATCH('ИР-тек'!$B$63,Волейбол1!$D$3:$R$3,1)),IF($F21="Волейбол2",INDEX(Волейбол2!$D$7:$U$9,MATCH(H21,Волейбол2!$C$7:$C$9,1),MATCH('ИР-тек'!$B$63,Волейбол2!$D$3:$R$3,1)),IF($F21="Баскетбол1",INDEX(Баскетбол1!$D$7:$U$9,MATCH(H21,Баскетбол1!$C$7:$C$9,1),MATCH('ИР-тек'!$B$63,Баскетбол1!$D$3:$R$3,1)),IF($F21="Баскетбол2",INDEX(Баскетбол2!$D$7:$U$9,MATCH(H21,Баскетбол2!$C$7:$C$9,1),MATCH('ИР-тек'!$B$63,Баскетбол2!$D$3:$R$3,1)),IF($F21="Футбол1",INDEX(Футбол1!$D$7:$U$9,MATCH(H21,Футбол1!$C$7:$C$9,1),MATCH('ИР-тек'!$B$63,Футбол1!$D$3:$R$3,1)),IF($F21="Футбол2",INDEX(Футбол2!$D$7:$U$9,MATCH(H21,Футбол2!$C$7:$C$9,1),MATCH('ИР-тек'!$B$63,Футбол2!$D$3:$R$3,1)))))))))))))))) -> Сгибание и разгибание рук в упоре лежа (руки на ширине плеч) | P21: =IF($F21="Сила1",INDEX(Сила1!$D$7:$U$9,MATCH(H21,Сила1!$C$7:$C$9,1),MATCH('ИР-тек'!$B$63,Сила1!$D$2:$U$2,1)),IF($F21="Сила2",INDEX(Сила2!$D$7:$U$9,MATCH(H21,Сила2!$C$7:$C$9,1),MATCH('ИР-тек'!$B$63,Сила2!$D$2:$U$2,1)),IF($F21="Быстрота1",INDEX(Быстрота1!$D$7:$U$9,MATCH(H21,Быстрота1!$C$7:$C$9,1),MATCH('ИР-тек'!$B$63,Быстрота1!$D$2:$U$2,1)),IF($F21="Быстрота2",INDEX(Быстрота2!$D$7:$U$9,MATCH(H21,Быстрота2!$C$7:$C$9,1),MATCH('ИР-тек'!$B$63,Быстрота2!$D$2:$U$2,1)),IF($F21="Ловкость1",INDEX(Ловкость1!$D$7:$U$9,MATCH(H21,Ловкость1!$C$7:$C$9,1),MATCH('ИР-тек'!$B$63,Ловкость1!$D$2:$U$2,1)),IF($F21="Ловкость2",INDEX(Ловкость2!$D$7:$U$9,MATCH(H21,Ловкость2!$C$7:$C$9,1),MATCH('ИР-тек'!$B$63,Ловкость2!$D$2:$U$2,1)),IF($F21="Гибкость1",INDEX(Гибкость1!$D$7:$U$9,MATCH(H21,Гибкость1!$C$7:$C$9,1),MATCH('ИР-тек'!$B$63,Гибкость1!$D$2:$U$2,1)),IF($F21="Гибкость2",INDEX(Гибкость2!$D$7:$U$9,MATCH(H21,Гибкость2!$C$7:$C$9,1),MATCH('ИР-тек'!$B$63,Гибкость2!$D$2:$U$2,1)),IF($F21="Волейбол1",INDEX(Волейбол1!$D$7:$U$9,MATCH(H21,Волейбол1!$C$7:$C$9,1),MATCH('ИР-тек'!$B$63,Волейбол1!$D$2:$U$2,1)),IF($F21="Волейбол2",INDEX(Волейбол2!$D$7:$U$9,MATCH(H21,Волейбол2!$C$7:$C$9,1),MATCH('ИР-тек'!$B$63,Волейбол2!$D$2:$U$2,1)),IF($F21="Баскетбол1",INDEX(Баскетбол1!$D$7:$U$9,MATCH(H21,Баскетбол1!$C$7:$C$9,1),MATCH('ИР-тек'!$B$63,Баскетбол1!$D$2:$U$2,1)),IF($F21="Баскетбол2",INDEX(Баскетбол2!$D$7:$U$9,MATCH(H21,Баскетбол2!$C$7:$C$9,1),MATCH('ИР-тек'!$B$63,Баскетбол2!$D$2:$U$2,1)),IF($F21="Футбол1",INDEX(Футбол1!$D$7:$U$9,MATCH(H21,Футбол1!$C$7:$C$9,1),MATCH('ИР-тек'!$B$63,Футбол1!$D$2:$U$2,1)),IF($F21="Футбол2",INDEX(Футбол2!$D$7:$U$9,MATCH(H21,Футбол2!$C$7:$C$9,1),MATCH('ИР-тек'!$B$63,Футбол2!$D$2:$U$2,1)))))))))))))))) -> 1 | Q21: =IF($F21="Сила1",INDEX(Сила1!$D$7:$U$9,MATCH(H21,Сила1!$C$7:$C$9,1),MATCH('ИР-тек'!$B$63,Сила1!$D$1:$U$1,1)),IF($F21="Сила2",INDEX(Сила2!$D$7:$U$9,MATCH(H21,Сила2!$C$7:$C$9,1),MATCH('ИР-тек'!$B$63,Сила2!$D$1:$U$1,1)),IF($F21="Быстрота1",INDEX(Быстрота1!$D$7:$U$9,MATCH(H21,Быстрота1!$C$7:$C$9,1),MATCH('ИР-тек'!$B$63,Быстрота1!$D$1:$U$1,1)),IF($F21="Быстрота2",INDEX(Быстрота2!$D$7:$U$9,MATCH(H21,Быстрота2!$C$7:$C$9,1),MATCH('ИР-тек'!$B$63,Быстрота2!$D$1:$U$1,1)),IF($F21="Ловкость1",INDEX(Ловкость1!$D$7:$U$9,MATCH(H21,Ловкость1!$C$7:$C$9,1),MATCH('ИР-тек'!$B$63,Ловкость1!$D$1:$U$1,1)),IF($F21="Ловкость2",INDEX(Ловкость2!$D$7:$U$9,MATCH(H21,Ловкость2!$C$7:$C$9,1),MATCH('ИР-тек'!$B$63,Ловкость2!$D$1:$U$1,1)),IF($F21="Гибкость1",INDEX(Гибкость1!$D$7:$U$9,MATCH(H21,Гибкость1!$C$7:$C$9,1),MATCH('ИР-тек'!$B$63,Гибкость1!$D$1:$U$1,1)),IF($F21="Гибкость2",INDEX(Гибкость2!$D$7:$U$9,MATCH(H21,Гибкость2!$C$7:$C$9,1),MATCH('ИР-тек'!$B$63,Гибкость2!$D$1:$U$1,1)),IF($F21="Волейбол1",INDEX(Волейбол1!$D$7:$U$9,MATCH(H21,Волейбол1!$C$7:$C$9,1),MATCH('ИР-тек'!$B$63,Волейбол1!$D$1:$U$1,1)),IF($F21="Волейбол2",INDEX(Волейбол2!$D$7:$U$9,MATCH(H21,Волейбол2!$C$7:$C$9,1),MATCH('ИР-тек'!$B$63,Волейбол2!$D$1:$U$1,1)),IF($F21="Баскетбол1",INDEX(Баскетбол1!$D$7:$U$9,MATCH(H21,Баскетбол1!$C$7:$C$9,1),MATCH('ИР-тек'!$B$63,Баскетбол1!$D$1:$U$1,1)),IF($F21="Баскетбол2",INDEX(Баскетбол2!$D$7:$U$9,MATCH(H21,Баскетбол2!$C$7:$C$9,1),MATCH('ИР-тек'!$B$63,Баскетбол2!$D$1:$U$1,1)),IF($F21="Футбол1",INDEX(Футбол1!$D$7:$U$9,MATCH(H21,Футбол1!$C$7:$C$9,1),MATCH('ИР-тек'!$B$63,Футбол1!$D$1:$U$1,1)),IF($F21="Футбол2",INDEX(Футбол2!$D$7:$U$9,MATCH(H21,Футбол2!$C$7:$C$9,1),MATCH('ИР-тек'!$B$63,Футбол2!$D$1:$U$1,1)))))))))))))))) -> ≤ 8
F22: =D20 -> Ловкость2 | H22: 3 упр | J22: =IF($F22="Сила1",INDEX(Сила1!$D$7:$U$9,MATCH(H22,Сила1!$C$7:$C$9,1),MATCH('ИР-тек'!$B$63,Сила1!$D$3:$R$3,1)),IF($F22="Сила2",INDEX(Сила2!$D$7:$U$9,MATCH(H22,Сила2!$C$7:$C$9,1),MATCH('ИР-тек'!$B$63,Сила2!$D$3:$R$3,1)),IF($F22="Быстрота1",INDEX(Быстрота1!$D$7:$U$9,MATCH(H22,Быстрота1!$C$7:$C$9,1),MATCH('ИР-тек'!$B$63,Быстрота1!$D$3:$R$3,1)),IF($F22="Быстрота2",INDEX(Быстрота2!$D$7:$U$9,MATCH(H22,Быстрота2!$C$7:$C$9,1),MATCH('ИР-тек'!$B$63,Быстрота2!$D$3:$R$3,1)),IF($F22="Ловкость1",INDEX(Ловкость1!$D$7:$U$9,MATCH(H22,Ловкость1!$C$7:$C$9,1),MATCH('ИР-тек'!$B$63,Ловкость1!$D$3:$R$3,1)),IF($F22="Ловкость2",INDEX(Ловкость2!$D$7:$U$9,MATCH(H22,Ловкость2!$C$7:$C$9,1),MATCH('ИР-тек'!$B$63,Ловкость2!$D$3:$R$3,1)),IF($F22="Гибкость1",INDEX(Гибкость1!$D$7:$U$9,MATCH(H22,Гибкость1!$C$7:$C$9,1),MATCH('ИР-тек'!$B$63,Гибкость1!$D$3:$R$3,1)),IF($F22="Гибкость2",INDEX(Гибкость2!$D$7:$U$9,MATCH(H22,Гибкость2!$C$7:$C$9,1),MATCH('ИР-тек'!$B$63,Гибкость2!$D$3:$R$3,1)),IF($F22="Волейбол1",INDEX(Волейбол1!$D$7:$U$9,MATCH(H22,Волейбол1!$C$7:$C$9,1),MATCH('ИР-тек'!$B$63,Волейбол1!$D$3:$R$3,1)),IF($F22="Волейбол2",INDEX(Волейбол2!$D$7:$U$9,MATCH(H22,Волейбол2!$C$7:$C$9,1),MATCH('ИР-тек'!$B$63,Волейбол2!$D$3:$R$3,1)),IF($F22="Баскетбол1",INDEX(Баскетбол1!$D$7:$U$9,MATCH(H22,Баскетбол1!$C$7:$C$9,1),MATCH('ИР-тек'!$B$63,Баскетбол1!$D$3:$R$3,1)),IF($F22="Баскетбол2",INDEX(Баскетбол2!$D$7:$U$9,MATCH(H22,Баскетбол2!$C$7:$C$9,1),MATCH('ИР-тек'!$B$63,Баскетбол2!$D$3:$R$3,1)),IF($F22="Футбол1",INDEX(Футбол1!$D$7:$U$9,MATCH(H22,Футбол1!$C$7:$C$9,1),MATCH('ИР-тек'!$B$63,Футбол1!$D$3:$R$3,1)),IF($F22="Футбол2",INDEX(Футбол2!$D$7:$U$9,MATCH(H22,Футбол2!$C$7:$C$9,1),MATCH('ИР-тек'!$B$63,Футбол2!$D$3:$R$3,1)))))))))))))))) -> Выход силой в упор на перекладину (руки поочередно) из виса лежа | P22: =IF($F22="Сила1",INDEX(Сила1!$D$7:$U$9,MATCH(H22,Сила1!$C$7:$C$9,1),MATCH('ИР-тек'!$B$63,Сила1!$D$2:$U$2,1)),IF($F22="Сила2",INDEX(Сила2!$D$7:$U$9,MATCH(H22,Сила2!$C$7:$C$9,1),MATCH('ИР-тек'!$B$63,Сила2!$D$2:$U$2,1)),IF($F22="Быстрота1",INDEX(Быстрота1!$D$7:$U$9,MATCH(H22,Быстрота1!$C$7:$C$9,1),MATCH('ИР-тек'!$B$63,Быстрота1!$D$2:$U$2,1)),IF($F22="Быстрота2",INDEX(Быстрота2!$D$7:$U$9,MATCH(H22,Быстрота2!$C$7:$C$9,1),MATCH('ИР-тек'!$B$63,Быстрота2!$D$2:$U$2,1)),IF($F22="Ловкость1",INDEX(Ловкость1!$D$7:$U$9,MATCH(H22,Ловкость1!$C$7:$C$9,1),MATCH('ИР-тек'!$B$63,Ловкость1!$D$2:$U$2,1)),IF($F22="Ловкость2",INDEX(Ловкость2!$D$7:$U$9,MATCH(H22,Ловкость2!$C$7:$C$9,1),MATCH('ИР-тек'!$B$63,Ловкость2!$D$2:$U$2,1)),IF($F22="Гибкость1",INDEX(Гибкость1!$D$7:$U$9,MATCH(H22,Гибкость1!$C$7:$C$9,1),MATCH('ИР-тек'!$B$63,Гибкость1!$D$2:$U$2,1)),IF($F22="Гибкость2",INDEX(Гибкость2!$D$7:$U$9,MATCH(H22,Гибкость2!$C$7:$C$9,1),MATCH('ИР-тек'!$B$63,Гибкость2!$D$2:$U$2,1)),IF($F22="Волейбол1",INDEX(Волейбол1!$D$7:$U$9,MATCH(H22,Волейбол1!$C$7:$C$9,1),MATCH('ИР-тек'!$B$63,Волейбол1!$D$2:$U$2,1)),IF($F22="Волейбол2",INDEX(Волейбол2!$D$7:$U$9,MATCH(H22,Волейбол2!$C$7:$C$9,1),MATCH('ИР-тек'!$B$63,Волейбол2!$D$2:$U$2,1)),IF($F22="Баскетбол1",INDEX(Баскетбол1!$D$7:$U$9,MATCH(H22,Баскетбол1!$C$7:$C$9,1),MATCH('ИР-тек'!$B$63,Баскетбол1!$D$2:$U$2,1)),IF($F22="Баскетбол2",INDEX(Баскетбол2!$D$7:$U$9,MATCH(H22,Баскетбол2!$C$7:$C$9,1),MATCH('ИР-тек'!$B$63,Баскетбол2!$D$2:$U$2,1)),IF($F22="Футбол1",INDEX(Футбол1!$D$7:$U$9,MATCH(H22,Футбол1!$C$7:$C$9,1),MATCH('ИР-тек'!$B$63,Футбол1!$D$2:$U$2,1)),IF($F22="Футбол2",INDEX(Футбол2!$D$7:$U$9,MATCH(H22,Футбол2!$C$7:$C$9,1),MATCH('ИР-тек'!$B$63,Футбол2!$D$2:$U$2,1)))))))))))))))) -> 1 | Q22: =IF($F22="Сила1",INDEX(Сила1!$D$7:$U$9,MATCH(H22,Сила1!$C$7:$C$9,1),MATCH('ИР-тек'!$B$63,Сила1!$D$1:$U$1,1)),IF($F22="Сила2",INDEX(Сила2!$D$7:$U$9,MATCH(H22,Сила2!$C$7:$C$9,1),MATCH('ИР-тек'!$B$63,Сила2!$D$1:$U$1,1)),IF($F22="Быстрота1",INDEX(Быстрота1!$D$7:$U$9,MATCH(H22,Быстрота1!$C$7:$C$9,1),MATCH('ИР-тек'!$B$63,Быстрота1!$D$1:$U$1,1)),IF($F22="Быстрота2",INDEX(Быстрота2!$D$7:$U$9,MATCH(H22,Быстрота2!$C$7:$C$9,1),MATCH('ИР-тек'!$B$63,Быстрота2!$D$1:$U$1,1)),IF($F22="Ловкость1",INDEX(Ловкость1!$D$7:$U$9,MATCH(H22,Ловкость1!$C$7:$C$9,1),MATCH('ИР-тек'!$B$63,Ловкость1!$D$1:$U$1,1)),IF($F22="Ловкость2",INDEX(Ловкость2!$D$7:$U$9,MATCH(H22,Ловкость2!$C$7:$C$9,1),MATCH('ИР-тек'!$B$63,Ловкость2!$D$1:$U$1,1)),IF($F22="Гибкость1",INDEX(Гибкость1!$D$7:$U$9,MATCH(H22,Гибкость1!$C$7:$C$9,1),MATCH('ИР-тек'!$B$63,Гибкость1!$D$1:$U$1,1)),IF($F22="Гибкость2",INDEX(Гибкость2!$D$7:$U$9,MATCH(H22,Гибкость2!$C$7:$C$9,1),MATCH('ИР-тек'!$B$63,Гибкость2!$D$1:$U$1,1)),IF($F22="Волейбол1",INDEX(Волейбол1!$D$7:$U$9,MATCH(H22,Волейбол1!$C$7:$C$9,1),MATCH('ИР-тек'!$B$63,Волейбол1!$D$1:$U$1,1)),IF($F22="Волейбол2",INDEX(Волейбол2!$D$7:$U$9,MATCH(H22,Волейбол2!$C$7:$C$9,1),MATCH('ИР-тек'!$B$63,Волейбол2!$D$1:$U$1,1)),IF($F22="Баскетбол1",INDEX(Баскетбол1!$D$7:$U$9,MATCH(H22,Баскетбол1!$C$7:$C$9,1),MATCH('ИР-тек'!$B$63,Баскетбол1!$D$1:$U$1,1)),IF($F22="Баскетбол2",INDEX(Баскетбол2!$D$7:$U$9,MATCH(H22,Баскетбол2!$C$7:$C$9,1),MATCH('ИР-тек'!$B$63,Баскетбол2!$D$1:$U$1,1)),IF($F22="Футбол1",INDEX(Футбол1!$D$7:$U$9,MATCH(H22,Футбол1!$C$7:$C$9,1),MATCH('ИР-тек'!$B$63,Футбол1!$D$1:$U$1,1)),IF($F22="Футбол2",INDEX(Футбол2!$D$7:$U$9,MATCH(H22,Футбол2!$C$7:$C$9,1),MATCH('ИР-тек'!$B$63,Футбол2!$D$1:$U$1,1)))))))))))))))) -> ≤ 8
C23: 3-ая | D23: Ловкость1 | F23: =D23 -> Ловкость1 | G23: =IF(КИДР!D23="Сила1",'Table-IDK'!$B$271,IF(КИДР!D23="Сила2",'Table-IDK'!$B$271,IF(КИДР!D23="Быстрота",'Table-IDK'!$B$272,IF(КИДР!D23="Ловкость",'Table-IDK'!$B$273,IF(КИДР!D23="Гибкость",'Table-IDK'!$B$274,""))))) ->  | H23: 1 упр | J23: =IF($F23="Сила1",INDEX(Сила1!$D$7:$U$9,MATCH(H23,Сила1!$C$7:$C$9,1),MATCH('ИР-тек'!$B$63,Сила1!$D$3:$R$3,1)),IF($F23="Сила2",INDEX(Сила2!$D$7:$U$9,MATCH(H23,Сила2!$C$7:$C$9,1),MATCH('ИР-тек'!$B$63,Сила2!$D$3:$R$3,1)),IF($F23="Быстрота1",INDEX(Быстрота1!$D$7:$U$9,MATCH(H23,Быстрота1!$C$7:$C$9,1),MATCH('ИР-тек'!$B$63,Быстрота1!$D$3:$R$3,1)),IF($F23="Быстрота2",INDEX(Быстрота2!$D$7:$U$9,MATCH(H23,Быстрота2!$C$7:$C$9,1),MATCH('ИР-тек'!$B$63,Быстрота2!$D$3:$R$3,1)),IF($F23="Ловкость1",INDEX(Ловкость1!$D$7:$U$9,MATCH(H23,Ловкость1!$C$7:$C$9,1),MATCH('ИР-тек'!$B$63,Ловкость1!$D$3:$R$3,1)),IF($F23="Ловкость2",INDEX(Ловкость2!$D$7:$U$9,MATCH(H23,Ловкость2!$C$7:$C$9,1),MATCH('ИР-тек'!$B$63,Ловкость2!$D$3:$R$3,1)),IF($F23="Гибкость1",INDEX(Гибкость1!$D$7:$U$9,MATCH(H23,Гибкость1!$C$7:$C$9,1),MATCH('ИР-тек'!$B$63,Гибкость1!$D$3:$R$3,1)),IF($F23="Гибкость2",INDEX(Гибкость2!$D$7:$U$9,MATCH(H23,Гибкость2!$C$7:$C$9,1),MATCH('ИР-тек'!$B$63,Гибкость2!$D$3:$R$3,1)),IF($F23="Волейбол1",INDEX(Волейбол1!$D$7:$U$9,MATCH(H23,Волейбол1!$C$7:$C$9,1),MATCH('ИР-тек'!$B$63,Волейбол1!$D$3:$R$3,1)),IF($F23="Волейбол2",INDEX(Волейбол2!$D$7:$U$9,MATCH(H23,Волейбол2!$C$7:$C$9,1),MATCH('ИР-тек'!$B$63,Волейбол2!$D$3:$R$3,1)),IF($F23="Баскетбол1",INDEX(Баскетбол1!$D$7:$U$9,MATCH(H23,Баскетбол1!$C$7:$C$9,1),MATCH('ИР-тек'!$B$63,Баскетбол1!$D$3:$R$3,1)),IF($F23="Баскетбол2",INDEX(Баскетбол2!$D$7:$U$9,MATCH(H23,Баскетбол2!$C$7:$C$9,1),MATCH('ИР-тек'!$B$63,Баскетбол2!$D$3:$R$3,1)),IF($F23="Футбол1",INDEX(Футбол1!$D$7:$U$9,MATCH(H23,Футбол1!$C$7:$C$9,1),MATCH('ИР-тек'!$B$63,Футбол1!$D$3:$R$3,1)),IF($F23="Футбол2",INDEX(Футбол2!$D$7:$U$9,MATCH(H23,Футбол2!$C$7:$C$9,1),MATCH('ИР-тек'!$B$63,Футбол2!$D$3:$R$3,1)))))))))))))))) -> Подтягивания в висе хватом сверху руки на ширине плеч (при необходимости с помощью партнера) | P23: =IF($F23="Сила1",INDEX(Сила1!$D$7:$U$9,MATCH(H23,Сила1!$C$7:$C$9,1),MATCH('ИР-тек'!$B$63,Сила1!$D$2:$U$2,1)),IF($F23="Сила2",INDEX(Сила2!$D$7:$U$9,MATCH(H23,Сила2!$C$7:$C$9,1),MATCH('ИР-тек'!$B$63,Сила2!$D$2:$U$2,1)),IF($F23="Быстрота1",INDEX(Быстрота1!$D$7:$U$9,MATCH(H23,Быстрота1!$C$7:$C$9,1),MATCH('ИР-тек'!$B$63,Быстрота1!$D$2:$U$2,1)),IF($F23="Быстрота2",INDEX(Быстрота2!$D$7:$U$9,MATCH(H23,Быстрота2!$C$7:$C$9,1),MATCH('ИР-тек'!$B$63,Быстрота2!$D$2:$U$2,1)),IF($F23="Ловкость1",INDEX(Ловкость1!$D$7:$U$9,MATCH(H23,Ловкость1!$C$7:$C$9,1),MATCH('ИР-тек'!$B$63,Ловкость1!$D$2:$U$2,1)),IF($F23="Ловкость2",INDEX(Ловкость2!$D$7:$U$9,MATCH(H23,Ловкость2!$C$7:$C$9,1),MATCH('ИР-тек'!$B$63,Ловкость2!$D$2:$U$2,1)),IF($F23="Гибкость1",INDEX(Гибкость1!$D$7:$U$9,MATCH(H23,Гибкость1!$C$7:$C$9,1),MATCH('ИР-тек'!$B$63,Гибкость1!$D$2:$U$2,1)),IF($F23="Гибкость2",INDEX(Гибкость2!$D$7:$U$9,MATCH(H23,Гибкость2!$C$7:$C$9,1),MATCH('ИР-тек'!$B$63,Гибкость2!$D$2:$U$2,1)),IF($F23="Волейбол1",INDEX(Волейбол1!$D$7:$U$9,MATCH(H23,Волейбол1!$C$7:$C$9,1),MATCH('ИР-тек'!$B$63,Волейбол1!$D$2:$U$2,1)),IF($F23="Волейбол2",INDEX(Волейбол2!$D$7:$U$9,MATCH(H23,Волейбол2!$C$7:$C$9,1),MATCH('ИР-тек'!$B$63,Волейбол2!$D$2:$U$2,1)),IF($F23="Баскетбол1",INDEX(Баскетбол1!$D$7:$U$9,MATCH(H23,Баскетбол1!$C$7:$C$9,1),MATCH('ИР-тек'!$B$63,Баскетбол1!$D$2:$U$2,1)),IF($F23="Баскетбол2",INDEX(Баскетбол2!$D$7:$U$9,MATCH(H23,Баскетбол2!$C$7:$C$9,1),MATCH('ИР-тек'!$B$63,Баскетбол2!$D$2:$U$2,1)),IF($F23="Футбол1",INDEX(Футбол1!$D$7:$U$9,MATCH(H23,Футбол1!$C$7:$C$9,1),MATCH('ИР-тек'!$B$63,Футбол1!$D$2:$U$2,1)),IF($F23="Футбол2",INDEX(Футбол2!$D$7:$U$9,MATCH(H23,Футбол2!$C$7:$C$9,1),MATCH('ИР-тек'!$B$63,Футбол2!$D$2:$U$2,1)))))))))))))))) -> 1 | Q23: =IF($F23="Сила1",INDEX(Сила1!$D$7:$U$9,MATCH(H23,Сила1!$C$7:$C$9,1),MATCH('ИР-тек'!$B$63,Сила1!$D$1:$U$1,1)),IF($F23="Сила2",INDEX(Сила2!$D$7:$U$9,MATCH(H23,Сила2!$C$7:$C$9,1),MATCH('ИР-тек'!$B$63,Сила2!$D$1:$U$1,1)),IF($F23="Быстрота1",INDEX(Быстрота1!$D$7:$U$9,MATCH(H23,Быстрота1!$C$7:$C$9,1),MATCH('ИР-тек'!$B$63,Быстрота1!$D$1:$U$1,1)),IF($F23="Быстрота2",INDEX(Быстрота2!$D$7:$U$9,MATCH(H23,Быстрота2!$C$7:$C$9,1),MATCH('ИР-тек'!$B$63,Быстрота2!$D$1:$U$1,1)),IF($F23="Ловкость1",INDEX(Ловкость1!$D$7:$U$9,MATCH(H23,Ловкость1!$C$7:$C$9,1),MATCH('ИР-тек'!$B$63,Ловкость1!$D$1:$U$1,1)),IF($F23="Ловкость2",INDEX(Ловкость2!$D$7:$U$9,MATCH(H23,Ловкость2!$C$7:$C$9,1),MATCH('ИР-тек'!$B$63,Ловкость2!$D$1:$U$1,1)),IF($F23="Гибкость1",INDEX(Гибкость1!$D$7:$U$9,MATCH(H23,Гибкость1!$C$7:$C$9,1),MATCH('ИР-тек'!$B$63,Гибкость1!$D$1:$U$1,1)),IF($F23="Гибкость2",INDEX(Гибкость2!$D$7:$U$9,MATCH(H23,Гибкость2!$C$7:$C$9,1),MATCH('ИР-тек'!$B$63,Гибкость2!$D$1:$U$1,1)),IF($F23="Волейбол1",INDEX(Волейбол1!$D$7:$U$9,MATCH(H23,Волейбол1!$C$7:$C$9,1),MATCH('ИР-тек'!$B$63,Волейбол1!$D$1:$U$1,1)),IF($F23="Волейбол2",INDEX(Волейбол2!$D$7:$U$9,MATCH(H23,Волейбол2!$C$7:$C$9,1),MATCH('ИР-тек'!$B$63,Волейбол2!$D$1:$U$1,1)),IF($F23="Баскетбол1",INDEX(Баскетбол1!$D$7:$U$9,MATCH(H23,Баскетбол1!$C$7:$C$9,1),MATCH('ИР-тек'!$B$63,Баскетбол1!$D$1:$U$1,1)),IF($F23="Баскетбол2",INDEX(Баскетбол2!$D$7:$U$9,MATCH(H23,Баскетбол2!$C$7:$C$9,1),MATCH('ИР-тек'!$B$63,Баскетбол2!$D$1:$U$1,1)),IF($F23="Футбол1",INDEX(Футбол1!$D$7:$U$9,MATCH(H23,Футбол1!$C$7:$C$9,1),MATCH('ИР-тек'!$B$63,Футбол1!$D$1:$U$1,1)),IF($F23="Футбол2",INDEX(Футбол2!$D$7:$U$9,MATCH(H23,Футбол2!$C$7:$C$9,1),MATCH('ИР-тек'!$B$63,Футбол2!$D$1:$U$1,1)))))))))))))))) -> ≤ 8 | R23: =IF($D$17="Сила1",INDEX('Упр-ст'!$G$6:$AO$8,MATCH(H23,'Упр-ст'!$F$6:$F$8,1),MATCH('Упр-ст'!$B$28,'Упр-ст'!$G$4:$AO$4,1)),IF($D$17="Сила2",INDEX('Упр-ст'!$G$9:$AO$11,MATCH(H23,'Упр-ст'!$F$9:$F$11,1),MATCH('Упр-ст'!$B$28,'Упр-ст'!$G$4:$AO$4,1)),IF($D$17="Быстрота",INDEX('Упр-ст'!$G$15:$AO$17,MATCH(H23,'Упр-ст'!$F$15:$F$17,1),MATCH('Упр-ст'!$B$28,'Упр-ст'!$G$4:$AO$4,1)),IF($D$17="Ловкость",INDEX('Упр-ст'!$G$12:$AO$14,MATCH(H23,'Упр-ст'!$F$12:$F$14,1),MATCH('Упр-ст'!$B$28,'Упр-ст'!$G$4:$AO$4,1)),IF($D$17="Гибкость",INDEX('Упр-ст'!$G$18:$AO$20,MATCH(H23,'Упр-ст'!$F$18:$F$20,1),MATCH('Упр-ст'!$B$28,'Упр-ст'!$G$4:$AO$4,1))))))) -> 1.1
F24: =D23 -> Ловкость1 | H24: 2 упр | J24: =IF($F24="Сила1",INDEX(Сила1!$D$7:$U$9,MATCH(H24,Сила1!$C$7:$C$9,1),MATCH('ИР-тек'!$B$63,Сила1!$D$3:$R$3,1)),IF($F24="Сила2",INDEX(Сила2!$D$7:$U$9,MATCH(H24,Сила2!$C$7:$C$9,1),MATCH('ИР-тек'!$B$63,Сила2!$D$3:$R$3,1)),IF($F24="Быстрота1",INDEX(Быстрота1!$D$7:$U$9,MATCH(H24,Быстрота1!$C$7:$C$9,1),MATCH('ИР-тек'!$B$63,Быстрота1!$D$3:$R$3,1)),IF($F24="Быстрота2",INDEX(Быстрота2!$D$7:$U$9,MATCH(H24,Быстрота2!$C$7:$C$9,1),MATCH('ИР-тек'!$B$63,Быстрота2!$D$3:$R$3,1)),IF($F24="Ловкость1",INDEX(Ловкость1!$D$7:$U$9,MATCH(H24,Ловкость1!$C$7:$C$9,1),MATCH('ИР-тек'!$B$63,Ловкость1!$D$3:$R$3,1)),IF($F24="Ловкость2",INDEX(Ловкость2!$D$7:$U$9,MATCH(H24,Ловкость2!$C$7:$C$9,1),MATCH('ИР-тек'!$B$63,Ловкость2!$D$3:$R$3,1)),IF($F24="Гибкость1",INDEX(Гибкость1!$D$7:$U$9,MATCH(H24,Гибкость1!$C$7:$C$9,1),MATCH('ИР-тек'!$B$63,Гибкость1!$D$3:$R$3,1)),IF($F24="Гибкость2",INDEX(Гибкость2!$D$7:$U$9,MATCH(H24,Гибкость2!$C$7:$C$9,1),MATCH('ИР-тек'!$B$63,Гибкость2!$D$3:$R$3,1)),IF($F24="Волейбол1",INDEX(Волейбол1!$D$7:$U$9,MATCH(H24,Волейбол1!$C$7:$C$9,1),MATCH('ИР-тек'!$B$63,Волейбол1!$D$3:$R$3,1)),IF($F24="Волейбол2",INDEX(Волейбол2!$D$7:$U$9,MATCH(H24,Волейбол2!$C$7:$C$9,1),MATCH('ИР-тек'!$B$63,Волейбол2!$D$3:$R$3,1)),IF($F24="Баскетбол1",INDEX(Баскетбол1!$D$7:$U$9,MATCH(H24,Баскетбол1!$C$7:$C$9,1),MATCH('ИР-тек'!$B$63,Баскетбол1!$D$3:$R$3,1)),IF($F24="Баскетбол2",INDEX(Баскетбол2!$D$7:$U$9,MATCH(H24,Баскетбол2!$C$7:$C$9,1),MATCH('ИР-тек'!$B$63,Баскетбол2!$D$3:$R$3,1)),IF($F24="Футбол1",INDEX(Футбол1!$D$7:$U$9,MATCH(H24,Футбол1!$C$7:$C$9,1),MATCH('ИР-тек'!$B$63,Футбол1!$D$3:$R$3,1)),IF($F24="Футбол2",INDEX(Футбол2!$D$7:$U$9,MATCH(H24,Футбол2!$C$7:$C$9,1),MATCH('ИР-тек'!$B$63,Футбол2!$D$3:$R$3,1)))))))))))))))) -> Сгибание и разгибание рук в упоре лежа (руки на ширине плеч) | P24: =IF($F24="Сила1",INDEX(Сила1!$D$7:$U$9,MATCH(H24,Сила1!$C$7:$C$9,1),MATCH('ИР-тек'!$B$63,Сила1!$D$2:$U$2,1)),IF($F24="Сила2",INDEX(Сила2!$D$7:$U$9,MATCH(H24,Сила2!$C$7:$C$9,1),MATCH('ИР-тек'!$B$63,Сила2!$D$2:$U$2,1)),IF($F24="Быстрота1",INDEX(Быстрота1!$D$7:$U$9,MATCH(H24,Быстрота1!$C$7:$C$9,1),MATCH('ИР-тек'!$B$63,Быстрота1!$D$2:$U$2,1)),IF($F24="Быстрота2",INDEX(Быстрота2!$D$7:$U$9,MATCH(H24,Быстрота2!$C$7:$C$9,1),MATCH('ИР-тек'!$B$63,Быстрота2!$D$2:$U$2,1)),IF($F24="Ловкость1",INDEX(Ловкость1!$D$7:$U$9,MATCH(H24,Ловкость1!$C$7:$C$9,1),MATCH('ИР-тек'!$B$63,Ловкость1!$D$2:$U$2,1)),IF($F24="Ловкость2",INDEX(Ловкость2!$D$7:$U$9,MATCH(H24,Ловкость2!$C$7:$C$9,1),MATCH('ИР-тек'!$B$63,Ловкость2!$D$2:$U$2,1)),IF($F24="Гибкость1",INDEX(Гибкость1!$D$7:$U$9,MATCH(H24,Гибкость1!$C$7:$C$9,1),MATCH('ИР-тек'!$B$63,Гибкость1!$D$2:$U$2,1)),IF($F24="Гибкость2",INDEX(Гибкость2!$D$7:$U$9,MATCH(H24,Гибкость2!$C$7:$C$9,1),MATCH('ИР-тек'!$B$63,Гибкость2!$D$2:$U$2,1)),IF($F24="Волейбол1",INDEX(Волейбол1!$D$7:$U$9,MATCH(H24,Волейбол1!$C$7:$C$9,1),MATCH('ИР-тек'!$B$63,Волейбол1!$D$2:$U$2,1)),IF($F24="Волейбол2",INDEX(Волейбол2!$D$7:$U$9,MATCH(H24,Волейбол2!$C$7:$C$9,1),MATCH('ИР-тек'!$B$63,Волейбол2!$D$2:$U$2,1)),IF($F24="Баскетбол1",INDEX(Баскетбол1!$D$7:$U$9,MATCH(H24,Баскетбол1!$C$7:$C$9,1),MATCH('ИР-тек'!$B$63,Баскетбол1!$D$2:$U$2,1)),IF($F24="Баскетбол2",INDEX(Баскетбол2!$D$7:$U$9,MATCH(H24,Баскетбол2!$C$7:$C$9,1),MATCH('ИР-тек'!$B$63,Баскетбол2!$D$2:$U$2,1)),IF($F24="Футбол1",INDEX(Футбол1!$D$7:$U$9,MATCH(H24,Футбол1!$C$7:$C$9,1),MATCH('ИР-тек'!$B$63,Футбол1!$D$2:$U$2,1)),IF($F24="Футбол2",INDEX(Футбол2!$D$7:$U$9,MATCH(H24,Футбол2!$C$7:$C$9,1),MATCH('ИР-тек'!$B$63,Футбол2!$D$2:$U$2,1)))))))))))))))) -> 1 | Q24: =IF($F24="Сила1",INDEX(Сила1!$D$7:$U$9,MATCH(H24,Сила1!$C$7:$C$9,1),MATCH('ИР-тек'!$B$63,Сила1!$D$1:$U$1,1)),IF($F24="Сила2",INDEX(Сила2!$D$7:$U$9,MATCH(H24,Сила2!$C$7:$C$9,1),MATCH('ИР-тек'!$B$63,Сила2!$D$1:$U$1,1)),IF($F24="Быстрота1",INDEX(Быстрота1!$D$7:$U$9,MATCH(H24,Быстрота1!$C$7:$C$9,1),MATCH('ИР-тек'!$B$63,Быстрота1!$D$1:$U$1,1)),IF($F24="Быстрота2",INDEX(Быстрота2!$D$7:$U$9,MATCH(H24,Быстрота2!$C$7:$C$9,1),MATCH('ИР-тек'!$B$63,Быстрота2!$D$1:$U$1,1)),IF($F24="Ловкость1",INDEX(Ловкость1!$D$7:$U$9,MATCH(H24,Ловкость1!$C$7:$C$9,1),MATCH('ИР-тек'!$B$63,Ловкость1!$D$1:$U$1,1)),IF($F24="Ловкость2",INDEX(Ловкость2!$D$7:$U$9,MATCH(H24,Ловкость2!$C$7:$C$9,1),MATCH('ИР-тек'!$B$63,Ловкость2!$D$1:$U$1,1)),IF($F24="Гибкость1",INDEX(Гибкость1!$D$7:$U$9,MATCH(H24,Гибкость1!$C$7:$C$9,1),MATCH('ИР-тек'!$B$63,Гибкость1!$D$1:$U$1,1)),IF($F24="Гибкость2",INDEX(Гибкость2!$D$7:$U$9,MATCH(H24,Гибкость2!$C$7:$C$9,1),MATCH('ИР-тек'!$B$63,Гибкость2!$D$1:$U$1,1)),IF($F24="Волейбол1",INDEX(Волейбол1!$D$7:$U$9,MATCH(H24,Волейбол1!$C$7:$C$9,1),MATCH('ИР-тек'!$B$63,Волейбол1!$D$1:$U$1,1)),IF($F24="Волейбол2",INDEX(Волейбол2!$D$7:$U$9,MATCH(H24,Волейбол2!$C$7:$C$9,1),MATCH('ИР-тек'!$B$63,Волейбол2!$D$1:$U$1,1)),IF($F24="Баскетбол1",INDEX(Баскетбол1!$D$7:$U$9,MATCH(H24,Баскетбол1!$C$7:$C$9,1),MATCH('ИР-тек'!$B$63,Баскетбол1!$D$1:$U$1,1)),IF($F24="Баскетбол2",INDEX(Баскетбол2!$D$7:$U$9,MATCH(H24,Баскетбол2!$C$7:$C$9,1),MATCH('ИР-тек'!$B$63,Баскетбол2!$D$1:$U$1,1)),IF($F24="Футбол1",INDEX(Футбол1!$D$7:$U$9,MATCH(H24,Футбол1!$C$7:$C$9,1),MATCH('ИР-тек'!$B$63,Футбол1!$D$1:$U$1,1)),IF($F24="Футбол2",INDEX(Футбол2!$D$7:$U$9,MATCH(H24,Футбол2!$C$7:$C$9,1),MATCH('ИР-тек'!$B$63,Футбол2!$D$1:$U$1,1)))))))))))))))) -> ≤ 8 | R24: =IF($D$17="Сила1",INDEX('Упр-ст'!$G$6:$AO$8,MATCH(H24,'Упр-ст'!$F$6:$F$8,1),MATCH('Упр-ст'!$B$28,'Упр-ст'!$G$4:$AO$4,1)),IF($D$17="Сила2",INDEX('Упр-ст'!$G$9:$AO$11,MATCH(H24,'Упр-ст'!$F$9:$F$11,1),MATCH('Упр-ст'!$B$28,'Упр-ст'!$G$4:$AO$4,1)),IF($D$17="Быстрота",INDEX('Упр-ст'!$G$15:$AO$17,MATCH(H24,'Упр-ст'!$F$15:$F$17,1),MATCH('Упр-ст'!$B$28,'Упр-ст'!$G$4:$AO$4,1)),IF($D$17="Ловкость",INDEX('Упр-ст'!$G$12:$AO$14,MATCH(H24,'Упр-ст'!$F$12:$F$14,1),MATCH('Упр-ст'!$B$28,'Упр-ст'!$G$4:$AO$4,1)),IF($D$17="Гибкость",INDEX('Упр-ст'!$G$18:$AO$20,MATCH(H24,'Упр-ст'!$F$18:$F$20,1),MATCH('Упр-ст'!$B$28,'Упр-ст'!$G$4:$AO$4,1))))))) -> 1.1
F25: =D23 -> Ловкость1 | H25: 3 упр | J25: =IF($F25="Сила1",INDEX(Сила1!$D$7:$U$9,MATCH(H25,Сила1!$C$7:$C$9,1),MATCH('ИР-тек'!$B$63,Сила1!$D$3:$R$3,1)),IF($F25="Сила2",INDEX(Сила2!$D$7:$U$9,MATCH(H25,Сила2!$C$7:$C$9,1),MATCH('ИР-тек'!$B$63,Сила2!$D$3:$R$3,1)),IF($F25="Быстрота1",INDEX(Быстрота1!$D$7:$U$9,MATCH(H25,Быстрота1!$C$7:$C$9,1),MATCH('ИР-тек'!$B$63,Быстрота1!$D$3:$R$3,1)),IF($F25="Быстрота2",INDEX(Быстрота2!$D$7:$U$9,MATCH(H25,Быстрота2!$C$7:$C$9,1),MATCH('ИР-тек'!$B$63,Быстрота2!$D$3:$R$3,1)),IF($F25="Ловкость1",INDEX(Ловкость1!$D$7:$U$9,MATCH(H25,Ловкость1!$C$7:$C$9,1),MATCH('ИР-тек'!$B$63,Ловкость1!$D$3:$R$3,1)),IF($F25="Ловкость2",INDEX(Ловкость2!$D$7:$U$9,MATCH(H25,Ловкость2!$C$7:$C$9,1),MATCH('ИР-тек'!$B$63,Ловкость2!$D$3:$R$3,1)),IF($F25="Гибкость1",INDEX(Гибкость1!$D$7:$U$9,MATCH(H25,Гибкость1!$C$7:$C$9,1),MATCH('ИР-тек'!$B$63,Гибкость1!$D$3:$R$3,1)),IF($F25="Гибкость2",INDEX(Гибкость2!$D$7:$U$9,MATCH(H25,Гибкость2!$C$7:$C$9,1),MATCH('ИР-тек'!$B$63,Гибкость2!$D$3:$R$3,1)),IF($F25="Волейбол1",INDEX(Волейбол1!$D$7:$U$9,MATCH(H25,Волейбол1!$C$7:$C$9,1),MATCH('ИР-тек'!$B$63,Волейбол1!$D$3:$R$3,1)),IF($F25="Волейбол2",INDEX(Волейбол2!$D$7:$U$9,MATCH(H25,Волейбол2!$C$7:$C$9,1),MATCH('ИР-тек'!$B$63,Волейбол2!$D$3:$R$3,1)),IF($F25="Баскетбол1",INDEX(Баскетбол1!$D$7:$U$9,MATCH(H25,Баскетбол1!$C$7:$C$9,1),MATCH('ИР-тек'!$B$63,Баскетбол1!$D$3:$R$3,1)),IF($F25="Баскетбол2",INDEX(Баскетбол2!$D$7:$U$9,MATCH(H25,Баскетбол2!$C$7:$C$9,1),MATCH('ИР-тек'!$B$63,Баскетбол2!$D$3:$R$3,1)),IF($F25="Футбол1",INDEX(Футбол1!$D$7:$U$9,MATCH(H25,Футбол1!$C$7:$C$9,1),MATCH('ИР-тек'!$B$63,Футбол1!$D$3:$R$3,1)),IF($F25="Футбол2",INDEX(Футбол2!$D$7:$U$9,MATCH(H25,Футбол2!$C$7:$C$9,1),MATCH('ИР-тек'!$B$63,Футбол2!$D$3:$R$3,1)))))))))))))))) -> Выход силой в упор на перекладину (руки поочередно) из виса лежа | P25: =IF($F25="Сила1",INDEX(Сила1!$D$7:$U$9,MATCH(H25,Сила1!$C$7:$C$9,1),MATCH('ИР-тек'!$B$63,Сила1!$D$2:$U$2,1)),IF($F25="Сила2",INDEX(Сила2!$D$7:$U$9,MATCH(H25,Сила2!$C$7:$C$9,1),MATCH('ИР-тек'!$B$63,Сила2!$D$2:$U$2,1)),IF($F25="Быстрота1",INDEX(Быстрота1!$D$7:$U$9,MATCH(H25,Быстрота1!$C$7:$C$9,1),MATCH('ИР-тек'!$B$63,Быстрота1!$D$2:$U$2,1)),IF($F25="Быстрота2",INDEX(Быстрота2!$D$7:$U$9,MATCH(H25,Быстрота2!$C$7:$C$9,1),MATCH('ИР-тек'!$B$63,Быстрота2!$D$2:$U$2,1)),IF($F25="Ловкость1",INDEX(Ловкость1!$D$7:$U$9,MATCH(H25,Ловкость1!$C$7:$C$9,1),MATCH('ИР-тек'!$B$63,Ловкость1!$D$2:$U$2,1)),IF($F25="Ловкость2",INDEX(Ловкость2!$D$7:$U$9,MATCH(H25,Ловкость2!$C$7:$C$9,1),MATCH('ИР-тек'!$B$63,Ловкость2!$D$2:$U$2,1)),IF($F25="Гибкость1",INDEX(Гибкость1!$D$7:$U$9,MATCH(H25,Гибкость1!$C$7:$C$9,1),MATCH('ИР-тек'!$B$63,Гибкость1!$D$2:$U$2,1)),IF($F25="Гибкость2",INDEX(Гибкость2!$D$7:$U$9,MATCH(H25,Гибкость2!$C$7:$C$9,1),MATCH('ИР-тек'!$B$63,Гибкость2!$D$2:$U$2,1)),IF($F25="Волейбол1",INDEX(Волейбол1!$D$7:$U$9,MATCH(H25,Волейбол1!$C$7:$C$9,1),MATCH('ИР-тек'!$B$63,Волейбол1!$D$2:$U$2,1)),IF($F25="Волейбол2",INDEX(Волейбол2!$D$7:$U$9,MATCH(H25,Волейбол2!$C$7:$C$9,1),MATCH('ИР-тек'!$B$63,Волейбол2!$D$2:$U$2,1)),IF($F25="Баскетбол1",INDEX(Баскетбол1!$D$7:$U$9,MATCH(H25,Баскетбол1!$C$7:$C$9,1),MATCH('ИР-тек'!$B$63,Баскетбол1!$D$2:$U$2,1)),IF($F25="Баскетбол2",INDEX(Баскетбол2!$D$7:$U$9,MATCH(H25,Баскетбол2!$C$7:$C$9,1),MATCH('ИР-тек'!$B$63,Баскетбол2!$D$2:$U$2,1)),IF($F25="Футбол1",INDEX(Футбол1!$D$7:$U$9,MATCH(H25,Футбол1!$C$7:$C$9,1),MATCH('ИР-тек'!$B$63,Футбол1!$D$2:$U$2,1)),IF($F25="Футбол2",INDEX(Футбол2!$D$7:$U$9,MATCH(H25,Футбол2!$C$7:$C$9,1),MATCH('ИР-тек'!$B$63,Футбол2!$D$2:$U$2,1)))))))))))))))) -> 1 | Q25: =IF($F25="Сила1",INDEX(Сила1!$D$7:$U$9,MATCH(H25,Сила1!$C$7:$C$9,1),MATCH('ИР-тек'!$B$63,Сила1!$D$1:$U$1,1)),IF($F25="Сила2",INDEX(Сила2!$D$7:$U$9,MATCH(H25,Сила2!$C$7:$C$9,1),MATCH('ИР-тек'!$B$63,Сила2!$D$1:$U$1,1)),IF($F25="Быстрота1",INDEX(Быстрота1!$D$7:$U$9,MATCH(H25,Быстрота1!$C$7:$C$9,1),MATCH('ИР-тек'!$B$63,Быстрота1!$D$1:$U$1,1)),IF($F25="Быстрота2",INDEX(Быстрота2!$D$7:$U$9,MATCH(H25,Быстрота2!$C$7:$C$9,1),MATCH('ИР-тек'!$B$63,Быстрота2!$D$1:$U$1,1)),IF($F25="Ловкость1",INDEX(Ловкость1!$D$7:$U$9,MATCH(H25,Ловкость1!$C$7:$C$9,1),MATCH('ИР-тек'!$B$63,Ловкость1!$D$1:$U$1,1)),IF($F25="Ловкость2",INDEX(Ловкость2!$D$7:$U$9,MATCH(H25,Ловкость2!$C$7:$C$9,1),MATCH('ИР-тек'!$B$63,Ловкость2!$D$1:$U$1,1)),IF($F25="Гибкость1",INDEX(Гибкость1!$D$7:$U$9,MATCH(H25,Гибкость1!$C$7:$C$9,1),MATCH('ИР-тек'!$B$63,Гибкость1!$D$1:$U$1,1)),IF($F25="Гибкость2",INDEX(Гибкость2!$D$7:$U$9,MATCH(H25,Гибкость2!$C$7:$C$9,1),MATCH('ИР-тек'!$B$63,Гибкость2!$D$1:$U$1,1)),IF($F25="Волейбол1",INDEX(Волейбол1!$D$7:$U$9,MATCH(H25,Волейбол1!$C$7:$C$9,1),MATCH('ИР-тек'!$B$63,Волейбол1!$D$1:$U$1,1)),IF($F25="Волейбол2",INDEX(Волейбол2!$D$7:$U$9,MATCH(H25,Волейбол2!$C$7:$C$9,1),MATCH('ИР-тек'!$B$63,Волейбол2!$D$1:$U$1,1)),IF($F25="Баскетбол1",INDEX(Баскетбол1!$D$7:$U$9,MATCH(H25,Баскетбол1!$C$7:$C$9,1),MATCH('ИР-тек'!$B$63,Баскетбол1!$D$1:$U$1,1)),IF($F25="Баскетбол2",INDEX(Баскетбол2!$D$7:$U$9,MATCH(H25,Баскетбол2!$C$7:$C$9,1),MATCH('ИР-тек'!$B$63,Баскетбол2!$D$1:$U$1,1)),IF($F25="Футбол1",INDEX(Футбол1!$D$7:$U$9,MATCH(H25,Футбол1!$C$7:$C$9,1),MATCH('ИР-тек'!$B$63,Футбол1!$D$1:$U$1,1)),IF($F25="Футбол2",INDEX(Футбол2!$D$7:$U$9,MATCH(H25,Футбол2!$C$7:$C$9,1),MATCH('ИР-тек'!$B$63,Футбол2!$D$1:$U$1,1)))))))))))))))) -> ≤ 8 | R25: =IF($D$17="Сила1",INDEX('Упр-ст'!$G$6:$AO$8,MATCH(H25,'Упр-ст'!$F$6:$F$8,1),MATCH('Упр-ст'!$B$28,'Упр-ст'!$G$4:$AO$4,1)),IF($D$17="Сила2",INDEX('Упр-ст'!$G$9:$AO$11,MATCH(H25,'Упр-ст'!$F$9:$F$11,1),MATCH('Упр-ст'!$B$28,'Упр-ст'!$G$4:$AO$4,1)),IF($D$17="Быстрота",INDEX('Упр-ст'!$G$15:$AO$17,MATCH(H25,'Упр-ст'!$F$15:$F$17,1),MATCH('Упр-ст'!$B$28,'Упр-ст'!$G$4:$AO$4,1)),IF($D$17="Ловкость",INDEX('Упр-ст'!$G$12:$AO$14,MATCH(H25,'Упр-ст'!$F$12:$F$14,1),MATCH('Упр-ст'!$B$28,'Упр-ст'!$G$4:$AO$4,1)),IF($D$17="Гибкость",INDEX('Упр-ст'!$G$18:$AO$20,MATCH(H25,'Упр-ст'!$F$18:$F$20,1),MATCH('Упр-ст'!$B$28,'Упр-ст'!$G$4:$AO$4,1))))))) -> 1.1
C26: 4-ая | D26: Сила2 | F26: =D26 -> Сила2 | H26: 1 упр | J26: =IF($F26="Сила1",INDEX(Сила1!$D$7:$U$9,MATCH(H26,Сила1!$C$7:$C$9,1),MATCH('ИР-тек'!$B$63,Сила1!$D$3:$R$3,1)),IF($F26="Сила2",INDEX(Сила2!$D$7:$U$9,MATCH(H26,Сила2!$C$7:$C$9,1),MATCH('ИР-тек'!$B$63,Сила2!$D$3:$R$3,1)),IF($F26="Быстрота1",INDEX(Быстрота1!$D$7:$U$9,MATCH(H26,Быстрота1!$C$7:$C$9,1),MATCH('ИР-тек'!$B$63,Быстрота1!$D$3:$R$3,1)),IF($F26="Быстрота2",INDEX(Быстрота2!$D$7:$U$9,MATCH(H26,Быстрота2!$C$7:$C$9,1),MATCH('ИР-тек'!$B$63,Быстрота2!$D$3:$R$3,1)),IF($F26="Ловкость1",INDEX(Ловкость1!$D$7:$U$9,MATCH(H26,Ловкость1!$C$7:$C$9,1),MATCH('ИР-тек'!$B$63,Ловкость1!$D$3:$R$3,1)),IF($F26="Ловкость2",INDEX(Ловкость2!$D$7:$U$9,MATCH(H26,Ловкость2!$C$7:$C$9,1),MATCH('ИР-тек'!$B$63,Ловкость2!$D$3:$R$3,1)),IF($F26="Гибкость1",INDEX(Гибкость1!$D$7:$U$9,MATCH(H26,Гибкость1!$C$7:$C$9,1),MATCH('ИР-тек'!$B$63,Гибкость1!$D$3:$R$3,1)),IF($F26="Гибкость2",INDEX(Гибкость2!$D$7:$U$9,MATCH(H26,Гибкость2!$C$7:$C$9,1),MATCH('ИР-тек'!$B$63,Гибкость2!$D$3:$R$3,1)),IF($F26="Волейбол1",INDEX(Волейбол1!$D$7:$U$9,MATCH(H26,Волейбол1!$C$7:$C$9,1),MATCH('ИР-тек'!$B$63,Волейбол1!$D$3:$R$3,1)),IF($F26="Волейбол2",INDEX(Волейбол2!$D$7:$U$9,MATCH(H26,Волейбол2!$C$7:$C$9,1),MATCH('ИР-тек'!$B$63,Волейбол2!$D$3:$R$3,1)),IF($F26="Баскетбол1",INDEX(Баскетбол1!$D$7:$U$9,MATCH(H26,Баскетбол1!$C$7:$C$9,1),MATCH('ИР-тек'!$B$63,Баскетбол1!$D$3:$R$3,1)),IF($F26="Баскетбол2",INDEX(Баскетбол2!$D$7:$U$9,MATCH(H26,Баскетбол2!$C$7:$C$9,1),MATCH('ИР-тек'!$B$63,Баскетбол2!$D$3:$R$3,1)),IF($F26="Футбол1",INDEX(Футбол1!$D$7:$U$9,MATCH(H26,Футбол1!$C$7:$C$9,1),MATCH('ИР-тек'!$B$63,Футбол1!$D$3:$R$3,1)),IF($F26="Футбол2",INDEX(Футбол2!$D$7:$U$9,MATCH(H26,Футбол2!$C$7:$C$9,1),MATCH('ИР-тек'!$B$63,Футбол2!$D$3:$R$3,1)))))))))))))))) -> Подъем в сед из положения лежа на спине руки на плечи ноги согнуты | P26: =IF($F26="Сила1",INDEX(Сила1!$D$7:$U$9,MATCH(H26,Сила1!$C$7:$C$9,1),MATCH('ИР-тек'!$B$63,Сила1!$D$2:$U$2,1)),IF($F26="Сила2",INDEX(Сила2!$D$7:$U$9,MATCH(H26,Сила2!$C$7:$C$9,1),MATCH('ИР-тек'!$B$63,Сила2!$D$2:$U$2,1)),IF($F26="Быстрота1",INDEX(Быстрота1!$D$7:$U$9,MATCH(H26,Быстрота1!$C$7:$C$9,1),MATCH('ИР-тек'!$B$63,Быстрота1!$D$2:$U$2,1)),IF($F26="Быстрота2",INDEX(Быстрота2!$D$7:$U$9,MATCH(H26,Быстрота2!$C$7:$C$9,1),MATCH('ИР-тек'!$B$63,Быстрота2!$D$2:$U$2,1)),IF($F26="Ловкость1",INDEX(Ловкость1!$D$7:$U$9,MATCH(H26,Ловкость1!$C$7:$C$9,1),MATCH('ИР-тек'!$B$63,Ловкость1!$D$2:$U$2,1)),IF($F26="Ловкость2",INDEX(Ловкость2!$D$7:$U$9,MATCH(H26,Ловкость2!$C$7:$C$9,1),MATCH('ИР-тек'!$B$63,Ловкость2!$D$2:$U$2,1)),IF($F26="Гибкость1",INDEX(Гибкость1!$D$7:$U$9,MATCH(H26,Гибкость1!$C$7:$C$9,1),MATCH('ИР-тек'!$B$63,Гибкость1!$D$2:$U$2,1)),IF($F26="Гибкость2",INDEX(Гибкость2!$D$7:$U$9,MATCH(H26,Гибкость2!$C$7:$C$9,1),MATCH('ИР-тек'!$B$63,Гибкость2!$D$2:$U$2,1)),IF($F26="Волейбол1",INDEX(Волейбол1!$D$7:$U$9,MATCH(H26,Волейбол1!$C$7:$C$9,1),MATCH('ИР-тек'!$B$63,Волейбол1!$D$2:$U$2,1)),IF($F26="Волейбол2",INDEX(Волейбол2!$D$7:$U$9,MATCH(H26,Волейбол2!$C$7:$C$9,1),MATCH('ИР-тек'!$B$63,Волейбол2!$D$2:$U$2,1)),IF($F26="Баскетбол1",INDEX(Баскетбол1!$D$7:$U$9,MATCH(H26,Баскетбол1!$C$7:$C$9,1),MATCH('ИР-тек'!$B$63,Баскетбол1!$D$2:$U$2,1)),IF($F26="Баскетбол2",INDEX(Баскетбол2!$D$7:$U$9,MATCH(H26,Баскетбол2!$C$7:$C$9,1),MATCH('ИР-тек'!$B$63,Баскетбол2!$D$2:$U$2,1)),IF($F26="Футбол1",INDEX(Футбол1!$D$7:$U$9,MATCH(H26,Футбол1!$C$7:$C$9,1),MATCH('ИР-тек'!$B$63,Футбол1!$D$2:$U$2,1)),IF($F26="Футбол2",INDEX(Футбол2!$D$7:$U$9,MATCH(H26,Футбол2!$C$7:$C$9,1),MATCH('ИР-тек'!$B$63,Футбол2!$D$2:$U$2,1)))))))))))))))) -> 1 | Q26: =IF($F26="Сила1",INDEX(Сила1!$D$7:$U$9,MATCH(H26,Сила1!$C$7:$C$9,1),MATCH('ИР-тек'!$B$63,Сила1!$D$1:$U$1,1)),IF($F26="Сила2",INDEX(Сила2!$D$7:$U$9,MATCH(H26,Сила2!$C$7:$C$9,1),MATCH('ИР-тек'!$B$63,Сила2!$D$1:$U$1,1)),IF($F26="Быстрота1",INDEX(Быстрота1!$D$7:$U$9,MATCH(H26,Быстрота1!$C$7:$C$9,1),MATCH('ИР-тек'!$B$63,Быстрота1!$D$1:$U$1,1)),IF($F26="Быстрота2",INDEX(Быстрота2!$D$7:$U$9,MATCH(H26,Быстрота2!$C$7:$C$9,1),MATCH('ИР-тек'!$B$63,Быстрота2!$D$1:$U$1,1)),IF($F26="Ловкость1",INDEX(Ловкость1!$D$7:$U$9,MATCH(H26,Ловкость1!$C$7:$C$9,1),MATCH('ИР-тек'!$B$63,Ловкость1!$D$1:$U$1,1)),IF($F26="Ловкость2",INDEX(Ловкость2!$D$7:$U$9,MATCH(H26,Ловкость2!$C$7:$C$9,1),MATCH('ИР-тек'!$B$63,Ловкость2!$D$1:$U$1,1)),IF($F26="Гибкость1",INDEX(Гибкость1!$D$7:$U$9,MATCH(H26,Гибкость1!$C$7:$C$9,1),MATCH('ИР-тек'!$B$63,Гибкость1!$D$1:$U$1,1)),IF($F26="Гибкость2",INDEX(Гибкость2!$D$7:$U$9,MATCH(H26,Гибкость2!$C$7:$C$9,1),MATCH('ИР-тек'!$B$63,Гибкость2!$D$1:$U$1,1)),IF($F26="Волейбол1",INDEX(Волейбол1!$D$7:$U$9,MATCH(H26,Волейбол1!$C$7:$C$9,1),MATCH('ИР-тек'!$B$63,Волейбол1!$D$1:$U$1,1)),IF($F26="Волейбол2",INDEX(Волейбол2!$D$7:$U$9,MATCH(H26,Волейбол2!$C$7:$C$9,1),MATCH('ИР-тек'!$B$63,Волейбол2!$D$1:$U$1,1)),IF($F26="Баскетбол1",INDEX(Баскетбол1!$D$7:$U$9,MATCH(H26,Баскетбол1!$C$7:$C$9,1),MATCH('ИР-тек'!$B$63,Баскетбол1!$D$1:$U$1,1)),IF($F26="Баскетбол2",INDEX(Баскетбол2!$D$7:$U$9,MATCH(H26,Баскетбол2!$C$7:$C$9,1),MATCH('ИР-тек'!$B$63,Баскетбол2!$D$1:$U$1,1)),IF($F26="Футбол1",INDEX(Футбол1!$D$7:$U$9,MATCH(H26,Футбол1!$C$7:$C$9,1),MATCH('ИР-тек'!$B$63,Футбол1!$D$1:$U$1,1)),IF($F26="Футбол2",INDEX(Футбол2!$D$7:$U$9,MATCH(H26,Футбол2!$C$7:$C$9,1),MATCH('ИР-тек'!$B$63,Футбол2!$D$1:$U$1,1)))))))))))))))) -> ≤ 8
F27: =D26 -> Сила2 | H27: 2 упр | J27: =IF($F27="Сила1",INDEX(Сила1!$D$7:$U$9,MATCH(H27,Сила1!$C$7:$C$9,1),MATCH('ИР-тек'!$B$63,Сила1!$D$3:$R$3,1)),IF($F27="Сила2",INDEX(Сила2!$D$7:$U$9,MATCH(H27,Сила2!$C$7:$C$9,1),MATCH('ИР-тек'!$B$63,Сила2!$D$3:$R$3,1)),IF($F27="Быстрота1",INDEX(Быстрота1!$D$7:$U$9,MATCH(H27,Быстрота1!$C$7:$C$9,1),MATCH('ИР-тек'!$B$63,Быстрота1!$D$3:$R$3,1)),IF($F27="Быстрота2",INDEX(Быстрота2!$D$7:$U$9,MATCH(H27,Быстрота2!$C$7:$C$9,1),MATCH('ИР-тек'!$B$63,Быстрота2!$D$3:$R$3,1)),IF($F27="Ловкость1",INDEX(Ловкость1!$D$7:$U$9,MATCH(H27,Ловкость1!$C$7:$C$9,1),MATCH('ИР-тек'!$B$63,Ловкость1!$D$3:$R$3,1)),IF($F27="Ловкость2",INDEX(Ловкость2!$D$7:$U$9,MATCH(H27,Ловкость2!$C$7:$C$9,1),MATCH('ИР-тек'!$B$63,Ловкость2!$D$3:$R$3,1)),IF($F27="Гибкость1",INDEX(Гибкость1!$D$7:$U$9,MATCH(H27,Гибкость1!$C$7:$C$9,1),MATCH('ИР-тек'!$B$63,Гибкость1!$D$3:$R$3,1)),IF($F27="Гибкость2",INDEX(Гибкость2!$D$7:$U$9,MATCH(H27,Гибкость2!$C$7:$C$9,1),MATCH('ИР-тек'!$B$63,Гибкость2!$D$3:$R$3,1)),IF($F27="Волейбол1",INDEX(Волейбол1!$D$7:$U$9,MATCH(H27,Волейбол1!$C$7:$C$9,1),MATCH('ИР-тек'!$B$63,Волейбол1!$D$3:$R$3,1)),IF($F27="Волейбол2",INDEX(Волейбол2!$D$7:$U$9,MATCH(H27,Волейбол2!$C$7:$C$9,1),MATCH('ИР-тек'!$B$63,Волейбол2!$D$3:$R$3,1)),IF($F27="Баскетбол1",INDEX(Баскетбол1!$D$7:$U$9,MATCH(H27,Баскетбол1!$C$7:$C$9,1),MATCH('ИР-тек'!$B$63,Баскетбол1!$D$3:$R$3,1)),IF($F27="Баскетбол2",INDEX(Баскетбол2!$D$7:$U$9,MATCH(H27,Баскетбол2!$C$7:$C$9,1),MATCH('ИР-тек'!$B$63,Баскетбол2!$D$3:$R$3,1)),IF($F27="Футбол1",INDEX(Футбол1!$D$7:$U$9,MATCH(H27,Футбол1!$C$7:$C$9,1),MATCH('ИР-тек'!$B$63,Футбол1!$D$3:$R$3,1)),IF($F27="Футбол2",INDEX(Футбол2!$D$7:$U$9,MATCH(H27,Футбол2!$C$7:$C$9,1),MATCH('ИР-тек'!$B$63,Футбол2!$D$3:$R$3,1)))))))))))))))) -> Прогиб назад из положения лежа на животе руки вверх | P27: =IF($F27="Сила1",INDEX(Сила1!$D$7:$U$9,MATCH(H27,Сила1!$C$7:$C$9,1),MATCH('ИР-тек'!$B$63,Сила1!$D$2:$U$2,1)),IF($F27="Сила2",INDEX(Сила2!$D$7:$U$9,MATCH(H27,Сила2!$C$7:$C$9,1),MATCH('ИР-тек'!$B$63,Сила2!$D$2:$U$2,1)),IF($F27="Быстрота1",INDEX(Быстрота1!$D$7:$U$9,MATCH(H27,Быстрота1!$C$7:$C$9,1),MATCH('ИР-тек'!$B$63,Быстрота1!$D$2:$U$2,1)),IF($F27="Быстрота2",INDEX(Быстрота2!$D$7:$U$9,MATCH(H27,Быстрота2!$C$7:$C$9,1),MATCH('ИР-тек'!$B$63,Быстрота2!$D$2:$U$2,1)),IF($F27="Ловкость1",INDEX(Ловкость1!$D$7:$U$9,MATCH(H27,Ловкость1!$C$7:$C$9,1),MATCH('ИР-тек'!$B$63,Ловкость1!$D$2:$U$2,1)),IF($F27="Ловкость2",INDEX(Ловкость2!$D$7:$U$9,MATCH(H27,Ловкость2!$C$7:$C$9,1),MATCH('ИР-тек'!$B$63,Ловкость2!$D$2:$U$2,1)),IF($F27="Гибкость1",INDEX(Гибкость1!$D$7:$U$9,MATCH(H27,Гибкость1!$C$7:$C$9,1),MATCH('ИР-тек'!$B$63,Гибкость1!$D$2:$U$2,1)),IF($F27="Гибкость2",INDEX(Гибкость2!$D$7:$U$9,MATCH(H27,Гибкость2!$C$7:$C$9,1),MATCH('ИР-тек'!$B$63,Гибкость2!$D$2:$U$2,1)),IF($F27="Волейбол1",INDEX(Волейбол1!$D$7:$U$9,MATCH(H27,Волейбол1!$C$7:$C$9,1),MATCH('ИР-тек'!$B$63,Волейбол1!$D$2:$U$2,1)),IF($F27="Волейбол2",INDEX(Волейбол2!$D$7:$U$9,MATCH(H27,Волейбол2!$C$7:$C$9,1),MATCH('ИР-тек'!$B$63,Волейбол2!$D$2:$U$2,1)),IF($F27="Баскетбол1",INDEX(Баскетбол1!$D$7:$U$9,MATCH(H27,Баскетбол1!$C$7:$C$9,1),MATCH('ИР-тек'!$B$63,Баскетбол1!$D$2:$U$2,1)),IF($F27="Баскетбол2",INDEX(Баскетбол2!$D$7:$U$9,MATCH(H27,Баскетбол2!$C$7:$C$9,1),MATCH('ИР-тек'!$B$63,Баскетбол2!$D$2:$U$2,1)),IF($F27="Футбол1",INDEX(Футбол1!$D$7:$U$9,MATCH(H27,Футбол1!$C$7:$C$9,1),MATCH('ИР-тек'!$B$63,Футбол1!$D$2:$U$2,1)),IF($F27="Футбол2",INDEX(Футбол2!$D$7:$U$9,MATCH(H27,Футбол2!$C$7:$C$9,1),MATCH('ИР-тек'!$B$63,Футбол2!$D$2:$U$2,1)))))))))))))))) -> 1 | Q27: =IF($F27="Сила1",INDEX(Сила1!$D$7:$U$9,MATCH(H27,Сила1!$C$7:$C$9,1),MATCH('ИР-тек'!$B$63,Сила1!$D$1:$U$1,1)),IF($F27="Сила2",INDEX(Сила2!$D$7:$U$9,MATCH(H27,Сила2!$C$7:$C$9,1),MATCH('ИР-тек'!$B$63,Сила2!$D$1:$U$1,1)),IF($F27="Быстрота1",INDEX(Быстрота1!$D$7:$U$9,MATCH(H27,Быстрота1!$C$7:$C$9,1),MATCH('ИР-тек'!$B$63,Быстрота1!$D$1:$U$1,1)),IF($F27="Быстрота2",INDEX(Быстрота2!$D$7:$U$9,MATCH(H27,Быстрота2!$C$7:$C$9,1),MATCH('ИР-тек'!$B$63,Быстрота2!$D$1:$U$1,1)),IF($F27="Ловкость1",INDEX(Ловкость1!$D$7:$U$9,MATCH(H27,Ловкость1!$C$7:$C$9,1),MATCH('ИР-тек'!$B$63,Ловкость1!$D$1:$U$1,1)),IF($F27="Ловкость2",INDEX(Ловкость2!$D$7:$U$9,MATCH(H27,Ловкость2!$C$7:$C$9,1),MATCH('ИР-тек'!$B$63,Ловкость2!$D$1:$U$1,1)),IF($F27="Гибкость1",INDEX(Гибкость1!$D$7:$U$9,MATCH(H27,Гибкость1!$C$7:$C$9,1),MATCH('ИР-тек'!$B$63,Гибкость1!$D$1:$U$1,1)),IF($F27="Гибкость2",INDEX(Гибкость2!$D$7:$U$9,MATCH(H27,Гибкость2!$C$7:$C$9,1),MATCH('ИР-тек'!$B$63,Гибкость2!$D$1:$U$1,1)),IF($F27="Волейбол1",INDEX(Волейбол1!$D$7:$U$9,MATCH(H27,Волейбол1!$C$7:$C$9,1),MATCH('ИР-тек'!$B$63,Волейбол1!$D$1:$U$1,1)),IF($F27="Волейбол2",INDEX(Волейбол2!$D$7:$U$9,MATCH(H27,Волейбол2!$C$7:$C$9,1),MATCH('ИР-тек'!$B$63,Волейбол2!$D$1:$U$1,1)),IF($F27="Баскетбол1",INDEX(Баскетбол1!$D$7:$U$9,MATCH(H27,Баскетбол1!$C$7:$C$9,1),MATCH('ИР-тек'!$B$63,Баскетбол1!$D$1:$U$1,1)),IF($F27="Баскетбол2",INDEX(Баскетбол2!$D$7:$U$9,MATCH(H27,Баскетбол2!$C$7:$C$9,1),MATCH('ИР-тек'!$B$63,Баскетбол2!$D$1:$U$1,1)),IF($F27="Футбол1",INDEX(Футбол1!$D$7:$U$9,MATCH(H27,Футбол1!$C$7:$C$9,1),MATCH('ИР-тек'!$B$63,Футбол1!$D$1:$U$1,1)),IF($F27="Футбол2",INDEX(Футбол2!$D$7:$U$9,MATCH(H27,Футбол2!$C$7:$C$9,1),MATCH('ИР-тек'!$B$63,Футбол2!$D$1:$U$1,1)))))))))))))))) -> ≤ 8
F28: =D26 -> Сила2 | H28: 3 упр | J28: =IF($F28="Сила1",INDEX(Сила1!$D$7:$U$9,MATCH(H28,Сила1!$C$7:$C$9,1),MATCH('ИР-тек'!$B$63,Сила1!$D$3:$R$3,1)),IF($F28="Сила2",INDEX(Сила2!$D$7:$U$9,MATCH(H28,Сила2!$C$7:$C$9,1),MATCH('ИР-тек'!$B$63,Сила2!$D$3:$R$3,1)),IF($F28="Быстрота1",INDEX(Быстрота1!$D$7:$U$9,MATCH(H28,Быстрота1!$C$7:$C$9,1),MATCH('ИР-тек'!$B$63,Быстрота1!$D$3:$R$3,1)),IF($F28="Быстрота2",INDEX(Быстрота2!$D$7:$U$9,MATCH(H28,Быстрота2!$C$7:$C$9,1),MATCH('ИР-тек'!$B$63,Быстрота2!$D$3:$R$3,1)),IF($F28="Ловкость1",INDEX(Ловкость1!$D$7:$U$9,MATCH(H28,Ловкость1!$C$7:$C$9,1),MATCH('ИР-тек'!$B$63,Ловкость1!$D$3:$R$3,1)),IF($F28="Ловкость2",INDEX(Ловкость2!$D$7:$U$9,MATCH(H28,Ловкость2!$C$7:$C$9,1),MATCH('ИР-тек'!$B$63,Ловкость2!$D$3:$R$3,1)),IF($F28="Гибкость1",INDEX(Гибкость1!$D$7:$U$9,MATCH(H28,Гибкость1!$C$7:$C$9,1),MATCH('ИР-тек'!$B$63,Гибкость1!$D$3:$R$3,1)),IF($F28="Гибкость2",INDEX(Гибкость2!$D$7:$U$9,MATCH(H28,Гибкость2!$C$7:$C$9,1),MATCH('ИР-тек'!$B$63,Гибкость2!$D$3:$R$3,1)),IF($F28="Волейбол1",INDEX(Волейбол1!$D$7:$U$9,MATCH(H28,Волейбол1!$C$7:$C$9,1),MATCH('ИР-тек'!$B$63,Волейбол1!$D$3:$R$3,1)),IF($F28="Волейбол2",INDEX(Волейбол2!$D$7:$U$9,MATCH(H28,Волейбол2!$C$7:$C$9,1),MATCH('ИР-тек'!$B$63,Волейбол2!$D$3:$R$3,1)),IF($F28="Баскетбол1",INDEX(Баскетбол1!$D$7:$U$9,MATCH(H28,Баскетбол1!$C$7:$C$9,1),MATCH('ИР-тек'!$B$63,Баскетбол1!$D$3:$R$3,1)),IF($F28="Баскетбол2",INDEX(Баскетбол2!$D$7:$U$9,MATCH(H28,Баскетбол2!$C$7:$C$9,1),MATCH('ИР-тек'!$B$63,Баскетбол2!$D$3:$R$3,1)),IF($F28="Футбол1",INDEX(Футбол1!$D$7:$U$9,MATCH(H28,Футбол1!$C$7:$C$9,1),MATCH('ИР-тек'!$B$63,Футбол1!$D$3:$R$3,1)),IF($F28="Футбол2",INDEX(Футбол2!$D$7:$U$9,MATCH(H28,Футбол2!$C$7:$C$9,1),MATCH('ИР-тек'!$B$63,Футбол2!$D$3:$R$3,1)))))))))))))))) -> Переход в упор лежа сзади с согнутыми ногами из упора сидя (тибетский мост) с утежелителями на поясе | P28: =IF($F28="Сила1",INDEX(Сила1!$D$7:$U$9,MATCH(H28,Сила1!$C$7:$C$9,1),MATCH('ИР-тек'!$B$63,Сила1!$D$2:$U$2,1)),IF($F28="Сила2",INDEX(Сила2!$D$7:$U$9,MATCH(H28,Сила2!$C$7:$C$9,1),MATCH('ИР-тек'!$B$63,Сила2!$D$2:$U$2,1)),IF($F28="Быстрота1",INDEX(Быстрота1!$D$7:$U$9,MATCH(H28,Быстрота1!$C$7:$C$9,1),MATCH('ИР-тек'!$B$63,Быстрота1!$D$2:$U$2,1)),IF($F28="Быстрота2",INDEX(Быстрота2!$D$7:$U$9,MATCH(H28,Быстрота2!$C$7:$C$9,1),MATCH('ИР-тек'!$B$63,Быстрота2!$D$2:$U$2,1)),IF($F28="Ловкость1",INDEX(Ловкость1!$D$7:$U$9,MATCH(H28,Ловкость1!$C$7:$C$9,1),MATCH('ИР-тек'!$B$63,Ловкость1!$D$2:$U$2,1)),IF($F28="Ловкость2",INDEX(Ловкость2!$D$7:$U$9,MATCH(H28,Ловкость2!$C$7:$C$9,1),MATCH('ИР-тек'!$B$63,Ловкость2!$D$2:$U$2,1)),IF($F28="Гибкость1",INDEX(Гибкость1!$D$7:$U$9,MATCH(H28,Гибкость1!$C$7:$C$9,1),MATCH('ИР-тек'!$B$63,Гибкость1!$D$2:$U$2,1)),IF($F28="Гибкость2",INDEX(Гибкость2!$D$7:$U$9,MATCH(H28,Гибкость2!$C$7:$C$9,1),MATCH('ИР-тек'!$B$63,Гибкость2!$D$2:$U$2,1)),IF($F28="Волейбол1",INDEX(Волейбол1!$D$7:$U$9,MATCH(H28,Волейбол1!$C$7:$C$9,1),MATCH('ИР-тек'!$B$63,Волейбол1!$D$2:$U$2,1)),IF($F28="Волейбол2",INDEX(Волейбол2!$D$7:$U$9,MATCH(H28,Волейбол2!$C$7:$C$9,1),MATCH('ИР-тек'!$B$63,Волейбол2!$D$2:$U$2,1)),IF($F28="Баскетбол1",INDEX(Баскетбол1!$D$7:$U$9,MATCH(H28,Баскетбол1!$C$7:$C$9,1),MATCH('ИР-тек'!$B$63,Баскетбол1!$D$2:$U$2,1)),IF($F28="Баскетбол2",INDEX(Баскетбол2!$D$7:$U$9,MATCH(H28,Баскетбол2!$C$7:$C$9,1),MATCH('ИР-тек'!$B$63,Баскетбол2!$D$2:$U$2,1)),IF($F28="Футбол1",INDEX(Футбол1!$D$7:$U$9,MATCH(H28,Футбол1!$C$7:$C$9,1),MATCH('ИР-тек'!$B$63,Футбол1!$D$2:$U$2,1)),IF($F28="Футбол2",INDEX(Футбол2!$D$7:$U$9,MATCH(H28,Футбол2!$C$7:$C$9,1),MATCH('ИР-тек'!$B$63,Футбол2!$D$2:$U$2,1)))))))))))))))) -> 1 | Q28: =IF($F28="Сила1",INDEX(Сила1!$D$7:$U$9,MATCH(H28,Сила1!$C$7:$C$9,1),MATCH('ИР-тек'!$B$63,Сила1!$D$1:$U$1,1)),IF($F28="Сила2",INDEX(Сила2!$D$7:$U$9,MATCH(H28,Сила2!$C$7:$C$9,1),MATCH('ИР-тек'!$B$63,Сила2!$D$1:$U$1,1)),IF($F28="Быстрота1",INDEX(Быстрота1!$D$7:$U$9,MATCH(H28,Быстрота1!$C$7:$C$9,1),MATCH('ИР-тек'!$B$63,Быстрота1!$D$1:$U$1,1)),IF($F28="Быстрота2",INDEX(Быстрота2!$D$7:$U$9,MATCH(H28,Быстрота2!$C$7:$C$9,1),MATCH('ИР-тек'!$B$63,Быстрота2!$D$1:$U$1,1)),IF($F28="Ловкость1",INDEX(Ловкость1!$D$7:$U$9,MATCH(H28,Ловкость1!$C$7:$C$9,1),MATCH('ИР-тек'!$B$63,Ловкость1!$D$1:$U$1,1)),IF($F28="Ловкость2",INDEX(Ловкость2!$D$7:$U$9,MATCH(H28,Ловкость2!$C$7:$C$9,1),MATCH('ИР-тек'!$B$63,Ловкость2!$D$1:$U$1,1)),IF($F28="Гибкость1",INDEX(Гибкость1!$D$7:$U$9,MATCH(H28,Гибкость1!$C$7:$C$9,1),MATCH('ИР-тек'!$B$63,Гибкость1!$D$1:$U$1,1)),IF($F28="Гибкость2",INDEX(Гибкость2!$D$7:$U$9,MATCH(H28,Гибкость2!$C$7:$C$9,1),MATCH('ИР-тек'!$B$63,Гибкость2!$D$1:$U$1,1)),IF($F28="Волейбол1",INDEX(Волейбол1!$D$7:$U$9,MATCH(H28,Волейбол1!$C$7:$C$9,1),MATCH('ИР-тек'!$B$63,Волейбол1!$D$1:$U$1,1)),IF($F28="Волейбол2",INDEX(Волейбол2!$D$7:$U$9,MATCH(H28,Волейбол2!$C$7:$C$9,1),MATCH('ИР-тек'!$B$63,Волейбол2!$D$1:$U$1,1)),IF($F28="Баскетбол1",INDEX(Баскетбол1!$D$7:$U$9,MATCH(H28,Баскетбол1!$C$7:$C$9,1),MATCH('ИР-тек'!$B$63,Баскетбол1!$D$1:$U$1,1)),IF($F28="Баскетбол2",INDEX(Баскетбол2!$D$7:$U$9,MATCH(H28,Баскетбол2!$C$7:$C$9,1),MATCH('ИР-тек'!$B$63,Баскетбол2!$D$1:$U$1,1)),IF($F28="Футбол1",INDEX(Футбол1!$D$7:$U$9,MATCH(H28,Футбол1!$C$7:$C$9,1),MATCH('ИР-тек'!$B$63,Футбол1!$D$1:$U$1,1)),IF($F28="Футбол2",INDEX(Футбол2!$D$7:$U$9,MATCH(H28,Футбол2!$C$7:$C$9,1),MATCH('ИР-тек'!$B$63,Футбол2!$D$1:$U$1,1)))))))))))))))) -> ≤ 8
C29: 5-ая | D29: Быстрота1 | F29: =D29 -> Быстрота1 | G29: =IF(КИДР!D29="Сила1",'Table-IDK'!$B$271,IF(КИДР!D29="Сила2",'Table-IDK'!$B$271,IF(КИДР!D29="Быстрота",'Table-IDK'!$B$272,IF(КИДР!D29="Ловкость",'Table-IDK'!$B$273,IF(КИДР!D29="Гибкость",'Table-IDK'!$B$274,""))))) ->  | H29: 1 упр | J29: =IF($F29="Сила1",INDEX(Сила1!$D$7:$U$9,MATCH(H29,Сила1!$C$7:$C$9,1),MATCH('ИР-тек'!$B$63,Сила1!$D$3:$R$3,1)),IF($F29="Сила2",INDEX(Сила2!$D$7:$U$9,MATCH(H29,Сила2!$C$7:$C$9,1),MATCH('ИР-тек'!$B$63,Сила2!$D$3:$R$3,1)),IF($F29="Быстрота1",INDEX(Быстрота1!$D$7:$U$9,MATCH(H29,Быстрота1!$C$7:$C$9,1),MATCH('ИР-тек'!$B$63,Быстрота1!$D$3:$R$3,1)),IF($F29="Быстрота2",INDEX(Быстрота2!$D$7:$U$9,MATCH(H29,Быстрота2!$C$7:$C$9,1),MATCH('ИР-тек'!$B$63,Быстрота2!$D$3:$R$3,1)),IF($F29="Ловкость1",INDEX(Ловкость1!$D$7:$U$9,MATCH(H29,Ловкость1!$C$7:$C$9,1),MATCH('ИР-тек'!$B$63,Ловкость1!$D$3:$R$3,1)),IF($F29="Ловкость2",INDEX(Ловкость2!$D$7:$U$9,MATCH(H29,Ловкость2!$C$7:$C$9,1),MATCH('ИР-тек'!$B$63,Ловкость2!$D$3:$R$3,1)),IF($F29="Гибкость1",INDEX(Гибкость1!$D$7:$U$9,MATCH(H29,Гибкость1!$C$7:$C$9,1),MATCH('ИР-тек'!$B$63,Гибкость1!$D$3:$R$3,1)),IF($F29="Гибкость2",INDEX(Гибкость2!$D$7:$U$9,MATCH(H29,Гибкость2!$C$7:$C$9,1),MATCH('ИР-тек'!$B$63,Гибкость2!$D$3:$R$3,1)),IF($F29="Волейбол1",INDEX(Волейбол1!$D$7:$U$9,MATCH(H29,Волейбол1!$C$7:$C$9,1),MATCH('ИР-тек'!$B$63,Волейбол1!$D$3:$R$3,1)),IF($F29="Волейбол2",INDEX(Волейбол2!$D$7:$U$9,MATCH(H29,Волейбол2!$C$7:$C$9,1),MATCH('ИР-тек'!$B$63,Волейбол2!$D$3:$R$3,1)),IF($F29="Баскетбол1",INDEX(Баскетбол1!$D$7:$U$9,MATCH(H29,Баскетбол1!$C$7:$C$9,1),MATCH('ИР-тек'!$B$63,Баскетбол1!$D$3:$R$3,1)),IF($F29="Баскетбол2",INDEX(Баскетбол2!$D$7:$U$9,MATCH(H29,Баскетбол2!$C$7:$C$9,1),MATCH('ИР-тек'!$B$63,Баскетбол2!$D$3:$R$3,1)),IF($F29="Футбол1",INDEX(Футбол1!$D$7:$U$9,MATCH(H29,Футбол1!$C$7:$C$9,1),MATCH('ИР-тек'!$B$63,Футбол1!$D$3:$R$3,1)),IF($F29="Футбол2",INDEX(Футбол2!$D$7:$U$9,MATCH(H29,Футбол2!$C$7:$C$9,1),MATCH('ИР-тек'!$B$63,Футбол2!$D$3:$R$3,1)))))))))))))))) -> Подъем в сед из положения лежа на спине руки на плечи ноги согнуты | P29: =IF($F29="Сила1",INDEX(Сила1!$D$7:$U$9,MATCH(H29,Сила1!$C$7:$C$9,1),MATCH('ИР-тек'!$B$63,Сила1!$D$2:$U$2,1)),IF($F29="Сила2",INDEX(Сила2!$D$7:$U$9,MATCH(H29,Сила2!$C$7:$C$9,1),MATCH('ИР-тек'!$B$63,Сила2!$D$2:$U$2,1)),IF($F29="Быстрота1",INDEX(Быстрота1!$D$7:$U$9,MATCH(H29,Быстрота1!$C$7:$C$9,1),MATCH('ИР-тек'!$B$63,Быстрота1!$D$2:$U$2,1)),IF($F29="Быстрота2",INDEX(Быстрота2!$D$7:$U$9,MATCH(H29,Быстрота2!$C$7:$C$9,1),MATCH('ИР-тек'!$B$63,Быстрота2!$D$2:$U$2,1)),IF($F29="Ловкость1",INDEX(Ловкость1!$D$7:$U$9,MATCH(H29,Ловкость1!$C$7:$C$9,1),MATCH('ИР-тек'!$B$63,Ловкость1!$D$2:$U$2,1)),IF($F29="Ловкость2",INDEX(Ловкость2!$D$7:$U$9,MATCH(H29,Ловкость2!$C$7:$C$9,1),MATCH('ИР-тек'!$B$63,Ловкость2!$D$2:$U$2,1)),IF($F29="Гибкость1",INDEX(Гибкость1!$D$7:$U$9,MATCH(H29,Гибкость1!$C$7:$C$9,1),MATCH('ИР-тек'!$B$63,Гибкость1!$D$2:$U$2,1)),IF($F29="Гибкость2",INDEX(Гибкость2!$D$7:$U$9,MATCH(H29,Гибкость2!$C$7:$C$9,1),MATCH('ИР-тек'!$B$63,Гибкость2!$D$2:$U$2,1)),IF($F29="Волейбол1",INDEX(Волейбол1!$D$7:$U$9,MATCH(H29,Волейбол1!$C$7:$C$9,1),MATCH('ИР-тек'!$B$63,Волейбол1!$D$2:$U$2,1)),IF($F29="Волейбол2",INDEX(Волейбол2!$D$7:$U$9,MATCH(H29,Волейбол2!$C$7:$C$9,1),MATCH('ИР-тек'!$B$63,Волейбол2!$D$2:$U$2,1)),IF($F29="Баскетбол1",INDEX(Баскетбол1!$D$7:$U$9,MATCH(H29,Баскетбол1!$C$7:$C$9,1),MATCH('ИР-тек'!$B$63,Баскетбол1!$D$2:$U$2,1)),IF($F29="Баскетбол2",INDEX(Баскетбол2!$D$7:$U$9,MATCH(H29,Баскетбол2!$C$7:$C$9,1),MATCH('ИР-тек'!$B$63,Баскетбол2!$D$2:$U$2,1)),IF($F29="Футбол1",INDEX(Футбол1!$D$7:$U$9,MATCH(H29,Футбол1!$C$7:$C$9,1),MATCH('ИР-тек'!$B$63,Футбол1!$D$2:$U$2,1)),IF($F29="Футбол2",INDEX(Футбол2!$D$7:$U$9,MATCH(H29,Футбол2!$C$7:$C$9,1),MATCH('ИР-тек'!$B$63,Футбол2!$D$2:$U$2,1)))))))))))))))) -> ≤ 2 | Q29: =IF($F29="Сила1",INDEX(Сила1!$D$7:$U$9,MATCH(H29,Сила1!$C$7:$C$9,1),MATCH('ИР-тек'!$B$63,Сила1!$D$1:$U$1,1)),IF($F29="Сила2",INDEX(Сила2!$D$7:$U$9,MATCH(H29,Сила2!$C$7:$C$9,1),MATCH('ИР-тек'!$B$63,Сила2!$D$1:$U$1,1)),IF($F29="Быстрота1",INDEX(Быстрота1!$D$7:$U$9,MATCH(H29,Быстрота1!$C$7:$C$9,1),MATCH('ИР-тек'!$B$63,Быстрота1!$D$1:$U$1,1)),IF($F29="Быстрота2",INDEX(Быстрота2!$D$7:$U$9,MATCH(H29,Быстрота2!$C$7:$C$9,1),MATCH('ИР-тек'!$B$63,Быстрота2!$D$1:$U$1,1)),IF($F29="Ловкость1",INDEX(Ловкость1!$D$7:$U$9,MATCH(H29,Ловкость1!$C$7:$C$9,1),MATCH('ИР-тек'!$B$63,Ловкость1!$D$1:$U$1,1)),IF($F29="Ловкость2",INDEX(Ловкость2!$D$7:$U$9,MATCH(H29,Ловкость2!$C$7:$C$9,1),MATCH('ИР-тек'!$B$63,Ловкость2!$D$1:$U$1,1)),IF($F29="Гибкость1",INDEX(Гибкость1!$D$7:$U$9,MATCH(H29,Гибкость1!$C$7:$C$9,1),MATCH('ИР-тек'!$B$63,Гибкость1!$D$1:$U$1,1)),IF($F29="Гибкость2",INDEX(Гибкость2!$D$7:$U$9,MATCH(H29,Гибкость2!$C$7:$C$9,1),MATCH('ИР-тек'!$B$63,Гибкость2!$D$1:$U$1,1)),IF($F29="Волейбол1",INDEX(Волейбол1!$D$7:$U$9,MATCH(H29,Волейбол1!$C$7:$C$9,1),MATCH('ИР-тек'!$B$63,Волейбол1!$D$1:$U$1,1)),IF($F29="Волейбол2",INDEX(Волейбол2!$D$7:$U$9,MATCH(H29,Волейбол2!$C$7:$C$9,1),MATCH('ИР-тек'!$B$63,Волейбол2!$D$1:$U$1,1)),IF($F29="Баскетбол1",INDEX(Баскетбол1!$D$7:$U$9,MATCH(H29,Баскетбол1!$C$7:$C$9,1),MATCH('ИР-тек'!$B$63,Баскетбол1!$D$1:$U$1,1)),IF($F29="Баскетбол2",INDEX(Баскетбол2!$D$7:$U$9,MATCH(H29,Баскетбол2!$C$7:$C$9,1),MATCH('ИР-тек'!$B$63,Баскетбол2!$D$1:$U$1,1)),IF($F29="Футбол1",INDEX(Футбол1!$D$7:$U$9,MATCH(H29,Футбол1!$C$7:$C$9,1),MATCH('ИР-тек'!$B$63,Футбол1!$D$1:$U$1,1)),IF($F29="Футбол2",INDEX(Футбол2!$D$7:$U$9,MATCH(H29,Футбол2!$C$7:$C$9,1),MATCH('ИР-тек'!$B$63,Футбол2!$D$1:$U$1,1)))))))))))))))) -> ≤ 8 | R29: =IF($D$17="Сила1",INDEX('Упр-ст'!$G$6:$AO$8,MATCH(H29,'Упр-ст'!$F$6:$F$8,1),MATCH('Упр-ст'!$B$28,'Упр-ст'!$G$4:$AO$4,1)),IF($D$17="Сила2",INDEX('Упр-ст'!$G$9:$AO$11,MATCH(H29,'Упр-ст'!$F$9:$F$11,1),MATCH('Упр-ст'!$B$28,'Упр-ст'!$G$4:$AO$4,1)),IF($D$17="Быстрота",INDEX('Упр-ст'!$G$15:$AO$17,MATCH(H29,'Упр-ст'!$F$15:$F$17,1),MATCH('Упр-ст'!$B$28,'Упр-ст'!$G$4:$AO$4,1)),IF($D$17="Ловкость",INDEX('Упр-ст'!$G$12:$AO$14,MATCH(H29,'Упр-ст'!$F$12:$F$14,1),MATCH('Упр-ст'!$B$28,'Упр-ст'!$G$4:$AO$4,1)),IF($D$17="Гибкость",INDEX('Упр-ст'!$G$18:$AO$20,MATCH(H29,'Упр-ст'!$F$18:$F$20,1),MATCH('Упр-ст'!$B$28,'Упр-ст'!$G$4:$AO$4,1))))))) -> 1.1
F30: =D29 -> Быстрота1 | H30: 2 упр | J30: =IF($F30="Сила1",INDEX(Сила1!$D$7:$U$9,MATCH(H30,Сила1!$C$7:$C$9,1),MATCH('ИР-тек'!$B$63,Сила1!$D$3:$R$3,1)),IF($F30="Сила2",INDEX(Сила2!$D$7:$U$9,MATCH(H30,Сила2!$C$7:$C$9,1),MATCH('ИР-тек'!$B$63,Сила2!$D$3:$R$3,1)),IF($F30="Быстрота1",INDEX(Быстрота1!$D$7:$U$9,MATCH(H30,Быстрота1!$C$7:$C$9,1),MATCH('ИР-тек'!$B$63,Быстрота1!$D$3:$R$3,1)),IF($F30="Быстрота2",INDEX(Быстрота2!$D$7:$U$9,MATCH(H30,Быстрота2!$C$7:$C$9,1),MATCH('ИР-тек'!$B$63,Быстрота2!$D$3:$R$3,1)),IF($F30="Ловкость1",INDEX(Ловкость1!$D$7:$U$9,MATCH(H30,Ловкость1!$C$7:$C$9,1),MATCH('ИР-тек'!$B$63,Ловкость1!$D$3:$R$3,1)),IF($F30="Ловкость2",INDEX(Ловкость2!$D$7:$U$9,MATCH(H30,Ловкость2!$C$7:$C$9,1),MATCH('ИР-тек'!$B$63,Ловкость2!$D$3:$R$3,1)),IF($F30="Гибкость1",INDEX(Гибкость1!$D$7:$U$9,MATCH(H30,Гибкость1!$C$7:$C$9,1),MATCH('ИР-тек'!$B$63,Гибкость1!$D$3:$R$3,1)),IF($F30="Гибкость2",INDEX(Гибкость2!$D$7:$U$9,MATCH(H30,Гибкость2!$C$7:$C$9,1),MATCH('ИР-тек'!$B$63,Гибкость2!$D$3:$R$3,1)),IF($F30="Волейбол1",INDEX(Волейбол1!$D$7:$U$9,MATCH(H30,Волейбол1!$C$7:$C$9,1),MATCH('ИР-тек'!$B$63,Волейбол1!$D$3:$R$3,1)),IF($F30="Волейбол2",INDEX(Волейбол2!$D$7:$U$9,MATCH(H30,Волейбол2!$C$7:$C$9,1),MATCH('ИР-тек'!$B$63,Волейбол2!$D$3:$R$3,1)),IF($F30="Баскетбол1",INDEX(Баскетбол1!$D$7:$U$9,MATCH(H30,Баскетбол1!$C$7:$C$9,1),MATCH('ИР-тек'!$B$63,Баскетбол1!$D$3:$R$3,1)),IF($F30="Баскетбол2",INDEX(Баскетбол2!$D$7:$U$9,MATCH(H30,Баскетбол2!$C$7:$C$9,1),MATCH('ИР-тек'!$B$63,Баскетбол2!$D$3:$R$3,1)),IF($F30="Футбол1",INDEX(Футбол1!$D$7:$U$9,MATCH(H30,Футбол1!$C$7:$C$9,1),MATCH('ИР-тек'!$B$63,Футбол1!$D$3:$R$3,1)),IF($F30="Футбол2",INDEX(Футбол2!$D$7:$U$9,MATCH(H30,Футбол2!$C$7:$C$9,1),MATCH('ИР-тек'!$B$63,Футбол2!$D$3:$R$3,1)))))))))))))))) -> Прогиб назад из положения лежа на животе руки вверх | P30: =IF($F30="Сила1",INDEX(Сила1!$D$7:$U$9,MATCH(H30,Сила1!$C$7:$C$9,1),MATCH('ИР-тек'!$B$63,Сила1!$D$2:$U$2,1)),IF($F30="Сила2",INDEX(Сила2!$D$7:$U$9,MATCH(H30,Сила2!$C$7:$C$9,1),MATCH('ИР-тек'!$B$63,Сила2!$D$2:$U$2,1)),IF($F30="Быстрота1",INDEX(Быстрота1!$D$7:$U$9,MATCH(H30,Быстрота1!$C$7:$C$9,1),MATCH('ИР-тек'!$B$63,Быстрота1!$D$2:$U$2,1)),IF($F30="Быстрота2",INDEX(Быстрота2!$D$7:$U$9,MATCH(H30,Быстрота2!$C$7:$C$9,1),MATCH('ИР-тек'!$B$63,Быстрота2!$D$2:$U$2,1)),IF($F30="Ловкость1",INDEX(Ловкость1!$D$7:$U$9,MATCH(H30,Ловкость1!$C$7:$C$9,1),MATCH('ИР-тек'!$B$63,Ловкость1!$D$2:$U$2,1)),IF($F30="Ловкость2",INDEX(Ловкость2!$D$7:$U$9,MATCH(H30,Ловкость2!$C$7:$C$9,1),MATCH('ИР-тек'!$B$63,Ловкость2!$D$2:$U$2,1)),IF($F30="Гибкость1",INDEX(Гибкость1!$D$7:$U$9,MATCH(H30,Гибкость1!$C$7:$C$9,1),MATCH('ИР-тек'!$B$63,Гибкость1!$D$2:$U$2,1)),IF($F30="Гибкость2",INDEX(Гибкость2!$D$7:$U$9,MATCH(H30,Гибкость2!$C$7:$C$9,1),MATCH('ИР-тек'!$B$63,Гибкость2!$D$2:$U$2,1)),IF($F30="Волейбол1",INDEX(Волейбол1!$D$7:$U$9,MATCH(H30,Волейбол1!$C$7:$C$9,1),MATCH('ИР-тек'!$B$63,Волейбол1!$D$2:$U$2,1)),IF($F30="Волейбол2",INDEX(Волейбол2!$D$7:$U$9,MATCH(H30,Волейбол2!$C$7:$C$9,1),MATCH('ИР-тек'!$B$63,Волейбол2!$D$2:$U$2,1)),IF($F30="Баскетбол1",INDEX(Баскетбол1!$D$7:$U$9,MATCH(H30,Баскетбол1!$C$7:$C$9,1),MATCH('ИР-тек'!$B$63,Баскетбол1!$D$2:$U$2,1)),IF($F30="Баскетбол2",INDEX(Баскетбол2!$D$7:$U$9,MATCH(H30,Баскетбол2!$C$7:$C$9,1),MATCH('ИР-тек'!$B$63,Баскетбол2!$D$2:$U$2,1)),IF($F30="Футбол1",INDEX(Футбол1!$D$7:$U$9,MATCH(H30,Футбол1!$C$7:$C$9,1),MATCH('ИР-тек'!$B$63,Футбол1!$D$2:$U$2,1)),IF($F30="Футбол2",INDEX(Футбол2!$D$7:$U$9,MATCH(H30,Футбол2!$C$7:$C$9,1),MATCH('ИР-тек'!$B$63,Футбол2!$D$2:$U$2,1)))))))))))))))) -> ≤ 2 | Q30: =IF($F30="Сила1",INDEX(Сила1!$D$7:$U$9,MATCH(H30,Сила1!$C$7:$C$9,1),MATCH('ИР-тек'!$B$63,Сила1!$D$1:$U$1,1)),IF($F30="Сила2",INDEX(Сила2!$D$7:$U$9,MATCH(H30,Сила2!$C$7:$C$9,1),MATCH('ИР-тек'!$B$63,Сила2!$D$1:$U$1,1)),IF($F30="Быстрота1",INDEX(Быстрота1!$D$7:$U$9,MATCH(H30,Быстрота1!$C$7:$C$9,1),MATCH('ИР-тек'!$B$63,Быстрота1!$D$1:$U$1,1)),IF($F30="Быстрота2",INDEX(Быстрота2!$D$7:$U$9,MATCH(H30,Быстрота2!$C$7:$C$9,1),MATCH('ИР-тек'!$B$63,Быстрота2!$D$1:$U$1,1)),IF($F30="Ловкость1",INDEX(Ловкость1!$D$7:$U$9,MATCH(H30,Ловкость1!$C$7:$C$9,1),MATCH('ИР-тек'!$B$63,Ловкость1!$D$1:$U$1,1)),IF($F30="Ловкость2",INDEX(Ловкость2!$D$7:$U$9,MATCH(H30,Ловкость2!$C$7:$C$9,1),MATCH('ИР-тек'!$B$63,Ловкость2!$D$1:$U$1,1)),IF($F30="Гибкость1",INDEX(Гибкость1!$D$7:$U$9,MATCH(H30,Гибкость1!$C$7:$C$9,1),MATCH('ИР-тек'!$B$63,Гибкость1!$D$1:$U$1,1)),IF($F30="Гибкость2",INDEX(Гибкость2!$D$7:$U$9,MATCH(H30,Гибкость2!$C$7:$C$9,1),MATCH('ИР-тек'!$B$63,Гибкость2!$D$1:$U$1,1)),IF($F30="Волейбол1",INDEX(Волейбол1!$D$7:$U$9,MATCH(H30,Волейбол1!$C$7:$C$9,1),MATCH('ИР-тек'!$B$63,Волейбол1!$D$1:$U$1,1)),IF($F30="Волейбол2",INDEX(Волейбол2!$D$7:$U$9,MATCH(H30,Волейбол2!$C$7:$C$9,1),MATCH('ИР-тек'!$B$63,Волейбол2!$D$1:$U$1,1)),IF($F30="Баскетбол1",INDEX(Баскетбол1!$D$7:$U$9,MATCH(H30,Баскетбол1!$C$7:$C$9,1),MATCH('ИР-тек'!$B$63,Баскетбол1!$D$1:$U$1,1)),IF($F30="Баскетбол2",INDEX(Баскетбол2!$D$7:$U$9,MATCH(H30,Баскетбол2!$C$7:$C$9,1),MATCH('ИР-тек'!$B$63,Баскетбол2!$D$1:$U$1,1)),IF($F30="Футбол1",INDEX(Футбол1!$D$7:$U$9,MATCH(H30,Футбол1!$C$7:$C$9,1),MATCH('ИР-тек'!$B$63,Футбол1!$D$1:$U$1,1)),IF($F30="Футбол2",INDEX(Футбол2!$D$7:$U$9,MATCH(H30,Футбол2!$C$7:$C$9,1),MATCH('ИР-тек'!$B$63,Футбол2!$D$1:$U$1,1)))))))))))))))) -> ≤ 8 | R30: =IF($D$17="Сила1",INDEX('Упр-ст'!$G$6:$AO$8,MATCH(H30,'Упр-ст'!$F$6:$F$8,1),MATCH('Упр-ст'!$B$28,'Упр-ст'!$G$4:$AO$4,1)),IF($D$17="Сила2",INDEX('Упр-ст'!$G$9:$AO$11,MATCH(H30,'Упр-ст'!$F$9:$F$11,1),MATCH('Упр-ст'!$B$28,'Упр-ст'!$G$4:$AO$4,1)),IF($D$17="Быстрота",INDEX('Упр-ст'!$G$15:$AO$17,MATCH(H30,'Упр-ст'!$F$15:$F$17,1),MATCH('Упр-ст'!$B$28,'Упр-ст'!$G$4:$AO$4,1)),IF($D$17="Ловкость",INDEX('Упр-ст'!$G$12:$AO$14,MATCH(H30,'Упр-ст'!$F$12:$F$14,1),MATCH('Упр-ст'!$B$28,'Упр-ст'!$G$4:$AO$4,1)),IF($D$17="Гибкость",INDEX('Упр-ст'!$G$18:$AO$20,MATCH(H30,'Упр-ст'!$F$18:$F$20,1),MATCH('Упр-ст'!$B$28,'Упр-ст'!$G$4:$AO$4,1))))))) -> 1.1
F31: =D29 -> Быстрота1 | H31: 3 упр | J31: =IF($F31="Сила1",INDEX(Сила1!$D$7:$U$9,MATCH(H31,Сила1!$C$7:$C$9,1),MATCH('ИР-тек'!$B$63,Сила1!$D$3:$R$3,1)),IF($F31="Сила2",INDEX(Сила2!$D$7:$U$9,MATCH(H31,Сила2!$C$7:$C$9,1),MATCH('ИР-тек'!$B$63,Сила2!$D$3:$R$3,1)),IF($F31="Быстрота1",INDEX(Быстрота1!$D$7:$U$9,MATCH(H31,Быстрота1!$C$7:$C$9,1),MATCH('ИР-тек'!$B$63,Быстрота1!$D$3:$R$3,1)),IF($F31="Быстрота2",INDEX(Быстрота2!$D$7:$U$9,MATCH(H31,Быстрота2!$C$7:$C$9,1),MATCH('ИР-тек'!$B$63,Быстрота2!$D$3:$R$3,1)),IF($F31="Ловкость1",INDEX(Ловкость1!$D$7:$U$9,MATCH(H31,Ловкость1!$C$7:$C$9,1),MATCH('ИР-тек'!$B$63,Ловкость1!$D$3:$R$3,1)),IF($F31="Ловкость2",INDEX(Ловкость2!$D$7:$U$9,MATCH(H31,Ловкость2!$C$7:$C$9,1),MATCH('ИР-тек'!$B$63,Ловкость2!$D$3:$R$3,1)),IF($F31="Гибкость1",INDEX(Гибкость1!$D$7:$U$9,MATCH(H31,Гибкость1!$C$7:$C$9,1),MATCH('ИР-тек'!$B$63,Гибкость1!$D$3:$R$3,1)),IF($F31="Гибкость2",INDEX(Гибкость2!$D$7:$U$9,MATCH(H31,Гибкость2!$C$7:$C$9,1),MATCH('ИР-тек'!$B$63,Гибкость2!$D$3:$R$3,1)),IF($F31="Волейбол1",INDEX(Волейбол1!$D$7:$U$9,MATCH(H31,Волейбол1!$C$7:$C$9,1),MATCH('ИР-тек'!$B$63,Волейбол1!$D$3:$R$3,1)),IF($F31="Волейбол2",INDEX(Волейбол2!$D$7:$U$9,MATCH(H31,Волейбол2!$C$7:$C$9,1),MATCH('ИР-тек'!$B$63,Волейбол2!$D$3:$R$3,1)),IF($F31="Баскетбол1",INDEX(Баскетбол1!$D$7:$U$9,MATCH(H31,Баскетбол1!$C$7:$C$9,1),MATCH('ИР-тек'!$B$63,Баскетбол1!$D$3:$R$3,1)),IF($F31="Баскетбол2",INDEX(Баскетбол2!$D$7:$U$9,MATCH(H31,Баскетбол2!$C$7:$C$9,1),MATCH('ИР-тек'!$B$63,Баскетбол2!$D$3:$R$3,1)),IF($F31="Футбол1",INDEX(Футбол1!$D$7:$U$9,MATCH(H31,Футбол1!$C$7:$C$9,1),MATCH('ИР-тек'!$B$63,Футбол1!$D$3:$R$3,1)),IF($F31="Футбол2",INDEX(Футбол2!$D$7:$U$9,MATCH(H31,Футбол2!$C$7:$C$9,1),MATCH('ИР-тек'!$B$63,Футбол2!$D$3:$R$3,1)))))))))))))))) -> Переход в упор лежа сзади с согнутыми ногами из упора сидя (тибетский мост) с утежелителями на поясе | P31: =IF($F31="Сила1",INDEX(Сила1!$D$7:$U$9,MATCH(H31,Сила1!$C$7:$C$9,1),MATCH('ИР-тек'!$B$63,Сила1!$D$2:$U$2,1)),IF($F31="Сила2",INDEX(Сила2!$D$7:$U$9,MATCH(H31,Сила2!$C$7:$C$9,1),MATCH('ИР-тек'!$B$63,Сила2!$D$2:$U$2,1)),IF($F31="Быстрота1",INDEX(Быстрота1!$D$7:$U$9,MATCH(H31,Быстрота1!$C$7:$C$9,1),MATCH('ИР-тек'!$B$63,Быстрота1!$D$2:$U$2,1)),IF($F31="Быстрота2",INDEX(Быстрота2!$D$7:$U$9,MATCH(H31,Быстрота2!$C$7:$C$9,1),MATCH('ИР-тек'!$B$63,Быстрота2!$D$2:$U$2,1)),IF($F31="Ловкость1",INDEX(Ловкость1!$D$7:$U$9,MATCH(H31,Ловкость1!$C$7:$C$9,1),MATCH('ИР-тек'!$B$63,Ловкость1!$D$2:$U$2,1)),IF($F31="Ловкость2",INDEX(Ловкость2!$D$7:$U$9,MATCH(H31,Ловкость2!$C$7:$C$9,1),MATCH('ИР-тек'!$B$63,Ловкость2!$D$2:$U$2,1)),IF($F31="Гибкость1",INDEX(Гибкость1!$D$7:$U$9,MATCH(H31,Гибкость1!$C$7:$C$9,1),MATCH('ИР-тек'!$B$63,Гибкость1!$D$2:$U$2,1)),IF($F31="Гибкость2",INDEX(Гибкость2!$D$7:$U$9,MATCH(H31,Гибкость2!$C$7:$C$9,1),MATCH('ИР-тек'!$B$63,Гибкость2!$D$2:$U$2,1)),IF($F31="Волейбол1",INDEX(Волейбол1!$D$7:$U$9,MATCH(H31,Волейбол1!$C$7:$C$9,1),MATCH('ИР-тек'!$B$63,Волейбол1!$D$2:$U$2,1)),IF($F31="Волейбол2",INDEX(Волейбол2!$D$7:$U$9,MATCH(H31,Волейбол2!$C$7:$C$9,1),MATCH('ИР-тек'!$B$63,Волейбол2!$D$2:$U$2,1)),IF($F31="Баскетбол1",INDEX(Баскетбол1!$D$7:$U$9,MATCH(H31,Баскетбол1!$C$7:$C$9,1),MATCH('ИР-тек'!$B$63,Баскетбол1!$D$2:$U$2,1)),IF($F31="Баскетбол2",INDEX(Баскетбол2!$D$7:$U$9,MATCH(H31,Баскетбол2!$C$7:$C$9,1),MATCH('ИР-тек'!$B$63,Баскетбол2!$D$2:$U$2,1)),IF($F31="Футбол1",INDEX(Футбол1!$D$7:$U$9,MATCH(H31,Футбол1!$C$7:$C$9,1),MATCH('ИР-тек'!$B$63,Футбол1!$D$2:$U$2,1)),IF($F31="Футбол2",INDEX(Футбол2!$D$7:$U$9,MATCH(H31,Футбол2!$C$7:$C$9,1),MATCH('ИР-тек'!$B$63,Футбол2!$D$2:$U$2,1)))))))))))))))) -> ≤ 2 | Q31: =IF($F31="Сила1",INDEX(Сила1!$D$7:$U$9,MATCH(H31,Сила1!$C$7:$C$9,1),MATCH('ИР-тек'!$B$63,Сила1!$D$1:$U$1,1)),IF($F31="Сила2",INDEX(Сила2!$D$7:$U$9,MATCH(H31,Сила2!$C$7:$C$9,1),MATCH('ИР-тек'!$B$63,Сила2!$D$1:$U$1,1)),IF($F31="Быстрота1",INDEX(Быстрота1!$D$7:$U$9,MATCH(H31,Быстрота1!$C$7:$C$9,1),MATCH('ИР-тек'!$B$63,Быстрота1!$D$1:$U$1,1)),IF($F31="Быстрота2",INDEX(Быстрота2!$D$7:$U$9,MATCH(H31,Быстрота2!$C$7:$C$9,1),MATCH('ИР-тек'!$B$63,Быстрота2!$D$1:$U$1,1)),IF($F31="Ловкость1",INDEX(Ловкость1!$D$7:$U$9,MATCH(H31,Ловкость1!$C$7:$C$9,1),MATCH('ИР-тек'!$B$63,Ловкость1!$D$1:$U$1,1)),IF($F31="Ловкость2",INDEX(Ловкость2!$D$7:$U$9,MATCH(H31,Ловкость2!$C$7:$C$9,1),MATCH('ИР-тек'!$B$63,Ловкость2!$D$1:$U$1,1)),IF($F31="Гибкость1",INDEX(Гибкость1!$D$7:$U$9,MATCH(H31,Гибкость1!$C$7:$C$9,1),MATCH('ИР-тек'!$B$63,Гибкость1!$D$1:$U$1,1)),IF($F31="Гибкость2",INDEX(Гибкость2!$D$7:$U$9,MATCH(H31,Гибкость2!$C$7:$C$9,1),MATCH('ИР-тек'!$B$63,Гибкость2!$D$1:$U$1,1)),IF($F31="Волейбол1",INDEX(Волейбол1!$D$7:$U$9,MATCH(H31,Волейбол1!$C$7:$C$9,1),MATCH('ИР-тек'!$B$63,Волейбол1!$D$1:$U$1,1)),IF($F31="Волейбол2",INDEX(Волейбол2!$D$7:$U$9,MATCH(H31,Волейбол2!$C$7:$C$9,1),MATCH('ИР-тек'!$B$63,Волейбол2!$D$1:$U$1,1)),IF($F31="Баскетбол1",INDEX(Баскетбол1!$D$7:$U$9,MATCH(H31,Баскетбол1!$C$7:$C$9,1),MATCH('ИР-тек'!$B$63,Баскетбол1!$D$1:$U$1,1)),IF($F31="Баскетбол2",INDEX(Баскетбол2!$D$7:$U$9,MATCH(H31,Баскетбол2!$C$7:$C$9,1),MATCH('ИР-тек'!$B$63,Баскетбол2!$D$1:$U$1,1)),IF($F31="Футбол1",INDEX(Футбол1!$D$7:$U$9,MATCH(H31,Футбол1!$C$7:$C$9,1),MATCH('ИР-тек'!$B$63,Футбол1!$D$1:$U$1,1)),IF($F31="Футбол2",INDEX(Футбол2!$D$7:$U$9,MATCH(H31,Футбол2!$C$7:$C$9,1),MATCH('ИР-тек'!$B$63,Футбол2!$D$1:$U$1,1)))))))))))))))) -> ≤ 8 | R31: =IF($D$17="Сила1",INDEX('Упр-ст'!$G$6:$AO$8,MATCH(H31,'Упр-ст'!$F$6:$F$8,1),MATCH('Упр-ст'!$B$28,'Упр-ст'!$G$4:$AO$4,1)),IF($D$17="Сила2",INDEX('Упр-ст'!$G$9:$AO$11,MATCH(H31,'Упр-ст'!$F$9:$F$11,1),MATCH('Упр-ст'!$B$28,'Упр-ст'!$G$4:$AO$4,1)),IF($D$17="Быстрота",INDEX('Упр-ст'!$G$15:$AO$17,MATCH(H31,'Упр-ст'!$F$15:$F$17,1),MATCH('Упр-ст'!$B$28,'Упр-ст'!$G$4:$AO$4,1)),IF($D$17="Ловкость",INDEX('Упр-ст'!$G$12:$AO$14,MATCH(H31,'Упр-ст'!$F$12:$F$14,1),MATCH('Упр-ст'!$B$28,'Упр-ст'!$G$4:$AO$4,1)),IF($D$17="Гибкость",INDEX('Упр-ст'!$G$18:$AO$20,MATCH(H31,'Упр-ст'!$F$18:$F$20,1),MATCH('Упр-ст'!$B$28,'Упр-ст'!$G$4:$AO$4,1))))))) -> 1.1
C32: 6-ая | D32: Быстрота2 | F32: =D32 -> Быстрота2 | H32: 1 упр | J32: =IF($F32="Сила1",INDEX(Сила1!$D$7:$U$9,MATCH(H32,Сила1!$C$7:$C$9,1),MATCH('ИР-тек'!$B$63,Сила1!$D$3:$R$3,1)),IF($F32="Сила2",INDEX(Сила2!$D$7:$U$9,MATCH(H32,Сила2!$C$7:$C$9,1),MATCH('ИР-тек'!$B$63,Сила2!$D$3:$R$3,1)),IF($F32="Быстрота1",INDEX(Быстрота1!$D$7:$U$9,MATCH(H32,Быстрота1!$C$7:$C$9,1),MATCH('ИР-тек'!$B$63,Быстрота1!$D$3:$R$3,1)),IF($F32="Быстрота2",INDEX(Быстрота2!$D$7:$U$9,MATCH(H32,Быстрота2!$C$7:$C$9,1),MATCH('ИР-тек'!$B$63,Быстрота2!$D$3:$R$3,1)),IF($F32="Ловкость1",INDEX(Ловкость1!$D$7:$U$9,MATCH(H32,Ловкость1!$C$7:$C$9,1),MATCH('ИР-тек'!$B$63,Ловкость1!$D$3:$R$3,1)),IF($F32="Ловкость2",INDEX(Ловкость2!$D$7:$U$9,MATCH(H32,Ловкость2!$C$7:$C$9,1),MATCH('ИР-тек'!$B$63,Ловкость2!$D$3:$R$3,1)),IF($F32="Гибкость1",INDEX(Гибкость1!$D$7:$U$9,MATCH(H32,Гибкость1!$C$7:$C$9,1),MATCH('ИР-тек'!$B$63,Гибкость1!$D$3:$R$3,1)),IF($F32="Гибкость2",INDEX(Гибкость2!$D$7:$U$9,MATCH(H32,Гибкость2!$C$7:$C$9,1),MATCH('ИР-тек'!$B$63,Гибкость2!$D$3:$R$3,1)),IF($F32="Волейбол1",INDEX(Волейбол1!$D$7:$U$9,MATCH(H32,Волейбол1!$C$7:$C$9,1),MATCH('ИР-тек'!$B$63,Волейбол1!$D$3:$R$3,1)),IF($F32="Волейбол2",INDEX(Волейбол2!$D$7:$U$9,MATCH(H32,Волейбол2!$C$7:$C$9,1),MATCH('ИР-тек'!$B$63,Волейбол2!$D$3:$R$3,1)),IF($F32="Баскетбол1",INDEX(Баскетбол1!$D$7:$U$9,MATCH(H32,Баскетбол1!$C$7:$C$9,1),MATCH('ИР-тек'!$B$63,Баскетбол1!$D$3:$R$3,1)),IF($F32="Баскетбол2",INDEX(Баскетбол2!$D$7:$U$9,MATCH(H32,Баскетбол2!$C$7:$C$9,1),MATCH('ИР-тек'!$B$63,Баскетбол2!$D$3:$R$3,1)),IF($F32="Футбол1",INDEX(Футбол1!$D$7:$U$9,MATCH(H32,Футбол1!$C$7:$C$9,1),MATCH('ИР-тек'!$B$63,Футбол1!$D$3:$R$3,1)),IF($F32="Футбол2",INDEX(Футбол2!$D$7:$U$9,MATCH(H32,Футбол2!$C$7:$C$9,1),MATCH('ИР-тек'!$B$63,Футбол2!$D$3:$R$3,1)))))))))))))))) -> Подтягивания в висе стоя хватом сверху (руки и ноги на ширине плеч) | P32: =IF($F32="Сила1",INDEX(Сила1!$D$7:$U$9,MATCH(H32,Сила1!$C$7:$C$9,1),MATCH('ИР-тек'!$B$63,Сила1!$D$2:$U$2,1)),IF($F32="Сила2",INDEX(Сила2!$D$7:$U$9,MATCH(H32,Сила2!$C$7:$C$9,1),MATCH('ИР-тек'!$B$63,Сила2!$D$2:$U$2,1)),IF($F32="Быстрота1",INDEX(Быстрота1!$D$7:$U$9,MATCH(H32,Быстрота1!$C$7:$C$9,1),MATCH('ИР-тек'!$B$63,Быстрота1!$D$2:$U$2,1)),IF($F32="Быстрота2",INDEX(Быстрота2!$D$7:$U$9,MATCH(H32,Быстрота2!$C$7:$C$9,1),MATCH('ИР-тек'!$B$63,Быстрота2!$D$2:$U$2,1)),IF($F32="Ловкость1",INDEX(Ловкость1!$D$7:$U$9,MATCH(H32,Ловкость1!$C$7:$C$9,1),MATCH('ИР-тек'!$B$63,Ловкость1!$D$2:$U$2,1)),IF($F32="Ловкость2",INDEX(Ловкость2!$D$7:$U$9,MATCH(H32,Ловкость2!$C$7:$C$9,1),MATCH('ИР-тек'!$B$63,Ловкость2!$D$2:$U$2,1)),IF($F32="Гибкость1",INDEX(Гибкость1!$D$7:$U$9,MATCH(H32,Гибкость1!$C$7:$C$9,1),MATCH('ИР-тек'!$B$63,Гибкость1!$D$2:$U$2,1)),IF($F32="Гибкость2",INDEX(Гибкость2!$D$7:$U$9,MATCH(H32,Гибкость2!$C$7:$C$9,1),MATCH('ИР-тек'!$B$63,Гибкость2!$D$2:$U$2,1)),IF($F32="Волейбол1",INDEX(Волейбол1!$D$7:$U$9,MATCH(H32,Волейбол1!$C$7:$C$9,1),MATCH('ИР-тек'!$B$63,Волейбол1!$D$2:$U$2,1)),IF($F32="Волейбол2",INDEX(Волейбол2!$D$7:$U$9,MATCH(H32,Волейбол2!$C$7:$C$9,1),MATCH('ИР-тек'!$B$63,Волейбол2!$D$2:$U$2,1)),IF($F32="Баскетбол1",INDEX(Баскетбол1!$D$7:$U$9,MATCH(H32,Баскетбол1!$C$7:$C$9,1),MATCH('ИР-тек'!$B$63,Баскетбол1!$D$2:$U$2,1)),IF($F32="Баскетбол2",INDEX(Баскетбол2!$D$7:$U$9,MATCH(H32,Баскетбол2!$C$7:$C$9,1),MATCH('ИР-тек'!$B$63,Баскетбол2!$D$2:$U$2,1)),IF($F32="Футбол1",INDEX(Футбол1!$D$7:$U$9,MATCH(H32,Футбол1!$C$7:$C$9,1),MATCH('ИР-тек'!$B$63,Футбол1!$D$2:$U$2,1)),IF($F32="Футбол2",INDEX(Футбол2!$D$7:$U$9,MATCH(H32,Футбол2!$C$7:$C$9,1),MATCH('ИР-тек'!$B$63,Футбол2!$D$2:$U$2,1)))))))))))))))) -> ≤ 2 | Q32: =IF($F32="Сила1",INDEX(Сила1!$D$7:$U$9,MATCH(H32,Сила1!$C$7:$C$9,1),MATCH('ИР-тек'!$B$63,Сила1!$D$1:$U$1,1)),IF($F32="Сила2",INDEX(Сила2!$D$7:$U$9,MATCH(H32,Сила2!$C$7:$C$9,1),MATCH('ИР-тек'!$B$63,Сила2!$D$1:$U$1,1)),IF($F32="Быстрота1",INDEX(Быстрота1!$D$7:$U$9,MATCH(H32,Быстрота1!$C$7:$C$9,1),MATCH('ИР-тек'!$B$63,Быстрота1!$D$1:$U$1,1)),IF($F32="Быстрота2",INDEX(Быстрота2!$D$7:$U$9,MATCH(H32,Быстрота2!$C$7:$C$9,1),MATCH('ИР-тек'!$B$63,Быстрота2!$D$1:$U$1,1)),IF($F32="Ловкость1",INDEX(Ловкость1!$D$7:$U$9,MATCH(H32,Ловкость1!$C$7:$C$9,1),MATCH('ИР-тек'!$B$63,Ловкость1!$D$1:$U$1,1)),IF($F32="Ловкость2",INDEX(Ловкость2!$D$7:$U$9,MATCH(H32,Ловкость2!$C$7:$C$9,1),MATCH('ИР-тек'!$B$63,Ловкость2!$D$1:$U$1,1)),IF($F32="Гибкость1",INDEX(Гибкость1!$D$7:$U$9,MATCH(H32,Гибкость1!$C$7:$C$9,1),MATCH('ИР-тек'!$B$63,Гибкость1!$D$1:$U$1,1)),IF($F32="Гибкость2",INDEX(Гибкость2!$D$7:$U$9,MATCH(H32,Гибкость2!$C$7:$C$9,1),MATCH('ИР-тек'!$B$63,Гибкость2!$D$1:$U$1,1)),IF($F32="Волейбол1",INDEX(Волейбол1!$D$7:$U$9,MATCH(H32,Волейбол1!$C$7:$C$9,1),MATCH('ИР-тек'!$B$63,Волейбол1!$D$1:$U$1,1)),IF($F32="Волейбол2",INDEX(Волейбол2!$D$7:$U$9,MATCH(H32,Волейбол2!$C$7:$C$9,1),MATCH('ИР-тек'!$B$63,Волейбол2!$D$1:$U$1,1)),IF($F32="Баскетбол1",INDEX(Баскетбол1!$D$7:$U$9,MATCH(H32,Баскетбол1!$C$7:$C$9,1),MATCH('ИР-тек'!$B$63,Баскетбол1!$D$1:$U$1,1)),IF($F32="Баскетбол2",INDEX(Баскетбол2!$D$7:$U$9,MATCH(H32,Баскетбол2!$C$7:$C$9,1),MATCH('ИР-тек'!$B$63,Баскетбол2!$D$1:$U$1,1)),IF($F32="Футбол1",INDEX(Футбол1!$D$7:$U$9,MATCH(H32,Футбол1!$C$7:$C$9,1),MATCH('ИР-тек'!$B$63,Футбол1!$D$1:$U$1,1)),IF($F32="Футбол2",INDEX(Футбол2!$D$7:$U$9,MATCH(H32,Футбол2!$C$7:$C$9,1),MATCH('ИР-тек'!$B$63,Футбол2!$D$1:$U$1,1)))))))))))))))) -> ≤ 8
F33: =D32 -> Быстрота2 | H33: 2 упр | J33: =IF($F33="Сила1",INDEX(Сила1!$D$7:$U$9,MATCH(H33,Сила1!$C$7:$C$9,1),MATCH('ИР-тек'!$B$63,Сила1!$D$3:$R$3,1)),IF($F33="Сила2",INDEX(Сила2!$D$7:$U$9,MATCH(H33,Сила2!$C$7:$C$9,1),MATCH('ИР-тек'!$B$63,Сила2!$D$3:$R$3,1)),IF($F33="Быстрота1",INDEX(Быстрота1!$D$7:$U$9,MATCH(H33,Быстрота1!$C$7:$C$9,1),MATCH('ИР-тек'!$B$63,Быстрота1!$D$3:$R$3,1)),IF($F33="Быстрота2",INDEX(Быстрота2!$D$7:$U$9,MATCH(H33,Быстрота2!$C$7:$C$9,1),MATCH('ИР-тек'!$B$63,Быстрота2!$D$3:$R$3,1)),IF($F33="Ловкость1",INDEX(Ловкость1!$D$7:$U$9,MATCH(H33,Ловкость1!$C$7:$C$9,1),MATCH('ИР-тек'!$B$63,Ловкость1!$D$3:$R$3,1)),IF($F33="Ловкость2",INDEX(Ловкость2!$D$7:$U$9,MATCH(H33,Ловкость2!$C$7:$C$9,1),MATCH('ИР-тек'!$B$63,Ловкость2!$D$3:$R$3,1)),IF($F33="Гибкость1",INDEX(Гибкость1!$D$7:$U$9,MATCH(H33,Гибкость1!$C$7:$C$9,1),MATCH('ИР-тек'!$B$63,Гибкость1!$D$3:$R$3,1)),IF($F33="Гибкость2",INDEX(Гибкость2!$D$7:$U$9,MATCH(H33,Гибкость2!$C$7:$C$9,1),MATCH('ИР-тек'!$B$63,Гибкость2!$D$3:$R$3,1)),IF($F33="Волейбол1",INDEX(Волейбол1!$D$7:$U$9,MATCH(H33,Волейбол1!$C$7:$C$9,1),MATCH('ИР-тек'!$B$63,Волейбол1!$D$3:$R$3,1)),IF($F33="Волейбол2",INDEX(Волейбол2!$D$7:$U$9,MATCH(H33,Волейбол2!$C$7:$C$9,1),MATCH('ИР-тек'!$B$63,Волейбол2!$D$3:$R$3,1)),IF($F33="Баскетбол1",INDEX(Баскетбол1!$D$7:$U$9,MATCH(H33,Баскетбол1!$C$7:$C$9,1),MATCH('ИР-тек'!$B$63,Баскетбол1!$D$3:$R$3,1)),IF($F33="Баскетбол2",INDEX(Баскетбол2!$D$7:$U$9,MATCH(H33,Баскетбол2!$C$7:$C$9,1),MATCH('ИР-тек'!$B$63,Баскетбол2!$D$3:$R$3,1)),IF($F33="Футбол1",INDEX(Футбол1!$D$7:$U$9,MATCH(H33,Футбол1!$C$7:$C$9,1),MATCH('ИР-тек'!$B$63,Футбол1!$D$3:$R$3,1)),IF($F33="Футбол2",INDEX(Футбол2!$D$7:$U$9,MATCH(H33,Футбол2!$C$7:$C$9,1),MATCH('ИР-тек'!$B$63,Футбол2!$D$3:$R$3,1)))))))))))))))) -> Сгибание и разгибание рук в упоре лежа от табурета (высота 0,45 - 0,55 м) | P33: =IF($F33="Сила1",INDEX(Сила1!$D$7:$U$9,MATCH(H33,Сила1!$C$7:$C$9,1),MATCH('ИР-тек'!$B$63,Сила1!$D$2:$U$2,1)),IF($F33="Сила2",INDEX(Сила2!$D$7:$U$9,MATCH(H33,Сила2!$C$7:$C$9,1),MATCH('ИР-тек'!$B$63,Сила2!$D$2:$U$2,1)),IF($F33="Быстрота1",INDEX(Быстрота1!$D$7:$U$9,MATCH(H33,Быстрота1!$C$7:$C$9,1),MATCH('ИР-тек'!$B$63,Быстрота1!$D$2:$U$2,1)),IF($F33="Быстрота2",INDEX(Быстрота2!$D$7:$U$9,MATCH(H33,Быстрота2!$C$7:$C$9,1),MATCH('ИР-тек'!$B$63,Быстрота2!$D$2:$U$2,1)),IF($F33="Ловкость1",INDEX(Ловкость1!$D$7:$U$9,MATCH(H33,Ловкость1!$C$7:$C$9,1),MATCH('ИР-тек'!$B$63,Ловкость1!$D$2:$U$2,1)),IF($F33="Ловкость2",INDEX(Ловкость2!$D$7:$U$9,MATCH(H33,Ловкость2!$C$7:$C$9,1),MATCH('ИР-тек'!$B$63,Ловкость2!$D$2:$U$2,1)),IF($F33="Гибкость1",INDEX(Гибкость1!$D$7:$U$9,MATCH(H33,Гибкость1!$C$7:$C$9,1),MATCH('ИР-тек'!$B$63,Гибкость1!$D$2:$U$2,1)),IF($F33="Гибкость2",INDEX(Гибкость2!$D$7:$U$9,MATCH(H33,Гибкость2!$C$7:$C$9,1),MATCH('ИР-тек'!$B$63,Гибкость2!$D$2:$U$2,1)),IF($F33="Волейбол1",INDEX(Волейбол1!$D$7:$U$9,MATCH(H33,Волейбол1!$C$7:$C$9,1),MATCH('ИР-тек'!$B$63,Волейбол1!$D$2:$U$2,1)),IF($F33="Волейбол2",INDEX(Волейбол2!$D$7:$U$9,MATCH(H33,Волейбол2!$C$7:$C$9,1),MATCH('ИР-тек'!$B$63,Волейбол2!$D$2:$U$2,1)),IF($F33="Баскетбол1",INDEX(Баскетбол1!$D$7:$U$9,MATCH(H33,Баскетбол1!$C$7:$C$9,1),MATCH('ИР-тек'!$B$63,Баскетбол1!$D$2:$U$2,1)),IF($F33="Баскетбол2",INDEX(Баскетбол2!$D$7:$U$9,MATCH(H33,Баскетбол2!$C$7:$C$9,1),MATCH('ИР-тек'!$B$63,Баскетбол2!$D$2:$U$2,1)),IF($F33="Футбол1",INDEX(Футбол1!$D$7:$U$9,MATCH(H33,Футбол1!$C$7:$C$9,1),MATCH('ИР-тек'!$B$63,Футбол1!$D$2:$U$2,1)),IF($F33="Футбол2",INDEX(Футбол2!$D$7:$U$9,MATCH(H33,Футбол2!$C$7:$C$9,1),MATCH('ИР-тек'!$B$63,Футбол2!$D$2:$U$2,1)))))))))))))))) -> ≤ 2 | Q33: =IF($F33="Сила1",INDEX(Сила1!$D$7:$U$9,MATCH(H33,Сила1!$C$7:$C$9,1),MATCH('ИР-тек'!$B$63,Сила1!$D$1:$U$1,1)),IF($F33="Сила2",INDEX(Сила2!$D$7:$U$9,MATCH(H33,Сила2!$C$7:$C$9,1),MATCH('ИР-тек'!$B$63,Сила2!$D$1:$U$1,1)),IF($F33="Быстрота1",INDEX(Быстрота1!$D$7:$U$9,MATCH(H33,Быстрота1!$C$7:$C$9,1),MATCH('ИР-тек'!$B$63,Быстрота1!$D$1:$U$1,1)),IF($F33="Быстрота2",INDEX(Быстрота2!$D$7:$U$9,MATCH(H33,Быстрота2!$C$7:$C$9,1),MATCH('ИР-тек'!$B$63,Быстрота2!$D$1:$U$1,1)),IF($F33="Ловкость1",INDEX(Ловкость1!$D$7:$U$9,MATCH(H33,Ловкость1!$C$7:$C$9,1),MATCH('ИР-тек'!$B$63,Ловкость1!$D$1:$U$1,1)),IF($F33="Ловкость2",INDEX(Ловкость2!$D$7:$U$9,MATCH(H33,Ловкость2!$C$7:$C$9,1),MATCH('ИР-тек'!$B$63,Ловкость2!$D$1:$U$1,1)),IF($F33="Гибкость1",INDEX(Гибкость1!$D$7:$U$9,MATCH(H33,Гибкость1!$C$7:$C$9,1),MATCH('ИР-тек'!$B$63,Гибкость1!$D$1:$U$1,1)),IF($F33="Гибкость2",INDEX(Гибкость2!$D$7:$U$9,MATCH(H33,Гибкость2!$C$7:$C$9,1),MATCH('ИР-тек'!$B$63,Гибкость2!$D$1:$U$1,1)),IF($F33="Волейбол1",INDEX(Волейбол1!$D$7:$U$9,MATCH(H33,Волейбол1!$C$7:$C$9,1),MATCH('ИР-тек'!$B$63,Волейбол1!$D$1:$U$1,1)),IF($F33="Волейбол2",INDEX(Волейбол2!$D$7:$U$9,MATCH(H33,Волейбол2!$C$7:$C$9,1),MATCH('ИР-тек'!$B$63,Волейбол2!$D$1:$U$1,1)),IF($F33="Баскетбол1",INDEX(Баскетбол1!$D$7:$U$9,MATCH(H33,Баскетбол1!$C$7:$C$9,1),MATCH('ИР-тек'!$B$63,Баскетбол1!$D$1:$U$1,1)),IF($F33="Баскетбол2",INDEX(Баскетбол2!$D$7:$U$9,MATCH(H33,Баскетбол2!$C$7:$C$9,1),MATCH('ИР-тек'!$B$63,Баскетбол2!$D$1:$U$1,1)),IF($F33="Футбол1",INDEX(Футбол1!$D$7:$U$9,MATCH(H33,Футбол1!$C$7:$C$9,1),MATCH('ИР-тек'!$B$63,Футбол1!$D$1:$U$1,1)),IF($F33="Футбол2",INDEX(Футбол2!$D$7:$U$9,MATCH(H33,Футбол2!$C$7:$C$9,1),MATCH('ИР-тек'!$B$63,Футбол2!$D$1:$U$1,1)))))))))))))))) -> ≤ 8
F34: =D32 -> Быстрота2 | H34: 3 упр | J34: =IF($F34="Сила1",INDEX(Сила1!$D$7:$U$9,MATCH(H34,Сила1!$C$7:$C$9,1),MATCH('ИР-тек'!$B$63,Сила1!$D$3:$R$3,1)),IF($F34="Сила2",INDEX(Сила2!$D$7:$U$9,MATCH(H34,Сила2!$C$7:$C$9,1),MATCH('ИР-тек'!$B$63,Сила2!$D$3:$R$3,1)),IF($F34="Быстрота1",INDEX(Быстрота1!$D$7:$U$9,MATCH(H34,Быстрота1!$C$7:$C$9,1),MATCH('ИР-тек'!$B$63,Быстрота1!$D$3:$R$3,1)),IF($F34="Быстрота2",INDEX(Быстрота2!$D$7:$U$9,MATCH(H34,Быстрота2!$C$7:$C$9,1),MATCH('ИР-тек'!$B$63,Быстрота2!$D$3:$R$3,1)),IF($F34="Ловкость1",INDEX(Ловкость1!$D$7:$U$9,MATCH(H34,Ловкость1!$C$7:$C$9,1),MATCH('ИР-тек'!$B$63,Ловкость1!$D$3:$R$3,1)),IF($F34="Ловкость2",INDEX(Ловкость2!$D$7:$U$9,MATCH(H34,Ловкость2!$C$7:$C$9,1),MATCH('ИР-тек'!$B$63,Ловкость2!$D$3:$R$3,1)),IF($F34="Гибкость1",INDEX(Гибкость1!$D$7:$U$9,MATCH(H34,Гибкость1!$C$7:$C$9,1),MATCH('ИР-тек'!$B$63,Гибкость1!$D$3:$R$3,1)),IF($F34="Гибкость2",INDEX(Гибкость2!$D$7:$U$9,MATCH(H34,Гибкость2!$C$7:$C$9,1),MATCH('ИР-тек'!$B$63,Гибкость2!$D$3:$R$3,1)),IF($F34="Волейбол1",INDEX(Волейбол1!$D$7:$U$9,MATCH(H34,Волейбол1!$C$7:$C$9,1),MATCH('ИР-тек'!$B$63,Волейбол1!$D$3:$R$3,1)),IF($F34="Волейбол2",INDEX(Волейбол2!$D$7:$U$9,MATCH(H34,Волейбол2!$C$7:$C$9,1),MATCH('ИР-тек'!$B$63,Волейбол2!$D$3:$R$3,1)),IF($F34="Баскетбол1",INDEX(Баскетбол1!$D$7:$U$9,MATCH(H34,Баскетбол1!$C$7:$C$9,1),MATCH('ИР-тек'!$B$63,Баскетбол1!$D$3:$R$3,1)),IF($F34="Баскетбол2",INDEX(Баскетбол2!$D$7:$U$9,MATCH(H34,Баскетбол2!$C$7:$C$9,1),MATCH('ИР-тек'!$B$63,Баскетбол2!$D$3:$R$3,1)),IF($F34="Футбол1",INDEX(Футбол1!$D$7:$U$9,MATCH(H34,Футбол1!$C$7:$C$9,1),MATCH('ИР-тек'!$B$63,Футбол1!$D$3:$R$3,1)),IF($F34="Футбол2",INDEX(Футбол2!$D$7:$U$9,MATCH(H34,Футбол2!$C$7:$C$9,1),MATCH('ИР-тек'!$B$63,Футбол2!$D$3:$R$3,1)))))))))))))))) -> Сгибание и разгибание рук в висе стоя возле гимнастической лестницы в стойке ноги и руки на ширине плеч (руки на перекладинне на уровне плеч) | P34: =IF($F34="Сила1",INDEX(Сила1!$D$7:$U$9,MATCH(H34,Сила1!$C$7:$C$9,1),MATCH('ИР-тек'!$B$63,Сила1!$D$2:$U$2,1)),IF($F34="Сила2",INDEX(Сила2!$D$7:$U$9,MATCH(H34,Сила2!$C$7:$C$9,1),MATCH('ИР-тек'!$B$63,Сила2!$D$2:$U$2,1)),IF($F34="Быстрота1",INDEX(Быстрота1!$D$7:$U$9,MATCH(H34,Быстрота1!$C$7:$C$9,1),MATCH('ИР-тек'!$B$63,Быстрота1!$D$2:$U$2,1)),IF($F34="Быстрота2",INDEX(Быстрота2!$D$7:$U$9,MATCH(H34,Быстрота2!$C$7:$C$9,1),MATCH('ИР-тек'!$B$63,Быстрота2!$D$2:$U$2,1)),IF($F34="Ловкость1",INDEX(Ловкость1!$D$7:$U$9,MATCH(H34,Ловкость1!$C$7:$C$9,1),MATCH('ИР-тек'!$B$63,Ловкость1!$D$2:$U$2,1)),IF($F34="Ловкость2",INDEX(Ловкость2!$D$7:$U$9,MATCH(H34,Ловкость2!$C$7:$C$9,1),MATCH('ИР-тек'!$B$63,Ловкость2!$D$2:$U$2,1)),IF($F34="Гибкость1",INDEX(Гибкость1!$D$7:$U$9,MATCH(H34,Гибкость1!$C$7:$C$9,1),MATCH('ИР-тек'!$B$63,Гибкость1!$D$2:$U$2,1)),IF($F34="Гибкость2",INDEX(Гибкость2!$D$7:$U$9,MATCH(H34,Гибкость2!$C$7:$C$9,1),MATCH('ИР-тек'!$B$63,Гибкость2!$D$2:$U$2,1)),IF($F34="Волейбол1",INDEX(Волейбол1!$D$7:$U$9,MATCH(H34,Волейбол1!$C$7:$C$9,1),MATCH('ИР-тек'!$B$63,Волейбол1!$D$2:$U$2,1)),IF($F34="Волейбол2",INDEX(Волейбол2!$D$7:$U$9,MATCH(H34,Волейбол2!$C$7:$C$9,1),MATCH('ИР-тек'!$B$63,Волейбол2!$D$2:$U$2,1)),IF($F34="Баскетбол1",INDEX(Баскетбол1!$D$7:$U$9,MATCH(H34,Баскетбол1!$C$7:$C$9,1),MATCH('ИР-тек'!$B$63,Баскетбол1!$D$2:$U$2,1)),IF($F34="Баскетбол2",INDEX(Баскетбол2!$D$7:$U$9,MATCH(H34,Баскетбол2!$C$7:$C$9,1),MATCH('ИР-тек'!$B$63,Баскетбол2!$D$2:$U$2,1)),IF($F34="Футбол1",INDEX(Футбол1!$D$7:$U$9,MATCH(H34,Футбол1!$C$7:$C$9,1),MATCH('ИР-тек'!$B$63,Футбол1!$D$2:$U$2,1)),IF($F34="Футбол2",INDEX(Футбол2!$D$7:$U$9,MATCH(H34,Футбол2!$C$7:$C$9,1),MATCH('ИР-тек'!$B$63,Футбол2!$D$2:$U$2,1)))))))))))))))) -> ≤ 2 | Q34: =IF($F34="Сила1",INDEX(Сила1!$D$7:$U$9,MATCH(H34,Сила1!$C$7:$C$9,1),MATCH('ИР-тек'!$B$63,Сила1!$D$1:$U$1,1)),IF($F34="Сила2",INDEX(Сила2!$D$7:$U$9,MATCH(H34,Сила2!$C$7:$C$9,1),MATCH('ИР-тек'!$B$63,Сила2!$D$1:$U$1,1)),IF($F34="Быстрота1",INDEX(Быстрота1!$D$7:$U$9,MATCH(H34,Быстрота1!$C$7:$C$9,1),MATCH('ИР-тек'!$B$63,Быстрота1!$D$1:$U$1,1)),IF($F34="Быстрота2",INDEX(Быстрота2!$D$7:$U$9,MATCH(H34,Быстрота2!$C$7:$C$9,1),MATCH('ИР-тек'!$B$63,Быстрота2!$D$1:$U$1,1)),IF($F34="Ловкость1",INDEX(Ловкость1!$D$7:$U$9,MATCH(H34,Ловкость1!$C$7:$C$9,1),MATCH('ИР-тек'!$B$63,Ловкость1!$D$1:$U$1,1)),IF($F34="Ловкость2",INDEX(Ловкость2!$D$7:$U$9,MATCH(H34,Ловкость2!$C$7:$C$9,1),MATCH('ИР-тек'!$B$63,Ловкость2!$D$1:$U$1,1)),IF($F34="Гибкость1",INDEX(Гибкость1!$D$7:$U$9,MATCH(H34,Гибкость1!$C$7:$C$9,1),MATCH('ИР-тек'!$B$63,Гибкость1!$D$1:$U$1,1)),IF($F34="Гибкость2",INDEX(Гибкость2!$D$7:$U$9,MATCH(H34,Гибкость2!$C$7:$C$9,1),MATCH('ИР-тек'!$B$63,Гибкость2!$D$1:$U$1,1)),IF($F34="Волейбол1",INDEX(Волейбол1!$D$7:$U$9,MATCH(H34,Волейбол1!$C$7:$C$9,1),MATCH('ИР-тек'!$B$63,Волейбол1!$D$1:$U$1,1)),IF($F34="Волейбол2",INDEX(Волейбол2!$D$7:$U$9,MATCH(H34,Волейбол2!$C$7:$C$9,1),MATCH('ИР-тек'!$B$63,Волейбол2!$D$1:$U$1,1)),IF($F34="Баскетбол1",INDEX(Баскетбол1!$D$7:$U$9,MATCH(H34,Баскетбол1!$C$7:$C$9,1),MATCH('ИР-тек'!$B$63,Баскетбол1!$D$1:$U$1,1)),IF($F34="Баскетбол2",INDEX(Баскетбол2!$D$7:$U$9,MATCH(H34,Баскетбол2!$C$7:$C$9,1),MATCH('ИР-тек'!$B$63,Баскетбол2!$D$1:$U$1,1)),IF($F34="Футбол1",INDEX(Футбол1!$D$7:$U$9,MATCH(H34,Футбол1!$C$7:$C$9,1),MATCH('ИР-тек'!$B$63,Футбол1!$D$1:$U$1,1)),IF($F34="Футбол2",INDEX(Футбол2!$D$7:$U$9,MATCH(H34,Футбол2!$C$7:$C$9,1),MATCH('ИР-тек'!$B$63,Футбол2!$D$1:$U$1,1)))))))))))))))) -> ≤ 8
C35: 7-ая | D35: Гибкость1 | F35: =D35 -> Гибкость1 | G35: =IF(КИДР!D35="Сила1",'Table-IDK'!$B$271,IF(КИДР!D35="Сила2",'Table-IDK'!$B$271,IF(КИДР!D35="Быстрота",'Table-IDK'!$B$272,IF(КИДР!D35="Ловкость",'Table-IDK'!$B$273,IF(КИДР!D35="Гибкость",'Table-IDK'!$B$274,""))))) ->  | H35: 1 упр | J35: =IF($F35="Сила1",INDEX(Сила1!$D$7:$U$9,MATCH(H35,Сила1!$C$7:$C$9,1),MATCH('ИР-тек'!$B$63,Сила1!$D$3:$R$3,1)),IF($F35="Сила2",INDEX(Сила2!$D$7:$U$9,MATCH(H35,Сила2!$C$7:$C$9,1),MATCH('ИР-тек'!$B$63,Сила2!$D$3:$R$3,1)),IF($F35="Быстрота1",INDEX(Быстрота1!$D$7:$U$9,MATCH(H35,Быстрота1!$C$7:$C$9,1),MATCH('ИР-тек'!$B$63,Быстрота1!$D$3:$R$3,1)),IF($F35="Быстрота2",INDEX(Быстрота2!$D$7:$U$9,MATCH(H35,Быстрота2!$C$7:$C$9,1),MATCH('ИР-тек'!$B$63,Быстрота2!$D$3:$R$3,1)),IF($F35="Ловкость1",INDEX(Ловкость1!$D$7:$U$9,MATCH(H35,Ловкость1!$C$7:$C$9,1),MATCH('ИР-тек'!$B$63,Ловкость1!$D$3:$R$3,1)),IF($F35="Ловкость2",INDEX(Ловкость2!$D$7:$U$9,MATCH(H35,Ловкость2!$C$7:$C$9,1),MATCH('ИР-тек'!$B$63,Ловкость2!$D$3:$R$3,1)),IF($F35="Гибкость1",INDEX(Гибкость1!$D$7:$U$9,MATCH(H35,Гибкость1!$C$7:$C$9,1),MATCH('ИР-тек'!$B$63,Гибкость1!$D$3:$R$3,1)),IF($F35="Гибкость2",INDEX(Гибкость2!$D$7:$U$9,MATCH(H35,Гибкость2!$C$7:$C$9,1),MATCH('ИР-тек'!$B$63,Гибкость2!$D$3:$R$3,1)),IF($F35="Волейбол1",INDEX(Волейбол1!$D$7:$U$9,MATCH(H35,Волейбол1!$C$7:$C$9,1),MATCH('ИР-тек'!$B$63,Волейбол1!$D$3:$R$3,1)),IF($F35="Волейбол2",INDEX(Волейбол2!$D$7:$U$9,MATCH(H35,Волейбол2!$C$7:$C$9,1),MATCH('ИР-тек'!$B$63,Волейбол2!$D$3:$R$3,1)),IF($F35="Баскетбол1",INDEX(Баскетбол1!$D$7:$U$9,MATCH(H35,Баскетбол1!$C$7:$C$9,1),MATCH('ИР-тек'!$B$63,Баскетбол1!$D$3:$R$3,1)),IF($F35="Баскетбол2",INDEX(Баскетбол2!$D$7:$U$9,MATCH(H35,Баскетбол2!$C$7:$C$9,1),MATCH('ИР-тек'!$B$63,Баскетбол2!$D$3:$R$3,1)),IF($F35="Футбол1",INDEX(Футбол1!$D$7:$U$9,MATCH(H35,Футбол1!$C$7:$C$9,1),MATCH('ИР-тек'!$B$63,Футбол1!$D$3:$R$3,1)),IF($F35="Футбол2",INDEX(Футбол2!$D$7:$U$9,MATCH(H35,Футбол2!$C$7:$C$9,1),MATCH('ИР-тек'!$B$63,Футбол2!$D$3:$R$3,1)))))))))))))))) -> Из седа руки вдоль туловища левую ногу согнуть и перенести через колено правой. Упереться локтем прямой правой руки в тыльную сторону колена левой ноги и развернуть туловище влево (скручивание влево) | P35: =IF($F35="Сила1",INDEX(Сила1!$D$7:$U$9,MATCH(H35,Сила1!$C$7:$C$9,1),MATCH('ИР-тек'!$B$63,Сила1!$D$2:$U$2,1)),IF($F35="Сила2",INDEX(Сила2!$D$7:$U$9,MATCH(H35,Сила2!$C$7:$C$9,1),MATCH('ИР-тек'!$B$63,Сила2!$D$2:$U$2,1)),IF($F35="Быстрота1",INDEX(Быстрота1!$D$7:$U$9,MATCH(H35,Быстрота1!$C$7:$C$9,1),MATCH('ИР-тек'!$B$63,Быстрота1!$D$2:$U$2,1)),IF($F35="Быстрота2",INDEX(Быстрота2!$D$7:$U$9,MATCH(H35,Быстрота2!$C$7:$C$9,1),MATCH('ИР-тек'!$B$63,Быстрота2!$D$2:$U$2,1)),IF($F35="Ловкость1",INDEX(Ловкость1!$D$7:$U$9,MATCH(H35,Ловкость1!$C$7:$C$9,1),MATCH('ИР-тек'!$B$63,Ловкость1!$D$2:$U$2,1)),IF($F35="Ловкость2",INDEX(Ловкость2!$D$7:$U$9,MATCH(H35,Ловкость2!$C$7:$C$9,1),MATCH('ИР-тек'!$B$63,Ловкость2!$D$2:$U$2,1)),IF($F35="Гибкость1",INDEX(Гибкость1!$D$7:$U$9,MATCH(H35,Гибкость1!$C$7:$C$9,1),MATCH('ИР-тек'!$B$63,Гибкость1!$D$2:$U$2,1)),IF($F35="Гибкость2",INDEX(Гибкость2!$D$7:$U$9,MATCH(H35,Гибкость2!$C$7:$C$9,1),MATCH('ИР-тек'!$B$63,Гибкость2!$D$2:$U$2,1)),IF($F35="Волейбол1",INDEX(Волейбол1!$D$7:$U$9,MATCH(H35,Волейбол1!$C$7:$C$9,1),MATCH('ИР-тек'!$B$63,Волейбол1!$D$2:$U$2,1)),IF($F35="Волейбол2",INDEX(Волейбол2!$D$7:$U$9,MATCH(H35,Волейбол2!$C$7:$C$9,1),MATCH('ИР-тек'!$B$63,Волейбол2!$D$2:$U$2,1)),IF($F35="Баскетбол1",INDEX(Баскетбол1!$D$7:$U$9,MATCH(H35,Баскетбол1!$C$7:$C$9,1),MATCH('ИР-тек'!$B$63,Баскетбол1!$D$2:$U$2,1)),IF($F35="Баскетбол2",INDEX(Баскетбол2!$D$7:$U$9,MATCH(H35,Баскетбол2!$C$7:$C$9,1),MATCH('ИР-тек'!$B$63,Баскетбол2!$D$2:$U$2,1)),IF($F35="Футбол1",INDEX(Футбол1!$D$7:$U$9,MATCH(H35,Футбол1!$C$7:$C$9,1),MATCH('ИР-тек'!$B$63,Футбол1!$D$2:$U$2,1)),IF($F35="Футбол2",INDEX(Футбол2!$D$7:$U$9,MATCH(H35,Футбол2!$C$7:$C$9,1),MATCH('ИР-тек'!$B$63,Футбол2!$D$2:$U$2,1)))))))))))))))) -> 1 | Q35: =IF($F35="Сила1",INDEX(Сила1!$D$7:$U$9,MATCH(H35,Сила1!$C$7:$C$9,1),MATCH('ИР-тек'!$B$63,Сила1!$D$1:$U$1,1)),IF($F35="Сила2",INDEX(Сила2!$D$7:$U$9,MATCH(H35,Сила2!$C$7:$C$9,1),MATCH('ИР-тек'!$B$63,Сила2!$D$1:$U$1,1)),IF($F35="Быстрота1",INDEX(Быстрота1!$D$7:$U$9,MATCH(H35,Быстрота1!$C$7:$C$9,1),MATCH('ИР-тек'!$B$63,Быстрота1!$D$1:$U$1,1)),IF($F35="Быстрота2",INDEX(Быстрота2!$D$7:$U$9,MATCH(H35,Быстрота2!$C$7:$C$9,1),MATCH('ИР-тек'!$B$63,Быстрота2!$D$1:$U$1,1)),IF($F35="Ловкость1",INDEX(Ловкость1!$D$7:$U$9,MATCH(H35,Ловкость1!$C$7:$C$9,1),MATCH('ИР-тек'!$B$63,Ловкость1!$D$1:$U$1,1)),IF($F35="Ловкость2",INDEX(Ловкость2!$D$7:$U$9,MATCH(H35,Ловкость2!$C$7:$C$9,1),MATCH('ИР-тек'!$B$63,Ловкость2!$D$1:$U$1,1)),IF($F35="Гибкость1",INDEX(Гибкость1!$D$7:$U$9,MATCH(H35,Гибкость1!$C$7:$C$9,1),MATCH('ИР-тек'!$B$63,Гибкость1!$D$1:$U$1,1)),IF($F35="Гибкость2",INDEX(Гибкость2!$D$7:$U$9,MATCH(H35,Гибкость2!$C$7:$C$9,1),MATCH('ИР-тек'!$B$63,Гибкость2!$D$1:$U$1,1)),IF($F35="Волейбол1",INDEX(Волейбол1!$D$7:$U$9,MATCH(H35,Волейбол1!$C$7:$C$9,1),MATCH('ИР-тек'!$B$63,Волейбол1!$D$1:$U$1,1)),IF($F35="Волейбол2",INDEX(Волейбол2!$D$7:$U$9,MATCH(H35,Волейбол2!$C$7:$C$9,1),MATCH('ИР-тек'!$B$63,Волейбол2!$D$1:$U$1,1)),IF($F35="Баскетбол1",INDEX(Баскетбол1!$D$7:$U$9,MATCH(H35,Баскетбол1!$C$7:$C$9,1),MATCH('ИР-тек'!$B$63,Баскетбол1!$D$1:$U$1,1)),IF($F35="Баскетбол2",INDEX(Баскетбол2!$D$7:$U$9,MATCH(H35,Баскетбол2!$C$7:$C$9,1),MATCH('ИР-тек'!$B$63,Баскетбол2!$D$1:$U$1,1)),IF($F35="Футбол1",INDEX(Футбол1!$D$7:$U$9,MATCH(H35,Футбол1!$C$7:$C$9,1),MATCH('ИР-тек'!$B$63,Футбол1!$D$1:$U$1,1)),IF($F35="Футбол2",INDEX(Футбол2!$D$7:$U$9,MATCH(H35,Футбол2!$C$7:$C$9,1),MATCH('ИР-тек'!$B$63,Футбол2!$D$1:$U$1,1)))))))))))))))) -> ≥ 35 с | R35: =IF($D$17="Сила1",INDEX('Упр-ст'!$G$6:$AO$8,MATCH(H35,'Упр-ст'!$F$6:$F$8,1),MATCH('Упр-ст'!$B$28,'Упр-ст'!$G$4:$AO$4,1)),IF($D$17="Сила2",INDEX('Упр-ст'!$G$9:$AO$11,MATCH(H35,'Упр-ст'!$F$9:$F$11,1),MATCH('Упр-ст'!$B$28,'Упр-ст'!$G$4:$AO$4,1)),IF($D$17="Быстрота",INDEX('Упр-ст'!$G$15:$AO$17,MATCH(H35,'Упр-ст'!$F$15:$F$17,1),MATCH('Упр-ст'!$B$28,'Упр-ст'!$G$4:$AO$4,1)),IF($D$17="Ловкость",INDEX('Упр-ст'!$G$12:$AO$14,MATCH(H35,'Упр-ст'!$F$12:$F$14,1),MATCH('Упр-ст'!$B$28,'Упр-ст'!$G$4:$AO$4,1)),IF($D$17="Гибкость",INDEX('Упр-ст'!$G$18:$AO$20,MATCH(H35,'Упр-ст'!$F$18:$F$20,1),MATCH('Упр-ст'!$B$28,'Упр-ст'!$G$4:$AO$4,1))))))) -> 1.1
F36: =D35 -> Гибкость1 | H36: 2 упр | J36: =IF($F36="Сила1",INDEX(Сила1!$D$7:$U$9,MATCH(H36,Сила1!$C$7:$C$9,1),MATCH('ИР-тек'!$B$63,Сила1!$D$3:$R$3,1)),IF($F36="Сила2",INDEX(Сила2!$D$7:$U$9,MATCH(H36,Сила2!$C$7:$C$9,1),MATCH('ИР-тек'!$B$63,Сила2!$D$3:$R$3,1)),IF($F36="Быстрота1",INDEX(Быстрота1!$D$7:$U$9,MATCH(H36,Быстрота1!$C$7:$C$9,1),MATCH('ИР-тек'!$B$63,Быстрота1!$D$3:$R$3,1)),IF($F36="Быстрота2",INDEX(Быстрота2!$D$7:$U$9,MATCH(H36,Быстрота2!$C$7:$C$9,1),MATCH('ИР-тек'!$B$63,Быстрота2!$D$3:$R$3,1)),IF($F36="Ловкость1",INDEX(Ловкость1!$D$7:$U$9,MATCH(H36,Ловкость1!$C$7:$C$9,1),MATCH('ИР-тек'!$B$63,Ловкость1!$D$3:$R$3,1)),IF($F36="Ловкость2",INDEX(Ловкость2!$D$7:$U$9,MATCH(H36,Ловкость2!$C$7:$C$9,1),MATCH('ИР-тек'!$B$63,Ловкость2!$D$3:$R$3,1)),IF($F36="Гибкость1",INDEX(Гибкость1!$D$7:$U$9,MATCH(H36,Гибкость1!$C$7:$C$9,1),MATCH('ИР-тек'!$B$63,Гибкость1!$D$3:$R$3,1)),IF($F36="Гибкость2",INDEX(Гибкость2!$D$7:$U$9,MATCH(H36,Гибкость2!$C$7:$C$9,1),MATCH('ИР-тек'!$B$63,Гибкость2!$D$3:$R$3,1)),IF($F36="Волейбол1",INDEX(Волейбол1!$D$7:$U$9,MATCH(H36,Волейбол1!$C$7:$C$9,1),MATCH('ИР-тек'!$B$63,Волейбол1!$D$3:$R$3,1)),IF($F36="Волейбол2",INDEX(Волейбол2!$D$7:$U$9,MATCH(H36,Волейбол2!$C$7:$C$9,1),MATCH('ИР-тек'!$B$63,Волейбол2!$D$3:$R$3,1)),IF($F36="Баскетбол1",INDEX(Баскетбол1!$D$7:$U$9,MATCH(H36,Баскетбол1!$C$7:$C$9,1),MATCH('ИР-тек'!$B$63,Баскетбол1!$D$3:$R$3,1)),IF($F36="Баскетбол2",INDEX(Баскетбол2!$D$7:$U$9,MATCH(H36,Баскетбол2!$C$7:$C$9,1),MATCH('ИР-тек'!$B$63,Баскетбол2!$D$3:$R$3,1)),IF($F36="Футбол1",INDEX(Футбол1!$D$7:$U$9,MATCH(H36,Футбол1!$C$7:$C$9,1),MATCH('ИР-тек'!$B$63,Футбол1!$D$3:$R$3,1)),IF($F36="Футбол2",INDEX(Футбол2!$D$7:$U$9,MATCH(H36,Футбол2!$C$7:$C$9,1),MATCH('ИР-тек'!$B$63,Футбол2!$D$3:$R$3,1)))))))))))))))) -> Из седа руки вдоль туловища правую ногу согнуть и перенести через колено левой. Упереться локтем прямой левой руки в тыльную сторону колена правой ноги и развернуть туловище вправо (скручивание вправо) | P36: =IF($F36="Сила1",INDEX(Сила1!$D$7:$U$9,MATCH(H36,Сила1!$C$7:$C$9,1),MATCH('ИР-тек'!$B$63,Сила1!$D$2:$U$2,1)),IF($F36="Сила2",INDEX(Сила2!$D$7:$U$9,MATCH(H36,Сила2!$C$7:$C$9,1),MATCH('ИР-тек'!$B$63,Сила2!$D$2:$U$2,1)),IF($F36="Быстрота1",INDEX(Быстрота1!$D$7:$U$9,MATCH(H36,Быстрота1!$C$7:$C$9,1),MATCH('ИР-тек'!$B$63,Быстрота1!$D$2:$U$2,1)),IF($F36="Быстрота2",INDEX(Быстрота2!$D$7:$U$9,MATCH(H36,Быстрота2!$C$7:$C$9,1),MATCH('ИР-тек'!$B$63,Быстрота2!$D$2:$U$2,1)),IF($F36="Ловкость1",INDEX(Ловкость1!$D$7:$U$9,MATCH(H36,Ловкость1!$C$7:$C$9,1),MATCH('ИР-тек'!$B$63,Ловкость1!$D$2:$U$2,1)),IF($F36="Ловкость2",INDEX(Ловкость2!$D$7:$U$9,MATCH(H36,Ловкость2!$C$7:$C$9,1),MATCH('ИР-тек'!$B$63,Ловкость2!$D$2:$U$2,1)),IF($F36="Гибкость1",INDEX(Гибкость1!$D$7:$U$9,MATCH(H36,Гибкость1!$C$7:$C$9,1),MATCH('ИР-тек'!$B$63,Гибкость1!$D$2:$U$2,1)),IF($F36="Гибкость2",INDEX(Гибкость2!$D$7:$U$9,MATCH(H36,Гибкость2!$C$7:$C$9,1),MATCH('ИР-тек'!$B$63,Гибкость2!$D$2:$U$2,1)),IF($F36="Волейбол1",INDEX(Волейбол1!$D$7:$U$9,MATCH(H36,Волейбол1!$C$7:$C$9,1),MATCH('ИР-тек'!$B$63,Волейбол1!$D$2:$U$2,1)),IF($F36="Волейбол2",INDEX(Волейбол2!$D$7:$U$9,MATCH(H36,Волейбол2!$C$7:$C$9,1),MATCH('ИР-тек'!$B$63,Волейбол2!$D$2:$U$2,1)),IF($F36="Баскетбол1",INDEX(Баскетбол1!$D$7:$U$9,MATCH(H36,Баскетбол1!$C$7:$C$9,1),MATCH('ИР-тек'!$B$63,Баскетбол1!$D$2:$U$2,1)),IF($F36="Баскетбол2",INDEX(Баскетбол2!$D$7:$U$9,MATCH(H36,Баскетбол2!$C$7:$C$9,1),MATCH('ИР-тек'!$B$63,Баскетбол2!$D$2:$U$2,1)),IF($F36="Футбол1",INDEX(Футбол1!$D$7:$U$9,MATCH(H36,Футбол1!$C$7:$C$9,1),MATCH('ИР-тек'!$B$63,Футбол1!$D$2:$U$2,1)),IF($F36="Футбол2",INDEX(Футбол2!$D$7:$U$9,MATCH(H36,Футбол2!$C$7:$C$9,1),MATCH('ИР-тек'!$B$63,Футбол2!$D$2:$U$2,1)))))))))))))))) -> 1 | Q36: =IF($F36="Сила1",INDEX(Сила1!$D$7:$U$9,MATCH(H36,Сила1!$C$7:$C$9,1),MATCH('ИР-тек'!$B$63,Сила1!$D$1:$U$1,1)),IF($F36="Сила2",INDEX(Сила2!$D$7:$U$9,MATCH(H36,Сила2!$C$7:$C$9,1),MATCH('ИР-тек'!$B$63,Сила2!$D$1:$U$1,1)),IF($F36="Быстрота1",INDEX(Быстрота1!$D$7:$U$9,MATCH(H36,Быстрота1!$C$7:$C$9,1),MATCH('ИР-тек'!$B$63,Быстрота1!$D$1:$U$1,1)),IF($F36="Быстрота2",INDEX(Быстрота2!$D$7:$U$9,MATCH(H36,Быстрота2!$C$7:$C$9,1),MATCH('ИР-тек'!$B$63,Быстрота2!$D$1:$U$1,1)),IF($F36="Ловкость1",INDEX(Ловкость1!$D$7:$U$9,MATCH(H36,Ловкость1!$C$7:$C$9,1),MATCH('ИР-тек'!$B$63,Ловкость1!$D$1:$U$1,1)),IF($F36="Ловкость2",INDEX(Ловкость2!$D$7:$U$9,MATCH(H36,Ловкость2!$C$7:$C$9,1),MATCH('ИР-тек'!$B$63,Ловкость2!$D$1:$U$1,1)),IF($F36="Гибкость1",INDEX(Гибкость1!$D$7:$U$9,MATCH(H36,Гибкость1!$C$7:$C$9,1),MATCH('ИР-тек'!$B$63,Гибкость1!$D$1:$U$1,1)),IF($F36="Гибкость2",INDEX(Гибкость2!$D$7:$U$9,MATCH(H36,Гибкость2!$C$7:$C$9,1),MATCH('ИР-тек'!$B$63,Гибкость2!$D$1:$U$1,1)),IF($F36="Волейбол1",INDEX(Волейбол1!$D$7:$U$9,MATCH(H36,Волейбол1!$C$7:$C$9,1),MATCH('ИР-тек'!$B$63,Волейбол1!$D$1:$U$1,1)),IF($F36="Волейбол2",INDEX(Волейбол2!$D$7:$U$9,MATCH(H36,Волейбол2!$C$7:$C$9,1),MATCH('ИР-тек'!$B$63,Волейбол2!$D$1:$U$1,1)),IF($F36="Баскетбол1",INDEX(Баскетбол1!$D$7:$U$9,MATCH(H36,Баскетбол1!$C$7:$C$9,1),MATCH('ИР-тек'!$B$63,Баскетбол1!$D$1:$U$1,1)),IF($F36="Баскетбол2",INDEX(Баскетбол2!$D$7:$U$9,MATCH(H36,Баскетбол2!$C$7:$C$9,1),MATCH('ИР-тек'!$B$63,Баскетбол2!$D$1:$U$1,1)),IF($F36="Футбол1",INDEX(Футбол1!$D$7:$U$9,MATCH(H36,Футбол1!$C$7:$C$9,1),MATCH('ИР-тек'!$B$63,Футбол1!$D$1:$U$1,1)),IF($F36="Футбол2",INDEX(Футбол2!$D$7:$U$9,MATCH(H36,Футбол2!$C$7:$C$9,1),MATCH('ИР-тек'!$B$63,Футбол2!$D$1:$U$1,1)))))))))))))))) -> ≥ 35 с | R36: =IF($D$17="Сила1",INDEX('Упр-ст'!$G$6:$AO$8,MATCH(H36,'Упр-ст'!$F$6:$F$8,1),MATCH('Упр-ст'!$B$28,'Упр-ст'!$G$4:$AO$4,1)),IF($D$17="Сила2",INDEX('Упр-ст'!$G$9:$AO$11,MATCH(H36,'Упр-ст'!$F$9:$F$11,1),MATCH('Упр-ст'!$B$28,'Упр-ст'!$G$4:$AO$4,1)),IF($D$17="Быстрота",INDEX('Упр-ст'!$G$15:$AO$17,MATCH(H36,'Упр-ст'!$F$15:$F$17,1),MATCH('Упр-ст'!$B$28,'Упр-ст'!$G$4:$AO$4,1)),IF($D$17="Ловкость",INDEX('Упр-ст'!$G$12:$AO$14,MATCH(H36,'Упр-ст'!$F$12:$F$14,1),MATCH('Упр-ст'!$B$28,'Упр-ст'!$G$4:$AO$4,1)),IF($D$17="Гибкость",INDEX('Упр-ст'!$G$18:$AO$20,MATCH(H36,'Упр-ст'!$F$18:$F$20,1),MATCH('Упр-ст'!$B$28,'Упр-ст'!$G$4:$AO$4,1))))))) -> 1.1
F37: =D35 -> Гибкость1 | H37: 3 упр | J37: =IF($F37="Сила1",INDEX(Сила1!$D$7:$U$9,MATCH(H37,Сила1!$C$7:$C$9,1),MATCH('ИР-тек'!$B$63,Сила1!$D$3:$R$3,1)),IF($F37="Сила2",INDEX(Сила2!$D$7:$U$9,MATCH(H37,Сила2!$C$7:$C$9,1),MATCH('ИР-тек'!$B$63,Сила2!$D$3:$R$3,1)),IF($F37="Быстрота1",INDEX(Быстрота1!$D$7:$U$9,MATCH(H37,Быстрота1!$C$7:$C$9,1),MATCH('ИР-тек'!$B$63,Быстрота1!$D$3:$R$3,1)),IF($F37="Быстрота2",INDEX(Быстрота2!$D$7:$U$9,MATCH(H37,Быстрота2!$C$7:$C$9,1),MATCH('ИР-тек'!$B$63,Быстрота2!$D$3:$R$3,1)),IF($F37="Ловкость1",INDEX(Ловкость1!$D$7:$U$9,MATCH(H37,Ловкость1!$C$7:$C$9,1),MATCH('ИР-тек'!$B$63,Ловкость1!$D$3:$R$3,1)),IF($F37="Ловкость2",INDEX(Ловкость2!$D$7:$U$9,MATCH(H37,Ловкость2!$C$7:$C$9,1),MATCH('ИР-тек'!$B$63,Ловкость2!$D$3:$R$3,1)),IF($F37="Гибкость1",INDEX(Гибкость1!$D$7:$U$9,MATCH(H37,Гибкость1!$C$7:$C$9,1),MATCH('ИР-тек'!$B$63,Гибкость1!$D$3:$R$3,1)),IF($F37="Гибкость2",INDEX(Гибкость2!$D$7:$U$9,MATCH(H37,Гибкость2!$C$7:$C$9,1),MATCH('ИР-тек'!$B$63,Гибкость2!$D$3:$R$3,1)),IF($F37="Волейбол1",INDEX(Волейбол1!$D$7:$U$9,MATCH(H37,Волейбол1!$C$7:$C$9,1),MATCH('ИР-тек'!$B$63,Волейбол1!$D$3:$R$3,1)),IF($F37="Волейбол2",INDEX(Волейбол2!$D$7:$U$9,MATCH(H37,Волейбол2!$C$7:$C$9,1),MATCH('ИР-тек'!$B$63,Волейбол2!$D$3:$R$3,1)),IF($F37="Баскетбол1",INDEX(Баскетбол1!$D$7:$U$9,MATCH(H37,Баскетбол1!$C$7:$C$9,1),MATCH('ИР-тек'!$B$63,Баскетбол1!$D$3:$R$3,1)),IF($F37="Баскетбол2",INDEX(Баскетбол2!$D$7:$U$9,MATCH(H37,Баскетбол2!$C$7:$C$9,1),MATCH('ИР-тек'!$B$63,Баскетбол2!$D$3:$R$3,1)),IF($F37="Футбол1",INDEX(Футбол1!$D$7:$U$9,MATCH(H37,Футбол1!$C$7:$C$9,1),MATCH('ИР-тек'!$B$63,Футбол1!$D$3:$R$3,1)),IF($F37="Футбол2",INDEX(Футбол2!$D$7:$U$9,MATCH(H37,Футбол2!$C$7:$C$9,1),MATCH('ИР-тек'!$B$63,Футбол2!$D$3:$R$3,1)))))))))))))))) -> Поворот вокруг своей оси влево-назад (вправо-назад) из седа ноги врозь с помощью (скручивание) | P37: =IF($F37="Сила1",INDEX(Сила1!$D$7:$U$9,MATCH(H37,Сила1!$C$7:$C$9,1),MATCH('ИР-тек'!$B$63,Сила1!$D$2:$U$2,1)),IF($F37="Сила2",INDEX(Сила2!$D$7:$U$9,MATCH(H37,Сила2!$C$7:$C$9,1),MATCH('ИР-тек'!$B$63,Сила2!$D$2:$U$2,1)),IF($F37="Быстрота1",INDEX(Быстрота1!$D$7:$U$9,MATCH(H37,Быстрота1!$C$7:$C$9,1),MATCH('ИР-тек'!$B$63,Быстрота1!$D$2:$U$2,1)),IF($F37="Быстрота2",INDEX(Быстрота2!$D$7:$U$9,MATCH(H37,Быстрота2!$C$7:$C$9,1),MATCH('ИР-тек'!$B$63,Быстрота2!$D$2:$U$2,1)),IF($F37="Ловкость1",INDEX(Ловкость1!$D$7:$U$9,MATCH(H37,Ловкость1!$C$7:$C$9,1),MATCH('ИР-тек'!$B$63,Ловкость1!$D$2:$U$2,1)),IF($F37="Ловкость2",INDEX(Ловкость2!$D$7:$U$9,MATCH(H37,Ловкость2!$C$7:$C$9,1),MATCH('ИР-тек'!$B$63,Ловкость2!$D$2:$U$2,1)),IF($F37="Гибкость1",INDEX(Гибкость1!$D$7:$U$9,MATCH(H37,Гибкость1!$C$7:$C$9,1),MATCH('ИР-тек'!$B$63,Гибкость1!$D$2:$U$2,1)),IF($F37="Гибкость2",INDEX(Гибкость2!$D$7:$U$9,MATCH(H37,Гибкость2!$C$7:$C$9,1),MATCH('ИР-тек'!$B$63,Гибкость2!$D$2:$U$2,1)),IF($F37="Волейбол1",INDEX(Волейбол1!$D$7:$U$9,MATCH(H37,Волейбол1!$C$7:$C$9,1),MATCH('ИР-тек'!$B$63,Волейбол1!$D$2:$U$2,1)),IF($F37="Волейбол2",INDEX(Волейбол2!$D$7:$U$9,MATCH(H37,Волейбол2!$C$7:$C$9,1),MATCH('ИР-тек'!$B$63,Волейбол2!$D$2:$U$2,1)),IF($F37="Баскетбол1",INDEX(Баскетбол1!$D$7:$U$9,MATCH(H37,Баскетбол1!$C$7:$C$9,1),MATCH('ИР-тек'!$B$63,Баскетбол1!$D$2:$U$2,1)),IF($F37="Баскетбол2",INDEX(Баскетбол2!$D$7:$U$9,MATCH(H37,Баскетбол2!$C$7:$C$9,1),MATCH('ИР-тек'!$B$63,Баскетбол2!$D$2:$U$2,1)),IF($F37="Футбол1",INDEX(Футбол1!$D$7:$U$9,MATCH(H37,Футбол1!$C$7:$C$9,1),MATCH('ИР-тек'!$B$63,Футбол1!$D$2:$U$2,1)),IF($F37="Футбол2",INDEX(Футбол2!$D$7:$U$9,MATCH(H37,Футбол2!$C$7:$C$9,1),MATCH('ИР-тек'!$B$63,Футбол2!$D$2:$U$2,1)))))))))))))))) -> 1 | Q37: =IF($F37="Сила1",INDEX(Сила1!$D$7:$U$9,MATCH(H37,Сила1!$C$7:$C$9,1),MATCH('ИР-тек'!$B$63,Сила1!$D$1:$U$1,1)),IF($F37="Сила2",INDEX(Сила2!$D$7:$U$9,MATCH(H37,Сила2!$C$7:$C$9,1),MATCH('ИР-тек'!$B$63,Сила2!$D$1:$U$1,1)),IF($F37="Быстрота1",INDEX(Быстрота1!$D$7:$U$9,MATCH(H37,Быстрота1!$C$7:$C$9,1),MATCH('ИР-тек'!$B$63,Быстрота1!$D$1:$U$1,1)),IF($F37="Быстрота2",INDEX(Быстрота2!$D$7:$U$9,MATCH(H37,Быстрота2!$C$7:$C$9,1),MATCH('ИР-тек'!$B$63,Быстрота2!$D$1:$U$1,1)),IF($F37="Ловкость1",INDEX(Ловкость1!$D$7:$U$9,MATCH(H37,Ловкость1!$C$7:$C$9,1),MATCH('ИР-тек'!$B$63,Ловкость1!$D$1:$U$1,1)),IF($F37="Ловкость2",INDEX(Ловкость2!$D$7:$U$9,MATCH(H37,Ловкость2!$C$7:$C$9,1),MATCH('ИР-тек'!$B$63,Ловкость2!$D$1:$U$1,1)),IF($F37="Гибкость1",INDEX(Гибкость1!$D$7:$U$9,MATCH(H37,Гибкость1!$C$7:$C$9,1),MATCH('ИР-тек'!$B$63,Гибкость1!$D$1:$U$1,1)),IF($F37="Гибкость2",INDEX(Гибкость2!$D$7:$U$9,MATCH(H37,Гибкость2!$C$7:$C$9,1),MATCH('ИР-тек'!$B$63,Гибкость2!$D$1:$U$1,1)),IF($F37="Волейбол1",INDEX(Волейбол1!$D$7:$U$9,MATCH(H37,Волейбол1!$C$7:$C$9,1),MATCH('ИР-тек'!$B$63,Волейбол1!$D$1:$U$1,1)),IF($F37="Волейбол2",INDEX(Волейбол2!$D$7:$U$9,MATCH(H37,Волейбол2!$C$7:$C$9,1),MATCH('ИР-тек'!$B$63,Волейбол2!$D$1:$U$1,1)),IF($F37="Баскетбол1",INDEX(Баскетбол1!$D$7:$U$9,MATCH(H37,Баскетбол1!$C$7:$C$9,1),MATCH('ИР-тек'!$B$63,Баскетбол1!$D$1:$U$1,1)),IF($F37="Баскетбол2",INDEX(Баскетбол2!$D$7:$U$9,MATCH(H37,Баскетбол2!$C$7:$C$9,1),MATCH('ИР-тек'!$B$63,Баскетбол2!$D$1:$U$1,1)),IF($F37="Футбол1",INDEX(Футбол1!$D$7:$U$9,MATCH(H37,Футбол1!$C$7:$C$9,1),MATCH('ИР-тек'!$B$63,Футбол1!$D$1:$U$1,1)),IF($F37="Футбол2",INDEX(Футбол2!$D$7:$U$9,MATCH(H37,Футбол2!$C$7:$C$9,1),MATCH('ИР-тек'!$B$63,Футбол2!$D$1:$U$1,1)))))))))))))))) -> ≥ 35 с | R37: =IF($D$17="Сила1",INDEX('Упр-ст'!$G$6:$AO$8,MATCH(H37,'Упр-ст'!$F$6:$F$8,1),MATCH('Упр-ст'!$B$28,'Упр-ст'!$G$4:$AO$4,1)),IF($D$17="Сила2",INDEX('Упр-ст'!$G$9:$AO$11,MATCH(H37,'Упр-ст'!$F$9:$F$11,1),MATCH('Упр-ст'!$B$28,'Упр-ст'!$G$4:$AO$4,1)),IF($D$17="Быстрота",INDEX('Упр-ст'!$G$15:$AO$17,MATCH(H37,'Упр-ст'!$F$15:$F$17,1),MATCH('Упр-ст'!$B$28,'Упр-ст'!$G$4:$AO$4,1)),IF($D$17="Ловкость",INDEX('Упр-ст'!$G$12:$AO$14,MATCH(H37,'Упр-ст'!$F$12:$F$14,1),MATCH('Упр-ст'!$B$28,'Упр-ст'!$G$4:$AO$4,1)),IF($D$17="Гибкость",INDEX('Упр-ст'!$G$18:$AO$20,MATCH(H37,'Упр-ст'!$F$18:$F$20,1),MATCH('Упр-ст'!$B$28,'Упр-ст'!$G$4:$AO$4,1))))))) -> 1.1
C38: 8-ая | D38: Гибкость2 | F38: =D38 -> Гибкость2 | G38: =IF(КИДР!D38="Сила1",'Table-IDK'!$B$271,IF(КИДР!D38="Сила2",'Table-IDK'!$B$271,IF(КИДР!D38="Быстрота",'Table-IDK'!$B$272,IF(КИДР!D38="Ловкость",'Table-IDK'!$B$273,IF(КИДР!D38="Гибкость",'Table-IDK'!$B$274,""))))) ->  | H38: 1 упр | J38: =IF($F38="Сила1",INDEX(Сила1!$D$7:$U$9,MATCH(H38,Сила1!$C$7:$C$9,1),MATCH('ИР-тек'!$B$63,Сила1!$D$3:$R$3,1)),IF($F38="Сила2",INDEX(Сила2!$D$7:$U$9,MATCH(H38,Сила2!$C$7:$C$9,1),MATCH('ИР-тек'!$B$63,Сила2!$D$3:$R$3,1)),IF($F38="Быстрота1",INDEX(Быстрота1!$D$7:$U$9,MATCH(H38,Быстрота1!$C$7:$C$9,1),MATCH('ИР-тек'!$B$63,Быстрота1!$D$3:$R$3,1)),IF($F38="Быстрота2",INDEX(Быстрота2!$D$7:$U$9,MATCH(H38,Быстрота2!$C$7:$C$9,1),MATCH('ИР-тек'!$B$63,Быстрота2!$D$3:$R$3,1)),IF($F38="Ловкость1",INDEX(Ловкость1!$D$7:$U$9,MATCH(H38,Ловкость1!$C$7:$C$9,1),MATCH('ИР-тек'!$B$63,Ловкость1!$D$3:$R$3,1)),IF($F38="Ловкость2",INDEX(Ловкость2!$D$7:$U$9,MATCH(H38,Ловкость2!$C$7:$C$9,1),MATCH('ИР-тек'!$B$63,Ловкость2!$D$3:$R$3,1)),IF($F38="Гибкость1",INDEX(Гибкость1!$D$7:$U$9,MATCH(H38,Гибкость1!$C$7:$C$9,1),MATCH('ИР-тек'!$B$63,Гибкость1!$D$3:$R$3,1)),IF($F38="Гибкость2",INDEX(Гибкость2!$D$7:$U$9,MATCH(H38,Гибкость2!$C$7:$C$9,1),MATCH('ИР-тек'!$B$63,Гибкость2!$D$3:$R$3,1)),IF($F38="Волейбол1",INDEX(Волейбол1!$D$7:$U$9,MATCH(H38,Волейбол1!$C$7:$C$9,1),MATCH('ИР-тек'!$B$63,Волейбол1!$D$3:$R$3,1)),IF($F38="Волейбол2",INDEX(Волейбол2!$D$7:$U$9,MATCH(H38,Волейбол2!$C$7:$C$9,1),MATCH('ИР-тек'!$B$63,Волейбол2!$D$3:$R$3,1)),IF($F38="Баскетбол1",INDEX(Баскетбол1!$D$7:$U$9,MATCH(H38,Баскетбол1!$C$7:$C$9,1),MATCH('ИР-тек'!$B$63,Баскетбол1!$D$3:$R$3,1)),IF($F38="Баскетбол2",INDEX(Баскетбол2!$D$7:$U$9,MATCH(H38,Баскетбол2!$C$7:$C$9,1),MATCH('ИР-тек'!$B$63,Баскетбол2!$D$3:$R$3,1)),IF($F38="Футбол1",INDEX(Футбол1!$D$7:$U$9,MATCH(H38,Футбол1!$C$7:$C$9,1),MATCH('ИР-тек'!$B$63,Футбол1!$D$3:$R$3,1)),IF($F38="Футбол2",INDEX(Футбол2!$D$7:$U$9,MATCH(H38,Футбол2!$C$7:$C$9,1),MATCH('ИР-тек'!$B$63,Футбол2!$D$3:$R$3,1)))))))))))))))) -> Переход из седа ноги врозь (ноги максимально раздвинуты в стороны) в упор ноги врозь (ноги максимально раздвинуты в стороны) и обратно | P38: =IF($F38="Сила1",INDEX(Сила1!$D$7:$U$9,MATCH(H38,Сила1!$C$7:$C$9,1),MATCH('ИР-тек'!$B$63,Сила1!$D$2:$U$2,1)),IF($F38="Сила2",INDEX(Сила2!$D$7:$U$9,MATCH(H38,Сила2!$C$7:$C$9,1),MATCH('ИР-тек'!$B$63,Сила2!$D$2:$U$2,1)),IF($F38="Быстрота1",INDEX(Быстрота1!$D$7:$U$9,MATCH(H38,Быстрота1!$C$7:$C$9,1),MATCH('ИР-тек'!$B$63,Быстрота1!$D$2:$U$2,1)),IF($F38="Быстрота2",INDEX(Быстрота2!$D$7:$U$9,MATCH(H38,Быстрота2!$C$7:$C$9,1),MATCH('ИР-тек'!$B$63,Быстрота2!$D$2:$U$2,1)),IF($F38="Ловкость1",INDEX(Ловкость1!$D$7:$U$9,MATCH(H38,Ловкость1!$C$7:$C$9,1),MATCH('ИР-тек'!$B$63,Ловкость1!$D$2:$U$2,1)),IF($F38="Ловкость2",INDEX(Ловкость2!$D$7:$U$9,MATCH(H38,Ловкость2!$C$7:$C$9,1),MATCH('ИР-тек'!$B$63,Ловкость2!$D$2:$U$2,1)),IF($F38="Гибкость1",INDEX(Гибкость1!$D$7:$U$9,MATCH(H38,Гибкость1!$C$7:$C$9,1),MATCH('ИР-тек'!$B$63,Гибкость1!$D$2:$U$2,1)),IF($F38="Гибкость2",INDEX(Гибкость2!$D$7:$U$9,MATCH(H38,Гибкость2!$C$7:$C$9,1),MATCH('ИР-тек'!$B$63,Гибкость2!$D$2:$U$2,1)),IF($F38="Волейбол1",INDEX(Волейбол1!$D$7:$U$9,MATCH(H38,Волейбол1!$C$7:$C$9,1),MATCH('ИР-тек'!$B$63,Волейбол1!$D$2:$U$2,1)),IF($F38="Волейбол2",INDEX(Волейбол2!$D$7:$U$9,MATCH(H38,Волейбол2!$C$7:$C$9,1),MATCH('ИР-тек'!$B$63,Волейбол2!$D$2:$U$2,1)),IF($F38="Баскетбол1",INDEX(Баскетбол1!$D$7:$U$9,MATCH(H38,Баскетбол1!$C$7:$C$9,1),MATCH('ИР-тек'!$B$63,Баскетбол1!$D$2:$U$2,1)),IF($F38="Баскетбол2",INDEX(Баскетбол2!$D$7:$U$9,MATCH(H38,Баскетбол2!$C$7:$C$9,1),MATCH('ИР-тек'!$B$63,Баскетбол2!$D$2:$U$2,1)),IF($F38="Футбол1",INDEX(Футбол1!$D$7:$U$9,MATCH(H38,Футбол1!$C$7:$C$9,1),MATCH('ИР-тек'!$B$63,Футбол1!$D$2:$U$2,1)),IF($F38="Футбол2",INDEX(Футбол2!$D$7:$U$9,MATCH(H38,Футбол2!$C$7:$C$9,1),MATCH('ИР-тек'!$B$63,Футбол2!$D$2:$U$2,1)))))))))))))))) -> 1 | Q38: =IF($F38="Сила1",INDEX(Сила1!$D$7:$U$9,MATCH(H38,Сила1!$C$7:$C$9,1),MATCH('ИР-тек'!$B$63,Сила1!$D$1:$U$1,1)),IF($F38="Сила2",INDEX(Сила2!$D$7:$U$9,MATCH(H38,Сила2!$C$7:$C$9,1),MATCH('ИР-тек'!$B$63,Сила2!$D$1:$U$1,1)),IF($F38="Быстрота1",INDEX(Быстрота1!$D$7:$U$9,MATCH(H38,Быстрота1!$C$7:$C$9,1),MATCH('ИР-тек'!$B$63,Быстрота1!$D$1:$U$1,1)),IF($F38="Быстрота2",INDEX(Быстрота2!$D$7:$U$9,MATCH(H38,Быстрота2!$C$7:$C$9,1),MATCH('ИР-тек'!$B$63,Быстрота2!$D$1:$U$1,1)),IF($F38="Ловкость1",INDEX(Ловкость1!$D$7:$U$9,MATCH(H38,Ловкость1!$C$7:$C$9,1),MATCH('ИР-тек'!$B$63,Ловкость1!$D$1:$U$1,1)),IF($F38="Ловкость2",INDEX(Ловкость2!$D$7:$U$9,MATCH(H38,Ловкость2!$C$7:$C$9,1),MATCH('ИР-тек'!$B$63,Ловкость2!$D$1:$U$1,1)),IF($F38="Гибкость1",INDEX(Гибкость1!$D$7:$U$9,MATCH(H38,Гибкость1!$C$7:$C$9,1),MATCH('ИР-тек'!$B$63,Гибкость1!$D$1:$U$1,1)),IF($F38="Гибкость2",INDEX(Гибкость2!$D$7:$U$9,MATCH(H38,Гибкость2!$C$7:$C$9,1),MATCH('ИР-тек'!$B$63,Гибкость2!$D$1:$U$1,1)),IF($F38="Волейбол1",INDEX(Волейбол1!$D$7:$U$9,MATCH(H38,Волейбол1!$C$7:$C$9,1),MATCH('ИР-тек'!$B$63,Волейбол1!$D$1:$U$1,1)),IF($F38="Волейбол2",INDEX(Волейбол2!$D$7:$U$9,MATCH(H38,Волейбол2!$C$7:$C$9,1),MATCH('ИР-тек'!$B$63,Волейбол2!$D$1:$U$1,1)),IF($F38="Баскетбол1",INDEX(Баскетбол1!$D$7:$U$9,MATCH(H38,Баскетбол1!$C$7:$C$9,1),MATCH('ИР-тек'!$B$63,Баскетбол1!$D$1:$U$1,1)),IF($F38="Баскетбол2",INDEX(Баскетбол2!$D$7:$U$9,MATCH(H38,Баскетбол2!$C$7:$C$9,1),MATCH('ИР-тек'!$B$63,Баскетбол2!$D$1:$U$1,1)),IF($F38="Футбол1",INDEX(Футбол1!$D$7:$U$9,MATCH(H38,Футбол1!$C$7:$C$9,1),MATCH('ИР-тек'!$B$63,Футбол1!$D$1:$U$1,1)),IF($F38="Футбол2",INDEX(Футбол2!$D$7:$U$9,MATCH(H38,Футбол2!$C$7:$C$9,1),MATCH('ИР-тек'!$B$63,Футбол2!$D$1:$U$1,1)))))))))))))))) -> ≥ 35 с | R38: =IF($D$17="Сила1",INDEX('Упр-ст'!$G$6:$AO$8,MATCH(H38,'Упр-ст'!$F$6:$F$8,1),MATCH('Упр-ст'!$B$28,'Упр-ст'!$G$4:$AO$4,1)),IF($D$17="Сила2",INDEX('Упр-ст'!$G$9:$AO$11,MATCH(H38,'Упр-ст'!$F$9:$F$11,1),MATCH('Упр-ст'!$B$28,'Упр-ст'!$G$4:$AO$4,1)),IF($D$17="Быстрота",INDEX('Упр-ст'!$G$15:$AO$17,MATCH(H38,'Упр-ст'!$F$15:$F$17,1),MATCH('Упр-ст'!$B$28,'Упр-ст'!$G$4:$AO$4,1)),IF($D$17="Ловкость",INDEX('Упр-ст'!$G$12:$AO$14,MATCH(H38,'Упр-ст'!$F$12:$F$14,1),MATCH('Упр-ст'!$B$28,'Упр-ст'!$G$4:$AO$4,1)),IF($D$17="Гибкость",INDEX('Упр-ст'!$G$18:$AO$20,MATCH(H38,'Упр-ст'!$F$18:$F$20,1),MATCH('Упр-ст'!$B$28,'Упр-ст'!$G$4:$AO$4,1))))))) -> 1.1
F39: =D38 -> Гибкость2 | H39: 2 упр | J39: =IF($F39="Сила1",INDEX(Сила1!$D$7:$U$9,MATCH(H39,Сила1!$C$7:$C$9,1),MATCH('ИР-тек'!$B$63,Сила1!$D$3:$R$3,1)),IF($F39="Сила2",INDEX(Сила2!$D$7:$U$9,MATCH(H39,Сила2!$C$7:$C$9,1),MATCH('ИР-тек'!$B$63,Сила2!$D$3:$R$3,1)),IF($F39="Быстрота1",INDEX(Быстрота1!$D$7:$U$9,MATCH(H39,Быстрота1!$C$7:$C$9,1),MATCH('ИР-тек'!$B$63,Быстрота1!$D$3:$R$3,1)),IF($F39="Быстрота2",INDEX(Быстрота2!$D$7:$U$9,MATCH(H39,Быстрота2!$C$7:$C$9,1),MATCH('ИР-тек'!$B$63,Быстрота2!$D$3:$R$3,1)),IF($F39="Ловкость1",INDEX(Ловкость1!$D$7:$U$9,MATCH(H39,Ловкость1!$C$7:$C$9,1),MATCH('ИР-тек'!$B$63,Ловкость1!$D$3:$R$3,1)),IF($F39="Ловкость2",INDEX(Ловкость2!$D$7:$U$9,MATCH(H39,Ловкость2!$C$7:$C$9,1),MATCH('ИР-тек'!$B$63,Ловкость2!$D$3:$R$3,1)),IF($F39="Гибкость1",INDEX(Гибкость1!$D$7:$U$9,MATCH(H39,Гибкость1!$C$7:$C$9,1),MATCH('ИР-тек'!$B$63,Гибкость1!$D$3:$R$3,1)),IF($F39="Гибкость2",INDEX(Гибкость2!$D$7:$U$9,MATCH(H39,Гибкость2!$C$7:$C$9,1),MATCH('ИР-тек'!$B$63,Гибкость2!$D$3:$R$3,1)),IF($F39="Волейбол1",INDEX(Волейбол1!$D$7:$U$9,MATCH(H39,Волейбол1!$C$7:$C$9,1),MATCH('ИР-тек'!$B$63,Волейбол1!$D$3:$R$3,1)),IF($F39="Волейбол2",INDEX(Волейбол2!$D$7:$U$9,MATCH(H39,Волейбол2!$C$7:$C$9,1),MATCH('ИР-тек'!$B$63,Волейбол2!$D$3:$R$3,1)),IF($F39="Баскетбол1",INDEX(Баскетбол1!$D$7:$U$9,MATCH(H39,Баскетбол1!$C$7:$C$9,1),MATCH('ИР-тек'!$B$63,Баскетбол1!$D$3:$R$3,1)),IF($F39="Баскетбол2",INDEX(Баскетбол2!$D$7:$U$9,MATCH(H39,Баскетбол2!$C$7:$C$9,1),MATCH('ИР-тек'!$B$63,Баскетбол2!$D$3:$R$3,1)),IF($F39="Футбол1",INDEX(Футбол1!$D$7:$U$9,MATCH(H39,Футбол1!$C$7:$C$9,1),MATCH('ИР-тек'!$B$63,Футбол1!$D$3:$R$3,1)),IF($F39="Футбол2",INDEX(Футбол2!$D$7:$U$9,MATCH(H39,Футбол2!$C$7:$C$9,1),MATCH('ИР-тек'!$B$63,Футбол2!$D$3:$R$3,1)))))))))))))))) -> Переход из седа на пятках в полушпагат левой, а затем праой ногой с опорой руками о пол | P39: =IF($F39="Сила1",INDEX(Сила1!$D$7:$U$9,MATCH(H39,Сила1!$C$7:$C$9,1),MATCH('ИР-тек'!$B$63,Сила1!$D$2:$U$2,1)),IF($F39="Сила2",INDEX(Сила2!$D$7:$U$9,MATCH(H39,Сила2!$C$7:$C$9,1),MATCH('ИР-тек'!$B$63,Сила2!$D$2:$U$2,1)),IF($F39="Быстрота1",INDEX(Быстрота1!$D$7:$U$9,MATCH(H39,Быстрота1!$C$7:$C$9,1),MATCH('ИР-тек'!$B$63,Быстрота1!$D$2:$U$2,1)),IF($F39="Быстрота2",INDEX(Быстрота2!$D$7:$U$9,MATCH(H39,Быстрота2!$C$7:$C$9,1),MATCH('ИР-тек'!$B$63,Быстрота2!$D$2:$U$2,1)),IF($F39="Ловкость1",INDEX(Ловкость1!$D$7:$U$9,MATCH(H39,Ловкость1!$C$7:$C$9,1),MATCH('ИР-тек'!$B$63,Ловкость1!$D$2:$U$2,1)),IF($F39="Ловкость2",INDEX(Ловкость2!$D$7:$U$9,MATCH(H39,Ловкость2!$C$7:$C$9,1),MATCH('ИР-тек'!$B$63,Ловкость2!$D$2:$U$2,1)),IF($F39="Гибкость1",INDEX(Гибкость1!$D$7:$U$9,MATCH(H39,Гибкость1!$C$7:$C$9,1),MATCH('ИР-тек'!$B$63,Гибкость1!$D$2:$U$2,1)),IF($F39="Гибкость2",INDEX(Гибкость2!$D$7:$U$9,MATCH(H39,Гибкость2!$C$7:$C$9,1),MATCH('ИР-тек'!$B$63,Гибкость2!$D$2:$U$2,1)),IF($F39="Волейбол1",INDEX(Волейбол1!$D$7:$U$9,MATCH(H39,Волейбол1!$C$7:$C$9,1),MATCH('ИР-тек'!$B$63,Волейбол1!$D$2:$U$2,1)),IF($F39="Волейбол2",INDEX(Волейбол2!$D$7:$U$9,MATCH(H39,Волейбол2!$C$7:$C$9,1),MATCH('ИР-тек'!$B$63,Волейбол2!$D$2:$U$2,1)),IF($F39="Баскетбол1",INDEX(Баскетбол1!$D$7:$U$9,MATCH(H39,Баскетбол1!$C$7:$C$9,1),MATCH('ИР-тек'!$B$63,Баскетбол1!$D$2:$U$2,1)),IF($F39="Баскетбол2",INDEX(Баскетбол2!$D$7:$U$9,MATCH(H39,Баскетбол2!$C$7:$C$9,1),MATCH('ИР-тек'!$B$63,Баскетбол2!$D$2:$U$2,1)),IF($F39="Футбол1",INDEX(Футбол1!$D$7:$U$9,MATCH(H39,Футбол1!$C$7:$C$9,1),MATCH('ИР-тек'!$B$63,Футбол1!$D$2:$U$2,1)),IF($F39="Футбол2",INDEX(Футбол2!$D$7:$U$9,MATCH(H39,Футбол2!$C$7:$C$9,1),MATCH('ИР-тек'!$B$63,Футбол2!$D$2:$U$2,1)))))))))))))))) -> 1 | Q39: =IF($F39="Сила1",INDEX(Сила1!$D$7:$U$9,MATCH(H39,Сила1!$C$7:$C$9,1),MATCH('ИР-тек'!$B$63,Сила1!$D$1:$U$1,1)),IF($F39="Сила2",INDEX(Сила2!$D$7:$U$9,MATCH(H39,Сила2!$C$7:$C$9,1),MATCH('ИР-тек'!$B$63,Сила2!$D$1:$U$1,1)),IF($F39="Быстрота1",INDEX(Быстрота1!$D$7:$U$9,MATCH(H39,Быстрота1!$C$7:$C$9,1),MATCH('ИР-тек'!$B$63,Быстрота1!$D$1:$U$1,1)),IF($F39="Быстрота2",INDEX(Быстрота2!$D$7:$U$9,MATCH(H39,Быстрота2!$C$7:$C$9,1),MATCH('ИР-тек'!$B$63,Быстрота2!$D$1:$U$1,1)),IF($F39="Ловкость1",INDEX(Ловкость1!$D$7:$U$9,MATCH(H39,Ловкость1!$C$7:$C$9,1),MATCH('ИР-тек'!$B$63,Ловкость1!$D$1:$U$1,1)),IF($F39="Ловкость2",INDEX(Ловкость2!$D$7:$U$9,MATCH(H39,Ловкость2!$C$7:$C$9,1),MATCH('ИР-тек'!$B$63,Ловкость2!$D$1:$U$1,1)),IF($F39="Гибкость1",INDEX(Гибкость1!$D$7:$U$9,MATCH(H39,Гибкость1!$C$7:$C$9,1),MATCH('ИР-тек'!$B$63,Гибкость1!$D$1:$U$1,1)),IF($F39="Гибкость2",INDEX(Гибкость2!$D$7:$U$9,MATCH(H39,Гибкость2!$C$7:$C$9,1),MATCH('ИР-тек'!$B$63,Гибкость2!$D$1:$U$1,1)),IF($F39="Волейбол1",INDEX(Волейбол1!$D$7:$U$9,MATCH(H39,Волейбол1!$C$7:$C$9,1),MATCH('ИР-тек'!$B$63,Волейбол1!$D$1:$U$1,1)),IF($F39="Волейбол2",INDEX(Волейбол2!$D$7:$U$9,MATCH(H39,Волейбол2!$C$7:$C$9,1),MATCH('ИР-тек'!$B$63,Волейбол2!$D$1:$U$1,1)),IF($F39="Баскетбол1",INDEX(Баскетбол1!$D$7:$U$9,MATCH(H39,Баскетбол1!$C$7:$C$9,1),MATCH('ИР-тек'!$B$63,Баскетбол1!$D$1:$U$1,1)),IF($F39="Баскетбол2",INDEX(Баскетбол2!$D$7:$U$9,MATCH(H39,Баскетбол2!$C$7:$C$9,1),MATCH('ИР-тек'!$B$63,Баскетбол2!$D$1:$U$1,1)),IF($F39="Футбол1",INDEX(Футбол1!$D$7:$U$9,MATCH(H39,Футбол1!$C$7:$C$9,1),MATCH('ИР-тек'!$B$63,Футбол1!$D$1:$U$1,1)),IF($F39="Футбол2",INDEX(Футбол2!$D$7:$U$9,MATCH(H39,Футбол2!$C$7:$C$9,1),MATCH('ИР-тек'!$B$63,Футбол2!$D$1:$U$1,1)))))))))))))))) -> ≥ 35 с | R39: =IF($D$17="Сила1",INDEX('Упр-ст'!$G$6:$AO$8,MATCH(H39,'Упр-ст'!$F$6:$F$8,1),MATCH('Упр-ст'!$B$28,'Упр-ст'!$G$4:$AO$4,1)),IF($D$17="Сила2",INDEX('Упр-ст'!$G$9:$AO$11,MATCH(H39,'Упр-ст'!$F$9:$F$11,1),MATCH('Упр-ст'!$B$28,'Упр-ст'!$G$4:$AO$4,1)),IF($D$17="Быстрота",INDEX('Упр-ст'!$G$15:$AO$17,MATCH(H39,'Упр-ст'!$F$15:$F$17,1),MATCH('Упр-ст'!$B$28,'Упр-ст'!$G$4:$AO$4,1)),IF($D$17="Ловкость",INDEX('Упр-ст'!$G$12:$AO$14,MATCH(H39,'Упр-ст'!$F$12:$F$14,1),MATCH('Упр-ст'!$B$28,'Упр-ст'!$G$4:$AO$4,1)),IF($D$17="Гибкость",INDEX('Упр-ст'!$G$18:$AO$20,MATCH(H39,'Упр-ст'!$F$18:$F$20,1),MATCH('Упр-ст'!$B$28,'Упр-ст'!$G$4:$AO$4,1))))))) -> 1.1
F40: =D38 -> Гибкость2 | H40: 3 упр | J40: =IF($F40="Сила1",INDEX(Сила1!$D$7:$U$9,MATCH(H40,Сила1!$C$7:$C$9,1),MATCH('ИР-тек'!$B$63,Сила1!$D$3:$R$3,1)),IF($F40="Сила2",INDEX(Сила2!$D$7:$U$9,MATCH(H40,Сила2!$C$7:$C$9,1),MATCH('ИР-тек'!$B$63,Сила2!$D$3:$R$3,1)),IF($F40="Быстрота1",INDEX(Быстрота1!$D$7:$U$9,MATCH(H40,Быстрота1!$C$7:$C$9,1),MATCH('ИР-тек'!$B$63,Быстрота1!$D$3:$R$3,1)),IF($F40="Быстрота2",INDEX(Быстрота2!$D$7:$U$9,MATCH(H40,Быстрота2!$C$7:$C$9,1),MATCH('ИР-тек'!$B$63,Быстрота2!$D$3:$R$3,1)),IF($F40="Ловкость1",INDEX(Ловкость1!$D$7:$U$9,MATCH(H40,Ловкость1!$C$7:$C$9,1),MATCH('ИР-тек'!$B$63,Ловкость1!$D$3:$R$3,1)),IF($F40="Ловкость2",INDEX(Ловкость2!$D$7:$U$9,MATCH(H40,Ловкость2!$C$7:$C$9,1),MATCH('ИР-тек'!$B$63,Ловкость2!$D$3:$R$3,1)),IF($F40="Гибкость1",INDEX(Гибкость1!$D$7:$U$9,MATCH(H40,Гибкость1!$C$7:$C$9,1),MATCH('ИР-тек'!$B$63,Гибкость1!$D$3:$R$3,1)),IF($F40="Гибкость2",INDEX(Гибкость2!$D$7:$U$9,MATCH(H40,Гибкость2!$C$7:$C$9,1),MATCH('ИР-тек'!$B$63,Гибкость2!$D$3:$R$3,1)),IF($F40="Волейбол1",INDEX(Волейбол1!$D$7:$U$9,MATCH(H40,Волейбол1!$C$7:$C$9,1),MATCH('ИР-тек'!$B$63,Волейбол1!$D$3:$R$3,1)),IF($F40="Волейбол2",INDEX(Волейбол2!$D$7:$U$9,MATCH(H40,Волейбол2!$C$7:$C$9,1),MATCH('ИР-тек'!$B$63,Волейбол2!$D$3:$R$3,1)),IF($F40="Баскетбол1",INDEX(Баскетбол1!$D$7:$U$9,MATCH(H40,Баскетбол1!$C$7:$C$9,1),MATCH('ИР-тек'!$B$63,Баскетбол1!$D$3:$R$3,1)),IF($F40="Баскетбол2",INDEX(Баскетбол2!$D$7:$U$9,MATCH(H40,Баскетбол2!$C$7:$C$9,1),MATCH('ИР-тек'!$B$63,Баскетбол2!$D$3:$R$3,1)),IF($F40="Футбол1",INDEX(Футбол1!$D$7:$U$9,MATCH(H40,Футбол1!$C$7:$C$9,1),MATCH('ИР-тек'!$B$63,Футбол1!$D$3:$R$3,1)),IF($F40="Футбол2",INDEX(Футбол2!$D$7:$U$9,MATCH(H40,Футбол2!$C$7:$C$9,1),MATCH('ИР-тек'!$B$63,Футбол2!$D$3:$R$3,1)))))))))))))))) -> Разведение и сведение ног в стороны с максимальной амплитудой в стойке на лопатках | P40: =IF($F40="Сила1",INDEX(Сила1!$D$7:$U$9,MATCH(H40,Сила1!$C$7:$C$9,1),MATCH('ИР-тек'!$B$63,Сила1!$D$2:$U$2,1)),IF($F40="Сила2",INDEX(Сила2!$D$7:$U$9,MATCH(H40,Сила2!$C$7:$C$9,1),MATCH('ИР-тек'!$B$63,Сила2!$D$2:$U$2,1)),IF($F40="Быстрота1",INDEX(Быстрота1!$D$7:$U$9,MATCH(H40,Быстрота1!$C$7:$C$9,1),MATCH('ИР-тек'!$B$63,Быстрота1!$D$2:$U$2,1)),IF($F40="Быстрота2",INDEX(Быстрота2!$D$7:$U$9,MATCH(H40,Быстрота2!$C$7:$C$9,1),MATCH('ИР-тек'!$B$63,Быстрота2!$D$2:$U$2,1)),IF($F40="Ловкость1",INDEX(Ловкость1!$D$7:$U$9,MATCH(H40,Ловкость1!$C$7:$C$9,1),MATCH('ИР-тек'!$B$63,Ловкость1!$D$2:$U$2,1)),IF($F40="Ловкость2",INDEX(Ловкость2!$D$7:$U$9,MATCH(H40,Ловкость2!$C$7:$C$9,1),MATCH('ИР-тек'!$B$63,Ловкость2!$D$2:$U$2,1)),IF($F40="Гибкость1",INDEX(Гибкость1!$D$7:$U$9,MATCH(H40,Гибкость1!$C$7:$C$9,1),MATCH('ИР-тек'!$B$63,Гибкость1!$D$2:$U$2,1)),IF($F40="Гибкость2",INDEX(Гибкость2!$D$7:$U$9,MATCH(H40,Гибкость2!$C$7:$C$9,1),MATCH('ИР-тек'!$B$63,Гибкость2!$D$2:$U$2,1)),IF($F40="Волейбол1",INDEX(Волейбол1!$D$7:$U$9,MATCH(H40,Волейбол1!$C$7:$C$9,1),MATCH('ИР-тек'!$B$63,Волейбол1!$D$2:$U$2,1)),IF($F40="Волейбол2",INDEX(Волейбол2!$D$7:$U$9,MATCH(H40,Волейбол2!$C$7:$C$9,1),MATCH('ИР-тек'!$B$63,Волейбол2!$D$2:$U$2,1)),IF($F40="Баскетбол1",INDEX(Баскетбол1!$D$7:$U$9,MATCH(H40,Баскетбол1!$C$7:$C$9,1),MATCH('ИР-тек'!$B$63,Баскетбол1!$D$2:$U$2,1)),IF($F40="Баскетбол2",INDEX(Баскетбол2!$D$7:$U$9,MATCH(H40,Баскетбол2!$C$7:$C$9,1),MATCH('ИР-тек'!$B$63,Баскетбол2!$D$2:$U$2,1)),IF($F40="Футбол1",INDEX(Футбол1!$D$7:$U$9,MATCH(H40,Футбол1!$C$7:$C$9,1),MATCH('ИР-тек'!$B$63,Футбол1!$D$2:$U$2,1)),IF($F40="Футбол2",INDEX(Футбол2!$D$7:$U$9,MATCH(H40,Футбол2!$C$7:$C$9,1),MATCH('ИР-тек'!$B$63,Футбол2!$D$2:$U$2,1)))))))))))))))) -> 1 | Q40: =IF($F40="Сила1",INDEX(Сила1!$D$7:$U$9,MATCH(H40,Сила1!$C$7:$C$9,1),MATCH('ИР-тек'!$B$63,Сила1!$D$1:$U$1,1)),IF($F40="Сила2",INDEX(Сила2!$D$7:$U$9,MATCH(H40,Сила2!$C$7:$C$9,1),MATCH('ИР-тек'!$B$63,Сила2!$D$1:$U$1,1)),IF($F40="Быстрота1",INDEX(Быстрота1!$D$7:$U$9,MATCH(H40,Быстрота1!$C$7:$C$9,1),MATCH('ИР-тек'!$B$63,Быстрота1!$D$1:$U$1,1)),IF($F40="Быстрота2",INDEX(Быстрота2!$D$7:$U$9,MATCH(H40,Быстрота2!$C$7:$C$9,1),MATCH('ИР-тек'!$B$63,Быстрота2!$D$1:$U$1,1)),IF($F40="Ловкость1",INDEX(Ловкость1!$D$7:$U$9,MATCH(H40,Ловкость1!$C$7:$C$9,1),MATCH('ИР-тек'!$B$63,Ловкость1!$D$1:$U$1,1)),IF($F40="Ловкость2",INDEX(Ловкость2!$D$7:$U$9,MATCH(H40,Ловкость2!$C$7:$C$9,1),MATCH('ИР-тек'!$B$63,Ловкость2!$D$1:$U$1,1)),IF($F40="Гибкость1",INDEX(Гибкость1!$D$7:$U$9,MATCH(H40,Гибкость1!$C$7:$C$9,1),MATCH('ИР-тек'!$B$63,Гибкость1!$D$1:$U$1,1)),IF($F40="Гибкость2",INDEX(Гибкость2!$D$7:$U$9,MATCH(H40,Гибкость2!$C$7:$C$9,1),MATCH('ИР-тек'!$B$63,Гибкость2!$D$1:$U$1,1)),IF($F40="Волейбол1",INDEX(Волейбол1!$D$7:$U$9,MATCH(H40,Волейбол1!$C$7:$C$9,1),MATCH('ИР-тек'!$B$63,Волейбол1!$D$1:$U$1,1)),IF($F40="Волейбол2",INDEX(Волейбол2!$D$7:$U$9,MATCH(H40,Волейбол2!$C$7:$C$9,1),MATCH('ИР-тек'!$B$63,Волейбол2!$D$1:$U$1,1)),IF($F40="Баскетбол1",INDEX(Баскетбол1!$D$7:$U$9,MATCH(H40,Баскетбол1!$C$7:$C$9,1),MATCH('ИР-тек'!$B$63,Баскетбол1!$D$1:$U$1,1)),IF($F40="Баскетбол2",INDEX(Баскетбол2!$D$7:$U$9,MATCH(H40,Баскетбол2!$C$7:$C$9,1),MATCH('ИР-тек'!$B$63,Баскетбол2!$D$1:$U$1,1)),IF($F40="Футбол1",INDEX(Футбол1!$D$7:$U$9,MATCH(H40,Футбол1!$C$7:$C$9,1),MATCH('ИР-тек'!$B$63,Футбол1!$D$1:$U$1,1)),IF($F40="Футбол2",INDEX(Футбол2!$D$7:$U$9,MATCH(H40,Футбол2!$C$7:$C$9,1),MATCH('ИР-тек'!$B$63,Футбол2!$D$1:$U$1,1)))))))))))))))) -> ≥ 35 с | R40: =IF($D$17="Сила1",INDEX('Упр-ст'!$G$6:$AO$8,MATCH(H40,'Упр-ст'!$F$6:$F$8,1),MATCH('Упр-ст'!$B$28,'Упр-ст'!$G$4:$AO$4,1)),IF($D$17="Сила2",INDEX('Упр-ст'!$G$9:$AO$11,MATCH(H40,'Упр-ст'!$F$9:$F$11,1),MATCH('Упр-ст'!$B$28,'Упр-ст'!$G$4:$AO$4,1)),IF($D$17="Быстрота",INDEX('Упр-ст'!$G$15:$AO$17,MATCH(H40,'Упр-ст'!$F$15:$F$17,1),MATCH('Упр-ст'!$B$28,'Упр-ст'!$G$4:$AO$4,1)),IF($D$17="Ловкость",INDEX('Упр-ст'!$G$12:$AO$14,MATCH(H40,'Упр-ст'!$F$12:$F$14,1),MATCH('Упр-ст'!$B$28,'Упр-ст'!$G$4:$AO$4,1)),IF($D$17="Гибкость",INDEX('Упр-ст'!$G$18:$AO$20,MATCH(H40,'Упр-ст'!$F$18:$F$20,1),MATCH('Упр-ст'!$B$28,'Упр-ст'!$G$4:$AO$4,1))))))) -> 1.1
B41: Учебная игра в | K41: =IF(D20="Баскетбол1","баскетбол,",IF(D20="Баскетбол2","баскетбол,",IF(D20="Баскетбол3","баскетбол,","волейбол,"))) -> волейбол, | M41: 20-25 мин | Q41: -
B42: Заключительная часть занятия | Q42: №2
B43: Физическое упражнение | Q43: n*
B44: =INDEX(ВосстГимн!$D$7:$U$9,MATCH(H17,ВосстГимн!$C$7:$C$9,1),MATCH('ИР-тек'!$B$63,ВосстГимн!$D$3:$R$3,1)) -> Упор лежа на предпречьях (планка) | P44: =INDEX(ВосстГимн!$D$7:$U$9,MATCH(H17,ВосстГимн!$C$7:$C$9,1),MATCH('ИР-тек'!$B$63,ВосстГимн!$D$2:$U$2,1)) -> 1 | Q44: =INDEX(ВосстГимн!$D$7:$U$9,MATCH(H17,ВосстГимн!$C$7:$C$9,1),MATCH('ИР-тек'!$B$63,ВосстГимн!$D$1:$U$1,1)) -> 45 с
B45: =INDEX(ВосстГимн!$D$7:$U$9,MATCH(H18,ВосстГимн!$C$7:$C$9,1),MATCH('ИР-тек'!$B$63,ВосстГимн!$D$3:$R$3,1)) -> Упор лежа сзади с согнутыми в коленях ногами (угол 90 °) | P45: =INDEX(ВосстГимн!$D$7:$U$9,MATCH(H18,ВосстГимн!$C$7:$C$9,1),MATCH('ИР-тек'!$B$63,ВосстГимн!$D$2:$U$2,1)) -> 1 | Q45: =INDEX(ВосстГимн!$D$7:$U$9,MATCH(H18,ВосстГимн!$C$7:$C$9,1),MATCH('ИР-тек'!$B$63,ВосстГимн!$D$1:$U$1,1)) -> 45 с
B46: =INDEX(ВосстГимн!$D$7:$U$9,MATCH(H19,ВосстГимн!$C$7:$C$9,1),MATCH('ИР-тек'!$B$63,ВосстГимн!$D$3:$R$3,1)) -> Упор лежа на боку на предплечье (левом и правом поочередно) | P46: =INDEX(ВосстГимн!$D$7:$U$9,MATCH(H19,ВосстГимн!$C$7:$C$9,1),MATCH('ИР-тек'!$B$63,ВосстГимн!$D$2:$U$2,1)) -> 1 | Q46: =INDEX(ВосстГимн!$D$7:$U$9,MATCH(H19,ВосстГимн!$C$7:$C$9,1),MATCH('ИР-тек'!$B$63,ВосстГимн!$D$1:$U$1,1)) -> 45 с
B48: =IF($Q$42="№1",'Упр-ст'!D52,IF($Q$42="№2",'Упр-ст'!D57,IF($Q$42="№3",'Упр-ст'!D62,""))) -> Разбор занятия, 3 мин
B50: *Примечание: p – количество подходов; n – количество повторений в подходе (разы, мах - максимальное); t – время восстановления между
B51: упражнениями, если предусмотрено его изменение в зависимости от вида упражнения; ФК и ДН – физические качества и двигательные навыки;
B52: ТО ФК и ДН – тестовая оценка физических качеств и двигательных навыков; УС – уровень сложности; ВГ – восстановительная гимнастика;
B53: * - на технических станциях (волейбол, баскетбол, футбол и др.) оценка заносится по уровню владения навыком или ловкости.

Sheet ИР-тек
A1: Текущий индекс Руфье (сегодня!)
A2: измеряется ежедневно перед занятиями физическими упражнениями
B3: Проба Руфье — Диксона. После пятиминутного отдыха в положении сидя, определяется пульс за 15 секунд (P1); затем в течение 45 секунд выполняется 30 приседаний. После окончания нагрузки сидя вновь подсчитывается пульс за первые 15 секунд (Р2), а потом — за последние 15 секунд (Р3) первой минуты периода восстановления (через 45 секунд после выполнения физической нагрузки). Индекс Руфье = (4 х (Р1 + Р2 + Р3) — 200) / 10.
B4: Р1 - пульс в состоянии покоя за 15 с., удары;
B5: 20
B6: Р2 - пульс за 15 с. после физической нагрузки, удары;
B7: 25
B8: Р3 - пульс за 15 с. через 45 секунд после физич. нагрузки, удары;
B9: 18
B10: Индекс Руфье, балл;
B11: =(4*(B5+B7+B9)-200)/10 -> 5.2
B13: +/- | C13: (разница текущего и исходного ИР)
A14: =IF(B14>0,"+",IF(B14=0,"+","-")) -> + | B14: =B11-КИДР!K8 -> 4.4
A40: Список
A41: выбора
A42: ФК
A43: Сила1
A44: Сила2
A45: Быстрота1 | B45: ='Table-IDK'!B271 -> 2.714285714
A46: Быстрота2
A47: Гибкость1
A48: Гибкость2
A49: Ловкость1 | B49: ='Table-IDK'!B272 -> 2
A50: Ловкость2
A51: Баскетбол1 | B51: ='Table-IDK'!B273 -> 2.5
A52: Баскетбол2
A53: Волейбол1
A54: Волейбол2
A55: Футбол1
A56: Футбол2
A58: ДН | B58: ='Table-IDK'!B274 -> 4
A60: УДК | B60: =КИДР!P6 -> 3
A61: Выносливость | B61: ='Table-IDK'!B275 -> 4
A63: УС | B63: =IF(((B60+B61)/2)<3,1,IF(((B60+B61)/2)>4,3,2)) -> 2

Sheet Упр-ст
C1: n | N1: 1 | AA1: 2 | AN1: 3
C2: p | M2: 1 | Z2: 2 | AM2: 3
C3: ФУ | G3: 1 | T3: 2 | AG3: 3
C4: k | O4: 1 | AB4: 2 | AO4: 3
D5: ФК | F5: № упр | G5: Физическое упражнение первый уровень сложности | M5: p* | N5: n* | O5: k* | P5: УС | Q5: ФК | S5: № упр | T5: Физическое упражнение второй уровень сложности | Z5: p* | AA5: n* | AB5: k* | AD5: ФК | AF5: № упр | AG5: Физическое упражнение третий уровень сложности | AM5: p* | AN5: n* | AO5: k*
A6: Список | D6: Сила1 | F6: 1 упр | G6: Подтягивание в висе стоя | M6: 3 | N6: 8 | O6: 1 | P6: 1 | Q6: Сила1 | S6: 1 упр | T6: Подтягивание в висе лежа | Z6: 2 | AA6: 8 | AB6: 1.1 | AC6: 2 | AD6: Сила1 | AF6: 1 упр | AG6: Подтягивание в висе | AM6: 1 | AN6: 5 | AO6: 1.2 | AP6: 3
A7: выбора | F7: 2 упр | G7: Отжимания в упоре лежа руки шире плеч | M7: 3 | N7: 12 | O7: 1 | S7: 2 упр | T7: Отжимания в упоре лежа руки на ширине плеч | Z7: 2 | AA7: 12 | AB7: 1.1 | AF7: 2 упр | AG7: Отжимания в упоре лежа руки вместе | AM7: 1 | AN7: 6 | AO7: 1.3
A8: ФК | F8: 3 упр | G8: Подъем туловища руки вдоль туловища | M8: 3 | N8: 15 | O8: 1 | S8: 3 упр | T8: Подъем туловища кисти рук на плечах | Z8: 2 | AA8: 15 | AB8: 1.1 | AF8: 3 упр | AG8: Подъем туловища кисти рук в замок за голову | AM8: 1 | AN8: 7 | AO8: 1.4
A9: Сила1 | D9: Сила2 | F9: 1 упр | G9: Приседание на левой с опорой рукой о стену на уровне плеча | M9: 3 | N9: 6 | O9: 1 | P9: 1 | Q9: Сила2 | S9: 1 упр | T9: Приседание на левой с опорой рукой о стену на уровне пояса | Z9: 2 | AA9: 6 | AB9: 1.1 | AC9: 2 | AD9: Сила2 | AF9: 1 упр | AG9: Приседание на левой без опоры рукой о стену | AM9: 1 | AN9: 6 | AO9: 1.2 | AP9: 3
A10: Сила2 | F10: 2 упр | G10: Приседание на правой с опорой рукой о стену на уровне плеча | M10: 3 | N10: 6 | O10: 1 | S10: 2 упр | T10: Приседание на правой с опорой рукой о стену на уровне пояса | Z10: 2 | AA10: 6 | AB10: 1.15 | AF10: 2 упр | AG10: Приседание на правой без опоры рукой о стену | AM10: 1 | AN10: 6 | AO10: 1.3
A11: Быстрота | B11: ='Table-IDK'!B271 -> 2.714285714 | F11: 3 упр | G11: Прыжки вверх из упора полу-присев | M11: 3 | N11: 9 | O11: 1 | S11: 3 упр | T11: Прыжки вверх из упора присев | Z11: 2 | AA11: 9 | AB11: 1.2 | AF11: 3 упр | AG11: Прыжки вверх из упора присев с утяжелителями до 5 кг | AM11: 1 | AN11: 8 | AO11: 1.4
A12: Гибкость | D12: Ловкость | F12: 1 упр | G12: Челночный бег 10 х 3 м | M12: 3 | N12: 1 | O12: 1 | P12: 1 | Q12: Ловкость | S12: 1 упр | T12: Челночный бег 8 х 5 м | Z12: 2 | AA12: 1 | AB12: 1.1 | AC12: 2 | AD12: Ловкость | AF12: 1 упр | AG12: Челночный бег 6 х 7 м | AM12: 3 | AN12: 1 | AO12: 1.2 | AP12: 3
A13: Ловкость | B13: ='Table-IDK'!B272 -> 2 | F13: 2 упр | G13: Из наклона вперед в стойку ноги вместе поворот прыжком вокруг своей оси влево | M13: 3 | N13: 8 | O13: 1 | S13: 2 упр | T13: Из упора полу-присев в стойку ноги вместе поворот прыжком вокруг своей оси влево | Z13: 2 | AA13: 8 | AB13: 1.15 | AF13: 2 упр | AG13: Из упора присев в стойку ноги вместе поворот прыжком вокруг своей оси влево | AM13: 3 | AN13: 8 | AO13: 1.3
A14: ДН | B14: ='Table-IDK'!B274 -> 4 | F14: 3 упр | G14: Из наклона вперед в стойку ноги вместе поворот прыжком вокруг своей оси вправо | M14: 3 | N14: 8 | O14: 1 | S14: 3 упр | T14: Из упора полу-присев в стойку ноги вместе поворот прыжком вокруг своей оси вправо | Z14: 2 | AA14: 8 | AB14: 1.2 | AF14: 3 упр | AG14: Из упора присев в стойку ноги вместе поворот прыжком вокруг своей оси вправо | AM14: 3 | AN14: 8 | AO14: 1.4
A15: Баскетбол1 | B15: ='Table-IDK'!B273 -> 2.5 | D15: Быстрота | F15: 1 упр | G15: Бег на месте со сгибанием ног спереди (с высоким подниманием бедра) без утежелителей | M15: 1 | N15: 10 | O15: 1 | P15: 1 | Q15: Быстрота | S15: 1 упр | T15: Бег на месте со сгибанием ног спереди (с высоким подниманием бедра) с утежелителями до 0,5 кг | Z15: 1 | AA15: 10 | AB15: 1.1 | AC15: 2 | AD15: Быстрота | AF15: 1 упр | AG15: Бег на месте со сгибанием ног спереди (с высоким подниманием бедра) с утежелителями до 1 кг | AM15: 1 | AN15: 10 | AO15: 1.2 | AP15: 3
A16: Баскетбол2 | F16: 2 упр | G16: Бег на месте со сгибанием ног сзади (с захлестом голени) без утежелителей | M16: 1 | N16: 10 | O16: 1 | S16: 2 упр | T16: Бег на месте со сгибанием ног сзади (с захлестом голени) с утежелителями до 0,5 кг | Z16: 1 | AA16: 10 | AB16: 1.15 | AF16: 2 упр | AG16: Бег на месте со сгибанием ног сзади (с захлестом голени) с утежелителями до 0,5 кг | AM16: 1 | AN16: 10 | AO16: 1.3
A17: Баскетбол3 | F17: 3 упр | G17: Отжимания в упоре стоя от гимнастической лестницы руки шире плеч | M17: 1 | N17: 8 | O17: 1 | S17: 3 упр | T17: Отжимания в упоре лежа от гимнастической скамейки руки шире плеч | Z17: 1 | AA17: 8 | AB17: 1.2 | AF17: 3 упр | AG17: Отжимания в упоре лежа руки шире плеч | AM17: 1 | AN17: 8 | AO17: 1.4
A18: Волейбол1 | D18: Гибкость | F18: 1 упр | G18: Глубокий наклон вперед из седа с помощью | M18: 1 | N18: 30 | O18: 1 | P18: 1 | Q18: Гибкость | S18: 1 упр | T18: Глубокий наклон вперед из седа с помощью после 15 секунд удержания туловища в конечной позиции | Z18: 1 | AA18: 30 | AB18: 1.1 | AC18: 2 | AD18: Гибкость | AF18: 1 упр | AG18: Глубокий наклон вперед из седа | AM18: 1 | AN18: 30 | AO18: 1.2 | AP18: 3
A19: Волейбол2 | F19: 2 упр | G19: Упор лежа на ногах (бедрах) прогнувшись | M19: 1 | N19: 30 | O19: 1 | S19: 2 упр | T19: Упор лежа на ногах (бедрах) прогнувшись на наклонной гимнастической скамейке (ноги вверху) | Z19: 1 | AA19: 30 | AB19: 1.15 | AF19: 2 упр | AG19: Вис на ногах прогнувшись руки в замок за голову | AM19: 1 | AN19: 30 | AO19: 1.3
A20: Волейбол3 | F20: 3 упр | G20: Поворот вокруг своей оси влево-назад (вправо) из седа ноги врозь с помощью (скручивание) | M20: 2 | N20: 15 | O20: 1 | S20: 3 упр | T20: Поворот вокруг своей оси влево-назад (вправо) из седа ноги врозь с помощью после 7 секунд удержания тулоавища в конечной позиции (скручивание) | Z20: 2 | AA20: 15 | AB20: 1.2 | AF20: 3 упр | AG20: Поворот вокруг своей оси влево-назад (вправо) из седа ноги врозь (скручивание) | AM20: 2 | AN20: 15 | AO20: 1.4
C21: n | D21: ДН | N21: 1 | AA21: 2 | AN21: 3
C22: p | M22: 1 | Z22: 2 | AM22: 3
C23: k | O23: 1 | AB23: 2 | AO23: 3
C24: ФУ | G24: 1 | T24: 2 | AG24: 3
A25: УДК | B25: =КИДР!P6 -> 3 | D25: Баскетбол1 | F25: 1 упр | G25: Бросок от плеча с места с растояния 1 м от проекции кольца | M25: 1 | N25: 30 | O25: 1 | Q25: Баскетбол1 | S25: 1 упр | T25: Бросок от плеча с места с растояния 2 м от проекции кольца | Z25: 1 | AA25: 25 | AB25: 1 | AD25: Баскетбол1 | AF25: 1 упр | AG25: Бросок от плеча с места с растояния 3 м от проекции кольца | AM25: 1 | AN25: 20 | AO25: 1
A26: Выносливость | B26: ='Table-IDK'!B275 -> 4 | F26: 2 упр | G26: Бросок от плеча с местам в прыжке с растояния 1,5 м от проекции кольца | M26: 1 | N26: 25 | O26: 1 | S26: 2 упр | T26: Бросок от плеча с местам в прыжке с растояния 2 м от проекции кольца | Z26: 1 | AA26: 20 | AB26: 1 | AF26: 2 упр | AG26: Бросок от плеча с местам в прыжке с растояния 2,5 м от проекции кольца | AM26: 1 | AN26: 15 | AO26: 1
F27: 3 упр | G27: Бросок от плеча в движении в прыжке с растояния 2 м от проекции кольца | M27: 1 | N27: 20 | O27: 1 | S27: 3 упр | T27: Бросок от плеча в движении в прыжке с растояния 2,5 м от проекции кольца | Z27: 1 | AA27: 15 | AB27: 1 | AF27: 3 упр | AG27: Бросок от плеча в движении в прыжке с растояния 3 м от проекции кольца | AM27: 1 | AN27: 10 | AO27: 1
A28: УС | B28: =IF(((B25+B26)/2)<3,1,IF(((B25+B26)/2)>4,3,2)) -> 2 | D28: Баскетбол2 | F28: 1 упр | G28: Финты без мяча | M28: 1 | N28: 30 | O28: 1 | Q28: Баскетбол2 | S28: 1 упр | T28: Финты без мяча с проходом в заслон | Z28: 1 | AA28: 30 | AB28: 1 | AD28: Баскетбол2 | AF28: 1 упр | AG28: Финты без мяча с проходом через заслон | AM28: 1 | AN28: 30 | AO28: 1
F29: 2 упр | G29: Финты с мячом с последующим ведением | M29: 1 | N29: 25 | O29: 1 | S29: 2 упр | T29: Финты с мячом с последующим ведением и передачей | Z29: 1 | AA29: 25 | AB29: 1 | AF29: 2 упр | AG29: Финты с мячом с последующим ведением и броском | AM29: 1 | AN29: 25 | AO29: 1
F30: 3 упр | G30: Финты с мячом с последующим броском | M30: 1 | N30: 20 | O30: 1 | S30: 3 упр | T30: Финты с мячом с последующим броском и движением на добивание | Z30: 1 | AA30: 20 | AB30: 1 | AF30: 3 упр | AG30: Финты с мячом с последующим броском и движением на подбор мяча | AM30: 1 | AN30: 20 | AO30: 1
D31: Баскетбол3 | F31: 1 упр | G31: Передача мяча от груди с растояния 2 м | M31: 1 | N31: 30 | O31: 1 | Q31: Баскетбол3 | S31: 1 упр | T31: Передача мяча от груди с растояния 3 м | Z31: 1 | AA31: 20 | AB31: 1 | AD31: Баскетбол3 | AF31: 1 упр | AG31: Передача мяча от груди с растояния 4 м | AM31: 1 | AN31: 15 | AO31: 1
F32: 2 упр | G32: Передача мяча отплеча с растояния 2 м | M32: 1 | N32: 25 | O32: 1 | S32: 2 упр | T32: Передача мяча отплеча с растояния 3 м | Z32: 1 | AA32: 15 | AB32: 1 | AF32: 2 упр | AG32: Передача мяча отплеча с растояния 4 м | AM32: 1 | AN32: 12 | AO32: 1
F33: 3 упр | G33: Передача мяча с низу с растояния 2 м | M33: 1 | N33: 20 | O33: 1 | S33: 3 упр | T33: Передача мяча с низу с растояния 3 м | Z33: 1 | AA33: 10 | AB33: 1 | AF33: 3 упр | AG33: Передача мяча с низу с растояния 4 м | AM33: 1 | AN33: 10 | AO33: 1
D34: Волейбол1 | F34: 1 упр | G34: Верхняя передача мяча над собой | M34: 1 | N34: 90 | O34: 1 | Q34: Волейбол1 | S34: 1 упр | T34: Верхняя передача мяча над собой высота 3 м | Z34: 1 | AA34: 60 | AB34: 1 | AD34: Волейбол1 | AF34: 1 упр | AG34: Верхняя передача мяча над собой высота 4 м | AM34: 1 | AN34: 50 | AO34: 1
F35: 2 упр | G35: Нижняя передача мяча над собой | M35: 1 | N35: 90 | O35: 1 | S35: 2 упр | T35: Нижняя передача мяча над собой высота 3 м | Z35: 1 | AA35: 50 | AB35: 1 | AF35: 2 упр | AG35: Нижняя передача мяча над собой высота 4 м | AM35: 1 | AN35: 40 | AO35: 1
F36: 3 упр | G36: Чередование верхней и нижней передач мяча над собой | M36: 1 | N36: 70 | O36: 1 | S36: 3 упр | T36: Чередование верхней и нижней передач мяча над собой затем партнеру в парах высота 3 м | Z36: 1 | AA36: 40 | AB36: 1 | AF36: 3 упр | AG36: Чередование верхней и нижней передач мяча над собой затем партнеру в парах высота 4 м | AM36: 1 | AN36: 30 | AO36: 1
D37: Волейбол2 | F37: 1 упр | G37: Верхняя передача мяча над собой затем партнеру в парах | M37: 1 | N37: 45 | O37: 1 | Q37: Волейбол2 | S37: 1 упр | T37: Верхняя передача мяча над собой затем партнеру в парах высота 3 м | Z37: 1 | AA37: 35 | AB37: 1 | AD37: Волейбол2 | AF37: 1 упр | AG37: Верхняя передача мяча над собой затем партнеру в парах высота 4 м | AM37: 1 | AN37: 30 | AO37: 1
F38: 2 упр | G38: Нижняя передача мяча над собой затем партнеру в парах | M38: 1 | N38: 40 | O38: 1 | S38: 2 упр | T38: Нижняя передача мяча над собой затем партнеру в парах высота 3 м | Z38: 1 | AA38: 30 | AB38: 1 | AF38: 2 упр | AG38: Нижняя передача мяча над собой затем партнеру в парах высота 4 м | AM38: 1 | AN38: 25 | AO38: 1
F39: 3 упр | G39: Чередование верхней и нижней передач мяча над собой затем партнеру в парах | M39: 1 | N39: 30 | O39: 1 | S39: 3 упр | T39: Чередование верхней и нижней передач мяча над собой затем партнеру в парах высота 3 м | Z39: 1 | AA39: 25 | AB39: 1 | AF39: 3 упр | AG39: Чередование верхней и нижней передач мяча над собой затем партнеру в парах высота 4 м | AM39: 1 | AN39: 20 | AO39: 1
D40: Волейбол3 | F40: 1 упр | G40: Верхняя мередача мяча в парах с поворотом вокруг своей оси после передачи | M40: 1 | N40: 40 | O40: 1 | Q40: Волейбол3 | S40: 1 упр | T40: Верхняя мередача мяча в парах с поворотом вокруг своей оси после передачи высота 3 метра | Z40: 1 | AA40: 30 | AB40: 1 | AD40: Волейбол3 | AF40: 1 упр | AG40: Верхняя мередача мяча в парах с поворотом вокруг своей оси после передачи высота 4 м | AM40: 1 | AN40: 25 | AO40: 1
F41: 2 упр | G41: Нижняя мередача мяча в парах с поворотом вокруг своей оси после передачи | M41: 1 | N41: 35 | O41: 1 | S41: 2 упр | T41: Нижняя мередача мяча в парах с поворотом вокруг своей оси после передачи высота 3 метра | Z41: 1 | AA41: 25 | AB41: 1 | AF41: 2 упр | AG41: Нижняя мередача мяча в парах с поворотом вокруг своей оси после передачи высота 4 м | AM41: 1 | AN41: 20 | AO41: 1
F42: 3 упр | G42: Чередование верхней и нижней мередач мяча в парах с поворотом вокруг своей оси после передачи | M42: 1 | N42: 25 | O42: 1 | S42: 3 упр | T42: Чередование верхней и нижней мередач мяча в парах с поворотом вокруг своей оси после передачи высота 3 м | Z42: 1 | AA42: 20 | AB42: 1 | AF42: 3 упр | AG42: Чередование верхней и нижней мередач мяча в парах с поворотом вокруг своей оси после передачи высота 4 м | AM42: 1 | AN42: 15 | AO42: 1
A46: №1 | D46: Заключительная часть занятия
A47: №2 | D47: Физическое упражнение | Q47: p | R47: n | S47: h*
A48: №3 | C48: №1 | D48: Глубокий наклон вперед с задержкой | Q48: 1 | R48: 1
D49: Упор лежа на ногах | Q49: 1 | R49: 1
D50: Стойка на лопатках | Q50: 1 | R50: 1
D51: Максимальное расслабление лежа на животе | Q51: 1 | R51: 1
D52: Разбор занятия, 3 мин
C53: №2 | D53: Стойка на лопатках с опусканием ног за голову на пол руки прямые лодонями прижаты к полу | Q53: p2-1 | R53: n2-1
D54: Вис на согнутых ногах прогнувшись руки в замок за голову | Q54: p2-2 | R54: n2-2
D55: Стойка на голове и лопатках | Q55: p2-3 | R55: n2-3
D56: Максимальное расслабление лежа на животе | Q56: p2-4 | R56: n2-4
D57: Разбор занятия, 3 мин
C58: №3 | D58: Из положения лежа на спине сед согнувшись с согнутыми ногами руки ладонями вперед запястьями на коллени | Q58: p3-1 | R58: n3-1
D59: Из положения лежа на животе отведение прямых рук и ног назад с прогибом туловища | Q59: p3-2 | R59: n3-2
D60: Стойка на руках | Q60: p3-3 | R60: n3-3
D61: Максимальное расслабление лежа на животе | Q61: p3-4 | R61: n3-4
D62: Разбор занятия, 3 мин

Sheet Инструкция
A1: Указания к заполнению таблицы на листе "Упр"
A2: В графе "ФК или ДН" указывается заданное руководителем развиваемое физическое качество или
A3: двигательный навык. В графе "Физическое упражнение …" записывается три упражнения для одного
A4: занятия (упр1, упр2, упр3) с учетом чередования различных групп мышц на разных занятиях. На одном
A5: занятии желательно включать два упражнения на мыщцы-антагонисты одной групппы мышц для
A6: симметричного их развития. Например, если первое упражнение на сгибатели (подтягивание), то второе
A7: упражнение на разгибатели (отталкивание от стены или разгибание рук в положении упор лежа).
A8: Одно упражнение указывается три раза с различными уровнями сложности. Уровень сложности
A9: может регулироваться как исходным положением для выполнения (например, подтягивание в висе лежа -
A10: 1-й уровень сложности, в висе стоя - 2-й уровень, в висе - 3-й уровень), так и включением различных
A11: групп мышц или иным образом.
A12: В графе "p*" указывается количество подходов выполнения упражнения, а в графе "n*" - количество
A13: повторений упражнения в одном подходе. А для упражнений гибкости, ловкости и быстроты как
A14: количество подходов, так и время выполнения упражнения в секундах.
A15: Для примера заполнения в таблице указаны упражнения для физического качества "сила" для одного
A16: тренировочного дня.

Sheet Сила1
F1: 1 | M1: 2 | T1: 3
E2: 1 | L2: 2 | S2: 3
D3: 1 | K3: 2 | R3: 3
H4: 1 | O4: 2 | U4: 3
B5: Сила1
B6: ФК или ДН | C6: № упр | D6: Физическое упражнение первый уровень сложности | E6: p* | F6: n* | G6: k* | H6: УС | I6: ФК | J6: № упр | K6: Физическое упражнение второй уровень сложности | L6: p* | M6: n* | N6: k* | O6: УС | P6: ФК | Q6: № упр | R6: Физическое упражнение третий уровень сложности | S6: p* | T6: n* | U6: k* | V6: УС
B7: Силовая выносливость мышц плечевого пояса | C7: 1 упр | D7: Подтягивания в висе стоя широким хватом снизу ноги шире плеч | E7: 1 | F7: ≥ 50 | G7: 0.8 | H7: 1 | I7: Силовая выносливость мышц плечевого пояса | J7: 1 упр | K7: Подтягивания в висе лежа нормальным хватом снизу ноги на ширине плеч | L7: 1 | M7: ≥ 25 | N7: 0.8 | O7: 2 | P7: Силовая выносливость мышц плечевого пояса | Q7: 1 упр | R7: Подтягивания в висе лежа узким хватом снизу ноги вместе | S7: 1 | T7: ≥ 12 | U7: 0.8 | V7: 3
C8: 2 упр | D8: Сгибание и разгибание рук в упоре лежа от стола (высота 0,75 - 1 м) ноги шире плеч | E8: 1 | F8: ≥ 50 | G8: 0.8 | J8: 2 упр | K8: Сгибание и разгибание рук в упоре лежа от стула (0,45 - 0,55 м) ноги на ширине плеч | L8: 1 | M8: ≥ 25 | N8: 0.8 | Q8: 2 упр | R8: Сгибание и разгибание рук в упоре лежа ноги вместе | S8: 1 | T8: ≥ 12 | U8: 0.8
C9: 3 упр | D9: Подъем переворотом в упор на перекладину из виса стоя махом одной толчком другой ноги | E9: 1 | F9: ≥ 50 | G9: 0.8 | J9: 3 упр | K9: Подъем переворотом в упор на перекладину из виса стоя толчком обеих ног | L9: 1 | M9: ≥ 25 | N9: 0.8 | Q9: 3 упр | R9: Подъем переворотом в упор на перекладину из виса прогнувшись | S9: 1 | T9: ≥ 12 | U9: 0.8
B13: Силовая выносливость мышц тазобедренного пояса | C13: 1 упр | D13: Приведение каждой ноги поочередно из стойки ноги вместе руки согнуты возле груди (с применением утежелителей выше лодыжек) | E13: 1 | F13: ≥ 50 | G13: 1.1 | H13: 1 | I13: Силовая выносливость мышц тазобедренного пояса | J13: 1 упр | K13: Приведение каждой ноги поочередно из стойки ноги вместе руки согнуты возле груди (с применением утежелителей выше лодыжек) | L13: 1 | M13: ≥ 25 | N13: 1.1 | O13: 2 | P13: Силовая выносливость мышц тазобедренного пояса | Q13: 1 упр | R13: Приведение каждой ноги поочередно из стойки ноги вместе руки согнуты возле груди (с применением утежелителей выше лодыжек) | S13: 1 | T13: ≥ 12 | U13: 1.1 | V13: 3
C14: 2 упр | D14: Отведение каждой ноги поочередно из стойки ноги вместе руки согнуты возле груди (с применением утежелителей выше лодыжек) | E14: 1 | F14: ≥ 50 | G14: 1.1 | J14: 2 упр | K14: Отведение каждой ноги поочередно из стойки ноги вместе руки согнуты возле груди (с применением утежелителей выше лодыжек) | L14: 1 | M14: ≥ 25 | N14: 1.1 | Q14: 2 упр | R14: Отведение каждой ноги поочередно из стойки ноги вместе руки согнуты возле груди (с применением утежелителей выше лодыжек) | S14: 1 | T14: ≥ 12 | U14: 1.1
C15: 3 упр | D15: Приседания на обеих ногах с касанием руками пола из стойки ноги на ширине плеч руки вместе | E15: 1 | F15: ≥ 50 | G15: 1.1 | J15: 3 упр | K15: Приседания на обеих ногах с касанием руками пола из стойки ноги на ширине плеч руки вместе (с применением утежелителей на поясе) | L15: 1 | M15: ≥ 25 | N15: 1.1 | Q15: 3 упр | R15: Приседания на обеих ногах с касанием руками пола из стойки ноги на ширине плеч руки вместе (с применением утежелителей на поясе) | S15: 1 | T15: ≥ 12 | U15: 1.1
B16: Сила мышц плечевого пояса | C16: 1 упр | D16: Подтягивания в висе хватом снизу руки на ширине плеч (при необходимости с помощью партнера) | E16: 1 | F16: ≤ 11 | G16: 0.6 | H16: 1 | I16: Сила мышц плечевого пояса | J16: 1 упр | K16: Подтягивания в висе хватом сверху руки на ширине плеч (при необходимости с помощью партнера) | L16: 1 | M16: ≤ 8 | N16: 0.6 | O16: 2 | P16: Сила мышц плечевого пояса | Q16: 1 упр | R16: Подтягивания в висе лежа узким хватом сверху (при необходимости с помощью партнера) | S16: 1 | T16: ≤ 6 | U16: 0.6 | V16: 3
C17: 2 упр | D17: Сгибание и разгибание рук в упоре лежа (руки шире плеч) | E17: 1 | F17: ≤ 11 | G17: 0.6 | J17: 2 упр | K17: Сгибание и разгибание рук в упоре лежа (руки на ширине плеч) | L17: 1 | M17: ≤ 8 | N17: 0.6 | Q17: 2 упр | R17: Сгибание и разгибание рук в упоре лежа (кисти рук соприкасаются указательными и большими пальцами) | S17: 1 | T17: ≤ 6 | U17: 0.6
C18: 3 упр | D18: Выход силой в упор на перекладину (руки поочередно) из виса стоя (при необходимости с помощью партнера) | E18: 1 | F18: ≤ 11 | G18: 0.6 | J18: 3 упр | K18: Выход силой в упор на перекладину (руки поочередно) из виса лежа | L18: 1 | M18: ≤ 8 | N18: 0.6 | Q18: 3 упр | R18: Выход силой в упор на перекладину (руки поочередно) из виса | S18: 1 | T18: ≤ 6 | U18: 0.6
B19: Сила мышц тазобедренного пояса | C19: 1 упр | D19: Приседания на каждой ноге поочередно в стойке (с опорой рукой о стену) | E19: 1 | F19: ≤ 11 | G19: 0.8 | H19: 1 | I19: Сила мышц тазобедренного пояса | J19: 1 упр | K19: Приседания на каждой ноге поочередно в стойке (с опорой рукой о стену с утежелителями на поясе ) | L19: 1 | M19: ≤ 8 | N19: 0.8 | O19: 2 | P19: Сила мышц тазобедренного пояса | Q19: 1 упр | R19: Приседания на каждой ноге поочередно в стойке (с опорой рукой о стену) | S19: 1 | T19: ≤ 6 | U19: 0.8 | V19: 3
C20: 2 упр | D20: Сгибание каждой ноги поочередно с зади в стойке с опрой руками о стену (с применением утяжелителей, либо экспандера) | E20: 1 | F20: ≤ 11 | G20: 0.8 | J20: 2 упр | K20: Сгибание каждой ноги поочередно с зади в стойке с опрой руками о стену (с применением утяжелителей, либо экспандера) | L20: 1 | M20: ≤ 8 | N20: 0.8 | Q20: 2 упр | R20: Сгибание каждой ноги поочередно с зади в стойке с опрой руками о стену (с применением утяжелителей, либо экспандера) | S20: 1 | T20: ≤ 6 | U20: 0.8
C21: 3 упр | D21: Сгибание каждой ноги поочередно с переди и с зади в стойке с опорой руками о стену (с применением утяжелителей, либо экспандера) | E21: 1 | F21: ≤ 11 | G21: 0.8 | J21: 3 упр | K21: Сгибание каждой ноги поочередно с переди и с зади в стойке с опорой руками о стену (с применением утяжелителей, либо экспандера) | L21: 1 | M21: ≤ 8 | N21: 0.8 | Q21: 3 упр | R21: Сгибание каждой ноги поочередно с переди и с зади в стойке с опорой руками о стену (с применением утяжелителей, либо экспандера) | S21: 1 | T21: ≤ 6 | U21: 0.8
B22: Сила мышц туловища | C22: 1 упр | D22: Подъем в сед из положения лежа на спине руки вдоль туловища ноги согнуты | E22: 1 | F22: ≤ 11 | G22: 0.7 | H22: 1 | I22: Сила мышц туловища | J22: 1 упр | K22: Подъем в сед из положения лежа на спине руки на плечи ноги согнуты | L22: 1 | M22: ≤ 8 | N22: 0.7 | O22: 2 | P22: Сила мышц туловища | Q22: 1 упр | R22: Подъем в сед из положения лежа на спине руки "в замок" за голову ноги согнуты | S22: 1 | T22: ≤ 6 | U22: 0.7 | V22: 3
C23: 2 упр | D23: Прогиб назад из положения лежа на животе руки вдоль туловища с опорой руками о пол | E23: 1 | F23: ≤ 11 | G23: 0.7 | J23: 2 упр | K23: Прогиб назад из положения лежа на животе руки вверх | L23: 1 | M23: ≤ 8 | N23: 0.7 | Q23: 2 упр | R23: Прогиб назад из положения лежа на животе руки "в замок" за голову | S23: 1 | T23: ≤ 6 | U23: 0.7
C24: 3 упр | D24: Переход в упор лежа сзади с согнутыми ногами из упора сидя (тибетский мост) | E24: 1 | F24: ≤ 11 | G24: 0.7 | J24: 3 упр | K24: Переход в упор лежа сзади с согнутыми ногами из упора сидя (тибетский мост) с утежелителями на поясе | L24: 1 | M24: ≤ 8 | N24: 0.7 | Q24: 3 упр | R24: Переход в упор лежа сзади с согнутыми ногами из упора сидя (тибетский мост) с утежелителями на поясе | S24: 1 | T24: ≤ 6 | U24: 0.7
B25: Силовая выносливость мышц плечевого пояса | C25: 1 упр | D25: Подтягивания в висе стоя широким хватом снизу ноги шире плеч | E25: 1 | F25: ≥ 50 | G25: 0.8 | H25: 1 | I25: Силовая выносливость мышц плечевого пояса | J25: 1 упр | K25: Подтягивания в висе лежа нормальным хватом снизу ноги на ширине плеч | L25: 1 | M25: ≥ 25 | N25: 0.8 | O25: 2 | P25: Силовая выносливость мышц плечевого пояса | Q25: 1 упр | R25: Подтягивания в висе лежа узким хватом снизу ноги вместе | S25: 1 | T25: ≥ 12 | U25: 0.8 | V25: 3
C26: 2 упр | D26: Сгибание и разгибание рук в упоре лежа от стола (высота 0,75 - 1 м) ноги шире плеч | E26: 1 | F26: ≥ 50 | G26: 0.8 | J26: 2 упр | K26: Сгибание и разгибание рук в упоре лежа от стула (0,45 - 0,55 м) ноги на ширине плеч | L26: 1 | M26: ≥ 25 | N26: 0.8 | Q26: 2 упр | R26: Сгибание и разгибание рук в упоре лежа ноги вместе | S26: 1 | T26: ≥ 12 | U26: 0.8
C27: 3 упр | D27: Подъем переворотом в упор на перекладину из виса стоя махом одной толчком другой ноги | E27: 1 | F27: ≥ 50 | G27: 0.8 | J27: 3 упр | K27: Подъем переворотом в упор на перекладину из виса стоя толчком обеих ног | L27: 1 | M27: ≥ 25 | N27: 0.8 | Q27: 3 упр | R27: Подъем переворотом в упор на перекладину из виса прогнувшись | S27: 1 | T27: ≥ 12 | U27: 0.8
B28: Силовая выносливость мышц тазобедренного пояса | C28: 1 упр | D28: Приведение каждой ноги поочередно из стойки ноги вместе руки согнуты возле груди (с применением утежелителей выше лодыжек) | E28: 1 | F28: ≥ 50 | G28: 1.1 | H28: 1 | I28: Силовая выносливость мышц тазобедренного пояса | J28: 1 упр | K28: Приведение каждой ноги поочередно из стойки ноги вместе руки согнуты возле груди (с применением утежелителей выше лодыжек) | L28: 1 | M28: ≥ 25 | N28: 1.1 | O28: 2 | P28: Силовая выносливость мышц тазобедренного пояса | Q28: 1 упр | R28: Приведение каждой ноги поочередно из стойки ноги вместе руки согнуты возле груди (с применением утежелителей выше лодыжек) | S28: 1 | T28: ≥ 12 | U28: 1.1 | V28: 3
C29: 2 упр | D29: Отведение каждой ноги поочередно из стойки ноги вместе руки согнуты возле груди (с применением утежелителей выше лодыжек) | E29: 1 | F29: ≥ 50 | G29: 1.1 | J29: 2 упр | K29: Отведение каждой ноги поочередно из стойки ноги вместе руки согнуты возле груди (с применением утежелителей выше лодыжек) | L29: 1 | M29: ≥ 25 | N29: 1.1 | Q29: 2 упр | R29: Отведение каждой ноги поочередно из стойки ноги вместе руки согнуты возле груди (с применением утежелителей выше лодыжек) | S29: 1 | T29: ≥ 12 | U29: 1.1
C30: 3 упр | D30: Приседания на обеих ногах с касанием руками пола из стойки ноги на ширине плеч руки вместе | E30: 1 | F30: ≥ 50 | G30: 1.1 | J30: 3 упр | K30: Приседания на обеих ногах с касанием руками пола из стойки ноги на ширине плеч руки вместе (с применением утежелителей на поясе) | L30: 1 | M30: ≥ 25 | N30: 1.1 | Q30: 3 упр | R30: Приседания на обеих ногах с касанием руками пола из стойки ноги на ширине плеч руки вместе (с применением утежелителей на поясе) | S30: 1 | T30: ≥ 12 | U30: 1.1
B31: Силовая выносливость мышц туловища | C31: 1 упр | D31: Отклонение туловища назад из седа на стуле руки к плечам локти на спинку стула до полного выпрямления | E31: 1 | F31: ≥ 50 | G31: 0.9 | H31: 1 | I31: Силовая выносливость мышц туловища | J31: 1 упр | K31: Отклонение туловища назад из седа на скамейке (кровати) руки "в замок" за голову до полного выпрямления | L31: 1 | M31: ≥ 25 | N31: 0.9 | O31: 2 | P31: Силовая выносливость мышц туловища | Q31: 1 упр | R31: Отклонение туловища назад из седа на скамейке (кровати) руки "в замок" за голову прогиб назад | S31: 1 | T31: ≥ 12 | U31: 0.9 | V31: 3
C32: 2 упр | D32: Прогиб назад из положения лежа на животе руки согнуты в упор прогнувшись на бедрах | E32: 1 | F32: ≥ 50 | G32: 0.9 | J32: 2 упр | K32: Отведение ног назад из положения лежа на животе с опорой руками о пол | L32: 1 | M32: ≥ 25 | N32: 0.9 | Q32: 2 упр | R32: Отведение ног назад из положения лежа на животе с захватом руками ног выше лодыжек | S32: 1 | T32: ≥ 12 | U32: 0.9
C33: 3 упр | D33: Прогиб назад и наклон вперед с обхватом руками голеней из стойки ноги врозь руки на пояс | E33: 1 | F33: ≥ 50 | G33: 0.9 | J33: 3 упр | K33: Прогиб назад и наклон вперед с руками вверх на пол из стойки на коленях | L33: 1 | M33: ≥ 25 | N33: 0.9 | Q33: 3 упр | R33: Прогиб назад до касания лопатками пола (руки вдоль туловища) и наклон вперед с переходом в упор стоя (углом) | S33: 1 | T33: ≥ 12 | U33: 0.9
H34: 1 | O34: 2 | V34: 3
H37: 1 | O37: 2 | V37: 3
H40: 1 | O40: 2 | V40: 3
H43: 1 | O43: 2 | V43: 3
A46: Заключительная часть занятия | B46: Силовая выносливость мышц туловища | C46: 1 упр | H46: 1 | I46: Силовая выносливость мышц туловища | J46: 1 упр | O46: 2 | P46: Силовая выносливость мышц туловища | Q46: 1 упр | V46: 3
A47: Физическое упражнение | C47: 2 упр | J47: 2 упр | Q47: 2 упр
A48: Глубокий наклон вперед с задержкой | C48: 3 упр | J48: 3 упр | Q48: 3 упр
A49: Упор лежа на ногах
A50: Стойка на лопатках | I50: p | J50: h*
A51: Максимальное расслабление лежа на животе | I51: 1
A52: Разбор занятия, 3 мин | I52: 1
A53: Стойка на лопатках с опусканием ног за голову на пол руки прямые лодонями прижаты к полу | I53: 1
A54: Вис на согнутых ногах прогнувшись руки в замок за голову | I54: 1
A55: Стойка на голове и лопатках
A56: Максимальное расслабление лежа на животе | I56: p2-1
A57: Разбор занятия, 3 мин | I57: p2-2
A58: Из положения лежа на спине сед согнувшись с согнутыми ногами руки ладонями вперед запястьями на коллени | I58: p2-3
A59: Из положения лежа на животе отведение прямых рук и ног назад с прогибом туловища | I59: p2-4
A60: Стойка на руках
A61: Максимальное расслабление лежа на животе | I61: p3-1
A62: Разбор занятия, 3 мин | I62: p3-2

Sheet Сила2
F1: 1 | M1: 2 | T1: 3
E2: 1 | L2: 2 | S2: 3
D3: 1 | K3: 2 | R3: 3
H4: 1 | O4: 2 | U4: 3
B5: Сила2
B6: ФК или ДН | C6: № упр | D6: Физическое упражнение первый уровень сложности | E6: p* | F6: n* | G6: k* | H6: УС | I6: ФК | J6: № упр | K6: Физическое упражнение второй уровень сложности | L6: p* | M6: n* | N6: k* | O6: УС | P6: ФК | Q6: № упр | R6: Физическое упражнение третий уровень сложности | S6: p* | T6: n* | U6: k* | V6: УС
B7: Сила мышц туловища | C7: 1 упр | D7: Подъем в сед из положения лежа на спине руки вдоль туловища ноги согнуты | E7: 1 | F7: ≤ 11 | G7: 0.7 | H7: 1 | I7: Сила мышц туловища | J7: 1 упр | K7: Подъем в сед из положения лежа на спине руки на плечи ноги согнуты | L7: 1 | M7: ≤ 8 | N7: 0.7 | O7: 2 | P7: Сила мышц туловища | Q7: 1 упр | R7: Подъем в сед из положения лежа на спине руки "в замок" за голову ноги согнуты | S7: 1 | T7: ≤ 6 | U7: 0.7 | V7: 3
C8: 2 упр | D8: Прогиб назад из положения лежа на животе руки вдоль туловища с опорой руками о пол | E8: 1 | F8: ≤ 11 | G8: 0.7 | J8: 2 упр | K8: Прогиб назад из положения лежа на животе руки вверх | L8: 1 | M8: ≤ 8 | N8: 0.7 | Q8: 2 упр | R8: Прогиб назад из положения лежа на животе руки "в замок" за голову | S8: 1 | T8: ≤ 6 | U8: 0.7
C9: 3 упр | D9: Переход в упор лежа сзади с согнутыми ногами из упора сидя (тибетский мост) | E9: 1 | F9: ≤ 11 | G9: 0.7 | J9: 3 упр | K9: Переход в упор лежа сзади с согнутыми ногами из упора сидя (тибетский мост) с утежелителями на поясе | L9: 1 | M9: ≤ 8 | N9: 0.7 | Q9: 3 упр | R9: Переход в упор лежа сзади с согнутыми ногами из упора сидя (тибетский мост) с утежелителями на поясе | S9: 1 | T9: ≤ 6 | U9: 0.7
B13: Силовая выносливость мышц тазобедренного пояса | C13: 1 упр | D13: Приведение каждой ноги поочередно из стойки ноги вместе руки согнуты возле груди (с применением утежелителей выше лодыжек) | E13: 1 | F13: ≥ 50 | G13: 1.1 | H13: 1 | I13: Силовая выносливость мышц тазобедренного пояса | J13: 1 упр | K13: Приведение каждой ноги поочередно из стойки ноги вместе руки согнуты возле груди (с применением утежелителей выше лодыжек) | L13: 1 | M13: ≥ 25 | N13: 1.1 | O13: 2 | P13: Силовая выносливость мышц тазобедренного пояса | Q13: 1 упр | R13: Приведение каждой ноги поочередно из стойки ноги вместе руки согнуты возле груди (с применением утежелителей выше лодыжек) | S13: 1 | T13: ≥ 12 | U13: 1.1 | V13: 3
C14: 2 упр | D14: Отведение каждой ноги поочередно из стойки ноги вместе руки согнуты возле груди (с применением утежелителей выше лодыжек) | E14: 1 | F14: ≥ 50 | G14: 1.1 | J14: 2 упр | K14: Отведение каждой ноги поочередно из стойки ноги вместе руки согнуты возле груди (с применением утежелителей выше лодыжек) | L14: 1 | M14: ≥ 25 | N14: 1.1 | Q14: 2 упр | R14: Отведение каждой ноги поочередно из стойки ноги вместе руки согнуты возле груди (с применением утежелителей выше лодыжек) | S14: 1 | T14: ≥ 12 | U14: 1.1
C15: 3 упр | D15: Приседания на обеих ногах с касанием руками пола из стойки ноги на ширине плеч руки вместе | E15: 1 | F15: ≥ 50 | G15: 1.1 | J15: 3 упр | K15: Приседания на обеих ногах с касанием руками пола из стойки ноги на ширине плеч руки вместе (с применением утежелителей на поясе) | L15: 1 | M15: ≥ 25 | N15: 1.1 | Q15: 3 упр | R15: Приседания на обеих ногах с касанием руками пола из стойки ноги на ширине плеч руки вместе (с применением утежелителей на поясе) | S15: 1 | T15: ≥ 12 | U15: 1.1
B16: Сила мышц плечевого пояса | C16: 1 упр | D16: Подтягивания в висе хватом снизу руки на ширине плеч (при необходимости с помощью партнера) | E16: 1 | F16: ≤ 11 | G16: 0.6 | H16: 1 | I16: Сила мышц плечевого пояса | J16: 1 упр | K16: Подтягивания в висе хватом сверху руки на ширине плеч (при необходимости с помощью партнера) | L16: 1 | M16: ≤ 8 | N16: 0.6 | O16: 2 | P16: Сила мышц плечевого пояса | Q16: 1 упр | R16: Подтягивания в висе лежа узким хватом сверху (при необходимости с помощью партнера) | S16: 1 | T16: ≤ 6 | U16: 0.6 | V16: 3
C17: 2 упр | D17: Сгибание и разгибание рук в упоре лежа (руки шире плеч) | E17: 1 | F17: ≤ 11 | G17: 0.6 | J17: 2 упр | K17: Сгибание и разгибание рук в упоре лежа (руки на ширине плеч) | L17: 1 | M17: ≤ 8 | N17: 0.6 | Q17: 2 упр | R17: Сгибание и разгибание рук в упоре лежа (кисти рук соприкасаются указательными и большими пальцами) | S17: 1 | T17: ≤ 6 | U17: 0.6
C18: 3 упр | D18: Выход силой в упор на перекладину (руки поочередно) из виса стоя (при необходимости с помощью партнера) | E18: 1 | F18: ≤ 11 | G18: 0.6 | J18: 3 упр | K18: Выход силой в упор на перекладину (руки поочередно) из виса лежа | L18: 1 | M18: ≤ 8 | N18: 0.6 | Q18: 3 упр | R18: Выход силой в упор на перекладину (руки поочередно) из виса | S18: 1 | T18: ≤ 6 | U18: 0.6
B19: Сила мышц тазобедренного пояса | C19: 1 упр | D19: Приседания на каждой ноге поочередно в стойке (с опорой рукой о стену) | E19: 1 | F19: ≤ 11 | G19: 0.8 | H19: 1 | I19: Сила мышц тазобедренного пояса | J19: 1 упр | K19: Приседания на каждой ноге поочередно в стойке (с опорой рукой о стену с утежелителями на поясе ) | L19: 1 | M19: ≤ 8 | N19: 0.8 | O19: 2 | P19: Сила мышц тазобедренного пояса | Q19: 1 упр | R19: Приседания на каждой ноге поочередно в стойке (с опорой рукой о стену) | S19: 1 | T19: ≤ 6 | U19: 0.8 | V19: 3
C20: 2 упр | D20: Сгибание каждой ноги поочередно с зади в стойке с опрой руками о стену (с применением утяжелителей, либо экспандера) | E20: 1 | F20: ≤ 11 | G20: 0.8 | J20: 2 упр | K20: Сгибание каждой ноги поочередно с зади в стойке с опрой руками о стену (с применением утяжелителей, либо экспандера) | L20: 1 | M20: ≤ 8 | N20: 0.8 | Q20: 2 упр | R20: Сгибание каждой ноги поочередно с зади в стойке с опрой руками о стену (с применением утяжелителей, либо экспандера) | S20: 1 | T20: ≤ 6 | U20: 0.8
C21: 3 упр | D21: Сгибание каждой ноги поочередно с переди и с зади в стойке с опорой руками о стену (с применением утяжелителей, либо экспандера) | E21: 1 | F21: ≤ 11 | G21: 0.8 | J21: 3 упр | K21: Сгибание каждой ноги поочередно с переди и с зади в стойке с опорой руками о стену (с применением утяжелителей, либо экспандера) | L21: 1 | M21: ≤ 8 | N21: 0.8 | Q21: 3 упр | R21: Сгибание каждой ноги поочередно с переди и с зади в стойке с опорой руками о стену (с применением утяжелителей, либо экспандера) | S21: 1 | T21: ≤ 6 | U21: 0.8
B22: Сила мышц туловища | C22: 1 упр | D22: Подъем в сед из положения лежа на спине руки вдоль туловища ноги согнуты | E22: 1 | F22: ≤ 11 | G22: 0.7 | H22: 1 | I22: Сила мышц туловища | J22: 1 упр | K22: Подъем в сед из положения лежа на спине руки на плечи ноги согнуты | L22: 1 | M22: ≤ 8 | N22: 0.7 | O22: 2 | P22: Сила мышц туловища | Q22: 1 упр | R22: Подъем в сед из положения лежа на спине руки "в замок" за голову ноги согнуты | S22: 1 | T22: ≤ 6 | U22: 0.7 | V22: 3
C23: 2 упр | D23: Прогиб назад из положения лежа на животе руки вдоль туловища с опорой руками о пол | E23: 1 | F23: ≤ 11 | G23: 0.7 | J23: 2 упр | K23: Прогиб назад из положения лежа на животе руки вверх | L23: 1 | M23: ≤ 8 | N23: 0.7 | Q23: 2 упр | R23: Прогиб назад из положения лежа на животе руки "в замок" за голову | S23: 1 | T23: ≤ 6 | U23: 0.7
C24: 3 упр | D24: Переход в упор лежа сзади с согнутыми ногами из упора сидя (тибетский мост) | E24: 1 | F24: ≤ 11 | G24: 0.7 | J24: 3 упр | K24: Переход в упор лежа сзади с согнутыми ногами из упора сидя (тибетский мост) с утежелителями на поясе | L24: 1 | M24: ≤ 8 | N24: 0.7 | Q24: 3 упр | R24: Переход в упор лежа сзади с согнутыми ногами из упора сидя (тибетский мост) с утежелителями на поясе | S24: 1 | T24: ≤ 6 | U24: 0.7
B25: Силовая выносливость мышц плечевого пояса | C25: 1 упр | D25: Подтягивания в висе стоя широким хватом снизу ноги шире плеч | E25: 1 | F25: ≥ 50 | G25: 0.8 | H25: 1 | I25: Силовая выносливость мышц плечевого пояса | J25: 1 упр | K25: Подтягивания в висе лежа нормальным хватом снизу ноги на ширине плеч | L25: 1 | M25: ≥ 25 | N25: 0.8 | O25: 2 | P25: Силовая выносливость мышц плечевого пояса | Q25: 1 упр | R25: Подтягивания в висе лежа узким хватом снизу ноги вместе | S25: 1 | T25: ≥ 12 | U25: 0.8 | V25: 3
C26: 2 упр | D26: Сгибание и разгибание рук в упоре лежа от стола (высота 0,75 - 1 м) ноги шире плеч | E26: 1 | F26: ≥ 50 | G26: 0.8 | J26: 2 упр | K26: Сгибание и разгибание рук в упоре лежа от стула (0,45 - 0,55 м) ноги на ширине плеч | L26: 1 | M26: ≥ 25 | N26: 0.8 | Q26: 2 упр | R26: Сгибание и разгибание рук в упоре лежа ноги вместе | S26: 1 | T26: ≥ 12 | U26: 0.8
C27: 3 упр | D27: Подъем переворотом в упор на перекладину из виса стоя махом одной толчком другой ноги | E27: 1 | F27: ≥ 50 | G27: 0.8 | J27: 3 упр | K27: Подъем переворотом в упор на перекладину из виса стоя толчком обеих ног | L27: 1 | M27: ≥ 25 | N27: 0.8 | Q27: 3 упр | R27: Подъем переворотом в упор на перекладину из виса прогнувшись | S27: 1 | T27: ≥ 12 | U27: 0.8
B28: Силовая выносливость мышц тазобедренного пояса | C28: 1 упр | D28: Приведение каждой ноги поочередно из стойки ноги вместе руки согнуты возле груди (с применением утежелителей выше лодыжек) | E28: 1 | F28: ≥ 50 | G28: 1.1 | H28: 1 | I28: Силовая выносливость мышц тазобедренного пояса | J28: 1 упр | K28: Приведение каждой ноги поочередно из стойки ноги вместе руки согнуты возле груди (с применением утежелителей выше лодыжек) | L28: 1 | M28: ≥ 25 | N28: 1.1 | O28: 2 | P28: Силовая выносливость мышц тазобедренного пояса | Q28: 1 упр | R28: Приведение каждой ноги поочередно из стойки ноги вместе руки согнуты возле груди (с применением утежелителей выше лодыжек) | S28: 1 | T28: ≥ 12 | U28: 1.1 | V28: 3
C29: 2 упр | D29: Отведение каждой ноги поочередно из стойки ноги вместе руки согнуты возле груди (с применением утежелителей выше лодыжек) | E29: 1 | F29: ≥ 50 | G29: 1.1 | J29: 2 упр | K29: Отведение каждой ноги поочередно из стойки ноги вместе руки согнуты возле груди (с применением утежелителей выше лодыжек) | L29: 1 | M29: ≥ 25 | N29: 1.1 | Q29: 2 упр | R29: Отведение каждой ноги поочередно из стойки ноги вместе руки согнуты возле груди (с применением утежелителей выше лодыжек) | S29: 1 | T29: ≥ 12 | U29: 1.1
C30: 3 упр | D30: Приседания на обеих ногах с касанием руками пола из стойки ноги на ширине плеч руки вместе | E30: 1 | F30: ≥ 50 | G30: 1.1 | J30: 3 упр | K30: Приседания на обеих ногах с касанием руками пола из стойки ноги на ширине плеч руки вместе (с применением утежелителей на поясе) | L30: 1 | M30: ≥ 25 | N30: 1.1 | Q30: 3 упр | R30: Приседания на обеих ногах с касанием руками пола из стойки ноги на ширине плеч руки вместе (с применением утежелителей на поясе) | S30: 1 | T30: ≥ 12 | U30: 1.1
B31: Силовая выносливость мышц туловища | C31: 1 упр | D31: Отклонение туловища назад из седа на стуле руки к плечам локти на спинку стула до полного выпрямления | E31: 1 | F31: ≥ 50 | G31: 0.9 | H31: 1 | I31: Силовая выносливость мышц туловища | J31: 1 упр | K31: Отклонение туловища назад из седа на скамейке (кровати) руки "в замок" за голову до полного выпрямления | L31: 1 | M31: ≥ 25 | N31: 0.9 | O31: 2 | P31: Силовая выносливость мышц туловища | Q31: 1 упр | R31: Отклонение туловища назад из седа на скамейке (кровати) руки "в замок" за голову прогиб назад | S31: 1 | T31: ≥ 12 | U31: 0.9 | V31: 3
C32: 2 упр | D32: Прогиб назад из положения лежа на животе руки согнуты в упор прогнувшись на бедрах | E32: 1 | F32: ≥ 50 | G32: 0.9 | J32: 2 упр | K32: Отведение ног назад из положения лежа на животе с опорой руками о пол | L32: 1 | M32: ≥ 25 | N32: 0.9 | Q32: 2 упр | R32: Отведение ног назад из положения лежа на животе с захватом руками ног выше лодыжек | S32: 1 | T32: ≥ 12 | U32: 0.9
C33: 3 упр | D33: Прогиб назад и наклон вперед с обхватом руками голеней из стойки ноги врозь руки на пояс | E33: 1 | F33: ≥ 50 | G33: 0.9 | J33: 3 упр | K33: Прогиб назад и наклон вперед с руками вверх на пол из стойки на коленях | L33: 1 | M33: ≥ 25 | N33: 0.9 | Q33: 3 упр | R33: Прогиб назад до касания лопатками пола (руки вдоль туловища) и наклон вперед с переходом в упор стоя (углом) | S33: 1 | T33: ≥ 12 | U33: 0.9
H34: 1 | O34: 2 | V34: 3
H37: 1 | O37: 2 | V37: 3
H40: 1 | O40: 2 | V40: 3
H43: 1 | O43: 2 | V43: 3
A46: Заключительная часть занятия | B46: Силовая выносливость мышц туловища | C46: 1 упр | H46: 1 | I46: Силовая выносливость мышц туловища | J46: 1 упр | O46: 2 | P46: Силовая выносливость мышц туловища | Q46: 1 упр | V46: 3
A47: Физическое упражнение | C47: 2 упр | J47: 2 упр | Q47: 2 упр
A48: Глубокий наклон вперед с задержкой | C48: 3 упр | J48: 3 упр | Q48: 3 упр
A49: Упор лежа на ногах
A50: Стойка на лопатках | I50: p | J50: h*
A51: Максимальное расслабление лежа на животе | I51: 1
A52: Разбор занятия, 3 мин | I52: 1
A53: Стойка на лопатках с опусканием ног за голову на пол руки прямые лодонями прижаты к полу | I53: 1
A54: Вис на согнутых ногах прогнувшись руки в замок за голову | I54: 1
A55: Стойка на голове и лопатках
A56: Максимальное расслабление лежа на животе | I56: p2-1
A57: Разбор занятия, 3 мин | I57: p2-2
A58: Из положения лежа на спине сед согнувшись с согнутыми ногами руки ладонями вперед запястьями на коллени | I58: p2-3
A59: Из положения лежа на животе отведение прямых рук и ног назад с прогибом туловища | I59: p2-4
A60: Стойка на руках
A61: Максимальное расслабление лежа на животе | I61: p3-1
A62: Разбор занятия, 3 мин | I62: p3-2

Sheet Быстрота1
F1: 1 | M1: 2 | T1: 3
E2: 1 | L2: 2 | S2: 3
D3: 1 | K3: 2 | R3: 3
H4: 1 | O4: 2 | U4: 3
B5: Быстрота1
B6: ФК или ДН | C6: № упр | D6: Физическое упражнение первый уровень сложности | E6: p* | F6: n* | G6: k* | H6: УС | I6: ФК | J6: № упр | K6: Физическое упражнение второй уровень сложности | L6: p* | M6: n* | N6: k* | O6: УС | P6: ФК | Q6: № упр | R6: Физическое упражнение третий уровень сложности | S6: p* | T6: n* | U6: k* | V6: УС
B7: Быстрота мышц туловища | C7: 1 упр | D7: Подъем в сед из положения лежа на спине руки вдоль туловища ноги согнуты | E7: ≤ 3 | F7: ≤ 11 | G7: 0.5 | H7: 1 | I7: Быстрота мышц туловища | J7: 1 упр | K7: Подъем в сед из положения лежа на спине руки на плечи ноги согнуты | L7: ≤ 2 | M7: ≤ 8 | N7: 0.5 | O7: 2 | P7: Быстрота мышц туловища | Q7: 1 упр | R7: Подъем в сед из положения лежа на спине руки "в замок" за голову ноги согнуты | S7: 1 | T7: ≤ 6 | U7: 0.5 | V7: 3
C8: 2 упр | D8: Прогиб назад из положения лежа на животе руки вдоль туловища с опорой руками о пол | E8: ≤ 3 | F8: ≤ 11 | G8: 0.5 | J8: 2 упр | K8: Прогиб назад из положения лежа на животе руки вверх | L8: ≤ 2 | M8: ≤ 8 | N8: 0.5 | Q8: 2 упр | R8: Прогиб назад из положения лежа на животе руки "в замок" за голову | S8: 1 | T8: ≤ 6 | U8: 0.5
C9: 3 упр | D9: Переход в упор лежа сзади с согнутыми ногами из упора сидя (тибетский мост) | E9: ≤ 3 | F9: ≤ 11 | G9: 0.5 | J9: 3 упр | K9: Переход в упор лежа сзади с согнутыми ногами из упора сидя (тибетский мост) с утежелителями на поясе | L9: ≤ 2 | M9: ≤ 8 | N9: 0.5 | Q9: 3 упр | R9: Переход в упор лежа сзади с согнутыми ногами из упора сидя (тибетский мост) с утежелителями на поясе | S9: 1 | T9: ≤ 6 | U9: 0.5
B13: Быстрота мышц плечевого пояса | C13: 1 упр | D13: Подтягивания в висе стоя широким хватом сверху ноги шире плеч | E13: ≤ 3 | F13: ≤ 11 | G13: 0.4 | H13: 1 | I13: Быстрота мышц плечевого пояса | J13: 1 упр | K13: Подтягивания в висе стоя хватом сверху (руки и ноги на ширине плеч) | L13: ≤ 2 | M13: ≤ 8 | N13: 0.4 | O13: 2 | P13: Быстрота мышц плечевого пояса | Q13: 1 упр | R13: Подтягивания в висе лежа узким хватом сверху (при необходимости с помощью партнера) | S13: 1 | T13: ≤ 6 | U13: 0.4 | V13: 3
C14: 2 упр | D14: Сгибание и разгибание рук в упоре лежа от стола (высота 0,75 - 1 м) ноги шире плеч | E14: ≤ 3 | F14: ≤ 11 | G14: 0.4 | J14: 2 упр | K14: Сгибание и разгибание рук в упоре лежа от табурета (высота 0,45 - 0,55 м) | L14: ≤ 2 | M14: ≤ 8 | N14: 0.4 | Q14: 2 упр | R14: Сгибание и разгибание рук в упоре лежа (руки на ширине плеч) | S14: 1 | T14: ≤ 6 | U14: 0.4
C15: 3 упр | D15: Сгибание и разгибание рук в висе стоя возле гимнастической лестницы в стойке ноги и руки шире плеч (руки на перекладинне на уровне плеч) | E15: ≤ 3 | F15: ≤ 11 | G15: 0.4 | J15: 3 упр | K15: Сгибание и разгибание рук в висе стоя возле гимнастической лестницы в стойке ноги и руки на ширине плеч (руки на перекладинне на уровне плеч) | L15: ≤ 2 | M15: ≤ 8 | N15: 0.4 | Q15: 3 упр | R15: Сгибание и разгибание рук в висе стоя возле гимнастической лестницы в стойке ноги и руки вместе (руки на перекладинне на уровне плеч) | S15: 1 | T15: ≤ 6 | U15: 0.4
B16: Быстрота мышц тазобедренного пояса | C16: 1 упр | D16: Сгибание левой ноги спереди к груди в стойке с опорой руками о гимнастическую лестницу (стену) | E16: ≤ 3 | F16: ≤ 11 | G16: 0.6 | H16: 1 | I16: Быстрота мышц тазобедренного пояса | J16: 1 упр | K16: Сгибание левой ноги спереди к груди в стойке с опорой руками о гимнастическую лестницу (стену) (с применением утежелителей выше лодыжек) | L16: ≤ 2 | M16: ≤ 8 | N16: 0.6 | O16: 2 | P16: Быстрота мышц тазобедренного пояса | Q16: 1 упр | R16: Сгибание левой ноги спереди к груди в стойке с опорой руками о гимнастическую лестницу (стену) (с применением утежелителей выше лодыжек) | S16: 1 | T16: ≤ 6 | U16: 0.6 | V16: 3
C17: 2 упр | D17: Сгибание правой ноги спереди к груди в стойке с опорой руками о гимнастическую лестницу (стену) | E17: ≤ 3 | F17: ≤ 11 | G17: 0.6 | J17: 2 упр | K17: Сгибание правой ноги спереди к груди в стойке с опорой руками о гимнастическую лестницу (стену) (с применением утежелителей выше лодыжек) | L17: ≤ 2 | M17: ≤ 8 | N17: 0.6 | Q17: 2 упр | R17: Сгибание правой ноги спереди к груди в стойке с опорой руками о гимнастическую лестницу (стену) (с применением утежелителей выше лодыжек) | S17: 1 | T17: ≤ 6 | U17: 0.6
C18: 3 упр | D18: Бег со сгибанием ног спереди, поднимая ноги к груди, в стойке с опорой руками о гимнастическую лестницу (стену) | E18: ≤ 3 | F18: ≤ 11 | G18: 0.6 | J18: 3 упр | K18: Бег со сгибанием ног спереди, поднимая ноги к груди, в стойке с опорой руками о гимнастическую лестницу (стену) (с применением утежелителей выше лодыжек) | L18: ≤ 2 | M18: ≤ 8 | N18: 0.6 | Q18: 3 упр | R18: Бег со сгибанием ног спереди, поднимая ноги к груди, в стойке с опорой руками о гимнастическую лестницу (стену) (с применением утежелителей выше лодыжек) | S18: 1 | T18: ≤ 6 | U18: 0.6
B19: Быстрота мышц туловища | C19: 1 упр | D19: Подъем в сед из положения лежа на спине руки вдоль туловища ноги согнуты | E19: ≤ 3 | F19: ≤ 11 | G19: 0.5 | H19: 1 | I19: Быстрота мышц туловища | J19: 1 упр | K19: Подъем в сед из положения лежа на спине руки на плечи ноги согнуты | L19: ≤ 2 | M19: ≤ 8 | N19: 0.5 | O19: 2 | P19: Быстрота мышц туловища | Q19: 1 упр | R19: Подъем в сед из положения лежа на спине руки "в замок" за голову ноги согнуты | S19: 1 | T19: ≤ 6 | U19: 0.5 | V19: 3
C20: 2 упр | D20: Прогиб назад из положения лежа на животе руки вдоль туловища с опорой руками о пол | E20: ≤ 3 | F20: ≤ 11 | G20: 0.5 | J20: 2 упр | K20: Прогиб назад из положения лежа на животе руки вверх | L20: ≤ 2 | M20: ≤ 8 | N20: 0.5 | Q20: 2 упр | R20: Прогиб назад из положения лежа на животе руки "в замок" за голову | S20: 1 | T20: ≤ 6 | U20: 0.5
C21: 3 упр | D21: Переход в упор лежа сзади с согнутыми ногами из упора сидя (тибетский мост) | E21: ≤ 3 | F21: ≤ 11 | G21: 0.5 | J21: 3 упр | K21: Переход в упор лежа сзади с согнутыми ногами из упора сидя (тибетский мост) с утежелителями на поясе | L21: ≤ 2 | M21: ≤ 8 | N21: 0.5 | Q21: 3 упр | R21: Переход в упор лежа сзади с согнутыми ногами из упора сидя (тибетский мост) с утежелителями на поясе | S21: 1 | T21: ≤ 6 | U21: 0.5
B22: Скоростная выносливость мышц плечевого пояса | C22: 1 упр | D22: Подтягивания в висе стоя широким хватом снизу ноги шире плеч | E22: 1 | F22: ≥ 18 | G22: 0.7 | H22: 1 | I22: Скоростная выносливость мышц плечевого пояса | J22: 1 упр | K22: Подтягивания в висе лежа нормальным хватом снизу ноги на ширине плеч | L22: 1 | M22: ≥ 15 | N22: 0.7 | O22: 2 | P22: Скоростная выносливость мышц плечевого пояса | Q22: 1 упр | R22: Подтягивания в висе лежа узким хватом снизу ноги вместе | S22: 1 | T22: ≥ 12 | U22: 0.7 | V22: 3
C23: 2 упр | D23: Сгибание и разгибание рук в упоре лежа от стола (высота 0,75 - 1 м) ноги шире плеч | E23: 1 | F23: ≥ 18 | G23: 0.7 | J23: 2 упр | K23: Сгибание и разгибание рук в упоре лежа от стула (0,45 - 0,55 м) ноги на ширине плеч | L23: 1 | M23: ≥ 15 | N23: 0.7 | Q23: 2 упр | R23: Сгибание и разгибание рук в упоре лежа ноги вместе | S23: 1 | T23: ≥ 12 | U23: 0.7
C24: 3 упр | D24: Подъем переворотом в упор на перекладину из виса стоя махом одной толчком другой ноги | E24: 1 | F24: ≥ 18 | G24: 0.7 | J24: 3 упр | K24: Подъем переворотом в упор на перекладину из виса стоя толчком обеих ног | L24: 1 | M24: ≥ 15 | N24: 0.7 | Q24: 3 упр | R24: Подъем переворотом в упор на перекладину из виса прогнувшись | S24: 1 | T24: ≥ 12 | U24: 0.7
B25: Силовая выносливость мышц тазобедренного пояса | C25: 1 упр | D25: Приведение каждой ноги поочередно из стойки ноги вместе руки согнуты возле груди (с применением утежелителей выше лодыжек) | E25: 1 | F25: ≥ 18 | G25: 1 | H25: 1 | I25: Силовая выносливость мышц тазобедренного пояса | J25: 1 упр | K25: Приведение каждой ноги поочередно из стойки ноги вместе руки согнуты возле груди (с применением утежелителей выше лодыжек) | L25: 1 | M25: ≥ 15 | N25: 1 | O25: 2 | P25: Силовая выносливость мышц тазобедренного пояса | Q25: 1 упр | R25: Приведение каждой ноги поочередно из стойки ноги вместе руки согнуты возле груди (с применением утежелителей выше лодыжек) | S25: 1 | T25: ≥ 12 | U25: 1 | V25: 3
C26: 2 упр | D26: Отведение каждой ноги поочередно из стойки ноги вместе руки согнуты возле груди (с применением утежелителей выше лодыжек) | E26: 1 | F26: ≥ 18 | G26: 1 | J26: 2 упр | K26: Отведение каждой ноги поочередно из стойки ноги вместе руки согнуты возле груди (с применением утежелителей выше лодыжек) | L26: 1 | M26: ≥ 15 | N26: 1 | Q26: 2 упр | R26: Отведение каждой ноги поочередно из стойки ноги вместе руки согнуты возле груди (с применением утежелителей выше лодыжек) | S26: 1 | T26: ≥ 12 | U26: 1
C27: 3 упр | D27: Приседания на обеих ногах с касанием руками пола из стойки ноги на ширине плеч руки вместе | E27: 1 | F27: ≥ 18 | G27: 1 | J27: 3 упр | K27: Приседания на обеих ногах с касанием руками пола из стойки ноги на ширине плеч руки вместе (с применением утежелителей на поясе) | L27: 1 | M27: ≥ 15 | N27: 1 | Q27: 3 упр | R27: Приседания на обеих ногах с касанием руками пола из стойки ноги на ширине плеч руки вместе (с применением утежелителей на поясе) | S27: 1 | T27: ≥ 12 | U27: 1
B28: Скоростная выносливость мышц тазобедренного пояса | C28: 1 упр | D28: Сгибание левой ноги спереди к груди в стойке с опорой руками о гимнастическую лестницу (стену) | E28: 1 | F28: ≥ 18 | G28: 1.1 | H28: 1 | I28: Скоростная выносливость мышц тазобедренного пояса | J28: 1 упр | K28: Сгибание левой ноги спереди к груди в стойке с опорой руками о гимнастическую лестницу (стену) (с применением утежелителей выше лодыжек) | L28: 1 | M28: ≥ 15 | N28: 1.1 | O28: 2 | P28: Скоростная выносливость мышц тазобедренного пояса | Q28: 1 упр | R28: Сгибание левой ноги спереди к груди в стойке с опорой руками о гимнастическую лестницу (стену) (с применением утежелителей выше лодыжек) | S28: 1 | T28: ≥ 12 | U28: 1.1 | V28: 3
C29: 2 упр | D29: Сгибание правой ноги спереди к груди в стойке с опорой руками о гимнастическую лестницу (стену) | E29: 1 | F29: ≥ 18 | G29: 1.1 | J29: 2 упр | K29: Сгибание правой ноги спереди к груди в стойке с опорой руками о гимнастическую лестницу (стену) (с применением утежелителей выше лодыжек) | L29: 1 | M29: ≥ 15 | N29: 1.1 | Q29: 2 упр | R29: Сгибание правой ноги спереди к груди в стойке с опорой руками о гимнастическую лестницу (стену) (с применением утежелителей выше лодыжек) | S29: 1 | T29: ≥ 12 | U29: 1.1
C30: 3 упр | D30: Бег со сгибанием ног спереди, поднимая ноги к груди, в стойке с опорой руками о гимнастическую лестницу (стену) | E30: 1 | F30: ≥ 18 | G30: 1.1 | J30: 3 упр | K30: Бег со сгибанием ног спереди, поднимая ноги к груди, в стойке с опорой руками о гимнастическую лестницу (стену) (с применением утежелителей выше лодыжек) | L30: 1 | M30: ≥ 15 | N30: 1.1 | Q30: 3 упр | R30: Бег со сгибанием ног спереди, поднимая ноги к груди, в стойке с опорой руками о гимнастическую лестницу (стену) (с применением утежелителей выше лодыжек) | S30: 1 | T30: ≥ 12 | U30: 1.1
B31: Скоростная выносливость мышц туловища | C31: 1 упр | D31: Отклонение туловища назад из седа на стуле руки к плечам локти на спинку стула до полного выпрямления | E31: 1 | F31: ≥ 18 | G31: 1 | H31: 1 | I31: Скоростная выносливость мышц туловища | J31: 1 упр | K31: Отклонение туловища назад из седа на скамейке (кровати) руки "в замок" за голову до полного выпрямления | L31: 1 | M31: ≥ 15 | N31: 1 | O31: 2 | P31: Скоростная выносливость мышц туловища | Q31: 1 упр | R31: Отклонение туловища назад из седа на скамейке (кровати) руки "в замок" за голову прогиб назад | S31: 1 | T31: ≥ 12 | U31: 1 | V31: 3
C32: 2 упр | D32: Прогиб назад из положения лежа на животе руки согнуты в упор прогнувшись на бедрах | E32: 1 | F32: ≥ 18 | G32: 1 | J32: 2 упр | K32: Отведение ног назад из положения лежа на животе с опорой руками о пол | L32: 1 | M32: ≥ 15 | N32: 1 | Q32: 2 упр | R32: Отведение ног назад из положения лежа на животе с захватом руками ног выше лодыжек | S32: 1 | T32: ≥ 12 | U32: 1
C33: 3 упр | D33: Прогиб назад и наклон вперед с обхватом руками голеней из стойки ноги врозь руки на пояс | E33: 1 | F33: ≥ 18 | G33: 1 | J33: 3 упр | K33: Прогиб назад и наклон вперед с руками вверх на пол из стойки на коленях | L33: 1 | M33: ≥ 15 | N33: 1 | Q33: 3 упр | R33: Прогиб назад до касания лопатками пола (руки вдоль туловища) и наклон вперед с переходом в упор стоя (углом) | S33: 1 | T33: ≥ 12 | U33: 1
H34: 1 | O34: 2 | V34: 3
H37: 1 | O37: 2 | V37: 3
H40: 1 | O40: 2 | V40: 3
H43: 1 | O43: 2 | V43: 3
A46: Заключительная часть занятия | B46: Силовая выносливость мышц туловища | C46: 1 упр | H46: 1 | I46: Силовая выносливость мышц туловища | J46: 1 упр | O46: 2 | P46: Силовая выносливость мышц туловища | Q46: 1 упр | V46: 3
A47: Физическое упражнение | C47: 2 упр | J47: 2 упр | Q47: 2 упр
A48: Глубокий наклон вперед с задержкой | C48: 3 упр | J48: 3 упр | Q48: 3 упр
A49: Упор лежа на ногах
A50: Стойка на лопатках | I50: p | J50: h*
A51: Максимальное расслабление лежа на животе | I51: 1
A52: Разбор занятия, 3 мин | I52: 1
A53: Стойка на лопатках с опусканием ног за голову на пол руки прямые лодонями прижаты к полу | I53: 1
A54: Вис на согнутых ногах прогнувшись руки в замок за голову | I54: 1
A55: Стойка на голове и лопатках
A56: Максимальное расслабление лежа на животе | I56: p2-1
A57: Разбор занятия, 3 мин | I57: p2-2
A58: Из положения лежа на спине сед согнувшись с согнутыми ногами руки ладонями вперед запястьями на коллени | I58: p2-3
A59: Из положения лежа на животе отведение прямых рук и ног назад с прогибом туловища | I59: p2-4
A60: Стойка на руках
A61: Максимальное расслабление лежа на животе | I61: p3-1
A62: Разбор занятия, 3 мин | I62: p3-2

Sheet Быстрота2
F1: 1 | M1: 2 | T1: 3
E2: 1 | L2: 2 | S2: 3
D3: 1 | K3: 2 | R3: 3
H4: 1 | O4: 2 | U4: 3
B5: Быстрота2
B6: ФК или ДН | C6: № упр | D6: Физическое упражнение первый уровень сложности | E6: p* | F6: n* | G6: k* | H6: УС | I6: ФК | J6: № упр | K6: Физическое упражнение второй уровень сложности | L6: p* | M6: n* | N6: k* | O6: УС | P6: ФК | Q6: № упр | R6: Физическое упражнение третий уровень сложности | S6: p* | T6: n* | U6: k* | V6: УС
B7: Быстрота мышц плечевого пояса | C7: 1 упр | D7: Подтягивания в висе стоя широким хватом сверху ноги шире плеч | E7: ≤ 3 | F7: ≤ 11 | G7: 0.4 | H7: 1 | I7: Быстрота мышц плечевого пояса | J7: 1 упр | K7: Подтягивания в висе стоя хватом сверху (руки и ноги на ширине плеч) | L7: ≤ 2 | M7: ≤ 8 | N7: 0.4 | O7: 2 | P7: Быстрота мышц плечевого пояса | Q7: 1 упр | R7: Подтягивания в висе лежа узким хватом сверху (при необходимости с помощью партнера) | S7: 1 | T7: ≤ 6 | U7: 0.4 | V7: 3
C8: 2 упр | D8: Сгибание и разгибание рук в упоре лежа от стола (высота 0,75 - 1 м) ноги шире плеч | E8: ≤ 3 | F8: ≤ 11 | G8: 0.4 | J8: 2 упр | K8: Сгибание и разгибание рук в упоре лежа от табурета (высота 0,45 - 0,55 м) | L8: ≤ 2 | M8: ≤ 8 | N8: 0.4 | Q8: 2 упр | R8: Сгибание и разгибание рук в упоре лежа (руки на ширине плеч) | S8: 1 | T8: ≤ 6 | U8: 0.4
C9: 3 упр | D9: Сгибание и разгибание рук в висе стоя возле гимнастической лестницы в стойке ноги и руки шире плеч (руки на перекладинне на уровне плеч) | E9: ≤ 3 | F9: ≤ 11 | G9: 0.4 | J9: 3 упр | K9: Сгибание и разгибание рук в висе стоя возле гимнастической лестницы в стойке ноги и руки на ширине плеч (руки на перекладинне на уровне плеч) | L9: ≤ 2 | M9: ≤ 8 | N9: 0.4 | Q9: 3 упр | R9: Сгибание и разгибание рук в висе стоя возле гимнастической лестницы в стойке ноги и руки вместе (руки на перекладинне на уровне плеч) | S9: 1 | T9: ≤ 6 | U9: 0.4
B13: Быстрота мышц плечевого пояса | C13: 1 упр | D13: Подтягивания в висе стоя широким хватом сверху ноги шире плеч | E13: ≤ 3 | F13: ≤ 11 | G13: 0.4 | H13: 1 | I13: Быстрота мышц плечевого пояса | J13: 1 упр | K13: Подтягивания в висе стоя хватом сверху (руки и ноги на ширине плеч) | L13: ≤ 2 | M13: ≤ 8 | N13: 0.4 | O13: 2 | P13: Быстрота мышц плечевого пояса | Q13: 1 упр | R13: Подтягивания в висе лежа узким хватом сверху (при необходимости с помощью партнера) | S13: 1 | T13: ≤ 6 | U13: 0.4 | V13: 3
C14: 2 упр | D14: Сгибание и разгибание рук в упоре лежа от стола (высота 0,75 - 1 м) ноги шире плеч | E14: ≤ 3 | F14: ≤ 11 | G14: 0.4 | J14: 2 упр | K14: Сгибание и разгибание рук в упоре лежа от табурета (высота 0,45 - 0,55 м) | L14: ≤ 2 | M14: ≤ 8 | N14: 0.4 | Q14: 2 упр | R14: Сгибание и разгибание рук в упоре лежа (руки на ширине плеч) | S14: 1 | T14: ≤ 6 | U14: 0.4
C15: 3 упр | D15: Сгибание и разгибание рук в висе стоя возле гимнастической лестницы в стойке ноги и руки шире плеч (руки на перекладинне на уровне плеч) | E15: ≤ 3 | F15: ≤ 11 | G15: 0.4 | J15: 3 упр | K15: Сгибание и разгибание рук в висе стоя возле гимнастической лестницы в стойке ноги и руки на ширине плеч (руки на перекладинне на уровне плеч) | L15: ≤ 2 | M15: ≤ 8 | N15: 0.4 | Q15: 3 упр | R15: Сгибание и разгибание рук в висе стоя возле гимнастической лестницы в стойке ноги и руки вместе (руки на перекладинне на уровне плеч) | S15: 1 | T15: ≤ 6 | U15: 0.4
B16: Быстрота мышц тазобедренного пояса | C16: 1 упр | D16: Сгибание левой ноги спереди к груди в стойке с опорой руками о гимнастическую лестницу (стену) | E16: ≤ 3 | F16: ≤ 11 | G16: 0.6 | H16: 1 | I16: Быстрота мышц тазобедренного пояса | J16: 1 упр | K16: Сгибание левой ноги спереди к груди в стойке с опорой руками о гимнастическую лестницу (стену) (с применением утежелителей выше лодыжек) | L16: ≤ 2 | M16: ≤ 8 | N16: 0.6 | O16: 2 | P16: Быстрота мышц тазобедренного пояса | Q16: 1 упр | R16: Сгибание левой ноги спереди к груди в стойке с опорой руками о гимнастическую лестницу (стену) (с применением утежелителей выше лодыжек) | S16: 1 | T16: ≤ 6 | U16: 0.6 | V16: 3
C17: 2 упр | D17: Сгибание правой ноги спереди к груди в стойке с опорой руками о гимнастическую лестницу (стену) | E17: ≤ 3 | F17: ≤ 11 | G17: 0.6 | J17: 2 упр | K17: Сгибание правой ноги спереди к груди в стойке с опорой руками о гимнастическую лестницу (стену) (с применением утежелителей выше лодыжек) | L17: ≤ 2 | M17: ≤ 8 | N17: 0.6 | Q17: 2 упр | R17: Сгибание правой ноги спереди к груди в стойке с опорой руками о гимнастическую лестницу (стену) (с применением утежелителей выше лодыжек) | S17: 1 | T17: ≤ 6 | U17: 0.6
C18: 3 упр | D18: Бег со сгибанием ног спереди, поднимая ноги к груди, в стойке с опорой руками о гимнастическую лестницу (стену) | E18: ≤ 3 | F18: ≤ 11 | G18: 0.6 | J18: 3 упр | K18: Бег со сгибанием ног спереди, поднимая ноги к груди, в стойке с опорой руками о гимнастическую лестницу (стену) (с применением утежелителей выше лодыжек) | L18: ≤ 2 | M18: ≤ 8 | N18: 0.6 | Q18: 3 упр | R18: Бег со сгибанием ног спереди, поднимая ноги к груди, в стойке с опорой руками о гимнастическую лестницу (стену) (с применением утежелителей выше лодыжек) | S18: 1 | T18: ≤ 6 | U18: 0.6
B19: Быстрота мышц туловища | C19: 1 упр | D19: Подъем в сед из положения лежа на спине руки вдоль туловища ноги согнуты | E19: ≤ 3 | F19: ≤ 11 | G19: 0.5 | H19: 1 | I19: Быстрота мышц туловища | J19: 1 упр | K19: Подъем в сед из положения лежа на спине руки на плечи ноги согнуты | L19: ≤ 2 | M19: ≤ 8 | N19: 0.5 | O19: 2 | P19: Быстрота мышц туловища | Q19: 1 упр | R19: Подъем в сед из положения лежа на спине руки "в замок" за голову ноги согнуты | S19: 1 | T19: ≤ 6 | U19: 0.5 | V19: 3
C20: 2 упр | D20: Прогиб назад из положения лежа на животе руки вдоль туловища с опорой руками о пол | E20: ≤ 3 | F20: ≤ 11 | G20: 0.5 | J20: 2 упр | K20: Прогиб назад из положения лежа на животе руки вверх | L20: ≤ 2 | M20: ≤ 8 | N20: 0.5 | Q20: 2 упр | R20: Прогиб назад из положения лежа на животе руки "в замок" за голову | S20: 1 | T20: ≤ 6 | U20: 0.5
C21: 3 упр | D21: Переход в упор лежа сзади с согнутыми ногами из упора сидя (тибетский мост) | E21: ≤ 3 | F21: ≤ 11 | G21: 0.5 | J21: 3 упр | K21: Переход в упор лежа сзади с согнутыми ногами из упора сидя (тибетский мост) с утежелителями на поясе | L21: ≤ 2 | M21: ≤ 8 | N21: 0.5 | Q21: 3 упр | R21: Переход в упор лежа сзади с согнутыми ногами из упора сидя (тибетский мост) с утежелителями на поясе | S21: 1 | T21: ≤ 6 | U21: 0.5
B22: Скоростная выносливость мышц плечевого пояса | C22: 1 упр | D22: Подтягивания в висе стоя широким хватом снизу ноги шире плеч | E22: 1 | F22: ≥ 18 | G22: 0.7 | H22: 1 | I22: Скоростная выносливость мышц плечевого пояса | J22: 1 упр | K22: Подтягивания в висе лежа нормальным хватом снизу ноги на ширине плеч | L22: 1 | M22: ≥ 15 | N22: 0.7 | O22: 2 | P22: Скоростная выносливость мышц плечевого пояса | Q22: 1 упр | R22: Подтягивания в висе лежа узким хватом снизу ноги вместе | S22: 1 | T22: ≥ 12 | U22: 0.7 | V22: 3
C23: 2 упр | D23: Сгибание и разгибание рук в упоре лежа от стола (высота 0,75 - 1 м) ноги шире плеч | E23: 1 | F23: ≥ 18 | G23: 0.7 | J23: 2 упр | K23: Сгибание и разгибание рук в упоре лежа от стула (0,45 - 0,55 м) ноги на ширине плеч | L23: 1 | M23: ≥ 15 | N23: 0.7 | Q23: 2 упр | R23: Сгибание и разгибание рук в упоре лежа ноги вместе | S23: 1 | T23: ≥ 12 | U23: 0.7
C24: 3 упр | D24: Подъем переворотом в упор на перекладину из виса стоя махом одной толчком другой ноги | E24: 1 | F24: ≥ 18 | G24: 0.7 | J24: 3 упр | K24: Подъем переворотом в упор на перекладину из виса стоя толчком обеих ног | L24: 1 | M24: ≥ 15 | N24: 0.7 | Q24: 3 упр | R24: Подъем переворотом в упор на перекладину из виса прогнувшись | S24: 1 | T24: ≥ 12 | U24: 0.7
B25: Силовая выносливость мышц тазобедренного пояса | C25: 1 упр | D25: Приведение каждой ноги поочередно из стойки ноги вместе руки согнуты возле груди (с применением утежелителей выше лодыжек) | E25: 1 | F25: ≥ 18 | G25: 1 | H25: 1 | I25: Силовая выносливость мышц тазобедренного пояса | J25: 1 упр | K25: Приведение каждой ноги поочередно из стойки ноги вместе руки согнуты возле груди (с применением утежелителей выше лодыжек) | L25: 1 | M25: ≥ 15 | N25: 1 | O25: 2 | P25: Силовая выносливость мышц тазобедренного пояса | Q25: 1 упр | R25: Приведение каждой ноги поочередно из стойки ноги вместе руки согнуты возле груди (с применением утежелителей выше лодыжек) | S25: 1 | T25: ≥ 12 | U25: 1 | V25: 3
C26: 2 упр | D26: Отведение каждой ноги поочередно из стойки ноги вместе руки согнуты возле груди (с применением утежелителей выше лодыжек) | E26: 1 | F26: ≥ 18 | G26: 1 | J26: 2 упр | K26: Отведение каждой ноги поочередно из стойки ноги вместе руки согнуты возле груди (с применением утежелителей выше лодыжек) | L26: 1 | M26: ≥ 15 | N26: 1 | Q26: 2 упр | R26: Отведение каждой ноги поочередно из стойки ноги вместе руки согнуты возле груди (с применением утежелителей выше лодыжек) | S26: 1 | T26: ≥ 12 | U26: 1
C27: 3 упр | D27: Приседания на обеих ногах с касанием руками пола из стойки ноги на ширине плеч руки вместе | E27: 1 | F27: ≥ 18 | G27: 1 | J27: 3 упр | K27: Приседания на обеих ногах с касанием руками пола из стойки ноги на ширине плеч руки вместе (с применением утежелителей на поясе) | L27: 1 | M27: ≥ 15 | N27: 1 | Q27: 3 упр | R27: Приседания на обеих ногах с касанием руками пола из стойки ноги на ширине плеч руки вместе (с применением утежелителей на поясе) | S27: 1 | T27: ≥ 12 | U27: 1
B28: Скоростная выносливость мышц тазобедренного пояса | C28: 1 упр | D28: Сгибание левой ноги спереди к груди в стойке с опорой руками о гимнастическую лестницу (стену) | E28: 1 | F28: ≥ 18 | G28: 1.1 | H28: 1 | I28: Скоростная выносливость мышц тазобедренного пояса | J28: 1 упр | K28: Сгибание левой ноги спереди к груди в стойке с опорой руками о гимнастическую лестницу (стену) (с применением утежелителей выше лодыжек) | L28: 1 | M28: ≥ 15 | N28: 1.1 | O28: 2 | P28: Скоростная выносливость мышц тазобедренного пояса | Q28: 1 упр | R28: Сгибание левой ноги спереди к груди в стойке с опорой руками о гимнастическую лестницу (стену) (с применением утежелителей выше лодыжек) | S28: 1 | T28: ≥ 12 | U28: 1.1 | V28: 3
C29: 2 упр | D29: Сгибание правой ноги спереди к груди в стойке с опорой руками о гимнастическую лестницу (стену) | E29: 1 | F29: ≥ 18 | G29: 1.1 | J29: 2 упр | K29: Сгибание правой ноги спереди к груди в стойке с опорой руками о гимнастическую лестницу (стену) (с применением утежелителей выше лодыжек) | L29: 1 | M29: ≥ 15 | N29: 1.1 | Q29: 2 упр | R29: Сгибание правой ноги спереди к груди в стойке с опорой руками о гимнастическую лестницу (стену) (с применением утежелителей выше лодыжек) | S29: 1 | T29: ≥ 12 | U29: 1.1
C30: 3 упр | D30: Бег со сгибанием ног спереди, поднимая ноги к груди, в стойке с опорой руками о гимнастическую лестницу (стену) | E30: 1 | F30: ≥ 18 | G30: 1.1 | J30: 3 упр | K30: Бег со сгибанием ног спереди, поднимая ноги к груди, в стойке с опорой руками о гимнастическую лестницу (стену) (с применением утежелителей выше лодыжек) | L30: 1 | M30: ≥ 15 | N30: 1.1 | Q30: 3 упр | R30: Бег со сгибанием ног спереди, поднимая ноги к груди, в стойке с опорой руками о гимнастическую лестницу (стену) (с применением утежелителей выше лодыжек) | S30: 1 | T30: ≥ 12 | U30: 1.1
B31: Скоростная выносливость мышц туловища | C31: 1 упр | D31: Отклонение туловища назад из седа на стуле руки к плечам локти на спинку стула до полного выпрямления | E31: 1 | F31: ≥ 18 | G31: 1 | H31: 1 | I31: Скоростная выносливость мышц туловища | J31: 1 упр | K31: Отклонение туловища назад из седа на скамейке (кровати) руки "в замок" за голову до полного выпрямления | L31: 1 | M31: ≥ 15 | N31: 1 | O31: 2 | P31: Скоростная выносливость мышц туловища | Q31: 1 упр | R31: Отклонение туловища назад из седа на скамейке (кровати) руки "в замок" за голову прогиб назад | S31: 1 | T31: ≥ 12 | U31: 1 | V31: 3
C32: 2 упр | D32: Прогиб назад из положения лежа на животе руки согнуты в упор прогнувшись на бедрах | E32: 1 | F32: ≥ 18 | G32: 1 | J32: 2 упр | K32: Отведение ног назад из положения лежа на животе с опорой руками о пол | L32: 1 | M32: ≥ 15 | N32: 1 | Q32: 2 упр | R32: Отведение ног назад из положения лежа на животе с захватом руками ног выше лодыжек | S32: 1 | T32: ≥ 12 | U32: 1
C33: 3 упр | D33: Прогиб назад и наклон вперед с обхватом руками голеней из стойки ноги врозь руки на пояс | E33: 1 | F33: ≥ 18 | G33: 1 | J33: 3 упр | K33: Прогиб назад и наклон вперед с руками вверх на пол из стойки на коленях | L33: 1 | M33: ≥ 15 | N33: 1 | Q33: 3 упр | R33: Прогиб назад до касания лопатками пола (руки вдоль туловища) и наклон вперед с переходом в упор стоя (углом) | S33: 1 | T33: ≥ 12 | U33: 1
H34: 1 | O34: 2 | V34: 3
H37: 1 | O37: 2 | V37: 3
H40: 1 | O40: 2 | V40: 3
H43: 1 | O43: 2 | V43: 3
A46: Заключительная часть занятия | B46: Силовая выносливость мышц туловища | C46: 1 упр | H46: 1 | I46: Силовая выносливость мышц туловища | J46: 1 упр | O46: 2 | P46: Силовая выносливость мышц туловища | Q46: 1 упр | V46: 3
A47: Физическое упражнение | C47: 2 упр | J47: 2 упр | Q47: 2 упр
A48: Глубокий наклон вперед с задержкой | C48: 3 упр | J48: 3 упр | Q48: 3 упр
A49: Упор лежа на ногах
A50: Стойка на лопатках | I50: p | J50: h*
A51: Максимальное расслабление лежа на животе | I51: 1
A52: Разбор занятия, 3 мин | I52: 1
A53: Стойка на лопатках с опусканием ног за голову на пол руки прямые лодонями прижаты к полу | I53: 1
A54: Вис на согнутых ногах прогнувшись руки в замок за голову | I54: 1
A55: Стойка на голове и лопатках
A56: Максимальное расслабление лежа на животе | I56: p2-1
A57: Разбор занятия, 3 мин | I57: p2-2
A58: Из положения лежа на спине сед согнувшись с согнутыми ногами руки ладонями вперед запястьями на коллени | I58: p2-3
A59: Из положения лежа на животе отведение прямых рук и ног назад с прогибом туловища | I59: p2-4
A60: Стойка на руках
A61: Максимальное расслабление лежа на животе | I61: p3-1
A62: Разбор занятия, 3 мин | I62: p3-2

Sheet Гибкость1
F1: 1 | M1: 2 | T1: 3
E2: 1 | L2: 2 | S2: 3
D3: 1 | K3: 2 | R3: 3
H4: 1 | O4: 2 | U4: 3
B5: Гибкость1
B6: ФК или ДН | C6: № упр | D6: Физическое упражнение первый уровень сложности | E6: p* | F6: n* | G6: k* | H6: УС | I6: ФК | J6: № упр | K6: Физическое упражнение второй уровень сложности | L6: p* | M6: n* | N6: k* | O6: УС | P6: ФК | Q6: № упр | R6: Физическое упражнение третий уровень сложности | S6: p* | T6: n* | U6: k* | V6: УС
B7: Гибкость туловища | C7: 1 упр | D7: Из седа руки вдоль туловища левую ногу согнуть и перенести через колено правой. Упереться локтем прямой правой руки в тыльную сторону колена левой ноги и развернуть туловище влево (скручивание влево) | E7: 1 | F7: ≥ 25 с | G7: 0.2 | H7: 1 | I7: Гибкость туловища | J7: 1 упр | K7: Из седа руки вдоль туловища левую ногу согнуть и перенести через колено правой. Упереться локтем прямой правой руки в тыльную сторону колена левой ноги и развернуть туловище влево (скручивание влево) | L7: 1 | M7: ≥ 35 с | N7: 0.2 | O7: 2 | P7: Гибкость туловища | Q7: 1 упр | R7: Из седа руки вдоль туловища левую ногу согнуть и перенести через колено правой. Упереться локтем прямой правой руки в тыльную сторону колена левой ноги и развернуть туловище влево (скручивание влево) | S7: 1 | T7: ≥ 45 с | U7: 0.2 | V7: 3
C8: 2 упр | D8: Из седа руки вдоль туловища правую ногу согнуть и перенести через колено левой. Упереться локтем прямой левой руки в тыльную сторону колена правой ноги и развернуть туловище вправо (скручивание вправо) | E8: 1 | F8: ≥ 25 с | G8: 0.2 | J8: 2 упр | K8: Из седа руки вдоль туловища правую ногу согнуть и перенести через колено левой. Упереться локтем прямой левой руки в тыльную сторону колена правой ноги и развернуть туловище вправо (скручивание вправо) | L8: 1 | M8: ≥ 35 с | N8: 0.2 | Q8: 2 упр | R8: Из седа руки вдоль туловища правую ногу согнуть и перенести через колено левой. Упереться локтем прямой левой руки в тыльную сторону колена правой ноги и развернуть туловище вправо (скручивание вправо) | S8: 1 | T8: ≥ 45 с | U8: 0.2
C9: 3 упр | D9: Поворот вокруг своей оси влево-назад (вправо-назад) из седа ноги врозь с помощью (скручивание) | E9: 1 | F9: ≥ 25 с | G9: 0.2 | J9: 3 упр | K9: Поворот вокруг своей оси влево-назад (вправо-назад) из седа ноги врозь с помощью (скручивание) | L9: 1 | M9: ≥ 35 с | N9: 0.2 | Q9: 3 упр | R9: Поворот вокруг своей оси влево-назад (вправо-назад) из седа ноги врозь с помощью (скручивание) | S9: 1 | T9: ≥ 45 с | U9: 0.2
B13: Гибкость плечевого пояса | C13: 1 упр | D13: Вытягивание левой руки перед собой и заведение ее в противоположную сторону с помощью другой руки | E13: 1 | F13: ≥ 25 с | G13: 0.1 | H13: 1 | I13: Гибкость плечевого пояса | J13: 1 упр | K13: Вытягивание левой руки перед собой и заведение ее в противоположную сторону с помощью другой руки | L13: 1 | M13: ≥ 35 с | N13: 0.1 | O13: 2 | P13: Гибкость плечевого пояса | Q13: 1 упр | R13: Вытягивание левой руки перед собой и заведение ее в противоположную сторону с помощью другой руки | S13: 1 | T13: ≥ 45 с | U13: 0.1 | V13: 3
C14: 2 упр | D14: Вытягивание правой руки перед собой и заведение ее в противоположную сторону с помощью другой руки | E14: 1 | F14: ≥ 25 с | G14: 0.1 | J14: 2 упр | K14: Вытягивание правой руки перед собой и заведение ее в противоположную сторону с помощью другой руки | L14: 1 | M14: ≥ 35 с | N14: 0.1 | Q14: 2 упр | R14: Вытягивание правой руки перед собой и заведение ее в противоположную сторону с помощью другой руки | S14: 1 | T14: ≥ 45 с | U14: 0.1
C15: 3 упр | D15: Сведение и разведение локтей в положении руки на затылок подбородок на грудь (выполнение в низкодинамичном режиме с макимальной амплитудой до атказа) | E15: 1 | F15: ≥ 25 с | G15: 0.1 | J15: 3 упр | K15: Сведение и разведение локтей в положении руки на затылок подбородок на грудь (выполнение в низкодинамичном режиме с макимальной амплитудой до атказа) | L15: 1 | M15: ≥ 35 с | N15: 0.1 | Q15: 3 упр | R15: Сведение и разведение локтей в положении руки на затылок подбородок на грудь (выполнение в низкодинамичном режиме с макимальной амплитудой до атказа) | S15: 1 | T15: ≥ 45 с | U15: 0.1
B16: Гибкость туловища | C16: 1 упр | D16: Из седа руки вдоль туловища левую ногу согнуть и перенести через колено правой. Упереться локтем прямой правой руки в тыльную сторону колена левой ноги и развернуть туловище влево (скручивание влево) | E16: 1 | F16: ≥ 25 с | G16: 0.2 | H16: 1 | I16: Гибкость туловища | J16: 1 упр | K16: Из седа руки вдоль туловища левую ногу согнуть и перенести через колено правой. Упереться локтем прямой правой руки в тыльную сторону колена левой ноги и развернуть туловище влево (скручивание влево) | L16: 1 | M16: ≥ 35 с | N16: 0.2 | O16: 2 | P16: Гибкость туловища | Q16: 1 упр | R16: Из седа руки вдоль туловища левую ногу согнуть и перенести через колено правой. Упереться локтем прямой правой руки в тыльную сторону колена левой ноги и развернуть туловище влево (скручивание влево) | S16: 1 | T16: ≥ 45 с | U16: 0.2 | V16: 3
C17: 2 упр | D17: Из седа руки вдоль туловища правую ногу согнуть и перенести через колено левой. Упереться локтем прямой левой руки в тыльную сторону колена правой ноги и развернуть туловище вправо (скручивание вправо) | E17: 1 | F17: ≥ 25 с | G17: 0.2 | J17: 2 упр | K17: Из седа руки вдоль туловища правую ногу согнуть и перенести через колено левой. Упереться локтем прямой левой руки в тыльную сторону колена правой ноги и развернуть туловище вправо (скручивание вправо) | L17: 1 | M17: ≥ 35 с | N17: 0.2 | Q17: 2 упр | R17: Из седа руки вдоль туловища правую ногу согнуть и перенести через колено левой. Упереться локтем прямой левой руки в тыльную сторону колена правой ноги и развернуть туловище вправо (скручивание вправо) | S17: 1 | T17: ≥ 45 с | U17: 0.2
C18: 3 упр | D18: Поворот вокруг своей оси влево-назад (вправо-назад) из седа ноги врозь с помощью (скручивание) | E18: 1 | F18: ≥ 25 с | G18: 0.2 | J18: 3 упр | K18: Поворот вокруг своей оси влево-назад (вправо-назад) из седа ноги врозь с помощью (скручивание) | L18: 1 | M18: ≥ 35 с | N18: 0.2 | Q18: 3 упр | R18: Поворот вокруг своей оси влево-назад (вправо-назад) из седа ноги врозь с помощью (скручивание) | S18: 1 | T18: ≥ 45 с | U18: 0.2
B19: Гибкость тазобедренного пояса | C19: 1 упр | D19: Переход из седа ноги врозь (ноги максимально раздвинуты в стороны) в упор ноги врозь (ноги максимально раздвинуты в стороны) и обратно | E19: 1 | F19: ≥ 25 с | G19: 0.3 | H19: 1 | I19: Гибкость тазобедренного пояса | J19: 1 упр | K19: Переход из седа ноги врозь (ноги максимально раздвинуты в стороны) в упор ноги врозь (ноги максимально раздвинуты в стороны) и обратно | L19: 1 | M19: ≥ 35 с | N19: 0.3 | O19: 2 | P19: Гибкость тазобедренного пояса | Q19: 1 упр | R19: Переход из седа ноги врозь (ноги максимально раздвинуты в стороны) в упор ноги врозь (ноги максимально раздвинуты в стороны) и обратно | S19: 1 | T19: ≥ 45 с | U19: 0.3 | V19: 3
C20: 2 упр | D20: Переход из седа на пятках в полушпагат левой, а затем праой ногой с опорой руками о пол | E20: 1 | F20: ≥ 25 с | G20: 0.3 | J20: 2 упр | K20: Переход из седа на пятках в полушпагат левой, а затем праой ногой с опорой руками о пол | L20: 1 | M20: ≥ 35 с | N20: 0.3 | Q20: 2 упр | R20: Переход из седа на пятках в полушпагат левой, а затем праой ногой с опорой руками о пол | S20: 1 | T20: ≥ 45 с | U20: 0.3
C21: 3 упр | D21: Разведение и сведение ног в стороны с максимальной амплитудой в стойке на лопатках | E21: 1 | F21: ≥ 25 с | G21: 0.3 | J21: 3 упр | K21: Разведение и сведение ног в стороны с максимальной амплитудой в стойке на лопатках | L21: 1 | M21: ≥ 35 с | N21: 0.3 | Q21: 3 упр | R21: Разведение и сведение ног в стороны с максимальной амплитудой в стойке на лопатках | S21: 1 | T21: ≥ 45 с | U21: 0.3
B22: Комплексная гибкость | C22: 1 упр | D22: Глубокий наклон вперед из седа с помощью (после достижения максимальной амплитуды упражнения удеривать конечное положение тела самостоятельно) | E22: 1 | F22: ≥ 3 | G22: 0.4 | H22: 1 | I22: Комплексная гибкость | J22: 1 упр | K22: Глубокий наклон вперед из седа с помощью (после достижения максимальной амплитуды упражнения удеривать конечное положение тела самостоятельно) | L22: 1 | M22: ≥ 6 | N22: 0.4 | O22: 2 | P22: Комплексная гибкость | Q22: 1 упр | R22: Глубокий наклон вперед из седа с помощью (после достижения максимальной амплитуды упражнения удеривать конечное положение тела самостоятельно) | S22: 1 | T22: ≥ 9 | U22: 0.4 | V22: 3
C23: 2 упр | D23: Упор лежа на бедрах прогнувшись | E23: 1 | F23: ≥ 3 | G23: 0.4 | J23: 2 упр | K23: Упор лежа на бедрах прогнувшись | L23: 1 | M23: ≥ 6 | N23: 0.4 | Q23: 2 упр | R23: Упор лежа на бедрах прогнувшись | S23: 1 | T23: ≥ 9 | U23: 0.4
C24: 3 упр | D24: Переход из упора лежа на бедрах прогнувшись в упор стоя ноги врозь | E24: 1 | F24: ≥ 3 | G24: 0.4 | J24: 3 упр | K24: Переход из упора лежа на бедрах прогнувшись в упор стоя ноги врозь | L24: 1 | M24: ≥ 6 | N24: 0.4 | Q24: 3 упр | R24: Переход из упора лежа на бедрах прогнувшись в упор стоя ноги врозь | S24: 1 | T24: ≥ 9 | U24: 0.4
E25: 1 | G25: 0.8 | L25: 1 | N25: 0.9 | V25: 3
E26: 1 | G26: 0.8
E27: 1 | G27: 0.8
H28: 1 | O28: 2 | V28: 3
H31: 1 | O31: 2 | V31: 3
H34: 1 | O34: 2 | V34: 3
H37: 1 | O37: 2 | V37: 3
H40: 1 | O40: 2 | V40: 3
H43: 1 | O43: 2 | V43: 3
A46: Заключительная часть занятия | B46: Силовая выносливость мышц туловища | C46: 1 упр | H46: 1 | I46: Силовая выносливость мышц туловища | J46: 1 упр | O46: 2 | P46: Силовая выносливость мышц туловища | Q46: 1 упр | V46: 3
A47: Физическое упражнение | C47: 2 упр | J47: 2 упр | Q47: 2 упр
A48: Глубокий наклон вперед с задержкой | C48: 3 упр | J48: 3 упр | Q48: 3 упр
A49: Упор лежа на ногах
A50: Стойка на лопатках | I50: p | J50: h*
A51: Максимальное расслабление лежа на животе | I51: 1
A52: Разбор занятия, 3 мин | I52: 1
A53: Стойка на лопатках с опусканием ног за голову на пол руки прямые лодонями прижаты к полу | I53: 1
A54: Вис на согнутых ногах прогнувшись руки в замок за голову | I54: 1
A55: Стойка на голове и лопатках
A56: Максимальное расслабление лежа на животе | I56: p2-1
A57: Разбор занятия, 3 мин | I57: p2-2
A58: Из положения лежа на спине сед согнувшись с согнутыми ногами руки ладонями вперед запястьями на коллени | I58: p2-3
A59: Из положения лежа на животе отведение прямых рук и ног назад с прогибом туловища | I59: p2-4
A60: Стойка на руках
A61: Максимальное расслабление лежа на животе | I61: p3-1
A62: Разбор занятия, 3 мин | I62: p3-2

Sheet Гибкость2
F1: 1 | M1: 2 | T1: 3
E2: 1 | L2: 2 | S2: 3
D3: 1 | K3: 2 | R3: 3
H4: 1 | O4: 2 | U4: 3
B5: Гибкость2
B6: ФК или ДН | C6: № упр | D6: Физическое упражнение первый уровень сложности | E6: p* | F6: n* | G6: k* | H6: УС | I6: ФК | J6: № упр | K6: Физическое упражнение второй уровень сложности | L6: p* | M6: n* | N6: k* | O6: УС | P6: ФК | Q6: № упр | R6: Физическое упражнение третий уровень сложности | S6: p* | T6: n* | U6: k* | V6: УС
B7: Гибкость тазобедренного пояса | C7: 1 упр | D7: Переход из седа ноги врозь (ноги максимально раздвинуты в стороны) в упор ноги врозь (ноги максимально раздвинуты в стороны) и обратно | E7: 1 | F7: ≥ 25 с | G7: 0.3 | H7: 1 | I7: Гибкость тазобедренного пояса | J7: 1 упр | K7: Переход из седа ноги врозь (ноги максимально раздвинуты в стороны) в упор ноги врозь (ноги максимально раздвинуты в стороны) и обратно | L7: 1 | M7: ≥ 35 с | N7: 0.3 | O7: 2 | P7: Гибкость тазобедренного пояса | Q7: 1 упр | R7: Переход из седа ноги врозь (ноги максимально раздвинуты в стороны) в упор ноги врозь (ноги максимально раздвинуты в стороны) и обратно | S7: 1 | T7: ≥ 45 с | U7: 0.3 | V7: 3
C8: 2 упр | D8: Переход из седа на пятках в полушпагат левой, а затем праой ногой с опорой руками о пол | E8: 1 | F8: ≥ 25 с | G8: 0.3 | J8: 2 упр | K8: Переход из седа на пятках в полушпагат левой, а затем праой ногой с опорой руками о пол | L8: 1 | M8: ≥ 35 с | N8: 0.3 | Q8: 2 упр | R8: Переход из седа на пятках в полушпагат левой, а затем праой ногой с опорой руками о пол | S8: 1 | T8: ≥ 45 с | U8: 0.3
C9: 3 упр | D9: Разведение и сведение ног в стороны с максимальной амплитудой в стойке на лопатках | E9: 1 | F9: ≥ 25 с | G9: 0.3 | J9: 3 упр | K9: Разведение и сведение ног в стороны с максимальной амплитудой в стойке на лопатках | L9: 1 | M9: ≥ 35 с | N9: 0.3 | Q9: 3 упр | R9: Разведение и сведение ног в стороны с максимальной амплитудой в стойке на лопатках | S9: 1 | T9: ≥ 45 с | U9: 0.3
B13: Гибкость плечевого пояса | C13: 1 упр | D13: Вытягивание левой руки перед собой и заведение ее в противоположную сторону с помощью другой руки | E13: 1 | F13: ≥ 25 с | G13: 0.1 | H13: 1 | I13: Гибкость плечевого пояса | J13: 1 упр | K13: Вытягивание левой руки перед собой и заведение ее в противоположную сторону с помощью другой руки | L13: 1 | M13: ≥ 35 с | N13: 0.1 | O13: 2 | P13: Гибкость плечевого пояса | Q13: 1 упр | R13: Вытягивание левой руки перед собой и заведение ее в противоположную сторону с помощью другой руки | S13: 1 | T13: ≥ 45 с | U13: 0.1 | V13: 3
C14: 2 упр | D14: Вытягивание правой руки перед собой и заведение ее в противоположную сторону с помощью другой руки | E14: 1 | F14: ≥ 25 с | G14: 0.1 | J14: 2 упр | K14: Вытягивание правой руки перед собой и заведение ее в противоположную сторону с помощью другой руки | L14: 1 | M14: ≥ 35 с | N14: 0.1 | Q14: 2 упр | R14: Вытягивание правой руки перед собой и заведение ее в противоположную сторону с помощью другой руки | S14: 1 | T14: ≥ 45 с | U14: 0.1
C15: 3 упр | D15: Сведение и разведение локтей в положении руки на затылок подбородок на грудь (выполнение в низкодинамичном режиме с макимальной амплитудой до атказа) | E15: 1 | F15: ≥ 25 с | G15: 0.1 | J15: 3 упр | K15: Сведение и разведение локтей в положении руки на затылок подбородок на грудь (выполнение в низкодинамичном режиме с макимальной амплитудой до атказа) | L15: 1 | M15: ≥ 35 с | N15: 0.1 | Q15: 3 упр | R15: Сведение и разведение локтей в положении руки на затылок подбородок на грудь (выполнение в низкодинамичном режиме с макимальной амплитудой до атказа) | S15: 1 | T15: ≥ 45 с | U15: 0.1
B16: Гибкость туловища | C16: 1 упр | D16: Из седа руки вдоль туловища левую ногу согнуть и перенести через колено правой. Упереться локтем прямой правой руки в тыльную сторону колена левой ноги и развернуть туловище влево (скручивание влево) | E16: 1 | F16: ≥ 25 с | G16: 0.2 | H16: 1 | I16: Гибкость туловища | J16: 1 упр | K16: Из седа руки вдоль туловища левую ногу согнуть и перенести через колено правой. Упереться локтем прямой правой руки в тыльную сторону колена левой ноги и развернуть туловище влево (скручивание влево) | L16: 1 | M16: ≥ 35 с | N16: 0.2 | O16: 2 | P16: Гибкость туловища | Q16: 1 упр | R16: Из седа руки вдоль туловища левую ногу согнуть и перенести через колено правой. Упереться локтем прямой правой руки в тыльную сторону колена левой ноги и развернуть туловище влево (скручивание влево) | S16: 1 | T16: ≥ 45 с | U16: 0.2 | V16: 3
C17: 2 упр | D17: Из седа руки вдоль туловища правую ногу согнуть и перенести через колено левой. Упереться локтем прямой левой руки в тыльную сторону колена правой ноги и развернуть туловище вправо (скручивание вправо) | E17: 1 | F17: ≥ 25 с | G17: 0.2 | J17: 2 упр | K17: Из седа руки вдоль туловища правую ногу согнуть и перенести через колено левой. Упереться локтем прямой левой руки в тыльную сторону колена правой ноги и развернуть туловище вправо (скручивание вправо) | L17: 1 | M17: ≥ 35 с | N17: 0.2 | Q17: 2 упр | R17: Из седа руки вдоль туловища правую ногу согнуть и перенести через колено левой. Упереться локтем прямой левой руки в тыльную сторону колена правой ноги и развернуть туловище вправо (скручивание вправо) | S17: 1 | T17: ≥ 45 с | U17: 0.2
C18: 3 упр | D18: Поворот вокруг своей оси влево-назад (вправо-назад) из седа ноги врозь с помощью (скручивание) | E18: 1 | F18: ≥ 25 с | G18: 0.2 | J18: 3 упр | K18: Поворот вокруг своей оси влево-назад (вправо-назад) из седа ноги врозь с помощью (скручивание) | L18: 1 | M18: ≥ 35 с | N18: 0.2 | Q18: 3 упр | R18: Поворот вокруг своей оси влево-назад (вправо-назад) из седа ноги врозь с помощью (скручивание) | S18: 1 | T18: ≥ 45 с | U18: 0.2
B19: Гибкость тазобедренного пояса | C19: 1 упр | D19: Переход из седа ноги врозь (ноги максимально раздвинуты в стороны) в упор ноги врозь (ноги максимально раздвинуты в стороны) и обратно | E19: 1 | F19: ≥ 25 с | G19: 0.3 | H19: 1 | I19: Гибкость тазобедренного пояса | J19: 1 упр | K19: Переход из седа ноги врозь (ноги максимально раздвинуты в стороны) в упор ноги врозь (ноги максимально раздвинуты в стороны) и обратно | L19: 1 | M19: ≥ 35 с | N19: 0.3 | O19: 2 | P19: Гибкость тазобедренного пояса | Q19: 1 упр | R19: Переход из седа ноги врозь (ноги максимально раздвинуты в стороны) в упор ноги врозь (ноги максимально раздвинуты в стороны) и обратно | S19: 1 | T19: ≥ 45 с | U19: 0.3 | V19: 3
C20: 2 упр | D20: Переход из седа на пятках в полушпагат левой, а затем праой ногой с опорой руками о пол | E20: 1 | F20: ≥ 25 с | G20: 0.3 | J20: 2 упр | K20: Переход из седа на пятках в полушпагат левой, а затем праой ногой с опорой руками о пол | L20: 1 | M20: ≥ 35 с | N20: 0.3 | Q20: 2 упр | R20: Переход из седа на пятках в полушпагат левой, а затем праой ногой с опорой руками о пол | S20: 1 | T20: ≥ 45 с | U20: 0.3
C21: 3 упр | D21: Разведение и сведение ног в стороны с максимальной амплитудой в стойке на лопатках | E21: 1 | F21: ≥ 25 с | G21: 0.3 | J21: 3 упр | K21: Разведение и сведение ног в стороны с максимальной амплитудой в стойке на лопатках | L21: 1 | M21: ≥ 35 с | N21: 0.3 | Q21: 3 упр | R21: Разведение и сведение ног в стороны с максимальной амплитудой в стойке на лопатках | S21: 1 | T21: ≥ 45 с | U21: 0.3
B22: Комплексная гибкость | C22: 1 упр | D22: Глубокий наклон вперед из седа с помощью (после достижения максимальной амплитуды упражнения удеривать конечное положение тела самостоятельно) | E22: 1 | F22: ≥ 3 | G22: 0.4 | H22: 1 | I22: Комплексная гибкость | J22: 1 упр | K22: Глубокий наклон вперед из седа с помощью (после достижения максимальной амплитуды упражнения удеривать конечное положение тела самостоятельно) | L22: 1 | M22: ≥ 6 | N22: 0.4 | O22: 2 | P22: Комплексная гибкость | Q22: 1 упр | R22: Глубокий наклон вперед из седа с помощью (после достижения максимальной амплитуды упражнения удеривать конечное положение тела самостоятельно) | S22: 1 | T22: ≥ 9 | U22: 0.4 | V22: 3
C23: 2 упр | D23: Упор лежа на бедрах прогнувшись | E23: 1 | F23: ≥ 3 | G23: 0.4 | J23: 2 упр | K23: Упор лежа на бедрах прогнувшись | L23: 1 | M23: ≥ 6 | N23: 0.4 | Q23: 2 упр | R23: Упор лежа на бедрах прогнувшись | S23: 1 | T23: ≥ 9 | U23: 0.4
C24: 3 упр | D24: Переход из упора лежа на бедрах прогнувшись в упор стоя ноги врозь | E24: 1 | F24: ≥ 3 | G24: 0.4 | J24: 3 упр | K24: Переход из упора лежа на бедрах прогнувшись в упор стоя ноги врозь | L24: 1 | M24: ≥ 6 | N24: 0.4 | Q24: 3 упр | R24: Переход из упора лежа на бедрах прогнувшись в упор стоя ноги врозь | S24: 1 | T24: ≥ 9 | U24: 0.4
L25: 1 | N25: 0.9 | V25: 3
H28: 1 | O28: 2 | V28: 3
H31: 1 | O31: 2 | V31: 3
H34: 1 | O34: 2 | V34: 3
H37: 1 | O37: 2 | V37: 3
H40: 1 | O40: 2 | V40: 3
H43: 1 | O43: 2 | V43: 3
A46: Заключительная часть занятия | B46: Силовая выносливость мышц туловища | C46: 1 упр | H46: 1 | I46: Силовая выносливость мышц туловища | J46: 1 упр | O46: 2 | P46: Силовая выносливость мышц туловища | Q46: 1 упр | V46: 3
A47: Физическое упражнение | C47: 2 упр | J47: 2 упр | Q47: 2 упр
A48: Глубокий наклон вперед с задержкой | C48: 3 упр | J48: 3 упр | Q48: 3 упр
A49: Упор лежа на ногах
A50: Стойка на лопатках | I50: p | J50: h*
A51: Максимальное расслабление лежа на животе | I51: 1
A52: Разбор занятия, 3 мин | I52: 1
A53: Стойка на лопатках с опусканием ног за голову на пол руки прямые лодонями прижаты к полу | I53: 1
A54: Вис на согнутых ногах прогнувшись руки в замок за голову | I54: 1
A55: Стойка на голове и лопатках
A56: Максимальное расслабление лежа на животе | I56: p2-1
A57: Разбор занятия, 3 мин | I57: p2-2
A58: Из положения лежа на спине сед согнувшись с согнутыми ногами руки ладонями вперед запястьями на коллени | I58: p2-3
A59: Из положения лежа на животе отведение прямых рук и ног назад с прогибом туловища | I59: p2-4
A60: Стойка на руках
A61: Максимальное расслабление лежа на животе | I61: p3-1
A62: Разбор занятия, 3 мин | I62: p3-2

Sheet Ловкость1
F1: 1 | M1: 2 | T1: 3
E2: 1 | L2: 2 | S2: 3
D3: 1 | K3: 2 | R3: 3
H4: 1 | O4: 2 | U4: 3
B5: Ловкость1
B6: ФК или ДН | C6: № упр | D6: Физическое упражнение первый уровень сложности | E6: p* | F6: n* | G6: k* | H6: УС | I6: ФК | J6: № упр | K6: Физическое упражнение второй уровень сложности | L6: p* | M6: n* | N6: k* | O6: УС | P6: ФК | Q6: № упр | R6: Физическое упражнение третий уровень сложности | S6: p* | T6: n* | U6: k* | V6: УС
B7: Сила мышц плечевого пояса | C7: 1 упр | D7: Подтягивания в висе хватом снизу руки на ширине плеч (при необходимости с помощью партнера) | E7: 1 | F7: ≤ 11 | G7: 0.6 | H7: 1 | I7: Сила мышц плечевого пояса | J7: 1 упр | K7: Подтягивания в висе хватом сверху руки на ширине плеч (при необходимости с помощью партнера) | L7: 1 | M7: ≤ 8 | N7: 0.6 | O7: 2 | P7: Сила мышц плечевого пояса | Q7: 1 упр | R7: Подтягивания в висе лежа узким хватом сверху (при необходимости с помощью партнера) | S7: 1 | T7: ≤ 6 | U7: 0.6 | V7: 3
C8: 2 упр | D8: Сгибание и разгибание рук в упоре лежа (руки шире плеч) | E8: 1 | F8: ≤ 11 | G8: 0.6 | J8: 2 упр | K8: Сгибание и разгибание рук в упоре лежа (руки на ширине плеч) | L8: 1 | M8: ≤ 8 | N8: 0.6 | Q8: 2 упр | R8: Сгибание и разгибание рук в упоре лежа (кисти рук соприкасаются указательными и большими пальцами) | S8: 1 | T8: ≤ 6 | U8: 0.6
C9: 3 упр | D9: Выход силой в упор на перекладину (руки поочередно) из виса стоя (при необходимости с помощью партнера) | E9: 1 | F9: ≤ 11 | G9: 0.6 | J9: 3 упр | K9: Выход силой в упор на перекладину (руки поочередно) из виса лежа | L9: 1 | M9: ≤ 8 | N9: 0.6 | Q9: 3 упр | R9: Выход силой в упор на перекладину (руки поочередно) из виса | S9: 1 | T9: ≤ 6 | U9: 0.6
B13: Сила мышц плечевого пояса | C13: 1 упр | D13: Подтягивания в висе хватом снизу руки на ширине плеч (при необходимости с помощью партнера) | E13: 1 | F13: ≤ 11 | G13: 0.6 | H13: 1 | I13: Сила мышц плечевого пояса | J13: 1 упр | K13: Подтягивания в висе хватом сверху руки на ширине плеч (при необходимости с помощью партнера) | L13: 1 | M13: ≤ 8 | N13: 0.6 | O13: 2 | P13: Сила мышц плечевого пояса | Q13: 1 упр | R13: Подтягивания в висе лежа узким хватом сверху (при необходимости с помощью партнера) | S13: 1 | T13: ≤ 6 | U13: 0.6 | V13: 3
C14: 2 упр | D14: Сгибание и разгибание рук в упоре лежа (руки шире плеч) | E14: 1 | F14: ≤ 11 | G14: 0.6 | J14: 2 упр | K14: Сгибание и разгибание рук в упоре лежа (руки на ширине плеч) | L14: 1 | M14: ≤ 8 | N14: 0.6 | Q14: 2 упр | R14: Сгибание и разгибание рук в упоре лежа (кисти рук соприкасаются указательными и большими пальцами) | S14: 1 | T14: ≤ 6 | U14: 0.6
C15: 3 упр | D15: Выход силой в упор на перекладину (руки поочередно) из виса стоя (при необходимости с помощью партнера) | E15: 1 | F15: ≤ 11 | G15: 0.6 | J15: 3 упр | K15: Выход силой в упор на перекладину (руки поочередно) из виса лежа | L15: 1 | M15: ≤ 8 | N15: 0.6 | Q15: 3 упр | R15: Выход силой в упор на перекладину (руки поочередно) из виса | S15: 1 | T15: ≤ 6 | U15: 0.6
B16: Сила мышц тазобедренного пояса | C16: 1 упр | D16: Приседания на каждой ноге поочередно в стойке (с опорой рукой о стену) | E16: 1 | F16: ≤ 11 | G16: 0.8 | H16: 1 | I16: Сила мышц тазобедренного пояса | J16: 1 упр | K16: Приседания на каждой ноге поочередно в стойке (с опорой рукой о стену с утежелителями на поясе ) | L16: 1 | M16: ≤ 8 | N16: 0.8 | O16: 2 | P16: Сила мышц тазобедренного пояса | Q16: 1 упр | R16: Приседания на каждой ноге поочередно в стойке (с опорой рукой о стену) | S16: 1 | T16: ≤ 6 | U16: 0.8 | V16: 3
C17: 2 упр | D17: Сгибание каждой ноги поочередно с зади в стойке с опрой руками о стену (с применением утяжелителей, либо экспандера) | E17: 1 | F17: ≤ 11 | G17: 0.8 | J17: 2 упр | K17: Сгибание каждой ноги поочередно с зади в стойке с опрой руками о стену (с применением утяжелителей, либо экспандера) | L17: 1 | M17: ≤ 8 | N17: 0.8 | Q17: 2 упр | R17: Сгибание каждой ноги поочередно с зади в стойке с опрой руками о стену (с применением утяжелителей, либо экспандера) | S17: 1 | T17: ≤ 6 | U17: 0.8
C18: 3 упр | D18: Сгибание каждой ноги поочередно с переди и с зади в стойке с опорой руками о стену (с применением утяжелителей, либо экспандера) | E18: 1 | F18: ≤ 11 | G18: 0.8 | J18: 3 упр | K18: Сгибание каждой ноги поочередно с переди и с зади в стойке с опорой руками о стену (с применением утяжелителей, либо экспандера) | L18: 1 | M18: ≤ 8 | N18: 0.8 | Q18: 3 упр | R18: Сгибание каждой ноги поочередно с переди и с зади в стойке с опорой руками о стену (с применением утяжелителей, либо экспандера) | S18: 1 | T18: ≤ 6 | U18: 0.8
B19: Сила мышц туловища | C19: 1 упр | D19: Подъем в сед из положения лежа на спине руки вдоль туловища ноги согнуты | E19: 1 | F19: ≤ 11 | G19: 0.7 | H19: 1 | I19: Сила мышц туловища | J19: 1 упр | K19: Подъем в сед из положения лежа на спине руки на плечи ноги согнуты | L19: 1 | M19: ≤ 8 | N19: 0.7 | O19: 2 | P19: Сила мышц туловища | Q19: 1 упр | R19: Подъем в сед из положения лежа на спине руки "в замок" за голову ноги согнуты | S19: 1 | T19: ≤ 6 | U19: 0.7 | V19: 3
C20: 2 упр | D20: Прогиб назад из положения лежа на животе руки вдоль туловища с опорой руками о пол | E20: 1 | F20: ≤ 11 | G20: 0.7 | J20: 2 упр | K20: Прогиб назад из положения лежа на животе руки вверх | L20: 1 | M20: ≤ 8 | N20: 0.7 | Q20: 2 упр | R20: Прогиб назад из положения лежа на животе руки "в замок" за голову | S20: 1 | T20: ≤ 6 | U20: 0.7
C21: 3 упр | D21: Переход в упор лежа сзади с согнутыми ногами из упора сидя (тибетский мост) | E21: 1 | F21: ≤ 11 | G21: 0.7 | J21: 3 упр | K21: Переход в упор лежа сзади с согнутыми ногами из упора сидя (тибетский мост) с утежелителями на поясе | L21: 1 | M21: ≤ 8 | N21: 0.7 | Q21: 3 упр | R21: Переход в упор лежа сзади с согнутыми ногами из упора сидя (тибетский мост) с утежелителями на поясе | S21: 1 | T21: ≤ 6 | U21: 0.7
B22: Силовая выносливость мышц плечевого пояса | C22: 1 упр | D22: Подтягивания в висе стоя широким хватом снизу ноги шире плеч | E22: 1 | F22: ≥ 50 | G22: 0.8 | H22: 1 | I22: Силовая выносливость мышц плечевого пояса | J22: 1 упр | K22: Подтягивания в висе лежа нормальным хватом снизу ноги на ширине плеч | L22: 1 | M22: ≥ 25 | N22: 0.8 | O22: 2 | P22: Силовая выносливость мышц плечевого пояса | Q22: 1 упр | R22: Подтягивания в висе лежа узким хватом снизу ноги вместе | S22: 1 | T22: ≥ 12 | U22: 0.8 | V22: 3
C23: 2 упр | D23: Сгибание и разгибание рук в упоре лежа от стола (высота 0,75 - 1 м) ноги шире плеч | E23: 1 | F23: ≥ 50 | G23: 0.8 | J23: 2 упр | K23: Сгибание и разгибание рук в упоре лежа от стула (0,45 - 0,55 м) ноги на ширине плеч | L23: 1 | M23: ≥ 25 | N23: 0.8 | Q23: 2 упр | R23: Сгибание и разгибание рук в упоре лежа ноги вместе | S23: 1 | T23: ≥ 12 | U23: 0.8
C24: 3 упр | D24: Подъем переворотом в упор на перекладину из виса стоя махом одной толчком другой ноги | E24: 1 | F24: ≥ 50 | G24: 0.8 | J24: 3 упр | K24: Подъем переворотом в упор на перекладину из виса стоя толчком обеих ног | L24: 1 | M24: ≥ 25 | N24: 0.8 | Q24: 3 упр | R24: Подъем переворотом в упор на перекладину из виса прогнувшись | S24: 1 | T24: ≥ 12 | U24: 0.8
B25: Силовая выносливость мышц тазобедренного пояса | C25: 1 упр | D25: Приведение каждой ноги поочередно из стойки ноги вместе руки согнуты возле груди (с применением утежелителей выше лодыжек) | E25: 1 | F25: ≥ 50 | G25: 1.1 | H25: 1 | I25: Силовая выносливость мышц тазобедренного пояса | J25: 1 упр | K25: Приведение каждой ноги поочередно из стойки ноги вместе руки согнуты возле груди (с применением утежелителей выше лодыжек) | L25: 1 | M25: ≥ 25 | N25: 1.1 | O25: 2 | P25: Силовая выносливость мышц тазобедренного пояса | Q25: 1 упр | R25: Приведение каждой ноги поочередно из стойки ноги вместе руки согнуты возле груди (с применением утежелителей выше лодыжек) | S25: 1 | T25: ≥ 12 | U25: 1.1 | V25: 3
C26: 2 упр | D26: Отведение каждой ноги поочередно из стойки ноги вместе руки согнуты возле груди (с применением утежелителей выше лодыжек) | E26: 1 | F26: ≥ 50 | G26: 1.1 | J26: 2 упр | K26: Отведение каждой ноги поочередно из стойки ноги вместе руки согнуты возле груди (с применением утежелителей выше лодыжек) | L26: 1 | M26: ≥ 25 | N26: 1.1 | Q26: 2 упр | R26: Отведение каждой ноги поочередно из стойки ноги вместе руки согнуты возле груди (с применением утежелителей выше лодыжек) | S26: 1 | T26: ≥ 12 | U26: 1.1
C27: 3 упр | D27: Приседания на обеих ногах с касанием руками пола из стойки ноги на ширине плеч руки вместе | E27: 1 | F27: ≥ 50 | G27: 1.1 | J27: 3 упр | K27: Приседания на обеих ногах с касанием руками пола из стойки ноги на ширине плеч руки вместе (с применением утежелителей на поясе) | L27: 1 | M27: ≥ 25 | N27: 1.1 | Q27: 3 упр | R27: Приседания на обеих ногах с касанием руками пола из стойки ноги на ширине плеч руки вместе (с применением утежелителей на поясе) | S27: 1 | T27: ≥ 12 | U27: 1.1
B28: Силовая выносливость мышц туловища | C28: 1 упр | D28: Отклонение туловища назад из седа на стуле руки к плечам локти на спинку стула до полного выпрямления | E28: 1 | F28: ≥ 50 | G28: 0.9 | H28: 1 | I28: Силовая выносливость мышц туловища | J28: 1 упр | K28: Отклонение туловища назад из седа на скамейке (кровати) руки "в замок" за голову до полного выпрямления | L28: 1 | M28: ≥ 25 | N28: 0.9 | O28: 2 | P28: Силовая выносливость мышц туловища | Q28: 1 упр | R28: Отклонение туловища назад из седа на скамейке (кровати) руки "в замок" за голову прогиб назад | S28: 1 | T28: ≥ 12 | U28: 0.9 | V28: 3
C29: 2 упр | D29: Прогиб назад из положения лежа на животе руки согнуты в упор прогнувшись на бедрах | E29: 1 | F29: ≥ 50 | G29: 0.9 | J29: 2 упр | K29: Отведение ног назад из положения лежа на животе с опорой руками о пол | L29: 1 | M29: ≥ 25 | N29: 0.9 | Q29: 2 упр | R29: Отведение ног назад из положения лежа на животе с захватом руками ног выше лодыжек | S29: 1 | T29: ≥ 12 | U29: 0.9
C30: 3 упр | D30: Прогиб назад и наклон вперед с обхватом руками голеней из стойки ноги врозь руки на пояс | E30: 1 | F30: ≥ 50 | G30: 0.9 | J30: 3 упр | K30: Прогиб назад и наклон вперед с руками вверх на пол из стойки на коленях | L30: 1 | M30: ≥ 25 | N30: 0.9 | Q30: 3 упр | R30: Прогиб назад до касания лопатками пола (руки вдоль туловища) и наклон вперед с переходом в упор стоя (углом) | S30: 1 | T30: ≥ 12 | U30: 0.9
B31: Сила мышц плечевого пояса | C31: 1 упр | E31: 1 | H31: 1 | I31: Сила мышц плечевого пояса | J31: 1 упр | L31: 1 | O31: 2 | P31: Сила мышц плечевого пояса | Q31: 1 упр | S31: 1 | V31: 3
C32: 2 упр | E32: 1 | J32: 2 упр | L32: 1 | Q32: 2 упр | S32: 1
C33: 3 упр | E33: 1 | J33: 3 упр | L33: 1 | Q33: 3 упр | S33: 1
B34: Сила мышц тазобедренного пояса | C34: 1 упр | E34: 1 | H34: 1 | I34: Сила мышц тазобедренного пояса | J34: 1 упр | L34: 1 | O34: 2 | P34: Сила мышц тазобедренного пояса | Q34: 1 упр | S34: 1 | V34: 3
C35: 2 упр | E35: 1 | J35: 2 упр | L35: 1 | Q35: 2 упр | S35: 1
C36: 3 упр | E36: 1 | J36: 3 упр | L36: 1 | Q36: 3 упр | S36: 1
B37: Сила мышц туловища | C37: 1 упр | E37: 1 | H37: 1 | I37: Сила мышц туловища | J37: 1 упр | L37: 1 | O37: 2 | P37: Сила мышц туловища | Q37: 1 упр | S37: 1 | V37: 3
C38: 2 упр | E38: 1 | J38: 2 упр | L38: 1 | Q38: 2 упр | S38: 1
C39: 3 упр | E39: 1 | J39: 3 упр | L39: 1 | Q39: 3 упр | S39: 1
B40: Силовая выносливость мышц плечевого пояса | C40: 1 упр | E40: 1 | H40: 1 | I40: Силовая выносливость мышц плечевого пояса | J40: 1 упр | L40: 1 | O40: 2 | P40: Силовая выносливость мышц плечевого пояса | Q40: 1 упр | S40: 1 | V40: 3
C41: 2 упр | E41: 1 | J41: 2 упр | L41: 1 | Q41: 2 упр | S41: 1
C42: 3 упр | E42: 1 | J42: 3 упр | L42: 1 | Q42: 3 упр | S42: 1
B43: Силовая выносливость мышц тазобедренного пояса | C43: 1 упр | H43: 1 | I43: Силовая выносливость мышц тазобедренного пояса | J43: 1 упр | O43: 2 | P43: Силовая выносливость мышц тазобедренного пояса | Q43: 1 упр | V43: 3
C44: 2 упр | J44: 2 упр | Q44: 2 упр
C45: 3 упр | J45: 3 упр | Q45: 3 упр
A46: Заключительная часть занятия | B46: Силовая выносливость мышц туловища | C46: 1 упр | H46: 1 | I46: Силовая выносливость мышц туловища | J46: 1 упр | O46: 2 | P46: Силовая выносливость мышц туловища | Q46: 1 упр | V46: 3
A47: Физическое упражнение | C47: 2 упр | J47: 2 упр | Q47: 2 упр
A48: Глубокий наклон вперед с задержкой | C48: 3 упр | J48: 3 упр | Q48: 3 упр
A49: Упор лежа на ногах
A50: Стойка на лопатках | I50: p | J50: h*
A51: Максимальное расслабление лежа на животе | I51: 1
A52: Разбор занятия, 3 мин | I52: 1
A53: Стойка на лопатках с опусканием ног за голову на пол руки прямые лодонями прижаты к полу | I53: 1
A54: Вис на согнутых ногах прогнувшись руки в замок за голову | I54: 1
A55: Стойка на голове и лопатках
A56: Максимальное расслабление лежа на животе | I56: p2-1
A57: Разбор занятия, 3 мин | I57: p2-2
A58: Из положения лежа на спине сед согнувшись с согнутыми ногами руки ладонями вперед запястьями на коллени | I58: p2-3
A59: Из положения лежа на животе отведение прямых рук и ног назад с прогибом туловища | I59: p2-4
A60: Стойка на руках
A61: Максимальное расслабление лежа на животе | I61: p3-1
A62: Разбор занятия, 3 мин | I62: p3-2

Sheet Ловкость2
F1: 1 | M1: 2 | T1: 3
E2: 1 | L2: 2 | S2: 3
D3: 1 | K3: 2 | R3: 3
H4: 1 | O4: 2 | U4: 3
B5: Ловкость2
B6: ФК или ДН | C6: № упр | D6: Физическое упражнение первый уровень сложности | E6: p* | F6: n* | G6: k* | H6: УС | I6: ФК | J6: № упр | K6: Физическое упражнение второй уровень сложности | L6: p* | M6: n* | N6: k* | O6: УС | P6: ФК | Q6: № упр | R6: Физическое упражнение третий уровень сложности | S6: p* | T6: n* | U6: k* | V6: УС
B7: Сила мышц плечевого пояса | C7: 1 упр | D7: Подтягивания в висе хватом снизу руки на ширине плеч (при необходимости с помощью партнера) | E7: 1 | F7: ≤ 11 | G7: 0.6 | H7: 1 | I7: Сила мышц плечевого пояса | J7: 1 упр | K7: Подтягивания в висе хватом сверху руки на ширине плеч (при необходимости с помощью партнера) | L7: 1 | M7: ≤ 8 | N7: 0.6 | O7: 2 | P7: Сила мышц плечевого пояса | Q7: 1 упр | R7: Подтягивания в висе лежа узким хватом сверху (при необходимости с помощью партнера) | S7: 1 | T7: ≤ 6 | U7: 0.6 | V7: 3
C8: 2 упр | D8: Сгибание и разгибание рук в упоре лежа (руки шире плеч) | E8: 1 | F8: ≤ 11 | G8: 0.6 | J8: 2 упр | K8: Сгибание и разгибание рук в упоре лежа (руки на ширине плеч) | L8: 1 | M8: ≤ 8 | N8: 0.6 | Q8: 2 упр | R8: Сгибание и разгибание рук в упоре лежа (кисти рук соприкасаются указательными и большими пальцами) | S8: 1 | T8: ≤ 6 | U8: 0.6
C9: 3 упр | D9: Выход силой в упор на перекладину (руки поочередно) из виса стоя (при необходимости с помощью партнера) | E9: 1 | F9: ≤ 11 | G9: 0.6 | J9: 3 упр | K9: Выход силой в упор на перекладину (руки поочередно) из виса лежа | L9: 1 | M9: ≤ 8 | N9: 0.6 | Q9: 3 упр | R9: Выход силой в упор на перекладину (руки поочередно) из виса | S9: 1 | T9: ≤ 6 | U9: 0.6
B13: Сила мышц плечевого пояса | C13: 1 упр | D13: Подтягивания в висе хватом снизу руки на ширине плеч (при необходимости с помощью партнера) | E13: 1 | F13: ≤ 11 | G13: 0.6 | H13: 1 | I13: Сила мышц плечевого пояса | J13: 1 упр | K13: Подтягивания в висе хватом сверху руки на ширине плеч (при необходимости с помощью партнера) | L13: 1 | M13: ≤ 8 | N13: 0.6 | O13: 2 | P13: Сила мышц плечевого пояса | Q13: 1 упр | R13: Подтягивания в висе лежа узким хватом сверху (при необходимости с помощью партнера) | S13: 1 | T13: ≤ 6 | U13: 0.6 | V13: 3
C14: 2 упр | D14: Сгибание и разгибание рук в упоре лежа (руки шире плеч) | E14: 1 | F14: ≤ 11 | G14: 0.6 | J14: 2 упр | K14: Сгибание и разгибание рук в упоре лежа (руки на ширине плеч) | L14: 1 | M14: ≤ 8 | N14: 0.6 | Q14: 2 упр | R14: Сгибание и разгибание рук в упоре лежа (кисти рук соприкасаются указательными и большими пальцами) | S14: 1 | T14: ≤ 6 | U14: 0.6
C15: 3 упр | D15: Выход силой в упор на перекладину (руки поочередно) из виса стоя (при необходимости с помощью партнера) | E15: 1 | F15: ≤ 11 | G15: 0.6 | J15: 3 упр | K15: Выход силой в упор на перекладину (руки поочередно) из виса лежа | L15: 1 | M15: ≤ 8 | N15: 0.6 | Q15: 3 упр | R15: Выход силой в упор на перекладину (руки поочередно) из виса | S15: 1 | T15: ≤ 6 | U15: 0.6
B16: Сила мышц тазобедренного пояса | C16: 1 упр | D16: Приседания на каждой ноге поочередно в стойке (с опорой рукой о стену) | E16: 1 | F16: ≤ 11 | G16: 0.8 | H16: 1 | I16: Сила мышц тазобедренного пояса | J16: 1 упр | K16: Приседания на каждой ноге поочередно в стойке (с опорой рукой о стену с утежелителями на поясе ) | L16: 1 | M16: ≤ 8 | N16: 0.8 | O16: 2 | P16: Сила мышц тазобедренного пояса | Q16: 1 упр | R16: Приседания на каждой ноге поочередно в стойке (с опорой рукой о стену) | S16: 1 | T16: ≤ 6 | U16: 0.8 | V16: 3
C17: 2 упр | D17: Сгибание каждой ноги поочередно с зади в стойке с опрой руками о стену (с применением утяжелителей, либо экспандера) | E17: 1 | F17: ≤ 11 | G17: 0.8 | J17: 2 упр | K17: Сгибание каждой ноги поочередно с зади в стойке с опрой руками о стену (с применением утяжелителей, либо экспандера) | L17: 1 | M17: ≤ 8 | N17: 0.8 | Q17: 2 упр | R17: Сгибание каждой ноги поочередно с зади в стойке с опрой руками о стену (с применением утяжелителей, либо экспандера) | S17: 1 | T17: ≤ 6 | U17: 0.8
C18: 3 упр | D18: Сгибание каждой ноги поочередно с переди и с зади в стойке с опорой руками о стену (с применением утяжелителей, либо экспандера) | E18: 1 | F18: ≤ 11 | G18: 0.8 | J18: 3 упр | K18: Сгибание каждой ноги поочередно с переди и с зади в стойке с опорой руками о стену (с применением утяжелителей, либо экспандера) | L18: 1 | M18: ≤ 8 | N18: 0.8 | Q18: 3 упр | R18: Сгибание каждой ноги поочередно с переди и с зади в стойке с опорой руками о стену (с применением утяжелителей, либо экспандера) | S18: 1 | T18: ≤ 6 | U18: 0.8
B19: Сила мышц туловища | C19: 1 упр | D19: Подъем в сед из положения лежа на спине руки вдоль туловища ноги согнуты | E19: 1 | F19: ≤ 11 | G19: 0.7 | H19: 1 | I19: Сила мышц туловища | J19: 1 упр | K19: Подъем в сед из положения лежа на спине руки на плечи ноги согнуты | L19: 1 | M19: ≤ 8 | N19: 0.7 | O19: 2 | P19: Сила мышц туловища | Q19: 1 упр | R19: Подъем в сед из положения лежа на спине руки "в замок" за голову ноги согнуты | S19: 1 | T19: ≤ 6 | U19: 0.7 | V19: 3
C20: 2 упр | D20: Прогиб назад из положения лежа на животе руки вдоль туловища с опорой руками о пол | E20: 1 | F20: ≤ 11 | G20: 0.7 | J20: 2 упр | K20: Прогиб назад из положения лежа на животе руки вверх | L20: 1 | M20: ≤ 8 | N20: 0.7 | Q20: 2 упр | R20: Прогиб назад из положения лежа на животе руки "в замок" за голову | S20: 1 | T20: ≤ 6 | U20: 0.7
C21: 3 упр | D21: Переход в упор лежа сзади с согнутыми ногами из упора сидя (тибетский мост) | E21: 1 | F21: ≤ 11 | G21: 0.7 | J21: 3 упр | K21: Переход в упор лежа сзади с согнутыми ногами из упора сидя (тибетский мост) с утежелителями на поясе | L21: 1 | M21: ≤ 8 | N21: 0.7 | Q21: 3 упр | R21: Переход в упор лежа сзади с согнутыми ногами из упора сидя (тибетский мост) с утежелителями на поясе | S21: 1 | T21: ≤ 6 | U21: 0.7
B22: Силовая выносливость мышц плечевого пояса | C22: 1 упр | D22: Подтягивания в висе стоя широким хватом снизу ноги шире плеч | E22: 1 | F22: ≥ 50 | G22: 0.8 | H22: 1 | I22: Силовая выносливость мышц плечевого пояса | J22: 1 упр | K22: Подтягивания в висе лежа нормальным хватом снизу ноги на ширине плеч | L22: 1 | M22: ≥ 25 | N22: 0.8 | O22: 2 | P22: Силовая выносливость мышц плечевого пояса | Q22: 1 упр | R22: Подтягивания в висе лежа узким хватом снизу ноги вместе | S22: 1 | T22: ≥ 12 | U22: 0.8 | V22: 3
C23: 2 упр | D23: Сгибание и разгибание рук в упоре лежа от стола (высота 0,75 - 1 м) ноги шире плеч | E23: 1 | F23: ≥ 50 | G23: 0.8 | J23: 2 упр | K23: Сгибание и разгибание рук в упоре лежа от стула (0,45 - 0,55 м) ноги на ширине плеч | L23: 1 | M23: ≥ 25 | N23: 0.8 | Q23: 2 упр | R23: Сгибание и разгибание рук в упоре лежа ноги вместе | S23: 1 | T23: ≥ 12 | U23: 0.8
C24: 3 упр | D24: Подъем переворотом в упор на перекладину из виса стоя махом одной толчком другой ноги | E24: 1 | F24: ≥ 50 | G24: 0.8 | J24: 3 упр | K24: Подъем переворотом в упор на перекладину из виса стоя толчком обеих ног | L24: 1 | M24: ≥ 25 | N24: 0.8 | Q24: 3 упр | R24: Подъем переворотом в упор на перекладину из виса прогнувшись | S24: 1 | T24: ≥ 12 | U24: 0.8
B25: Силовая выносливость мышц тазобедренного пояса | C25: 1 упр | D25: Приведение каждой ноги поочередно из стойки ноги вместе руки согнуты возле груди (с применением утежелителей выше лодыжек) | E25: 1 | F25: ≥ 50 | G25: 1.1 | H25: 1 | I25: Силовая выносливость мышц тазобедренного пояса | J25: 1 упр | K25: Приведение каждой ноги поочередно из стойки ноги вместе руки согнуты возле груди (с применением утежелителей выше лодыжек) | L25: 1 | M25: ≥ 25 | N25: 1.1 | O25: 2 | P25: Силовая выносливость мышц тазобедренного пояса | Q25: 1 упр | R25: Приведение каждой ноги поочередно из стойки ноги вместе руки согнуты возле груди (с применением утежелителей выше лодыжек) | S25: 1 | T25: ≥ 12 | U25: 1.1 | V25: 3
C26: 2 упр | D26: Отведение каждой ноги поочередно из стойки ноги вместе руки согнуты возле груди (с применением утежелителей выше лодыжек) | E26: 1 | F26: ≥ 50 | G26: 1.1 | J26: 2 упр | K26: Отведение каждой ноги поочередно из стойки ноги вместе руки согнуты возле груди (с применением утежелителей выше лодыжек) | L26: 1 | M26: ≥ 25 | N26: 1.1 | Q26: 2 упр | R26: Отведение каждой ноги поочередно из стойки ноги вместе руки согнуты возле груди (с применением утежелителей выше лодыжек) | S26: 1 | T26: ≥ 12 | U26: 1.1
C27: 3 упр | D27: Приседания на обеих ногах с касанием руками пола из стойки ноги на ширине плеч руки вместе | E27: 1 | F27: ≥ 50 | G27: 1.1 | J27: 3 упр | K27: Приседания на обеих ногах с касанием руками пола из стойки ноги на ширине плеч руки вместе (с применением утежелителей на поясе) | L27: 1 | M27: ≥ 25 | N27: 1.1 | Q27: 3 упр | R27: Приседания на обеих ногах с касанием руками пола из стойки ноги на ширине плеч руки вместе (с применением утежелителей на поясе) | S27: 1 | T27: ≥ 12 | U27: 1.1
B28: Силовая выносливость мышц туловища | C28: 1 упр | D28: Отклонение туловища назад из седа на стуле руки к плечам локти на спинку стула до полного выпрямления | E28: 1 | F28: ≥ 50 | G28: 0.9 | H28: 1 | I28: Силовая выносливость мышц туловища | J28: 1 упр | K28: Отклонение туловища назад из седа на скамейке (кровати) руки "в замок" за голову до полного выпрямления | L28: 1 | M28: ≥ 25 | N28: 0.9 | O28: 2 | P28: Силовая выносливость мышц туловища | Q28: 1 упр | R28: Отклонение туловища назад из седа на скамейке (кровати) руки "в замок" за голову прогиб назад | S28: 1 | T28: ≥ 12 | U28: 0.9 | V28: 3
C29: 2 упр | D29: Прогиб назад из положения лежа на животе руки согнуты в упор прогнувшись на бедрах | E29: 1 | F29: ≥ 50 | G29: 0.9 | J29: 2 упр | K29: Отведение ног назад из положения лежа на животе с опорой руками о пол | L29: 1 | M29: ≥ 25 | N29: 0.9 | Q29: 2 упр | R29: Отведение ног назад из положения лежа на животе с захватом руками ног выше лодыжек | S29: 1 | T29: ≥ 12 | U29: 0.9
C30: 3 упр | D30: Прогиб назад и наклон вперед с обхватом руками голеней из стойки ноги врозь руки на пояс | E30: 1 | F30: ≥ 50 | G30: 0.9 | J30: 3 упр | K30: Прогиб назад и наклон вперед с руками вверх на пол из стойки на коленях | L30: 1 | M30: ≥ 25 | N30: 0.9 | Q30: 3 упр | R30: Прогиб назад до касания лопатками пола (руки вдоль туловища) и наклон вперед с переходом в упор стоя (углом) | S30: 1 | T30: ≥ 12 | U30: 0.9
B31: Сила мышц плечевого пояса | C31: 1 упр | E31: 1 | H31: 1 | I31: Сила мышц плечевого пояса | J31: 1 упр | L31: 1 | O31: 2 | P31: Сила мышц плечевого пояса | Q31: 1 упр | S31: 1 | V31: 3
C32: 2 упр | E32: 1 | J32: 2 упр | L32: 1 | Q32: 2 упр | S32: 1
C33: 3 упр | E33: 1 | J33: 3 упр | L33: 1 | Q33: 3 упр | S33: 1
B34: Сила мышц тазобедренного пояса | C34: 1 упр | E34: 1 | H34: 1 | I34: Сила мышц тазобедренного пояса | J34: 1 упр | L34: 1 | O34: 2 | P34: Сила мышц тазобедренного пояса | Q34: 1 упр | S34: 1 | V34: 3
C35: 2 упр | E35: 1 | J35: 2 упр | L35: 1 | Q35: 2 упр | S35: 1
C36: 3 упр | E36: 1 | J36: 3 упр | L36: 1 | Q36: 3 упр | S36: 1
B37: Сила мышц туловища | C37: 1 упр | E37: 1 | H37: 1 | I37: Сила мышц туловища | J37: 1 упр | L37: 1 | O37: 2 | P37: Сила мышц туловища | Q37: 1 упр | S37: 1 | V37: 3
C38: 2 упр | E38: 1 | J38: 2 упр | L38: 1 | Q38: 2 упр | S38: 1
C39: 3 упр | E39: 1 | J39: 3 упр | L39: 1 | Q39: 3 упр | S39: 1
B40: Силовая выносливость мышц плечевого пояса | C40: 1 упр | E40: 1 | H40: 1 | I40: Силовая выносливость мышц плечевого пояса | J40: 1 упр | L40: 1 | O40: 2 | P40: Силовая выносливость мышц плечевого пояса | Q40: 1 упр | S40: 1 | V40: 3
C41: 2 упр | E41: 1 | J41: 2 упр | L41: 1 | Q41: 2 упр | S41: 1
C42: 3 упр | E42: 1 | J42: 3 упр | L42: 1 | Q42: 3 упр | S42: 1
B43: Силовая выносливость мышц тазобедренного пояса | C43: 1 упр | H43: 1 | I43: Силовая выносливость мышц тазобедренного пояса | J43: 1 упр | O43: 2 | P43: Силовая выносливость мышц тазобедренного пояса | Q43: 1 упр | V43: 3
C44: 2 упр | J44: 2 упр | Q44: 2 упр
C45: 3 упр | J45: 3 упр | Q45: 3 упр
A46: Заключительная часть занятия | B46: Силовая выносливость мышц туловища | C46: 1 упр | H46: 1 | I46: Силовая выносливость мышц туловища | J46: 1 упр | O46: 2 | P46: Силовая выносливость мышц туловища | Q46: 1 упр | V46: 3
A47: Физическое упражнение | C47: 2 упр | J47: 2 упр | Q47: 2 упр
A48: Глубокий наклон вперед с задержкой | C48: 3 упр | J48: 3 упр | Q48: 3 упр
A49: Упор лежа на ногах
A50: Стойка на лопатках | I50: p | J50: h*
A51: Максимальное расслабление лежа на животе | I51: 1
A52: Разбор занятия, 3 мин | I52: 1
A53: Стойка на лопатках с опусканием ног за голову на пол руки прямые лодонями прижаты к полу | I53: 1
A54: Вис на согнутых ногах прогнувшись руки в замок за голову | I54: 1
A55: Стойка на голове и лопатках
A56: Максимальное расслабление лежа на животе | I56: p2-1
A57: Разбор занятия, 3 мин | I57: p2-2
A58: Из положения лежа на спине сед согнувшись с согнутыми ногами руки ладонями вперед запястьями на коллени | I58: p2-3
A59: Из положения лежа на животе отведение прямых рук и ног назад с прогибом туловища | I59: p2-4
A60: Стойка на руках
A61: Максимальное расслабление лежа на животе | I61: p3-1
A62: Разбор занятия, 3 мин | I62: p3-2

Sheet Волейбол1
F1: 1 | M1: 2 | T1: 3
E2: 1 | L2: 2 | S2: 3
D3: 1 | K3: 2 | R3: 3
H4: 1 | O4: 2 | U4: 3
B5: Волейбол1
B6: ФК или ДН | C6: № упр | D6: Физическое упражнение первый уровень сложности | E6: p* | F6: n* | G6: k* | H6: УС | I6: ФК | J6: № упр | K6: Физическое упражнение второй уровень сложности | L6: p* | M6: n* | N6: k* | O6: УС | P6: ФК | Q6: № упр | R6: Физическое упражнение третий уровень сложности | S6: p* | T6: n* | U6: k* | V6: УС
B7: Быстрота (волейбол) | C7: 1 упр | D7: Верхняя передача мяча после отскока от стены (с расстояния 2,5 м) | E7: 1 | F7: ≤ 25 | G7: 0.8 | H7: 1 | I7: Быстрота (волейбол) | J7: 1 упр | K7: Верхняя передача мяча после отскока от стены (с расстояния 2 м) | L7: 1 | M7: ≤ 35 | N7: 0.9 | O7: 2 | P7: Быстрота (волейбол) | Q7: 1 упр | R7: Верхняя передача мяча после отскока от стены (с расстояния 1,5 м) | S7: 1 | T7: ≤ 50 | U7: 1 | V7: 3
C8: 2 упр | D8: Нижняя передача мяча после отскока от стены (с расстояния 2,5 м) | E8: 1 | F8: ≤ 25 | G8: 0.8 | J8: 2 упр | K8: Нижняя передача мяча после отскока от стены (с расстояния 2 м) | L8: 1 | M8: ≤ 35 | N8: 0.9 | Q8: 2 упр | R8: Нижняя передача мяча после отскока от стены (с расстояния 1,5 м) | S8: 1 | T8: ≤ 50 | U8: 1
C9: 3 упр | D9: Чередование верхней и нижней передачи мяча после отскока от стены (с расстояния 2,5 м) | E9: 1 | F9: ≤ 25 | G9: 0.8 | J9: 3 упр | K9: Чередование верхней и нижней передачи мяча после отскока от стены (с расстояния 2 м) | L9: 1 | M9: ≤ 35 | N9: 0.9 | Q9: 3 упр | R9: Чередование верхней и нижней передачи мяча после отскока от стены (с расстояния 1,5 м) | S9: 1 | T9: ≤ 50 | U9: 1
B13: Быстрота (волейбол) | C13: 1 упр | D13: Верхняя передача мяча после отскока от стены (с расстояния 2,5 м) | E13: 1 | F13: ≤ 25 | G13: 0.8 | H13: 1 | I13: Быстрота (волейбол) | J13: 1 упр | K13: Верхняя передача мяча после отскока от стены (с расстояния 2 м) | L13: 1 | M13: ≤ 35 | N13: 0.9 | O13: 2 | P13: Быстрота (волейбол) | Q13: 1 упр | R13: Верхняя передача мяча после отскока от стены (с расстояния 1,5 м) | S13: 1 | T13: ≤ 50 | U13: 1 | V13: 3
C14: 2 упр | D14: Нижняя передача мяча после отскока от стены (с расстояния 2,5 м) | E14: 1 | F14: ≤ 25 | G14: 0.8 | J14: 2 упр | K14: Нижняя передача мяча после отскока от стены (с расстояния 2 м) | L14: 1 | M14: ≤ 35 | N14: 0.9 | Q14: 2 упр | R14: Нижняя передача мяча после отскока от стены (с расстояния 1,5 м) | S14: 1 | T14: ≤ 50 | U14: 1
C15: 3 упр | D15: Чередование верхней и нижней передачи мяча после отскока от стены (с расстояния 2,5 м) | E15: 1 | F15: ≤ 25 | G15: 0.8 | J15: 3 упр | K15: Чередование верхней и нижней передачи мяча после отскока от стены (с расстояния 2 м) | L15: 1 | M15: ≤ 35 | N15: 0.9 | Q15: 3 упр | R15: Чередование верхней и нижней передачи мяча после отскока от стены (с расстояния 1,5 м) | S15: 1 | T15: ≤ 50 | U15: 1
B16: Сила (волейбол) | C16: 1 упр | D16: Прыжок с места вверх с имитацией нападающего удара | E16: 1 | F16: ≤ 12 | G16: 0.8 | H16: 1 | I16: Сила (волейбол) | J16: 1 упр | K16: Прыжок с места вверх с имитацией нападающего удара (с ипользованием утяжелителей на поясе и запястьях) | L16: 1 | M16: ≤ 8 | N16: 0.9 | O16: 2 | P16: Сила (волейбол) | Q16: 1 упр | R16: Прыжок с места вверх с имитацией нападающего удара (с ипользованием утяжелителей на поясе и запястьях) | S16: 1 | T16: ≤ 6 | U16: 1 | V16: 3
C17: 2 упр | D17: Прыжок вверх после разбега с одного шага и напрыгивания на обе ноги с имитацией нападающего удара | E17: 1 | F17: ≤ 12 | G17: 0.8 | J17: 2 упр | K17: Прыжок вверх после разбега с одного шага и напрыгивания на обе ноги с имитацией нападающего удара (с ипользованием утяжелителей на поясе и запястьях) | L17: 1 | M17: ≤ 8 | N17: 0.9 | Q17: 2 упр | R17: Прыжок вверх после разбега с одного шага и напрыгивания на обе ноги с имитацией нападающего удара (с ипользованием утяжелителей на поясе и запястьях) | S17: 1 | T17: ≤ 6 | U17: 1
C18: 3 упр | D18: Наскок на скамейку и соскок со скамейки | E18: 1 | F18: ≤ 12 | G18: 0.8 | J18: 3 упр | K18: Наскок на скамейку и соскок со скамейки (с ипользованием утяжелителей на поясе, выше лодыжек и запястьях) | L18: 1 | M18: ≤ 8 | N18: 0.9 | Q18: 3 упр | R18: Наскок на скамейку и соскок со скамейки (с ипользованием утяжелителей на поясе, выше лодыжек и запястьях) | S18: 1 | T18: ≤ 6 | U18: 1
B19: Гибкость (волейбол) | C19: 1 упр | D19: Наклон с набивным мячом весом 1 кг вперед с касанием пола и прогиб назад из стойки ноги шире плеч | E19: 1 | F19: ≤ 6 | G19: 0.8 | H19: 1 | I19: Гибкость (волейбол) | J19: 1 упр | K19: Наклон с набивным мячом весом 2 кг вперед с касанием пола и прогиб назад из стойки ноги шире плеч | L19: 1 | M19: ≤ 6 | N19: 0.9 | O19: 2 | P19: Гибкость (волейбол) | Q19: 1 упр | R19: Наклон с набивным мячом весом 3 кг вперед с касанием пола и прогиб назад из стойки ноги шире плеч | S19: 1 | T19: ≤ 6 | U19: 1 | V19: 3
C20: 2 упр | D20: Наклон с набивным мячом весом 1 кг вперед и прогиб назад в положении "барьерного" седа | E20: 1 | F20: ≤ 6 | G20: 0.8 | J20: 2 упр | K20: Наклон с набивным мячом весом 2 кг вперед и прогиб назад в положении "барьерного" седа | L20: 1 | M20: ≤ 6 | N20: 0.9 | Q20: 2 упр | R20: Наклон с набивным мячом весом 3 кг вперед и прогиб назад в положении "барьерного" седа | S20: 1 | T20: ≤ 6 | U20: 1
C21: 3 упр | D21: Упор стоя (углом) из упора лежа на бедрах с удержанием набивного мяча весом 1 кг между колен | E21: 1 | F21: ≤ 6 | G21: 0.8 | J21: 3 упр | K21: Упор стоя (углом) из упора лежа на бедрах с удержанием набивного мяча весом 2 кг между колен | L21: 1 | M21: ≤ 6 | N21: 0.9 | Q21: 3 упр | R21: Упор стоя (углом) из упора лежа на бедрах с удержанием набивного мяча весом 3 кг между колен | S21: 1 | T21: ≤ 6 | U21: 1
B22: Выносливость (волейбол) | C22: 1 упр | D22: Чередование верхней передачи мяча с касанием пола левой и правой рукой поочередно | E22: 1 | F22: ≥ 50 | G22: 0.8 | H22: 1 | I22: Выносливость (волейбол) | J22: 1 упр | K22: Чередование верхней передачи мяча с касанием пола двумя руками одновременно после наклона вперед | L22: 1 | M22: ≥ 50 | N22: 0.9 | O22: 2 | P22: Выносливость (волейбол) | Q22: 1 упр | R22: Чередование верхней передачи мяча с касанием пола двумя руками одновременно после приседания | S22: 1 | T22: ≥ 50 | U22: 1 | V22: 3
C23: 2 упр | D23: Чередование нижней передачи мяча с касанием пола левой и правой рукой поочередно | E23: 1 | F23: ≥ 50 | G23: 0.8 | J23: 2 упр | K23: Чередование нижней передачи мяча с касанием пола двумя руками одновременно после наклона вперед | L23: 1 | M23: ≥ 50 | N23: 0.9 | Q23: 2 упр | R23: Чередование нижней передачи мяча с касанием пола двумя руками одновременно после приседания | S23: 1 | T23: ≥ 50 | U23: 1
C24: 3 упр | D24: Чередование верхней и нижней передачи мяча с касанием пола левой и правой рукой поочередно | E24: 1 | F24: ≥ 50 | G24: 0.8 | J24: 3 упр | K24: Чередование верхней и нижней передачи мяча с касанием пола двумя руками одновременно после наклона вперед | L24: 1 | M24: ≥ 50 | N24: 0.9 | Q24: 3 упр | R24: Чередование верхней и нижней передачи мяча с касанием пола двумя руками одновременно после приседания | S24: 1 | T24: ≥ 50 | U24: 1
V25: 3
V28: 3
V31: 3
V34: 3
V37: 3
V40: 3
V43: 3
A46: Заключительная часть занятия | B46: Силовая выносливость мышц туловища | C46: 1 упр | H46: 1 | I46: Силовая выносливость мышц туловища | J46: 1 упр | O46: 2 | P46: Силовая выносливость мышц туловища | Q46: 1 упр | V46: 3
A47: Физическое упражнение | C47: 2 упр | J47: 2 упр | Q47: 2 упр
A48: Глубокий наклон вперед с задержкой | C48: 3 упр | J48: 3 упр | Q48: 3 упр
A49: Упор лежа на ногах
A50: Стойка на лопатках | I50: p | J50: h*
A51: Максимальное расслабление лежа на животе | I51: 1
A52: Разбор занятия, 3 мин | I52: 1
A53: Стойка на лопатках с опусканием ног за голову на пол руки прямые лодонями прижаты к полу | I53: 1
A54: Вис на согнутых ногах прогнувшись руки в замок за голову | I54: 1
A55: Стойка на голове и лопатках
A56: Максимальное расслабление лежа на животе | I56: p2-1
A57: Разбор занятия, 3 мин | I57: p2-2
A58: Из положения лежа на спине сед согнувшись с согнутыми ногами руки ладонями вперед запястьями на коллени | I58: p2-3
A59: Из положения лежа на животе отведение прямых рук и ног назад с прогибом туловища | I59: p2-4
A60: Стойка на руках
A61: Максимальное расслабление лежа на животе | I61: p3-1
A62: Разбор занятия, 3 мин | I62: p3-2

Sheet Волейбол2
F1: 1 | M1: 2 | T1: 3
E2: 1 | L2: 2 | S2: 3
D3: 1 | K3: 2 | R3: 3
H4: 1 | O4: 2 | U4: 3
B5: ВОЛЕЙБОЛ2
B6: ФК или ДН | C6: № упр | D6: Физическое упражнение первый уровень сложности | E6: p* | F6: n* | G6: k* | H6: УС | I6: ФК | J6: № упр | K6: Физическое упражнение второй уровень сложности | L6: p* | M6: n* | N6: k* | O6: УС | P6: ФК | Q6: № упр | R6: Физическое упражнение третий уровень сложности | S6: p* | T6: n* | U6: k* | V6: УС
B7: Выносливость (волейбол) | C7: 1 упр | D7: Чередование верхней передачи мяча с касанием пола левой и правой рукой поочередно | E7: 1 | F7: ≥ 50 | G7: 0.8 | H7: 1 | I7: Выносливость (волейбол) | J7: 1 упр | K7: Чередование верхней передачи мяча с касанием пола двумя руками одновременно после наклона вперед | L7: 1 | M7: ≥ 50 | N7: 0.9 | O7: 2 | P7: Выносливость (волейбол) | Q7: 1 упр | R7: Чередование верхней передачи мяча с касанием пола двумя руками одновременно после приседания | S7: 1 | T7: ≥ 50 | U7: 1 | V7: 3
C8: 2 упр | D8: Чередование нижней передачи мяча с касанием пола левой и правой рукой поочередно | E8: 1 | F8: ≥ 50 | G8: 0.8 | J8: 2 упр | K8: Чередование нижней передачи мяча с касанием пола двумя руками одновременно после наклона вперед | L8: 1 | M8: ≥ 50 | N8: 0.9 | Q8: 2 упр | R8: Чередование нижней передачи мяча с касанием пола двумя руками одновременно после приседания | S8: 1 | T8: ≥ 50 | U8: 1
C9: 3 упр | D9: Чередование верхней и нижней передачи мяча с касанием пола левой и правой рукой поочередно | E9: 1 | F9: ≥ 50 | G9: 0.8 | J9: 3 упр | K9: Чередование верхней и нижней передачи мяча с касанием пола двумя руками одновременно после наклона вперед | L9: 1 | M9: ≥ 50 | N9: 0.9 | Q9: 3 упр | R9: Чередование верхней и нижней передачи мяча с касанием пола двумя руками одновременно после приседания | S9: 1 | T9: ≥ 50 | U9: 1
B13: Быстрота (волейбол) | C13: 1 упр | D13: Верхняя передача мяча после отскока от стены (с расстояния 2,5 м) | E13: 1 | F13: ≤ 25 | G13: 0.8 | H13: 1 | I13: Быстрота (волейбол) | J13: 1 упр | K13: Верхняя передача мяча после отскока от стены (с расстояния 2 м) | L13: 1 | M13: ≤ 35 | N13: 0.9 | O13: 2 | P13: Быстрота (волейбол) | Q13: 1 упр | R13: Верхняя передача мяча после отскока от стены (с расстояния 1,5 м) | S13: 1 | T13: ≤ 50 | U13: 1 | V13: 3
C14: 2 упр | D14: Нижняя передача мяча после отскока от стены (с расстояния 2,5 м) | E14: 1 | F14: ≤ 25 | G14: 0.8 | J14: 2 упр | K14: Нижняя передача мяча после отскока от стены (с расстояния 2 м) | L14: 1 | M14: ≤ 35 | N14: 0.9 | Q14: 2 упр | R14: Нижняя передача мяча после отскока от стены (с расстояния 1,5 м) | S14: 1 | T14: ≤ 50 | U14: 1
C15: 3 упр | D15: Чередование верхней и нижней передачи мяча после отскока от стены (с расстояния 2,5 м) | E15: 1 | F15: ≤ 25 | G15: 0.8 | J15: 3 упр | K15: Чередование верхней и нижней передачи мяча после отскока от стены (с расстояния 2 м) | L15: 1 | M15: ≤ 35 | N15: 0.9 | Q15: 3 упр | R15: Чередование верхней и нижней передачи мяча после отскока от стены (с расстояния 1,5 м) | S15: 1 | T15: ≤ 50 | U15: 1
